Workbook

Sheet CALCULADORA
B1: Exclusión de responsabilidad
B2: Exclusión de responsabilidad
D7: Fecha de Compra
D8: Fecha de Venta
B9: Calculadora Emisiones TIPS en UVR
B11: Emisión | C11: TIPS UVR U-4 A 2029 | E11: Seleccionar la Emisión a Calcular | F11: 0.0396
F12: 96.521
B13: Características | F13: 94.465
B14: Identificación titulo (Nemotécnico) | C14: =+HLOOKUP(C11,Características!B1:F7,2,FALSE) -> INST10150829
B15: Fecha de Emisión | C15: =+HLOOKUP(C11,Características!B1:F7,4,FALSE) -> 2019-08-15
B16: Fecha de Vencimiento Contractual | C16: =+HLOOKUP(C11,Características!B1:F8,5,FALSE) -> 2029-08-15
B17: Fecha estimada para el pago del 100% del título
B18: Fecha estimada para el pago del 100% del título | C18: =+VLOOKUP(0,Flujos!D2:I182,6,FALSE) -> 2028-08-15
B19: Tasa Facial Efectiva Anual | C19: =+HLOOKUP(C11,Características!B1:F7,6,FALSE) -> 0.0222
B20: Tasa Facial Nominal Anual | C20: =+ROUND(((1+C19)^(1/12)-1)*12,6) -> 0.021977
B21: Duración Macaulay (Años en los que recuperas tu inversión) | C21: =+SUMPRODUCT(Flujos!B2:B182,Flujos!H2:H182)/Flujos!H183/365 -> 1.77737253
B22: Nominal Inicial UVR (Monto del título al momento de la emisión) | C22: =Flujos!L2 -> 1999999.015
B23: UVR* | C23: =IF(VLOOKUP(C30,UVR!$A:$B,2,FALSE)=0,"Actualizar base",VLOOKUP(C30,UVR!$A:$B,2,FALSE)) -> 358.8527 | D23: UVR*: El valor de la UVR se proyecta desde el 15/02/2024 con el promedio de las expectivas de nuestros agentes colocadores
B25: Datos de Compra
B26: Fecha de Compra | C26: 2021-03-14 | E26: Fecha de Compra y Valor de Compra son datos opcionales deben incluirse solo para calcular la TIR de Tenencia
B27: Valor de Compra (COP) | C27: 432103915
B29: Datos de Venta
B30: Fecha de Venta | C30: 2024-02-11
B31: Valor nominal negociado (UVR) | C31: 589099.51 | E31: Incluir los datos de las celdas grises
B32: Tasa de negociación / tasa de valoración | C32: 0.0396
B33: Precio Limpio (sin incluir intereses causados) | C33: 94.307
B34: Precio sucio (incluyendo intereses causados) | C34: 94.505
B35: Porcentaje del nominal inicial que falta por pagar del capital | C35: =+Flujos!C183*100 -> 29.45499
B36: Valor de Giro (COP) | C36: =+Características!B20 -> 199700442
B38: TIR de Tenencia en COP* | C38: =+'TIR de Tenencia'!N2 -> -0.2147170804 | E38: TIR de Tenencia en COP*
B40: Oficina de Atención a Inversionistas al 601 618 3030 ext 258 - 239, o al correo smoreno@titularizadora.com - josorio@titularizadora.com

Sheet Características (hidden)
A1: Serie | B1: TIPS UVR U-2 A 2027 | C1: TIPS UVR U-3 A 2028 | D1: TIPS UVR U-4 A 2029 | E1: TIPS UVR U-5 A 2036 | F1: TIPS UVR U-6 A 2037
A2: Nemo MEC | B2: INST10091127 | C2: INST10250728 | D2: INST10150829 | E2: INST15071036 | F2: INST15161237
A3: ISIN | B3: COT80CHGRALTITIP0AD0146 | C3: COT80CH02555 | D3: COT80CHxxxxxx | E3: COT80CHxxxxxx | F3: COT80CHxxxxxx
A4: Emisión | B4: 2017-11-09 | C4: 2018-07-25 | D4: 2019-08-15 | E4: 2021-10-07 | F4: 2022-12-16
A5: Vencimiento contractual | B5: 2027-11-09 | C5: 2028-07-25 | D5: 2029-08-15 | E5: 2036-10-07 | F5: 2037-12-16
A6: Cupón EA | B6: 0.0319 | C6: 0.0318 | D6: 0.0222 | E6: 0.0258 | F6: 0.078
A7: Moneda | B7: UVR | C7: UVR | D7: UVR | E7: UVR | F7: UVR
A9: Cálculo de tasa y precio sucio a partir del limpio
A10: Fecha de liquidación | B10: =+CALCULADORA!C30 -> 2024-02-11
A11: Fecha último pago cupón | B11: =+VLOOKUP(B10,Flujos!$A$2:$A$182,1) -> 2024-01-15
A12: Valor Par | B12: =+VLOOKUP(B11,Flujos!$A$2:$D$182,4) -> 29.45499
A13: Próximo pago de interés | B13: =+VLOOKUP(EDATE(B10,1),Flujos!$A$2:$F$182,6) -> 0.053932
A14: Días corridos | B14: =+DAYS360(B11,B10,TRUE) -> 26
A15: Días entre flujos | B15: 30
A16: Cupón corrido | B16: =ROUND(B13/B12*B14/B15*100,4) -> 0.1587
A17: Precio limpio | B17: =+CALCULADORA!C33 -> 94.307
A18: Nominal | B18: =+CALCULADORA!C31 -> 589099.51
A19: Moneda | B19: =+CALCULADORA!$C$23 -> 358.8527
A20: Contravalor | B20: =ROUND(B18*B19*(B17+B16)/100,0) -> 199700442
A21: Precio unitario | B21: =TRUNC(B20/B18,5) -> 338.99271
A22: Precio sucio MEC | B22: =TRUNC(B21/B19*100,3) -> 94.465
A23: Precio sucio modelo | B23: =TRUNC(Flujos!H183/VLOOKUP(CALCULADORA!C30,Flujos!A2:D182,4)*100,3) -> 97.186
A24: Diferencia | B24: =+B22-B23 -> -2.721
A25: Tasa de descuento equivalente | B25: =TRUNC(CALCULADORA!C32,5) -> 0.0396
A27: Cálculo de precio limpio y sucio a partir de tasa
A28: Tasa de descuento | B28: =TRUNC(CALCULADORA!C32,5) -> 0.0396
A29: Precio sucio modelo | B29: =TRUNC(Flujos!H183/VLOOKUP(CALCULADORA!C30,Flujos!A2:D182,4)*100,3) -> 97.186
A30: Moneda | B30: =+CALCULADORA!$C$23 -> 358.8527
A31: Nominal | B31: =+CALCULADORA!C31 -> 589099.51
A32: Contravalor | B32: =+ROUND(B29/100*B31*B30,0) -> 205451155
A33: Valor Par | B33: =+VLOOKUP(B11,Flujos!$A$2:$D$182,4) -> 29.45499
A34: Próximo pago de interés | B34: =+VLOOKUP(EDATE(B10,1),Flujos!$A$2:$F$182,6) -> 0.053932
A35: Días corridos | B35: =+DAYS360(B11,B10,TRUE) -> 26
A36: Días entre flujos | B36: 30
A37: Precio unitario | B37: =TRUNC(B32/(B30*B31),5) -> 0.97185
A38: Cupón corrido | B38: =ROUND(B34/B33*B35/B36,6)*100 -> 0.1587
A39: Precio limpio | B39: =ROUND((B37-(B38/100))*100,3) -> 97.026

Sheet Flujos
A1: Fecha | B1: Días 365 / Days 365 | C1: Amortización / Amortization | D1: Factor Saldo | E1: Factor Capital | F1: Factor Intereses | G1: Factor Total | H1: VPN | I1: Control | J1: Mes inicial | K1: Días iniciales | L1: Saldo / Balance | M1: Pago de Capital en UVR | N1: Pago de Intereses en UVR | O1: Pago Total UVR | P1: Pago de Capital en COP | Q1: Pago de Intereses en COP | R1: Pago Total COP
A2: =+CALCULADORA!C15 -> 2019-08-15 | B2: =IF(DIAS365(CALCULADORA!$C$30,A2)<0,0,DIAS365(CALCULADORA!$C$30,A2)) -> 0 | C2: 0 | D2: =+CALCULADORA!C35/Flujos!C183 -> 100 | E2: 0 | F2: 0 | G2: =F2+E2 -> 0 | H2: =IF($B2<0,0,G2/POWER(1+CALCULADORA!$C$32,Flujos!$B2/365)) -> 0 | I2: =+A2 -> 2019-08-15 | J2: 0 | K2: 0 | L2: =+Características!B18/Flujos!C183 -> 1999999.015 | M2: 0 | N2: 0 | O2: =+N2+M2 -> 0 | P2: 0 | Q2: 0 | R2: =+Q2+P2 -> 0
A3: =EDATE(A2,1) -> 2019-09-15 | B3: =IF(DIAS365(CALCULADORA!$C$30,A3)<0,0,DIAS365(CALCULADORA!$C$30,A3)) -> 0 | C3: =+HLOOKUP(CALCULADORA!$C$11,Tablas!$B$1:$B$181,Flujos!J3+1,FALSE) -> 0.01606318 | D3: =+ROUND(D2-E3,6) -> 98.393682 | E3: =ROUND(C3*$D$2,6) -> 1.606318 | F3: =ROUND(D2*ROUND(((1+CALCULADORA!$C$19)^(1/12)-1),6),6) -> 0.1831 | G3: =F3+E3 -> 1.789418 | H3: =IF($B3=0,0,G3/POWER(1+CALCULADORA!$C$32,Flujos!$B3/365)) -> 0 | I3: =+A3 -> 2019-09-15 | J3: 1 | K3: =+DIAS365($A$2,A3) -> 31 | L3: =+L2-M3 -> 1967872.671 | M3: =+$L$2*C3 -> 32126.34418 | N3: =+L2*$F$3% -> 3661.998197 | O3: =+N3+M3 -> 35788.34238 | P3: =M3*IFERROR(VLOOKUP($A3,UVR!$A:$B,2,0),CALCULADORA!$C$23) -> 8650953.048 | Q3: =N3*IFERROR(VLOOKUP($A3,UVR!$A:$B,2,0),CALCULADORA!$C$23) -> 986099.5788 | R3: =O3*IFERROR(VLOOKUP($A3,UVR!$A:$B,2,0),CALCULADORA!$C$23) -> 9637052.627
A4: =EDATE(A3,1) -> 2019-10-15 | B4: =IF(DIAS365(CALCULADORA!$C$30,A4)<0,0,DIAS365(CALCULADORA!$C$30,A4)) -> 0 | C4: =+HLOOKUP(CALCULADORA!$C$11,Tablas!$B$1:$B$181,Flujos!J4+1,FALSE) -> 0.01695723 | D4: =+ROUND(D3-E4,6) -> 96.697959 | E4: =ROUND(C4*$D$2,6) -> 1.695723 | F4: =ROUND(D3*ROUND(((1+CALCULADORA!$C$19)^(1/12)-1),6),6) -> 0.180159 | G4: =F4+E4 -> 1.875882 | H4: =IF($B4=0,0,G4/POWER(1+CALCULADORA!$C$32,Flujos!$B4/365)) -> 0 | I4: 2019-10-15 | J4: 2 | K4: =+DIAS365($A$2,A4) -> 61 | L4: =+L3-M4 -> 1933958.228 | M4: =+$L$2*C4 -> 33914.4433 | N4: =+L3*$F$3% -> 3603.174861 | O4: =+N4+M4 -> 37517.61817 | P4: =M4*IFERROR(VLOOKUP($A4,UVR!$A:$B,2,0),CALCULADORA!$C$23) -> 9130276.854 | Q4: =N4*IFERROR(VLOOKUP($A4,UVR!$A:$B,2,0),CALCULADORA!$C$23) -> 970028.7202 | R4: =O4*IFERROR(VLOOKUP($A4,UVR!$A:$B,2,0),CALCULADORA!$C$23) -> 10100305.57
A5: 2019-11-15 | B5: =IF(DIAS365(CALCULADORA!$C$30,A5)<0,0,DIAS365(CALCULADORA!$C$30,A5)) -> 0 | C5: =+HLOOKUP(CALCULADORA!$C$11,Tablas!$B$1:$B$181,Flujos!J5+1,FALSE) -> 0.01625132 | D5: =+ROUND(D4-E5,6) -> 95.072827 | E5: 1.625132 | F5: =ROUND(D4*ROUND(((1+CALCULADORA!$C$19)^(1/12)-1),6),6) -> 0.177054 | G5: 1.802186 | H5: =IF($B5=0,0,G5/POWER(1+CALCULADORA!$C$32,Flujos!$B5/365)) -> 0 | I5: 2019-11-15 | J5: 3 | K5: 92 | L5: 1901455.604 | M5: 32502.624 | N5: 3541.077515 | O5: 36043.70152 | P5: =M5*IFERROR(VLOOKUP($A5,UVR!$A:$B,2,0),CALCULADORA!$C$23) -> 8780304.351 | Q5: =N5*IFERROR(VLOOKUP($A5,UVR!$A:$B,2,0),CALCULADORA!$C$23) -> 956591.6375 | R5: =O5*IFERROR(VLOOKUP($A5,UVR!$A:$B,2,0),CALCULADORA!$C$23) -> 9736895.988
A6: 2019-12-15 | B6: =IF(DIAS365(CALCULADORA!$C$30,A6)<0,0,DIAS365(CALCULADORA!$C$30,A6)) -> 0 | C6: =+HLOOKUP(CALCULADORA!$C$11,Tablas!$B$1:$B$181,Flujos!J6+1,FALSE) -> 0.01603115 | D6: 93.469712 | E6: 1.603115 | F6: =ROUND(D5*ROUND(((1+CALCULADORA!$C$19)^(1/12)-1),6),6) -> 0.174078 | G6: 1.777193 | H6: =IF($B6=0,0,G6/POWER(1+CALCULADORA!$C$32,Flujos!$B6/365)) -> 0 | I6: 2019-12-15 | J6: 4 | K6: 122 | L6: 1869393.32 | M6: 32062.28422 | N6: 3481.565211 | O6: 35543.84943 | P6: =M6*IFERROR(VLOOKUP($A6,UVR!$A:$B,2,0),CALCULADORA!$C$23) -> 8675207.665 | Q6: =N6*IFERROR(VLOOKUP($A6,UVR!$A:$B,2,0),CALCULADORA!$C$23) -> 942019.6327 | R6: =O6*IFERROR(VLOOKUP($A6,UVR!$A:$B,2,0),CALCULADORA!$C$23) -> 9617227.297
A7: 2020-01-15 | B7: =IF(DIAS365(CALCULADORA!$C$30,A7)<0,0,DIAS365(CALCULADORA!$C$30,A7)) -> 0 | C7: =+HLOOKUP(CALCULADORA!$C$11,Tablas!$B$1:$B$181,Flujos!J7+1,FALSE) -> 0.01149681 | D7: 92.320031 | E7: 1.149681 | F7: =ROUND(D6*ROUND(((1+CALCULADORA!$C$19)^(1/12)-1),6),6) -> 0.171143 | G7: 1.320824 | H7: =IF($B7=0,0,G7/POWER(1+CALCULADORA!$C$32,Flujos!$B7/365)) -> 0 | I7: 2020-01-15 | J7: 5 | K7: 153 | L7: 1846399.711 | M7: 22993.60868 | N7: 3422.859168 | O7: 26416.46785 | P7: =M7*IFERROR(VLOOKUP($A7,UVR!$A:$B,2,0),CALCULADORA!$C$23) -> 6227685.548 | Q7: =N7*IFERROR(VLOOKUP($A7,UVR!$A:$B,2,0),CALCULADORA!$C$23) -> 927061.5532 | R7: =O7*IFERROR(VLOOKUP($A7,UVR!$A:$B,2,0),CALCULADORA!$C$23) -> 7154747.101
A8: 2020-02-15 | B8: =IF(DIAS365(CALCULADORA!$C$30,A8)<0,0,DIAS365(CALCULADORA!$C$30,A8)) -> 0 | C8: =+HLOOKUP(CALCULADORA!$C$11,Tablas!$B$1:$B$181,Flujos!J8+1,FALSE) -> 0.02231486 | D8: 90.088545 | E8: 2.231486 | F8: =ROUND(D7*ROUND(((1+CALCULADORA!$C$19)^(1/12)-1),6),6) -> 0.169038 | G8: 2.400524 | H8: =IF($B8=0,0,G8/POWER(1+CALCULADORA!$C$32,Flujos!$B8/365)) -> 0 | I8: 2020-02-15 | J8: 6 | K8: 184 | L8: 1801770.013 | M8: 44629.69803 | N8: 3380.757871 | O8: 48010.4559 | P8: =M8*IFERROR(VLOOKUP($A8,UVR!$A:$B,2,0),CALCULADORA!$C$23) -> 12119123.09 | Q8: =N8*IFERROR(VLOOKUP($A8,UVR!$A:$B,2,0),CALCULADORA!$C$23) -> 918039.3906 | R8: =O8*IFERROR(VLOOKUP($A8,UVR!$A:$B,2,0),CALCULADORA!$C$23) -> 13037162.48
A9: 2020-03-15 | B9: =IF(DIAS365(CALCULADORA!$C$30,A9)<0,0,DIAS365(CALCULADORA!$C$30,A9)) -> 0 | C9: =+HLOOKUP(CALCULADORA!$C$11,Tablas!$B$1:$B$181,Flujos!J9+1,FALSE) -> 0.01663049 | D9: 88.425496 | E9: 1.663049 | F9: =ROUND(D8*ROUND(((1+CALCULADORA!$C$19)^(1/12)-1),6),6) -> 0.164952 | G9: 1.828001 | H9: =IF($B9=0,0,G9/POWER(1+CALCULADORA!$C$32,Flujos!$B9/365)) -> 0 | I9: 2020-03-15 | J9: 7 | K9: 212 | L9: 1768509.049 | M9: 33260.96363 | N9: 3299.040894 | O9: 36560.00452 | P9: =M9*IFERROR(VLOOKUP($A9,UVR!$A:$B,2,0),CALCULADORA!$C$23) -> 9069895.584 | Q9: =N9*IFERROR(VLOOKUP($A9,UVR!$A:$B,2,0),CALCULADORA!$C$23) -> 899611.8324 | R9: =O9*IFERROR(VLOOKUP($A9,UVR!$A:$B,2,0),CALCULADORA!$C$23) -> 9969507.417
A10: 2020-04-15 | B10: =IF(DIAS365(CALCULADORA!$C$30,A10)<0,0,DIAS365(CALCULADORA!$C$30,A10)) -> 0 | C10: =+HLOOKUP(CALCULADORA!$C$11,Tablas!$B$1:$B$181,Flujos!J10+1,FALSE) -> 0.00692214 | D10: 87.733282 | E10: 0.692214 | F10: =ROUND(D9*ROUND(((1+CALCULADORA!$C$19)^(1/12)-1),6),6) -> 0.161907 | G10: 0.854121 | H10: =IF($B10=0,0,G10/POWER(1+CALCULADORA!$C$32,Flujos!$B10/365)) -> 0 | I10: 2020-04-15 | J10: 8 | K10: 243 | L10: 1754664.776 | M10: 13844.27318 | N10: 3238.140069 | O10: 17082.41325 | P10: =M10*IFERROR(VLOOKUP($A10,UVR!$A:$B,2,0),CALCULADORA!$C$23) -> 3800473.113 | Q10: =N10*IFERROR(VLOOKUP($A10,UVR!$A:$B,2,0),CALCULADORA!$C$23) -> 888920.9355 | R10: =O10*IFERROR(VLOOKUP($A10,UVR!$A:$B,2,0),CALCULADORA!$C$23) -> 4689394.049
A11: 2020-05-15 | B11: =IF(DIAS365(CALCULADORA!$C$30,A11)<0,0,DIAS365(CALCULADORA!$C$30,A11)) -> 0 | C11: =+HLOOKUP(CALCULADORA!$C$11,Tablas!$B$1:$B$181,Flujos!J11+1,FALSE) -> 0.00285385 | D11: 87.447897 | E11: 0.285385 | F11: =ROUND(D10*ROUND(((1+CALCULADORA!$C$19)^(1/12)-1),6),6) -> 0.16064 | G11: 0.446025 | H11: =IF($B11=0,0,G11/POWER(1+CALCULADORA!$C$32,Flujos!$B11/365)) -> 0 | I11: 2020-05-15 | J11: 9 | K11: 273 | L11: 1748957.079 | M11: 5707.69719 | N11: 3212.791205 | O11: 8920.488395 | P11: =M11*IFERROR(VLOOKUP($A11,UVR!$A:$B,2,0),CALCULADORA!$C$23) -> 1575784.465 | Q11: =N11*IFERROR(VLOOKUP($A11,UVR!$A:$B,2,0),CALCULADORA!$C$23) -> 886989.3236 | R11: =O11*IFERROR(VLOOKUP($A11,UVR!$A:$B,2,0),CALCULADORA!$C$23) -> 2462773.789
A12: 2020-06-15 | B12: =IF(DIAS365(CALCULADORA!$C$30,A12)<0,0,DIAS365(CALCULADORA!$C$30,A12)) -> 0 | C12: =+HLOOKUP(CALCULADORA!$C$11,Tablas!$B$1:$B$181,Flujos!J12+1,FALSE) -> 0.00586238 | D12: 86.861659 | E12: 0.586238 | F12: =ROUND(D11*ROUND(((1+CALCULADORA!$C$19)^(1/12)-1),6),6) -> 0.160117 | G12: 0.746355 | H12: =IF($B12=0,0,G12/POWER(1+CALCULADORA!$C$32,Flujos!$B12/365)) -> 0 | I12: 2020-06-15 | J12: 10 | K12: 304 | L12: 1737232.325 | M12: 11724.75423 | N12: 3202.340412 | O12: 14927.09464 | P12: =M12*IFERROR(VLOOKUP($A12,UVR!$A:$B,2,0),CALCULADORA!$C$23) -> 3242156.006 | Q12: =N12*IFERROR(VLOOKUP($A12,UVR!$A:$B,2,0),CALCULADORA!$C$23) -> 885518.536 | R12: =O12*IFERROR(VLOOKUP($A12,UVR!$A:$B,2,0),CALCULADORA!$C$23) -> 4127674.542
A13: 2020-07-15 | B13: =IF(DIAS365(CALCULADORA!$C$30,A13)<0,0,DIAS365(CALCULADORA!$C$30,A13)) -> 0 | C13: =+HLOOKUP(CALCULADORA!$C$11,Tablas!$B$1:$B$181,Flujos!J13+1,FALSE) -> 0.0063674 | D13: 86.224919 | E13: 0.63674 | F13: =ROUND(D12*ROUND(((1+CALCULADORA!$C$19)^(1/12)-1),6),6) -> 0.159044 | G13: 0.795784 | H13: =IF($B13=0,0,G13/POWER(1+CALCULADORA!$C$32,Flujos!$B13/365)) -> 0 | I13: 2020-07-15 | J13: 11 | K13: 334 | L13: 1724497.531 | M13: 12734.79373 | N13: 3180.872387 | O13: 15915.66612 | P13: =M13*IFERROR(VLOOKUP($A13,UVR!$A:$B,2,0),CALCULADORA!$C$23) -> 3510185.434 | Q13: =N13*IFERROR(VLOOKUP($A13,UVR!$A:$B,2,0),CALCULADORA!$C$23) -> 876767.3944 | R13: =O13*IFERROR(VLOOKUP($A13,UVR!$A:$B,2,0),CALCULADORA!$C$23) -> 4386952.828
A14: 2020-08-15 | B14: =IF(DIAS365(CALCULADORA!$C$30,A14)<0,0,DIAS365(CALCULADORA!$C$30,A14)) -> 0 | C14: =+HLOOKUP(CALCULADORA!$C$11,Tablas!$B$1:$B$181,Flujos!J14+1,FALSE) -> 0.00867429 | D14: 85.35749 | E14: 0.867429 | F14: =ROUND(D13*ROUND(((1+CALCULADORA!$C$19)^(1/12)-1),6),6) -> 0.157878 | G14: 1.025307 | H14: =IF($B14=0,0,G14/POWER(1+CALCULADORA!$C$32,Flujos!$B14/365)) -> 0 | I14: 2020-08-15 | J14: 12 | K14: 365 | L14: 1707148.96 | M14: 17348.57146 | N14: 3157.554979 | O14: 20506.12644 | P14: =M14*IFERROR(VLOOKUP($A14,UVR!$A:$B,2,0),CALCULADORA!$C$23) -> 4763744.237 | Q14: =N14*IFERROR(VLOOKUP($A14,UVR!$A:$B,2,0),CALCULADORA!$C$23) -> 867033.0218 | R14: =O14*IFERROR(VLOOKUP($A14,UVR!$A:$B,2,0),CALCULADORA!$C$23) -> 5630777.259
A15: 2020-09-15 | B15: =IF(DIAS365(CALCULADORA!$C$30,A15)<0,0,DIAS365(CALCULADORA!$C$30,A15)) -> 0 | C15: =+HLOOKUP(CALCULADORA!$C$11,Tablas!$B$1:$B$181,Flujos!J15+1,FALSE) -> 0.01359996 | D15: 83.997494 | E15: 1.359996 | F15: =ROUND(D14*ROUND(((1+CALCULADORA!$C$19)^(1/12)-1),6),6) -> 0.15629 | G15: 1.516286 | H15: =IF($B15=0,0,G15/POWER(1+CALCULADORA!$C$32,Flujos!$B15/365)) -> 0 | I15: 2020-09-15 | J15: 13 | K15: 396 | L15: 1679949.053 | M15: 27199.90661 | N15: 3125.789745 | O15: 30325.69636 | P15: =M15*IFERROR(VLOOKUP($A15,UVR!$A:$B,2,0),CALCULADORA!$C$23) -> 7468822.356 | Q15: =N15*IFERROR(VLOOKUP($A15,UVR!$A:$B,2,0),CALCULADORA!$C$23) -> 858310.6061 | R15: =O15*IFERROR(VLOOKUP($A15,UVR!$A:$B,2,0),CALCULADORA!$C$23) -> 8327132.962
A16: 2020-10-15 | B16: =IF(DIAS365(CALCULADORA!$C$30,A16)<0,0,DIAS365(CALCULADORA!$C$30,A16)) -> 0 | C16: =+HLOOKUP(CALCULADORA!$C$11,Tablas!$B$1:$B$181,Flujos!J16+1,FALSE) -> 0.01417165 | D16: 82.580329 | E16: 1.417165 | F16: =ROUND(D15*ROUND(((1+CALCULADORA!$C$19)^(1/12)-1),6),6) -> 0.153799 | G16: 1.570964 | H16: =IF($B16=0,0,G16/POWER(1+CALCULADORA!$C$32,Flujos!$B16/365)) -> 0 | I16: 2020-10-15 | J16: 14 | K16: 426 | L16: 1651605.767 | M16: 28343.28605 | N16: 3075.986716 | O16: 31419.27276 | P16: =M16*IFERROR(VLOOKUP($A16,UVR!$A:$B,2,0),CALCULADORA!$C$23) -> 7781989.304 | Q16: =N16*IFERROR(VLOOKUP($A16,UVR!$A:$B,2,0),CALCULADORA!$C$23) -> 844549.0647 | R16: =O16*IFERROR(VLOOKUP($A16,UVR!$A:$B,2,0),CALCULADORA!$C$23) -> 8626538.368
A17: 2020-11-15 | B17: =IF(DIAS365(CALCULADORA!$C$30,A17)<0,0,DIAS365(CALCULADORA!$C$30,A17)) -> 0 | C17: =+HLOOKUP(CALCULADORA!$C$11,Tablas!$B$1:$B$181,Flujos!J17+1,FALSE) -> 0.01576903 | D17: 81.003426 | E17: 1.576903 | F17: =ROUND(D16*ROUND(((1+CALCULADORA!$C$19)^(1/12)-1),6),6) -> 0.151205 | G17: 1.728108 | H17: =IF($B17=0,0,G17/POWER(1+CALCULADORA!$C$32,Flujos!$B17/365)) -> 0 | I17: 2020-11-15 | J17: 15 | K17: 457 | L17: 1620067.722 | M17: 31538.04447 | N17: 3024.090159 | O17: 34562.13463 | P17: =M17*IFERROR(VLOOKUP($A17,UVR!$A:$B,2,0),CALCULADORA!$C$23) -> 8686870.508 | Q17: =N17*IFERROR(VLOOKUP($A17,UVR!$A:$B,2,0),CALCULADORA!$C$23) -> 832958.4176 | R17: =O17*IFERROR(VLOOKUP($A17,UVR!$A:$B,2,0),CALCULADORA!$C$23) -> 9519828.926
A18: 2020-12-15 | B18: =IF(DIAS365(CALCULADORA!$C$30,A18)<0,0,DIAS365(CALCULADORA!$C$30,A18)) -> 0 | C18: =+HLOOKUP(CALCULADORA!$C$11,Tablas!$B$1:$B$181,Flujos!J18+1,FALSE) -> 0.01410188 | D18: 79.593238 | E18: 1.410188 | F18: =ROUND(D17*ROUND(((1+CALCULADORA!$C$19)^(1/12)-1),6),6) -> 0.148317 | G18: 1.558505 | H18: =IF($B18=0,0,G18/POWER(1+CALCULADORA!$C$32,Flujos!$B18/365)) -> 0 | I18: 2020-12-15 | J18: 16 | K18: 487 | L18: 1591863.976 | M18: 28203.74612 | N18: 2966.344 | O18: 31170.09012 | P18: =M18*IFERROR(VLOOKUP($A18,UVR!$A:$B,2,0),CALCULADORA!$C$23) -> 7763808.775 | Q18: =N18*IFERROR(VLOOKUP($A18,UVR!$A:$B,2,0),CALCULADORA!$C$23) -> 816562.7176 | R18: =O18*IFERROR(VLOOKUP($A18,UVR!$A:$B,2,0),CALCULADORA!$C$23) -> 8580371.493
A19: 2021-01-15 | B19: =IF(DIAS365(CALCULADORA!$C$30,A19)<0,0,DIAS365(CALCULADORA!$C$30,A19)) -> 0 | C19: =+HLOOKUP(CALCULADORA!$C$11,Tablas!$B$1:$B$181,Flujos!J19+1,FALSE) -> 0.01582177 | D19: 78.011061 | E19: 1.582177 | F19: =ROUND(D18*ROUND(((1+CALCULADORA!$C$19)^(1/12)-1),6),6) -> 0.145735 | G19: 1.727912 | H19: =IF($B19=0,0,G19/POWER(1+CALCULADORA!$C$32,Flujos!$B19/365)) -> 0 | I19: 2021-01-15 | J19: 17 | K19: 518 | L19: 1560220.452 | M19: 31643.52442 | N19: 2914.702941 | O19: 34558.22736 | P19: =M19*IFERROR(VLOOKUP($A19,UVR!$A:$B,2,0),CALCULADORA!$C$23) -> 8697630.889 | Q19: =N19*IFERROR(VLOOKUP($A19,UVR!$A:$B,2,0),CALCULADORA!$C$23) -> 801143.7029 | R19: =O19*IFERROR(VLOOKUP($A19,UVR!$A:$B,2,0),CALCULADORA!$C$23) -> 9498774.592
A20: 2021-02-15 | B20: =IF(DIAS365(CALCULADORA!$C$30,A20)<0,0,DIAS365(CALCULADORA!$C$30,A20)) -> 0 | C20: =+HLOOKUP(CALCULADORA!$C$11,Tablas!$B$1:$B$181,Flujos!J20+1,FALSE) -> 0.01473718 | D20: 76.537343 | E20: 1.473718 | F20: =ROUND(D19*ROUND(((1+CALCULADORA!$C$19)^(1/12)-1),6),6) -> 0.142838 | G20: 1.616556 | H20: =IF($B20=0,0,G20/POWER(1+CALCULADORA!$C$32,Flujos!$B20/365)) -> 0 | I20: 2021-02-15 | J20: 18 | K20: 549 | L20: 1530746.106 | M20: 29474.34549 | N20: 2856.763648 | O20: 32331.10914 | P20: =M20*IFERROR(VLOOKUP($A20,UVR!$A:$B,2,0),CALCULADORA!$C$23) -> 8132190.031 | Q20: =N20*IFERROR(VLOOKUP($A20,UVR!$A:$B,2,0),CALCULADORA!$C$23) -> 788202.2304 | R20: =O20*IFERROR(VLOOKUP($A20,UVR!$A:$B,2,0),CALCULADORA!$C$23) -> 8920392.261
A21: 2021-03-15 | B21: =IF(DIAS365(CALCULADORA!$C$30,A21)<0,0,DIAS365(CALCULADORA!$C$30,A21)) -> 0 | C21: =+HLOOKUP(CALCULADORA!$C$11,Tablas!$B$1:$B$181,Flujos!J21+1,FALSE) -> 0.02286702 | D21: 74.250641 | E21: 2.286702 | F21: =ROUND(D20*ROUND(((1+CALCULADORA!$C$19)^(1/12)-1),6),6) -> 0.14014 | G21: 2.426842 | H21: =IF($B21=0,0,G21/POWER(1+CALCULADORA!$C$32,Flujos!$B21/365)) -> 0 | I21: 2021-03-15 | J21: 19 | K21: 577 | L21: 1485012.089 | M21: 45734.01749 | N21: 2802.796121 | O21: 48536.81361 | P21: =M21*IFERROR(VLOOKUP($A21,UVR!$A:$B,2,0),CALCULADORA!$C$23) -> 12670088.18 | Q21: =N21*IFERROR(VLOOKUP($A21,UVR!$A:$B,2,0),CALCULADORA!$C$23) -> 776482.7134 | R21: =O21*IFERROR(VLOOKUP($A21,UVR!$A:$B,2,0),CALCULADORA!$C$23) -> 13446570.89
A22: 2021-04-15 | B22: =IF(DIAS365(CALCULADORA!$C$30,A22)<0,0,DIAS365(CALCULADORA!$C$30,A22)) -> 0 | C22: =+HLOOKUP(CALCULADORA!$C$11,Tablas!$B$1:$B$181,Flujos!J22+1,FALSE) -> 0.01851441 | D22: 72.3992 | E22: 1.851441 | F22: =ROUND(D21*ROUND(((1+CALCULADORA!$C$19)^(1/12)-1),6),6) -> 0.135953 | G22: 1.987394 | H22: =IF($B22=0,0,G22/POWER(1+CALCULADORA!$C$32,Flujos!$B22/365)) -> 0 | I22: 2021-04-15 | J22: 20 | K22: 608 | L22: 1447983.287 | M22: 37028.80177 | N22: 2719.057135 | O22: 39747.85891 | P22: =M22*IFERROR(VLOOKUP($A22,UVR!$A:$B,2,0),CALCULADORA!$C$23) -> 10324059.47 | Q22: =N22*IFERROR(VLOOKUP($A22,UVR!$A:$B,2,0),CALCULADORA!$C$23) -> 758104.6703 | R22: =O22*IFERROR(VLOOKUP($A22,UVR!$A:$B,2,0),CALCULADORA!$C$23) -> 11082164.14
A23: 2021-05-15 | B23: =IF(DIAS365(CALCULADORA!$C$30,A23)<0,0,DIAS365(CALCULADORA!$C$30,A23)) -> 0 | C23: =+HLOOKUP(CALCULADORA!$C$11,Tablas!$B$1:$B$181,Flujos!J23+1,FALSE) -> 0.01717953 | D23: 70.681247 | E23: 1.717953 | F23: =ROUND(D22*ROUND(((1+CALCULADORA!$C$19)^(1/12)-1),6),6) -> 0.132563 | G23: 1.850516 | H23: =IF($B23=0,0,G23/POWER(1+CALCULADORA!$C$32,Flujos!$B23/365)) -> 0 | I23: 2021-05-15 | J23: 21 | K23: 638 | L23: 1413624.244 | M23: 34359.04309 | N23: 2651.257399 | O23: 37010.30048 | P23: =M23*IFERROR(VLOOKUP($A23,UVR!$A:$B,2,0),CALCULADORA!$C$23) -> 9628554.901 | Q23: =N23*IFERROR(VLOOKUP($A23,UVR!$A:$B,2,0),CALCULADORA!$C$23) -> 742971.1403 | R23: =O23*IFERROR(VLOOKUP($A23,UVR!$A:$B,2,0),CALCULADORA!$C$23) -> 10371526.04
A24: 2021-06-15 | B24: =IF(DIAS365(CALCULADORA!$C$30,A24)<0,0,DIAS365(CALCULADORA!$C$30,A24)) -> 0 | C24: =+HLOOKUP(CALCULADORA!$C$11,Tablas!$B$1:$B$181,Flujos!J24+1,FALSE) -> 0.01261304 | D24: 69.419943 | E24: 1.261304 | F24: =ROUND(D23*ROUND(((1+CALCULADORA!$C$19)^(1/12)-1),6),6) -> 0.129417 | G24: 1.390721 | H24: =IF($B24=0,0,G24/POWER(1+CALCULADORA!$C$32,Flujos!$B24/365)) -> 0 | I24: 2021-06-15 | J24: 22 | K24: 669 | L24: 1388398.177 | M24: 25226.06758 | N24: 2588.345991 | O24: 27814.41357 | P24: =M24*IFERROR(VLOOKUP($A24,UVR!$A:$B,2,0),CALCULADORA!$C$23) -> 7110897.99 | Q24: =N24*IFERROR(VLOOKUP($A24,UVR!$A:$B,2,0),CALCULADORA!$C$23) -> 729620.8275 | R24: =O24*IFERROR(VLOOKUP($A24,UVR!$A:$B,2,0),CALCULADORA!$C$23) -> 7840518.817
A25: 2021-07-15 | B25: =IF(DIAS365(CALCULADORA!$C$30,A25)<0,0,DIAS365(CALCULADORA!$C$30,A25)) -> 0 | C25: =+HLOOKUP(CALCULADORA!$C$11,Tablas!$B$1:$B$181,Flujos!J25+1,FALSE) -> 0.01616914 | D25: 67.803029 | E25: 1.616914 | F25: =ROUND(D24*ROUND(((1+CALCULADORA!$C$19)^(1/12)-1),6),6) -> 0.127108 | G25: 1.744022 | H25: =IF($B25=0,0,G25/POWER(1+CALCULADORA!$C$32,Flujos!$B25/365)) -> 0 | I25: 2021-07-15 | J25: 23 | K25: 699 | L25: 1356059.912 | M25: 32338.26408 | N25: 2542.157061 | O25: 34880.42114 | P25: =M25*IFERROR(VLOOKUP($A25,UVR!$A:$B,2,0),CALCULADORA!$C$23) -> 9206891.346 | Q25: =N25*IFERROR(VLOOKUP($A25,UVR!$A:$B,2,0),CALCULADORA!$C$23) -> 723766.8598 | R25: =O25*IFERROR(VLOOKUP($A25,UVR!$A:$B,2,0),CALCULADORA!$C$23) -> 9930658.206
A26: 2021-08-15 | B26: =IF(DIAS365(CALCULADORA!$C$30,A26)<0,0,DIAS365(CALCULADORA!$C$30,A26)) -> 0 | C26: =+HLOOKUP(CALCULADORA!$C$11,Tablas!$B$1:$B$181,Flujos!J26+1,FALSE) -> 0.01844766 | D26: 65.958263 | E26: 1.844766 | F26: =ROUND(D25*ROUND(((1+CALCULADORA!$C$19)^(1/12)-1),6),6) -> 0.124147 | G26: 1.968913 | H26: =IF($B26=0,0,G26/POWER(1+CALCULADORA!$C$32,Flujos!$B26/365)) -> 0 | I26: 2021-08-15 | J26: 24 | K26: 730 | L26: 1319164.611 | M26: 36895.30184 | N26: 2482.9457 | O26: 39378.24754 | P26: =M26*IFERROR(VLOOKUP($A26,UVR!$A:$B,2,0),CALCULADORA!$C$23) -> 10500133.57 | Q26: =N26*IFERROR(VLOOKUP($A26,UVR!$A:$B,2,0),CALCULADORA!$C$23) -> 706628.2206 | R26: =O26*IFERROR(VLOOKUP($A26,UVR!$A:$B,2,0),CALCULADORA!$C$23) -> 11206761.79
A27: 2021-09-15 | B27: =IF(DIAS365(CALCULADORA!$C$30,A27)<0,0,DIAS365(CALCULADORA!$C$30,A27)) -> 0 | C27: =+HLOOKUP(CALCULADORA!$C$11,Tablas!$B$1:$B$181,Flujos!J27+1,FALSE) -> 0.01348238 | D27: 64.610025 | E27: 1.348238 | F27: =ROUND(D26*ROUND(((1+CALCULADORA!$C$19)^(1/12)-1),6),6) -> 0.12077 | G27: 1.469008 | H27: =IF($B27=0,0,G27/POWER(1+CALCULADORA!$C$32,Flujos!$B27/365)) -> 0 | I27: 2021-09-15 | J27: 25 | K27: 761 | L27: 1292199.864 | M27: 26964.74673 | N27: 2415.390402 | O27: 29380.13713 | P27: =M27*IFERROR(VLOOKUP($A27,UVR!$A:$B,2,0),CALCULADORA!$C$23) -> 7697734.107 | Q27: =N27*IFERROR(VLOOKUP($A27,UVR!$A:$B,2,0),CALCULADORA!$C$23) -> 689531.1596 | R27: =O27*IFERROR(VLOOKUP($A27,UVR!$A:$B,2,0),CALCULADORA!$C$23) -> 8387265.266
A28: 2021-10-15 | B28: =IF(DIAS365(CALCULADORA!$C$30,A28)<0,0,DIAS365(CALCULADORA!$C$30,A28)) -> 0 | C28: =+HLOOKUP(CALCULADORA!$C$11,Tablas!$B$1:$B$181,Flujos!J28+1,FALSE) -> 0.018196 | D28: 62.790425 | E28: 1.8196 | F28: =ROUND(D27*ROUND(((1+CALCULADORA!$C$19)^(1/12)-1),6),6) -> 0.118301 | G28: 1.937901 | H28: =IF($B28=0,0,G28/POWER(1+CALCULADORA!$C$32,Flujos!$B28/365)) -> 0 | I28: 2021-10-15 | J28: 26 | K28: 791 | L28: 1255807.882 | M28: 36391.98209 | N28: 2366.017951 | O28: 38758.00004 | P28: =M28*IFERROR(VLOOKUP($A28,UVR!$A:$B,2,0),CALCULADORA!$C$23) -> 10435713.83 | Q28: =N28*IFERROR(VLOOKUP($A28,UVR!$A:$B,2,0),CALCULADORA!$C$23) -> 678475.9951 | R28: =O28*IFERROR(VLOOKUP($A28,UVR!$A:$B,2,0),CALCULADORA!$C$23) -> 11114189.83
A29: 2021-11-15 | B29: =IF(DIAS365(CALCULADORA!$C$30,A29)<0,0,DIAS365(CALCULADORA!$C$30,A29)) -> 0 | C29: =+HLOOKUP(CALCULADORA!$C$11,Tablas!$B$1:$B$181,Flujos!J29+1,FALSE) -> 0.01032785 | D29: 61.75764 | E29: 1.032785 | F29: =ROUND(D28*ROUND(((1+CALCULADORA!$C$19)^(1/12)-1),6),6) -> 0.114969 | G29: 1.147754 | H29: =IF($B29=0,0,G29/POWER(1+CALCULADORA!$C$32,Flujos!$B29/365)) -> 0 | I29: 2021-11-15 | J29: 27 | K29: 822 | L29: 1235152.192 | M29: 20655.68983 | N29: 2299.384232 | O29: 22955.07406 | P29: =M29*IFERROR(VLOOKUP($A29,UVR!$A:$B,2,0),CALCULADORA!$C$23) -> 5945705.203 | Q29: =N29*IFERROR(VLOOKUP($A29,UVR!$A:$B,2,0),CALCULADORA!$C$23) -> 661873.8421 | R29: =O29*IFERROR(VLOOKUP($A29,UVR!$A:$B,2,0),CALCULADORA!$C$23) -> 6607579.045
A30: 2021-12-15 | B30: =IF(DIAS365(CALCULADORA!$C$30,A30)<0,0,DIAS365(CALCULADORA!$C$30,A30)) -> 0 | C30: =+HLOOKUP(CALCULADORA!$C$11,Tablas!$B$1:$B$181,Flujos!J30+1,FALSE) -> 0.01547013 | D30: 60.210627 | E30: 1.547013 | F30: =ROUND(D29*ROUND(((1+CALCULADORA!$C$19)^(1/12)-1),6),6) -> 0.113078 | G30: 1.660091 | H30: =IF($B30=0,0,G30/POWER(1+CALCULADORA!$C$32,Flujos!$B30/365)) -> 0 | I30: 2021-12-15 | J30: 28 | K30: 852 | L30: 1204211.947 | M30: 30940.24477 | N30: 2261.563663 | O30: 33201.80843 | P30: =M30*IFERROR(VLOOKUP($A30,UVR!$A:$B,2,0),CALCULADORA!$C$23) -> 8906987.937 | Q30: =N30*IFERROR(VLOOKUP($A30,UVR!$A:$B,2,0),CALCULADORA!$C$23) -> 651052.3889 | R30: =O30*IFERROR(VLOOKUP($A30,UVR!$A:$B,2,0),CALCULADORA!$C$23) -> 9558040.326
A31: 2022-01-15 | B31: =IF(DIAS365(CALCULADORA!$C$30,A31)<0,0,DIAS365(CALCULADORA!$C$30,A31)) -> 0 | C31: =+HLOOKUP(CALCULADORA!$C$11,Tablas!$B$1:$B$181,Flujos!J31+1,FALSE) -> 0.01478898 | D31: 58.731729 | E31: 1.478898 | F31: =ROUND(D30*ROUND(((1+CALCULADORA!$C$19)^(1/12)-1),6),6) -> 0.110246 | G31: 1.589144 | H31: =IF($B31=0,0,G31/POWER(1+CALCULADORA!$C$32,Flujos!$B31/365)) -> 0 | I31: 2022-01-15 | J31: 29 | K31: 883 | L31: 1174634.002 | M31: 29577.94544 | N31: 2204.912075 | O31: 31782.85751 | P31: =M31*IFERROR(VLOOKUP($A31,UVR!$A:$B,2,0),CALCULADORA!$C$23) -> 8557372.863 | Q31: =N31*IFERROR(VLOOKUP($A31,UVR!$A:$B,2,0),CALCULADORA!$C$23) -> 637916.342 | R31: =O31*IFERROR(VLOOKUP($A31,UVR!$A:$B,2,0),CALCULADORA!$C$23) -> 9195289.205
A32: 2022-02-15 | B32: =IF(DIAS365(CALCULADORA!$C$30,A32)<0,0,DIAS365(CALCULADORA!$C$30,A32)) -> 0 | C32: =+HLOOKUP(CALCULADORA!$C$11,Tablas!$B$1:$B$181,Flujos!J32+1,FALSE) -> 0.01184482 | D32: 57.547247 | E32: 1.184482 | F32: =ROUND(D31*ROUND(((1+CALCULADORA!$C$19)^(1/12)-1),6),6) -> 0.107538 | G32: 1.29202 | H32: =IF($B32=0,0,G32/POWER(1+CALCULADORA!$C$32,Flujos!$B32/365)) -> 0 | I32: 2022-02-15 | J32: 30 | K32: 914 | L32: 1150944.373 | M32: 23689.62834 | N32: 2150.754857 | O32: 25840.3832 | P32: =M32*IFERROR(VLOOKUP($A32,UVR!$A:$B,2,0),CALCULADORA!$C$23) -> 6903832.852 | Q32: =N32*IFERROR(VLOOKUP($A32,UVR!$A:$B,2,0),CALCULADORA!$C$23) -> 626791.2619 | R32: =O32*IFERROR(VLOOKUP($A32,UVR!$A:$B,2,0),CALCULADORA!$C$23) -> 7530624.114
A33: 2022-03-15 | B33: =IF(DIAS365(CALCULADORA!$C$30,A33)<0,0,DIAS365(CALCULADORA!$C$30,A33)) -> 0 | C33: =+HLOOKUP(CALCULADORA!$C$11,Tablas!$B$1:$B$181,Flujos!J33+1,FALSE) -> 0.01778038 | D33: 55.769209 | E33: 1.778038 | F33: =ROUND(D32*ROUND(((1+CALCULADORA!$C$19)^(1/12)-1),6),6) -> 0.105369 | G33: 1.883407 | H33: =IF($B33=0,0,G33/POWER(1+CALCULADORA!$C$32,Flujos!$B33/365)) -> 0 | I33: 2022-03-15 | J33: 31 | K33: 942 | L33: 1115383.631 | M33: 35560.74249 | N33: 2107.379148 | O33: 37668.12164 | P33: =M33*IFERROR(VLOOKUP($A33,UVR!$A:$B,2,0),CALCULADORA!$C$23) -> 10536484.42 | Q33: =N33*IFERROR(VLOOKUP($A33,UVR!$A:$B,2,0),CALCULADORA!$C$23) -> 624406.7475 | R33: =O33*IFERROR(VLOOKUP($A33,UVR!$A:$B,2,0),CALCULADORA!$C$23) -> 11160891.17
A34: 2022-04-15 | B34: =IF(DIAS365(CALCULADORA!$C$30,A34)<0,0,DIAS365(CALCULADORA!$C$30,A34)) -> 0 | C34: =+HLOOKUP(CALCULADORA!$C$11,Tablas!$B$1:$B$181,Flujos!J34+1,FALSE) -> 0.01677709 | D34: 54.0915 | E34: 1.677709 | F34: =ROUND(D33*ROUND(((1+CALCULADORA!$C$19)^(1/12)-1),6),6) -> 0.102113 | G34: 1.779822 | H34: =IF($B34=0,0,G34/POWER(1+CALCULADORA!$C$32,Flujos!$B34/365)) -> 0 | I34: 2022-04-15 | J34: 32 | K34: 973 | L34: 1081829.467 | M34: 33554.16348 | N34: 2042.267428 | O34: 35596.43091 | P34: =M34*IFERROR(VLOOKUP($A34,UVR!$A:$B,2,0),CALCULADORA!$C$23) -> 10103997.48 | Q34: =N34*IFERROR(VLOOKUP($A34,UVR!$A:$B,2,0),CALCULADORA!$C$23) -> 614977.7793 | R34: =O34*IFERROR(VLOOKUP($A34,UVR!$A:$B,2,0),CALCULADORA!$C$23) -> 10718975.26
A35: =EDATE(A34,1) -> 2022-05-15 | B35: =IF(DIAS365(CALCULADORA!$C$30,A35)<0,0,DIAS365(CALCULADORA!$C$30,A35)) -> 0 | C35: =+HLOOKUP(CALCULADORA!$C$11,Tablas!$B$1:$B$181,Flujos!J35+1,FALSE) -> 0.01301349 | D35: 52.790151 | E35: 1.301349 | F35: =ROUND(D34*ROUND(((1+CALCULADORA!$C$19)^(1/12)-1),6),6) -> 0.099042 | G35: 1.400391 | H35: =IF($B35=0,0,G35/POWER(1+CALCULADORA!$C$32,Flujos!$B35/365)) -> 0 | I35: 2022-05-15 | J35: 33 | K35: 1003 | L35: 1055802.5 | M35: 26026.96719 | N35: 1980.829755 | O35: 28007.79694 | P35: =M35*IFERROR(VLOOKUP($A35,UVR!$A:$B,2,0),CALCULADORA!$C$23) -> 7915745.501 | Q35: =N35*IFERROR(VLOOKUP($A35,UVR!$A:$B,2,0),CALCULADORA!$C$23) -> 602442.2326 | R35: =O35*IFERROR(VLOOKUP($A35,UVR!$A:$B,2,0),CALCULADORA!$C$23) -> 8518187.733
A36: 2022-06-15 | B36: =IF(DIAS365(CALCULADORA!$C$30,A36)<0,0,DIAS365(CALCULADORA!$C$30,A36)) -> 0 | C36: =+HLOOKUP(CALCULADORA!$C$11,Tablas!$B$1:$B$181,Flujos!J36+1,FALSE) -> 0.0139161 | D36: 51.398541 | E36: 1.39161 | F36: =ROUND(D35*ROUND(((1+CALCULADORA!$C$19)^(1/12)-1),6),6) -> 0.096659 | G36: 1.488269 | H36: =IF($B36=0,0,G36/POWER(1+CALCULADORA!$C$32,Flujos!$B36/365)) -> 0 | I36: 2022-06-15 | J36: 34 | K36: 1034 | L36: 1027970.314 | M36: 27832.1863 | N36: 1933.174378 | O36: 29765.36068 | P36: =M36*IFERROR(VLOOKUP($A36,UVR!$A:$B,2,0),CALCULADORA!$C$23) -> 8570587.784 | Q36: =N36*IFERROR(VLOOKUP($A36,UVR!$A:$B,2,0),CALCULADORA!$C$23) -> 595297.8516 | R36: =O36*IFERROR(VLOOKUP($A36,UVR!$A:$B,2,0),CALCULADORA!$C$23) -> 9165885.636
A37: 2022-07-15 | B37: =IF(DIAS365(CALCULADORA!$C$30,A37)<0,0,DIAS365(CALCULADORA!$C$30,A37)) -> 0 | C37: =+HLOOKUP(CALCULADORA!$C$11,Tablas!$B$1:$B$181,Flujos!J37+1,FALSE) -> 0.01467326 | D37: 49.931215 | E37: 1.467326 | F37: =ROUND(D36*ROUND(((1+CALCULADORA!$C$19)^(1/12)-1),6),6) -> 0.094111 | G37: 1.561437 | H37: =IF($B37=0,0,G37/POWER(1+CALCULADORA!$C$32,Flujos!$B37/365)) -> 0 | I37: 2022-07-15 | J37: 35 | K37: 1064 | L37: 998623.8084 | M37: 29346.50555 | N37: 1882.213645 | O37: 31228.7192 | P37: =M37*IFERROR(VLOOKUP($A37,UVR!$A:$B,2,0),CALCULADORA!$C$23) -> 9112814.833 | Q37: =N37*IFERROR(VLOOKUP($A37,UVR!$A:$B,2,0),CALCULADORA!$C$23) -> 584473.8274 | R37: =O37*IFERROR(VLOOKUP($A37,UVR!$A:$B,2,0),CALCULADORA!$C$23) -> 9697288.66
A38: 2022-08-15 | B38: =IF(DIAS365(CALCULADORA!$C$30,A38)<0,0,DIAS365(CALCULADORA!$C$30,A38)) -> 0 | C38: =+HLOOKUP(CALCULADORA!$C$11,Tablas!$B$1:$B$181,Flujos!J38+1,FALSE) -> 0.01412905 | D38: 48.51831 | E38: 1.412905 | F38: =ROUND(D37*ROUND(((1+CALCULADORA!$C$19)^(1/12)-1),6),6) -> 0.091424 | G38: 1.504329 | H38: =IF($B38=0,0,G38/POWER(1+CALCULADORA!$C$32,Flujos!$B38/365)) -> 0 | I38: 2022-08-15 | J38: 36 | K38: 1095 | L38: 970365.7223 | M38: 28258.08609 | N38: 1828.480193 | O38: 30086.56628 | P38: =M38*IFERROR(VLOOKUP($A38,UVR!$A:$B,2,0),CALCULADORA!$C$23) -> 8819586.036 | Q38: =N38*IFERROR(VLOOKUP($A38,UVR!$A:$B,2,0),CALCULADORA!$C$23) -> 570684.0275 | R38: =O38*IFERROR(VLOOKUP($A38,UVR!$A:$B,2,0),CALCULADORA!$C$23) -> 9390270.064
A39: 2022-09-15 | B39: =IF(DIAS365(CALCULADORA!$C$30,A39)<0,0,DIAS365(CALCULADORA!$C$30,A39)) -> 0 | C39: =+HLOOKUP(CALCULADORA!$C$11,Tablas!$B$1:$B$181,Flujos!J39+1,FALSE) -> 0.01481652 | D39: 47.036658 | E39: 1.481652 | F39: =ROUND(D38*ROUND(((1+CALCULADORA!$C$19)^(1/12)-1),6),6) -> 0.088837 | G39: 1.570489 | H39: =IF($B39=0,0,G39/POWER(1+CALCULADORA!$C$32,Flujos!$B39/365)) -> 0 | I39: 2022-09-15 | J39: 37 | K39: 1126 | L39: 940732.6969 | M39: 29633.02541 | N39: 1776.739638 | O39: 31409.76505 | P39: =M39*IFERROR(VLOOKUP($A39,UVR!$A:$B,2,0),CALCULADORA!$C$23) -> 9323631.4 | Q39: =N39*IFERROR(VLOOKUP($A39,UVR!$A:$B,2,0),CALCULADORA!$C$23) -> 559027.141 | R39: =O39*IFERROR(VLOOKUP($A39,UVR!$A:$B,2,0),CALCULADORA!$C$23) -> 9882658.541
A40: 2022-10-15 | B40: =IF(DIAS365(CALCULADORA!$C$30,A40)<0,0,DIAS365(CALCULADORA!$C$30,A40)) -> 0 | C40: =+HLOOKUP(CALCULADORA!$C$11,Tablas!$B$1:$B$181,Flujos!J40+1,FALSE) -> 0.01372724 | D40: =+ROUND(D39-E40,6) -> 45.663934 | E40: =ROUND(C40*$D$2,6) -> 1.372724 | F40: =ROUND(D39*ROUND(((1+CALCULADORA!$C$19)^(1/12)-1),6),6) -> 0.086124 | G40: =F40+E40 -> 1.458848 | H40: =IF($B40=0,0,G40/POWER(1+CALCULADORA!$C$32,Flujos!$B40/365)) -> 0 | I40: =+A40 -> 2022-10-15 | J40: 38 | K40: 1156 | L40: 913278.2304 | M40: 27454.46648 | N40: 1722.481568 | O40: 29176.94805 | P40: =M40*IFERROR(VLOOKUP($A40,UVR!$A:$B,2,0),CALCULADORA!$C$23) -> 8726286.863 | Q40: =N40*IFERROR(VLOOKUP($A40,UVR!$A:$B,2,0),CALCULADORA!$C$23) -> 547483.532 | R40: =O40*IFERROR(VLOOKUP($A40,UVR!$A:$B,2,0),CALCULADORA!$C$23) -> 9273770.395
A41: 2022-11-15 | B41: =IF(DIAS365(CALCULADORA!$C$30,A41)<0,0,DIAS365(CALCULADORA!$C$30,A41)) -> 0 | C41: =+HLOOKUP(CALCULADORA!$C$11,Tablas!$B$1:$B$181,Flujos!J41+1,FALSE) -> 0.01329612 | D41: 44.334322 | E41: 1.329612 | F41: =ROUND(D40*ROUND(((1+CALCULADORA!$C$19)^(1/12)-1),6),6) -> 0.083611 | G41: 1.413223 | H41: =IF($B41=0,0,G41/POWER(1+CALCULADORA!$C$32,Flujos!$B41/365)) -> 0 | I41: 2022-11-15 | J41: 39 | K41: 1187 | L41: 886686.0035 | M41: 26592.22691 | N41: 1672.21244 | O41: 28264.43935 | P41: =M41*IFERROR(VLOOKUP($A41,UVR!$A:$B,2,0),CALCULADORA!$C$23) -> 8530834.259 | Q41: =N41*IFERROR(VLOOKUP($A41,UVR!$A:$B,2,0),CALCULADORA!$C$23) -> 536448.7607 | R41: =O41*IFERROR(VLOOKUP($A41,UVR!$A:$B,2,0),CALCULADORA!$C$23) -> 9067283.019
A42: 2022-12-15 | B42: =IF(DIAS365(CALCULADORA!$C$30,A42)<0,0,DIAS365(CALCULADORA!$C$30,A42)) -> 0 | C42: =+HLOOKUP(CALCULADORA!$C$11,Tablas!$B$1:$B$181,Flujos!J42+1,FALSE) -> 0.01428469 | D42: 42.905853 | E42: 1.428469 | F42: =ROUND(D41*ROUND(((1+CALCULADORA!$C$19)^(1/12)-1),6),6) -> 0.081176 | G42: 1.509645 | H42: =IF($B42=0,0,G42/POWER(1+CALCULADORA!$C$32,Flujos!$B42/365)) -> 0 | I42: 2022-12-15 | J42: 40 | K42: 1217 | L42: 858116.6376 | M42: 28569.36594 | N42: 1623.522072 | O42: 30192.88801 | P42: =M42*IFERROR(VLOOKUP($A42,UVR!$A:$B,2,0),CALCULADORA!$C$23) -> 9231093.539 | Q42: =N42*IFERROR(VLOOKUP($A42,UVR!$A:$B,2,0),CALCULADORA!$C$23) -> 524578.8145 | R42: =O42*IFERROR(VLOOKUP($A42,UVR!$A:$B,2,0),CALCULADORA!$C$23) -> 9755672.353
A43: 2023-01-15 | B43: =IF(DIAS365(CALCULADORA!$C$30,A43)<0,0,DIAS365(CALCULADORA!$C$30,A43)) -> 0 | C43: =+HLOOKUP(CALCULADORA!$C$11,Tablas!$B$1:$B$181,Flujos!J43+1,FALSE) -> 0.01304635 | D43: 41.601218 | E43: 1.304635 | F43: =ROUND(D42*ROUND(((1+CALCULADORA!$C$19)^(1/12)-1),6),6) -> 0.078561 | G43: 1.383196 | H43: =IF($B43=0,0,G43/POWER(1+CALCULADORA!$C$32,Flujos!$B43/365)) -> 0 | I43: 2023-01-15 | J43: 41 | K43: 1248 | L43: 832023.9504 | M43: 26092.68716 | N43: 1571.211563 | O43: 27663.89872 | P43: =M43*IFERROR(VLOOKUP($A43,UVR!$A:$B,2,0),CALCULADORA!$C$23) -> 8495768.501 | Q43: =N43*IFERROR(VLOOKUP($A43,UVR!$A:$B,2,0),CALCULADORA!$C$23) -> 511585.8566 | R43: =O43*IFERROR(VLOOKUP($A43,UVR!$A:$B,2,0),CALCULADORA!$C$23) -> 9007354.357
A44: 2023-02-15 | B44: =IF(DIAS365(CALCULADORA!$C$30,A44)<0,0,DIAS365(CALCULADORA!$C$30,A44)) -> 0 | C44: =+HLOOKUP(CALCULADORA!$C$11,Tablas!$B$1:$B$181,Flujos!J44+1,FALSE) -> 0.01031967 | D44: 40.569251 | E44: 1.031967 | F44: =ROUND(D43*ROUND(((1+CALCULADORA!$C$19)^(1/12)-1),6),6) -> 0.076172 | G44: 1.108139 | H44: =IF($B44=0,0,G44/POWER(1+CALCULADORA!$C$32,Flujos!$B44/365)) -> 0 | I44: 2023-02-15 | J44: 42 | K44: 1279 | L44: 811384.6206 | M44: 20639.32984 | N44: 1523.435853 | O44: 22162.76569 | P44: =M44*IFERROR(VLOOKUP($A44,UVR!$A:$B,2,0),CALCULADORA!$C$23) -> 6804832.455 | Q44: =N44*IFERROR(VLOOKUP($A44,UVR!$A:$B,2,0),CALCULADORA!$C$23) -> 502280.1524 | R44: =O44*IFERROR(VLOOKUP($A44,UVR!$A:$B,2,0),CALCULADORA!$C$23) -> 7307112.607
A45: 2023-03-15 | B45: =IF(DIAS365(CALCULADORA!$C$30,A45)<0,0,DIAS365(CALCULADORA!$C$30,A45)) -> 0 | C45: =+HLOOKUP(CALCULADORA!$C$11,Tablas!$B$1:$B$181,Flujos!J45+1,FALSE) -> 0.01444651 | D45: 39.1246 | E45: 1.444651 | F45: =ROUND(D44*ROUND(((1+CALCULADORA!$C$19)^(1/12)-1),6),6) -> 0.074282 | G45: 1.518933 | H45: =IF($B45=0,0,G45/POWER(1+CALCULADORA!$C$32,Flujos!$B45/365)) -> 0 | I45: 2023-03-15 | J45: 43 | K45: 1307 | L45: 782491.6148 | M45: 28893.00578 | N45: 1485.64524 | O45: 30378.65102 | P45: =M45*IFERROR(VLOOKUP($A45,UVR!$A:$B,2,0),CALCULADORA!$C$23) -> 9695651.952 | Q45: =N45*IFERROR(VLOOKUP($A45,UVR!$A:$B,2,0),CALCULADORA!$C$23) -> 498539.3104 | R45: =O45*IFERROR(VLOOKUP($A45,UVR!$A:$B,2,0),CALCULADORA!$C$23) -> 10194191.26
A46: 2023-04-15 | B46: =IF(DIAS365(CALCULADORA!$C$30,A46)<0,0,DIAS365(CALCULADORA!$C$30,A46)) -> 0 | C46: =+HLOOKUP(CALCULADORA!$C$11,Tablas!$B$1:$B$181,Flujos!J46+1,FALSE) -> 0.01120967 | D46: 38.003633 | E46: 1.120967 | F46: =ROUND(D45*ROUND(((1+CALCULADORA!$C$19)^(1/12)-1),6),6) -> 0.071637 | G46: 1.192604 | H46: =IF($B46=0,0,G46/POWER(1+CALCULADORA!$C$32,Flujos!$B46/365)) -> 0 | I46: 2023-04-15 | J46: 44 | K46: 1338 | L46: 760072.2858 | M46: 22419.32896 | N46: 1432.742147 | O46: 23852.07111 | P46: =M46*IFERROR(VLOOKUP($A46,UVR!$A:$B,2,0),CALCULADORA!$C$23) -> 7648161.27 | Q46: =N46*IFERROR(VLOOKUP($A46,UVR!$A:$B,2,0),CALCULADORA!$C$23) -> 488767.6618 | R46: =O46*IFERROR(VLOOKUP($A46,UVR!$A:$B,2,0),CALCULADORA!$C$23) -> 8136928.931
A47: 2023-05-15 | B47: =IF(DIAS365(CALCULADORA!$C$30,A47)<0,0,DIAS365(CALCULADORA!$C$30,A47)) -> 0 | C47: =+HLOOKUP(CALCULADORA!$C$11,Tablas!$B$1:$B$181,Flujos!J47+1,FALSE) -> 0.01087707 | D47: 36.915926 | E47: 1.087707 | F47: =ROUND(D46*ROUND(((1+CALCULADORA!$C$19)^(1/12)-1),6),6) -> 0.069585 | G47: 1.157292 | H47: =IF($B47=0,0,G47/POWER(1+CALCULADORA!$C$32,Flujos!$B47/365)) -> 0 | I47: 2023-05-15 | J47: 45 | K47: 1368 | L47: 738318.1565 | M47: 21754.12929 | N47: 1391.692355 | O47: 23145.82165 | P47: =M47*IFERROR(VLOOKUP($A47,UVR!$A:$B,2,0),CALCULADORA!$C$23) -> 7499157.413 | Q47: =N47*IFERROR(VLOOKUP($A47,UVR!$A:$B,2,0),CALCULADORA!$C$23) -> 479748.9205 | R47: =O47*IFERROR(VLOOKUP($A47,UVR!$A:$B,2,0),CALCULADORA!$C$23) -> 7978906.334
A48: 2023-06-15 | B48: =IF(DIAS365(CALCULADORA!$C$30,A48)<0,0,DIAS365(CALCULADORA!$C$30,A48)) -> 0 | C48: =+HLOOKUP(CALCULADORA!$C$11,Tablas!$B$1:$B$181,Flujos!J48+1,FALSE) -> 0.01104679 | D48: 35.811247 | E48: 1.104679 | F48: =ROUND(D47*ROUND(((1+CALCULADORA!$C$19)^(1/12)-1),6),6) -> 0.067593 | G48: 1.172272 | H48: =IF($B48=0,0,G48/POWER(1+CALCULADORA!$C$32,Flujos!$B48/365)) -> 0 | I48: 2023-06-15 | J48: 46 | K48: 1399 | L48: 716224.5874 | M48: 22093.56912 | N48: 1351.860545 | O48: 23445.42967 | P48: =M48*IFERROR(VLOOKUP($A48,UVR!$A:$B,2,0),CALCULADORA!$C$23) -> 7675575.455 | Q48: =N48*IFERROR(VLOOKUP($A48,UVR!$A:$B,2,0),CALCULADORA!$C$23) -> 469652.8459 | R48: =O48*IFERROR(VLOOKUP($A48,UVR!$A:$B,2,0),CALCULADORA!$C$23) -> 8145228.301
A49: 2023-07-15 | B49: =IF(DIAS365(CALCULADORA!$C$30,A49)<0,0,DIAS365(CALCULADORA!$C$30,A49)) -> 0 | C49: =+HLOOKUP(CALCULADORA!$C$11,Tablas!$B$1:$B$181,Flujos!J49+1,FALSE) -> 0.01029279 | D49: 34.781968 | E49: 1.029279 | F49: =ROUND(D48*ROUND(((1+CALCULADORA!$C$19)^(1/12)-1),6),6) -> 0.06557 | G49: 1.094849 | H49: =IF($B49=0,0,G49/POWER(1+CALCULADORA!$C$32,Flujos!$B49/365)) -> 0 | I49: 2023-07-15 | J49: 47 | K49: 1429 | L49: 695639.0176 | M49: 20585.56987 | N49: 1311.40722 | O49: 21896.97709 | P49: =M49*IFERROR(VLOOKUP($A49,UVR!$A:$B,2,0),CALCULADORA!$C$23) -> 7182430.898 | Q49: =N49*IFERROR(VLOOKUP($A49,UVR!$A:$B,2,0),CALCULADORA!$C$23) -> 457557.9785 | R49: =O49*IFERROR(VLOOKUP($A49,UVR!$A:$B,2,0),CALCULADORA!$C$23) -> 7639988.877
A50: 2023-08-15 | B50: =IF(DIAS365(CALCULADORA!$C$30,A50)<0,0,DIAS365(CALCULADORA!$C$30,A50)) -> 0 | C50: =+HLOOKUP(CALCULADORA!$C$11,Tablas!$B$1:$B$181,Flujos!J50+1,FALSE) -> 0.00957565 | D50: 33.824403 | E50: 0.957565 | F50: =ROUND(D49*ROUND(((1+CALCULADORA!$C$19)^(1/12)-1),6),6) -> 0.063686 | G50: 1.021251 | H50: =IF($B50=0,0,G50/POWER(1+CALCULADORA!$C$32,Flujos!$B50/365)) -> 0 | I50: 2023-08-15 | J50: 48 | K50: 1460 | L50: 676487.727 | M50: 19151.29057 | N50: 1273.715041 | O50: 20425.00561 | P50: =M50*IFERROR(VLOOKUP($A50,UVR!$A:$B,2,0),CALCULADORA!$C$23) -> 6702047.759 | Q50: =N50*IFERROR(VLOOKUP($A50,UVR!$A:$B,2,0),CALCULADORA!$C$23) -> 445740.145 | R50: =O50*IFERROR(VLOOKUP($A50,UVR!$A:$B,2,0),CALCULADORA!$C$23) -> 7147787.904
A51: 2023-09-15 | B51: =IF(DIAS365(CALCULADORA!$C$30,A51)<0,0,DIAS365(CALCULADORA!$C$30,A51)) -> 0 | C51: =+HLOOKUP(CALCULADORA!$C$11,Tablas!$B$1:$B$181,Flujos!J51+1,FALSE) -> 0.00937497 | D51: 32.886906 | E51: 0.937497 | F51: =ROUND(D50*ROUND(((1+CALCULADORA!$C$19)^(1/12)-1),6),6) -> 0.061932 | G51: 0.999429 | H51: =IF($B51=0,0,G51/POWER(1+CALCULADORA!$C$32,Flujos!$B51/365)) -> 0 | I51: 2023-09-15 | J51: 49 | K51: 1491 | L51: 657737.7962 | M51: 18749.93077 | N51: 1238.649028 | O51: 19988.5798 | P51: =M51*IFERROR(VLOOKUP($A51,UVR!$A:$B,2,0),CALCULADORA!$C$23) -> 6594399.402 | Q51: =N51*IFERROR(VLOOKUP($A51,UVR!$A:$B,2,0),CALCULADORA!$C$23) -> 435636.0837 | R51: =O51*IFERROR(VLOOKUP($A51,UVR!$A:$B,2,0),CALCULADORA!$C$23) -> 7030035.485
A52: 2023-10-15 | B52: =IF(DIAS365(CALCULADORA!$C$30,A52)<0,0,DIAS365(CALCULADORA!$C$30,A52)) -> 0 | C52: =+HLOOKUP(CALCULADORA!$C$11,Tablas!$B$1:$B$181,Flujos!J52+1,FALSE) -> 0.00910422 | D52: 31.976484 | E52: 0.910422 | F52: =ROUND(D51*ROUND(((1+CALCULADORA!$C$19)^(1/12)-1),6),6) -> 0.060216 | G52: 0.970638 | H52: =IF($B52=0,0,G52/POWER(1+CALCULADORA!$C$32,Flujos!$B52/365)) -> 0 | I52: 2023-10-15 | J52: 50 | K52: 1521 | L52: 639529.3652 | M52: 18208.43104 | N52: 1204.317905 | O52: 19412.74894 | P52: =M52*IFERROR(VLOOKUP($A52,UVR!$A:$B,2,0),CALCULADORA!$C$23) -> 6448779.874 | Q52: =N52*IFERROR(VLOOKUP($A52,UVR!$A:$B,2,0),CALCULADORA!$C$23) -> 426526.6486 | R52: =O52*IFERROR(VLOOKUP($A52,UVR!$A:$B,2,0),CALCULADORA!$C$23) -> 6875306.522
A53: 2023-11-15 | B53: =IF(DIAS365(CALCULADORA!$C$30,A53)<0,0,DIAS365(CALCULADORA!$C$30,A53)) -> 0 | C53: =+HLOOKUP(CALCULADORA!$C$11,Tablas!$B$1:$B$181,Flujos!J53+1,FALSE) -> 0.00781544 | D53: 31.19494 | E53: 0.781544 | F53: =ROUND(D52*ROUND(((1+CALCULADORA!$C$19)^(1/12)-1),6),6) -> 0.058549 | G53: 0.840093 | H53: =IF($B53=0,0,G53/POWER(1+CALCULADORA!$C$32,Flujos!$B53/365)) -> 0 | I53: 2023-11-15 | J53: 51 | K53: 1552 | L53: 623898.4929 | M53: 15630.87231 | N53: 1170.978268 | O53: 16801.85057 | P53: =M53*IFERROR(VLOOKUP($A53,UVR!$A:$B,2,0),CALCULADORA!$C$23) -> 5565794.118 | Q53: =N53*IFERROR(VLOOKUP($A53,UVR!$A:$B,2,0),CALCULADORA!$C$23) -> 416958.4286 | R53: =O53*IFERROR(VLOOKUP($A53,UVR!$A:$B,2,0),CALCULADORA!$C$23) -> 5982752.546
A54: 2023-12-15 | B54: =IF(DIAS365(CALCULADORA!$C$30,A54)<0,0,DIAS365(CALCULADORA!$C$30,A54)) -> 0 | C54: =+HLOOKUP(CALCULADORA!$C$11,Tablas!$B$1:$B$181,Flujos!J54+1,FALSE) -> 0.00965441 | D54: 30.229499 | E54: 0.965441 | F54: =ROUND(D53*ROUND(((1+CALCULADORA!$C$19)^(1/12)-1),6),6) -> 0.057118 | G54: 1.022559 | H54: =IF($B54=0,0,G54/POWER(1+CALCULADORA!$C$32,Flujos!$B54/365)) -> 0 | I54: 2023-12-15 | J54: 52 | K54: 1582 | L54: 604589.6824 | M54: 19308.81049 | N54: 1142.35814 | O54: 20451.16864 | P54: =M54*IFERROR(VLOOKUP($A54,UVR!$A:$B,2,0),CALCULADORA!$C$23) -> 6892612.018 | Q54: =N54*IFERROR(VLOOKUP($A54,UVR!$A:$B,2,0),CALCULADORA!$C$23) -> 407784.3868 | R54: =O54*IFERROR(VLOOKUP($A54,UVR!$A:$B,2,0),CALCULADORA!$C$23) -> 7300396.404
A55: 2024-01-15 | B55: =IF(DIAS365(CALCULADORA!$C$30,A55)<0,0,DIAS365(CALCULADORA!$C$30,A55)) -> 0 | C55: =+HLOOKUP(CALCULADORA!$C$11,Tablas!$B$1:$B$181,Flujos!J55+1,FALSE) -> 0.00774509 | D55: 29.45499 | E55: 0.774509 | F55: =ROUND(D54*ROUND(((1+CALCULADORA!$C$19)^(1/12)-1),6),6) -> 0.05535 | G55: 0.829859 | H55: =IF($B55=0,0,G55/POWER(1+CALCULADORA!$C$32,Flujos!$B55/365)) -> 0 | I55: 2024-01-15 | J55: 53 | K55: 1613 | L55: 589099.51 | M55: 15490.17237 | N55: 1107.003708 | O55: 16597.17608 | P55: =M55*IFERROR(VLOOKUP($A55,UVR!$A:$B,2,0),CALCULADORA!$C$23) -> 5580470.911 | Q55: =N55*IFERROR(VLOOKUP($A55,UVR!$A:$B,2,0),CALCULADORA!$C$23) -> 398807.8276 | R55: =O55*IFERROR(VLOOKUP($A55,UVR!$A:$B,2,0),CALCULADORA!$C$23) -> 5979278.739
A56: 2024-02-15 | B56: =IF(DIAS365(CALCULADORA!$C$30,A56)<0,0,DIAS365(CALCULADORA!$C$30,A56)) -> 4 | C56: =+HLOOKUP(CALCULADORA!$C$11,Tablas!$B$1:$B$181,Flujos!J56+1,FALSE) -> 0.00136039 | D56: 29.318951 | E56: 0.136039 | F56: =ROUND(D55*ROUND(((1+CALCULADORA!$C$19)^(1/12)-1),6),6) -> 0.053932 | G56: 0.189971 | H56: =IF($B56=0,0,G56/POWER(1+CALCULADORA!$C$32,Flujos!$B56/365)) -> 0.1898901655 | I56: 2024-02-15 | J56: 54 | K56: 1644 | L56: 586378.7313 | M56: 2720.778661 | N56: 1078.641203 | O56: 3799.419863 | P56: =M56*IFERROR(VLOOKUP($A56,UVR!$A:$B,2,0),CALCULADORA!$C$23) -> 975793.3907 | Q56: =N56*IFERROR(VLOOKUP($A56,UVR!$A:$B,2,0),CALCULADORA!$C$23) -> 386849.1663 | R56: =O56*IFERROR(VLOOKUP($A56,UVR!$A:$B,2,0),CALCULADORA!$C$23) -> 1362642.557
A57: 2024-03-15 | B57: =IF(DIAS365(CALCULADORA!$C$30,A57)<0,0,DIAS365(CALCULADORA!$C$30,A57)) -> 32 | C57: =+HLOOKUP(CALCULADORA!$C$11,Tablas!$B$1:$B$181,Flujos!J57+1,FALSE) -> 0.00725238 | D57: 28.593713 | E57: 0.725238 | F57: =ROUND(D56*ROUND(((1+CALCULADORA!$C$19)^(1/12)-1),6),6) -> 0.053683 | G57: 0.778921 | H57: =IF($B57=0,0,G57/POWER(1+CALCULADORA!$C$32,Flujos!$B57/365)) -> 0.7762734379 | I57: 2024-03-15 | J57: 55 | K57: 1672 | L57: 571873.9785 | M57: 14504.75286 | N57: 1073.659457 | O57: 15578.41232 | P57: =M57*IFERROR(VLOOKUP($A57,UVR!$A:$B,2,0),CALCULADORA!$C$23) -> 5172514.486 | Q57: =N57*IFERROR(VLOOKUP($A57,UVR!$A:$B,2,0),CALCULADORA!$C$23) -> 382875.8165 | R57: =O57*IFERROR(VLOOKUP($A57,UVR!$A:$B,2,0),CALCULADORA!$C$23) -> 5555390.303
A58: 2024-04-15 | B58: =IF(DIAS365(CALCULADORA!$C$30,A58)<0,0,DIAS365(CALCULADORA!$C$30,A58)) -> 63 | C58: =+HLOOKUP(CALCULADORA!$C$11,Tablas!$B$1:$B$181,Flujos!J58+1,FALSE) -> 0.00709299 | D58: 27.884414 | E58: 0.709299 | F58: =ROUND(D57*ROUND(((1+CALCULADORA!$C$19)^(1/12)-1),6),6) -> 0.052355 | G58: 0.761654 | H58: =IF($B58=0,0,G58/POWER(1+CALCULADORA!$C$32,Flujos!$B58/365)) -> 0.7565655513 | I58: 2024-04-15 | J58: 56 | K58: 1703 | L58: 557688.0055 | M58: 14185.97302 | N58: 1047.101255 | O58: 15233.07427 | P58: =M58*IFERROR(VLOOKUP($A58,UVR!$A:$B,2,0),CALCULADORA!$C$23) -> 5083279.446 | Q58: =N58*IFERROR(VLOOKUP($A58,UVR!$A:$B,2,0),CALCULADORA!$C$23) -> 375209.2492 | R58: =O58*IFERROR(VLOOKUP($A58,UVR!$A:$B,2,0),CALCULADORA!$C$23) -> 5458488.695
A59: 2024-05-15 | B59: =IF(DIAS365(CALCULADORA!$C$30,A59)<0,0,DIAS365(CALCULADORA!$C$30,A59)) -> 93 | C59: =+HLOOKUP(CALCULADORA!$C$11,Tablas!$B$1:$B$181,Flujos!J59+1,FALSE) -> 0.00694065 | D59: 27.190349 | E59: 0.694065 | F59: =ROUND(D58*ROUND(((1+CALCULADORA!$C$19)^(1/12)-1),6),6) -> 0.051056 | G59: 0.745121 | H59: =IF($B59=0,0,G59/POWER(1+CALCULADORA!$C$32,Flujos!$B59/365)) -> 0.7377842334 | I59: 2024-05-15 | J59: 57 | K59: 1733 | L59: 543806.7123 | M59: 13881.29317 | N59: 1021.126738 | O59: 14902.4199 | P59: =M59*IFERROR(VLOOKUP($A59,UVR!$A:$B,2,0),CALCULADORA!$C$23) -> 5024268.016 | Q59: =N59*IFERROR(VLOOKUP($A59,UVR!$A:$B,2,0),CALCULADORA!$C$23) -> 369591.9644 | R59: =O59*IFERROR(VLOOKUP($A59,UVR!$A:$B,2,0),CALCULADORA!$C$23) -> 5393859.98
A60: 2024-06-15 | B60: =IF(DIAS365(CALCULADORA!$C$30,A60)<0,0,DIAS365(CALCULADORA!$C$30,A60)) -> 124 | C60: =+HLOOKUP(CALCULADORA!$C$11,Tablas!$B$1:$B$181,Flujos!J60+1,FALSE) -> 0.00857029 | D60: 26.33332 | E60: 0.857029 | F60: =ROUND(D59*ROUND(((1+CALCULADORA!$C$19)^(1/12)-1),6),6) -> 0.049786 | G60: 0.906815 | H60: =IF($B60=0,0,G60/POWER(1+CALCULADORA!$C$32,Flujos!$B60/365)) -> 0.8949294176 | I60: 2024-06-15 | J60: 58 | K60: 1764 | L60: 526666.1407 | M60: 17140.57156 | N60: 995.7100902 | O60: 18136.28165 | P60: =M60*IFERROR(VLOOKUP($A60,UVR!$A:$B,2,0),CALCULADORA!$C$23) -> 6267372.288 | Q60: =N60*IFERROR(VLOOKUP($A60,UVR!$A:$B,2,0),CALCULADORA!$C$23) -> 364076.8806 | R60: =O60*IFERROR(VLOOKUP($A60,UVR!$A:$B,2,0),CALCULADORA!$C$23) -> 6631449.168
A61: 2024-07-15 | B61: =IF(DIAS365(CALCULADORA!$C$30,A61)<0,0,DIAS365(CALCULADORA!$C$30,A61)) -> 154 | C61: =+HLOOKUP(CALCULADORA!$C$11,Tablas!$B$1:$B$181,Flujos!J61+1,FALSE) -> 0.00844706 | D61: 25.488614 | E61: 0.844706 | F61: =ROUND(D60*ROUND(((1+CALCULADORA!$C$19)^(1/12)-1),6),6) -> 0.048216 | G61: 0.892922 | H61: =IF($B61=0,0,G61/POWER(1+CALCULADORA!$C$32,Flujos!$B61/365)) -> 0.8784101458 | I61: 2024-07-15 | J61: 59 | K61: 1794 | L61: 509772.0291 | M61: 16894.11168 | N61: 964.3257037 | O61: 17858.43739 | P61: =M61*IFERROR(VLOOKUP($A61,UVR!$A:$B,2,0),CALCULADORA!$C$23) -> 6237960.42 | Q61: =N61*IFERROR(VLOOKUP($A61,UVR!$A:$B,2,0),CALCULADORA!$C$23) -> 356066.4026 | R61: =O61*IFERROR(VLOOKUP($A61,UVR!$A:$B,2,0),CALCULADORA!$C$23) -> 6594026.823
A62: 2024-08-15 | B62: =IF(DIAS365(CALCULADORA!$C$30,A62)<0,0,DIAS365(CALCULADORA!$C$30,A62)) -> 185 | C62: =+HLOOKUP(CALCULADORA!$C$11,Tablas!$B$1:$B$181,Flujos!J62+1,FALSE) -> 0.00809228 | D62: 24.679386 | E62: 0.809228 | F62: =ROUND(D61*ROUND(((1+CALCULADORA!$C$19)^(1/12)-1),6),6) -> 0.04667 | G62: 0.855898 | H62: =IF($B62=0,0,G62/POWER(1+CALCULADORA!$C$32,Flujos!$B62/365)) -> 0.8392152241 | I62: 2024-08-15 | J62: 60 | K62: 1825 | L62: 493587.477 | M62: 16184.55203 | N62: 933.3925852 | O62: 17117.94462 | P62: =M62*IFERROR(VLOOKUP($A62,UVR!$A:$B,2,0),CALCULADORA!$C$23) -> 6019279.194 | Q62: =N62*IFERROR(VLOOKUP($A62,UVR!$A:$B,2,0),CALCULADORA!$C$23) -> 347142.7913 | R62: =O62*IFERROR(VLOOKUP($A62,UVR!$A:$B,2,0),CALCULADORA!$C$23) -> 6366421.986
A63: 2024-09-15 | B63: =IF(DIAS365(CALCULADORA!$C$30,A63)<0,0,DIAS365(CALCULADORA!$C$30,A63)) -> 216 | C63: =+HLOOKUP(CALCULADORA!$C$11,Tablas!$B$1:$B$181,Flujos!J63+1,FALSE) -> 0.00820975 | D63: 23.858411 | E63: 0.820975 | F63: =ROUND(D62*ROUND(((1+CALCULADORA!$C$19)^(1/12)-1),6),6) -> 0.045188 | G63: 0.866163 | H63: =IF($B63=0,0,G63/POWER(1+CALCULADORA!$C$32,Flujos!$B63/365)) -> 0.8464834908 | I63: 2024-09-15 | J63: 61 | K63: 1856 | L63: 477167.9851 | M63: 16419.49192 | N63: 903.7586704 | O63: 17323.25059 | P63: =M63*IFERROR(VLOOKUP($A63,UVR!$A:$B,2,0),CALCULADORA!$C$23) -> 6124779.667 | Q63: =N63*IFERROR(VLOOKUP($A63,UVR!$A:$B,2,0),CALCULADORA!$C$23) -> 337119.002 | R63: =O63*IFERROR(VLOOKUP($A63,UVR!$A:$B,2,0),CALCULADORA!$C$23) -> 6461898.669
A64: 2024-10-15 | B64: =IF(DIAS365(CALCULADORA!$C$30,A64)<0,0,DIAS365(CALCULADORA!$C$30,A64)) -> 246 | C64: =+HLOOKUP(CALCULADORA!$C$11,Tablas!$B$1:$B$181,Flujos!J64+1,FALSE) -> 0.00810495 | D64: 23.047916 | E64: 0.810495 | F64: =ROUND(D63*ROUND(((1+CALCULADORA!$C$19)^(1/12)-1),6),6) -> 0.043685 | G64: 0.85418 | H64: =IF($B64=0,0,G64/POWER(1+CALCULADORA!$C$32,Flujos!$B64/365)) -> 0.8321124004 | I64: 2024-10-15 | J64: 62 | K64: 1886 | L64: 460958.0931 | M64: 16209.89202 | N64: 873.6945807 | O64: 17083.5866 | P64: =M64*IFERROR(VLOOKUP($A64,UVR!$A:$B,2,0),CALCULADORA!$C$23) -> 6053057.97 | Q64: =N64*IFERROR(VLOOKUP($A64,UVR!$A:$B,2,0),CALCULADORA!$C$23) -> 326252.8793 | R64: =O64*IFERROR(VLOOKUP($A64,UVR!$A:$B,2,0),CALCULADORA!$C$23) -> 6379310.849
A65: 2024-11-15 | B65: =IF(DIAS365(CALCULADORA!$C$30,A65)<0,0,DIAS365(CALCULADORA!$C$30,A65)) -> 277 | C65: =+HLOOKUP(CALCULADORA!$C$11,Tablas!$B$1:$B$181,Flujos!J65+1,FALSE) -> 0.00802812 | D65: 22.245104 | E65: 0.802812 | F65: =ROUND(D64*ROUND(((1+CALCULADORA!$C$19)^(1/12)-1),6),6) -> 0.042201 | G65: 0.845013 | H65: =IF($B65=0,0,G65/POWER(1+CALCULADORA!$C$32,Flujos!$B65/365)) -> 0.8204715154 | I65: 2024-11-15 | J65: 63 | K65: 1917 | L65: 444901.861 | M65: 16056.2321 | N65: 844.0142684 | O65: 16900.24636 | P65: =M65*IFERROR(VLOOKUP($A65,UVR!$A:$B,2,0),CALCULADORA!$C$23) -> 6002815.446 | Q65: =N65*IFERROR(VLOOKUP($A65,UVR!$A:$B,2,0),CALCULADORA!$C$23) -> 315544.8836 | R65: =O65*IFERROR(VLOOKUP($A65,UVR!$A:$B,2,0),CALCULADORA!$C$23) -> 6318360.33
A66: 2024-12-15 | B66: =IF(DIAS365(CALCULADORA!$C$30,A66)<0,0,DIAS365(CALCULADORA!$C$30,A66)) -> 307 | C66: =+HLOOKUP(CALCULADORA!$C$11,Tablas!$B$1:$B$181,Flujos!J66+1,FALSE) -> 0.00792529 | D66: 21.452575 | E66: 0.792529 | F66: =ROUND(D65*ROUND(((1+CALCULADORA!$C$19)^(1/12)-1),6),6) -> 0.040731 | G66: 0.83326 | H66: =IF($B66=0,0,G66/POWER(1+CALCULADORA!$C$32,Flujos!$B66/365)) -> 0.8064814513 | I66: 2024-12-15 | J66: 64 | K66: 1947 | L66: 429051.2888 | M66: 15850.5722 | N66: 814.6153075 | O66: 16665.1875 | P66: =M66*IFERROR(VLOOKUP($A66,UVR!$A:$B,2,0),CALCULADORA!$C$23) -> 5933299.373 | Q66: =N66*IFERROR(VLOOKUP($A66,UVR!$A:$B,2,0),CALCULADORA!$C$23) -> 304932.619 | R66: =O66*IFERROR(VLOOKUP($A66,UVR!$A:$B,2,0),CALCULADORA!$C$23) -> 6238231.992
A67: =EDATE(A66,1) -> 2025-01-15 | B67: =IF(DIAS365(CALCULADORA!$C$30,A67)<0,0,DIAS365(CALCULADORA!$C$30,A67)) -> 338 | C67: =+HLOOKUP(CALCULADORA!$C$11,Tablas!$B$1:$B$181,Flujos!J67+1,FALSE) -> 0.00787223 | D67: 20.665352 | E67: 0.787223 | F67: =ROUND(D66*ROUND(((1+CALCULADORA!$C$19)^(1/12)-1),6),6) -> 0.03928 | G67: 0.826503 | H67: =IF($B67=0,0,G67/POWER(1+CALCULADORA!$C$32,Flujos!$B67/365)) -> 0.7973074193 | I67: =+A67 -> 2025-01-15 | J67: 65 | K67: 1978 | L67: 413306.8365 | M67: 15744.45225 | N67: 785.5929098 | O67: 16530.04516 | P67: =M67*IFERROR(VLOOKUP($A67,UVR!$A:$B,2,0),CALCULADORA!$C$23) -> 5901785.619 | Q67: =N67*IFERROR(VLOOKUP($A67,UVR!$A:$B,2,0),CALCULADORA!$C$23) -> 294478.3892 | R67: =O67*IFERROR(VLOOKUP($A67,UVR!$A:$B,2,0),CALCULADORA!$C$23) -> 6196264.008
A68: 2025-02-15 | B68: =IF(DIAS365(CALCULADORA!$C$30,A68)<0,0,DIAS365(CALCULADORA!$C$30,A68)) -> 369 | C68: =+HLOOKUP(CALCULADORA!$C$11,Tablas!$B$1:$B$181,Flujos!J68+1,FALSE) -> 0.00778935 | D68: =+ROUND(D67-E68,6) -> 19.886417 | E68: =ROUND(C68*$D$2,6) -> 0.778935 | F68: =ROUND(D67*ROUND(((1+CALCULADORA!$C$19)^(1/12)-1),6),6) -> 0.037838 | G68: =F68+E68 -> 0.816773 | H68: =IF($B68=0,0,G68/POWER(1+CALCULADORA!$C$32,Flujos!$B68/365)) -> 0.7853265248 | I68: 2025-02-15 | J68: 66 | K68: =+DIAS365($A$2,A68) -> 2009 | L68: =+L67-M68 -> 397728.1442 | M68: =+$L$2*C68 -> 15578.69233 | N68: =+L67*$F$3% -> 756.7648177 | O68: =+N68+M68 -> 16335.45715 | P68: =M68*IFERROR(VLOOKUP($A68,UVR!$A:$B,2,0),CALCULADORA!$C$23) -> 5840460.131 | Q68: =N68*IFERROR(VLOOKUP($A68,UVR!$A:$B,2,0),CALCULADORA!$C$23) -> 283711.537 | R68: =O68*IFERROR(VLOOKUP($A68,UVR!$A:$B,2,0),CALCULADORA!$C$23) -> 6124171.668
A69: 2025-03-15 | B69: =IF(DIAS365(CALCULADORA!$C$30,A69)<0,0,DIAS365(CALCULADORA!$C$30,A69)) -> 397 | C69: =+HLOOKUP(CALCULADORA!$C$11,Tablas!$B$1:$B$181,Flujos!J69+1,FALSE) -> 0.00748291 | D69: 19.138126 | E69: 0.748291 | F69: =ROUND(D68*ROUND(((1+CALCULADORA!$C$19)^(1/12)-1),6),6) -> 0.036412 | G69: 0.784703 | H69: =IF($B69=0,0,G69/POWER(1+CALCULADORA!$C$32,Flujos!$B69/365)) -> 0.7522468111 | I69: 2025-03-15 | J69: 67 | K69: 2037 | L69: 382762.3316 | M69: 14965.81263 | N69: 728.240232 | O69: 15694.05286 | P69: =M69*IFERROR(VLOOKUP($A69,UVR!$A:$B,2,0),CALCULADORA!$C$23) -> 5606057.866 | Q69: =N69*IFERROR(VLOOKUP($A69,UVR!$A:$B,2,0),CALCULADORA!$C$23) -> 272792.1952 | R69: =O69*IFERROR(VLOOKUP($A69,UVR!$A:$B,2,0),CALCULADORA!$C$23) -> 5878850.061
A70: 2025-04-15 | B70: =IF(DIAS365(CALCULADORA!$C$30,A70)<0,0,DIAS365(CALCULADORA!$C$30,A70)) -> 428 | C70: =+HLOOKUP(CALCULADORA!$C$11,Tablas!$B$1:$B$181,Flujos!J70+1,FALSE) -> 0.00722666 | D70: 18.41546 | E70: 0.722666 | F70: =ROUND(D69*ROUND(((1+CALCULADORA!$C$19)^(1/12)-1),6),6) -> 0.035042 | G70: 0.757708 | H70: =IF($B70=0,0,G70/POWER(1+CALCULADORA!$C$32,Flujos!$B70/365)) -> 0.7239764464 | I70: 2025-04-15 | J70: 68 | K70: 2068 | L70: 368309.0187 | M70: 14453.31288 | N70: 700.8378291 | O70: 15154.15071 | P70: =M70*IFERROR(VLOOKUP($A70,UVR!$A:$B,2,0),CALCULADORA!$C$23) -> 5421666.329 | Q70: =N70*IFERROR(VLOOKUP($A70,UVR!$A:$B,2,0),CALCULADORA!$C$23) -> 262895.3577 | R70: =O70*IFERROR(VLOOKUP($A70,UVR!$A:$B,2,0),CALCULADORA!$C$23) -> 5684561.687
A71: 2025-05-15 | B71: =IF(DIAS365(CALCULADORA!$C$30,A71)<0,0,DIAS365(CALCULADORA!$C$30,A71)) -> 458 | C71: =+HLOOKUP(CALCULADORA!$C$11,Tablas!$B$1:$B$181,Flujos!J71+1,FALSE) -> 0.00707502 | D71: 17.707958 | E71: 0.707502 | F71: =ROUND(D70*ROUND(((1+CALCULADORA!$C$19)^(1/12)-1),6),6) -> 0.033719 | G71: 0.741221 | H71: =IF($B71=0,0,G71/POWER(1+CALCULADORA!$C$32,Flujos!$B71/365)) -> 0.7059663663 | I71: 2025-05-15 | J71: 69 | K71: 2098 | L71: 354158.9857 | M71: 14150.03303 | N71: 674.3738132 | O71: 14824.40685 | P71: =M71*IFERROR(VLOOKUP($A71,UVR!$A:$B,2,0),CALCULADORA!$C$23) -> 5340396.544 | Q71: =N71*IFERROR(VLOOKUP($A71,UVR!$A:$B,2,0),CALCULADORA!$C$23) -> 254516.9734 | R71: =O71*IFERROR(VLOOKUP($A71,UVR!$A:$B,2,0),CALCULADORA!$C$23) -> 5594913.518
A72: 2025-06-15 | B72: =IF(DIAS365(CALCULADORA!$C$30,A72)<0,0,DIAS365(CALCULADORA!$C$30,A72)) -> 489 | C72: =+HLOOKUP(CALCULADORA!$C$11,Tablas!$B$1:$B$181,Flujos!J72+1,FALSE) -> 0.00692578 | D72: 17.01538 | E72: 0.692578 | F72: =ROUND(D71*ROUND(((1+CALCULADORA!$C$19)^(1/12)-1),6),6) -> 0.032423 | G72: 0.725001 | H72: =IF($B72=0,0,G72/POWER(1+CALCULADORA!$C$32,Flujos!$B72/365)) -> 0.6882439835 | I72: 2025-06-15 | J72: 70 | K72: 2129 | L72: 340307.4325 | M72: 13851.55318 | N72: 648.4651027 | O72: 14500.01828 | P72: =M72*IFERROR(VLOOKUP($A72,UVR!$A:$B,2,0),CALCULADORA!$C$23) -> 5270720.068 | Q72: =N72*IFERROR(VLOOKUP($A72,UVR!$A:$B,2,0),CALCULADORA!$C$23) -> 246750.5258 | R72: =O72*IFERROR(VLOOKUP($A72,UVR!$A:$B,2,0),CALCULADORA!$C$23) -> 5517470.594
A73: 2025-07-15 | B73: =IF(DIAS365(CALCULADORA!$C$30,A73)<0,0,DIAS365(CALCULADORA!$C$30,A73)) -> 519 | C73: =+HLOOKUP(CALCULADORA!$C$11,Tablas!$B$1:$B$181,Flujos!J73+1,FALSE) -> 0.00677987 | D73: 16.337393 | E73: 0.677987 | F73: =ROUND(D72*ROUND(((1+CALCULADORA!$C$19)^(1/12)-1),6),6) -> 0.031155 | G73: 0.709142 | H73: =IF($B73=0,0,G73/POWER(1+CALCULADORA!$C$32,Flujos!$B73/365)) -> 0.6710436283 | I73: 2025-07-15 | J73: 71 | K73: 2159 | L73: 326747.6991 | M73: 13559.73332 | N73: 623.1029089 | O73: 14182.83623 | P73: =M73*IFERROR(VLOOKUP($A73,UVR!$A:$B,2,0),CALCULADORA!$C$23) -> 5196245.257 | Q73: =N73*IFERROR(VLOOKUP($A73,UVR!$A:$B,2,0),CALCULADORA!$C$23) -> 238780.1779 | R73: =O73*IFERROR(VLOOKUP($A73,UVR!$A:$B,2,0),CALCULADORA!$C$23) -> 5435025.435
A74: 2025-08-15 | B74: =IF(DIAS365(CALCULADORA!$C$30,A74)<0,0,DIAS365(CALCULADORA!$C$30,A74)) -> 550 | C74: =+HLOOKUP(CALCULADORA!$C$11,Tablas!$B$1:$B$181,Flujos!J74+1,FALSE) -> 0.00663157 | D74: 15.674236 | E74: 0.663157 | F74: =ROUND(D73*ROUND(((1+CALCULADORA!$C$19)^(1/12)-1),6),6) -> 0.029914 | G74: 0.693071 | H74: =IF($B74=0,0,G74/POWER(1+CALCULADORA!$C$32,Flujos!$B74/365)) -> 0.6536763892 | I74: 2025-08-15 | J74: 72 | K74: 2190 | L74: 313484.5657 | M74: 13263.13347 | N74: 598.2750371 | O74: 13861.40851 | P74: =M74*IFERROR(VLOOKUP($A74,UVR!$A:$B,2,0),CALCULADORA!$C$23) -> 5112754.581 | Q74: =N74*IFERROR(VLOOKUP($A74,UVR!$A:$B,2,0),CALCULADORA!$C$23) -> 230626.7553 | R74: =O74*IFERROR(VLOOKUP($A74,UVR!$A:$B,2,0),CALCULADORA!$C$23) -> 5343381.336
A75: 2025-09-15 | B75: =IF(DIAS365(CALCULADORA!$C$30,A75)<0,0,DIAS365(CALCULADORA!$C$30,A75)) -> 581 | C75: =+HLOOKUP(CALCULADORA!$C$11,Tablas!$B$1:$B$181,Flujos!J75+1,FALSE) -> 0.00621894 | D75: 15.052342 | E75: 0.621894 | F75: =ROUND(D74*ROUND(((1+CALCULADORA!$C$19)^(1/12)-1),6),6) -> 0.0287 | G75: 0.650594 | H75: =IF($B75=0,0,G75/POWER(1+CALCULADORA!$C$32,Flujos!$B75/365)) -> 0.6115931989 | I75: 2025-09-15 | J75: 73 | K75: 2221 | L75: 301046.6918 | M75: 12437.87388 | N75: 573.9902398 | O75: 13011.86412 | P75: =M75*IFERROR(VLOOKUP($A75,UVR!$A:$B,2,0),CALCULADORA!$C$23) -> 4808951.197 | Q75: =N75*IFERROR(VLOOKUP($A75,UVR!$A:$B,2,0),CALCULADORA!$C$23) -> 221926.2776 | R75: =O75*IFERROR(VLOOKUP($A75,UVR!$A:$B,2,0),CALCULADORA!$C$23) -> 5030877.475
A76: 2025-10-15 | B76: =IF(DIAS365(CALCULADORA!$C$30,A76)<0,0,DIAS365(CALCULADORA!$C$30,A76)) -> 611 | C76: =+HLOOKUP(CALCULADORA!$C$11,Tablas!$B$1:$B$181,Flujos!J76+1,FALSE) -> 0.00635213 | D76: 14.417129 | E76: 0.635213 | F76: =ROUND(D75*ROUND(((1+CALCULADORA!$C$19)^(1/12)-1),6),6) -> 0.027561 | G76: 0.662774 | H76: =IF($B76=0,0,G76/POWER(1+CALCULADORA!$C$32,Flujos!$B76/365)) -> 0.6210574672 | I76: 2025-10-15 | J76: 74 | K76: 2251 | L76: 288342.4381 | M76: 12704.25375 | N76: 551.2164927 | O76: 13255.47024 | P76: =M76*IFERROR(VLOOKUP($A76,UVR!$A:$B,2,0),CALCULADORA!$C$23) -> 4912385.202 | Q76: =N76*IFERROR(VLOOKUP($A76,UVR!$A:$B,2,0),CALCULADORA!$C$23) -> 213140.2439 | R76: =O76*IFERROR(VLOOKUP($A76,UVR!$A:$B,2,0),CALCULADORA!$C$23) -> 5125525.446
A77: 2025-11-15 | B77: =IF(DIAS365(CALCULADORA!$C$30,A77)<0,0,DIAS365(CALCULADORA!$C$30,A77)) -> 642 | C77: =+HLOOKUP(CALCULADORA!$C$11,Tablas!$B$1:$B$181,Flujos!J77+1,FALSE) -> 0.00621563 | D77: 13.795566 | E77: 0.621563 | F77: =ROUND(D76*ROUND(((1+CALCULADORA!$C$19)^(1/12)-1),6),6) -> 0.026398 | G77: 0.647961 | H77: =IF($B77=0,0,G77/POWER(1+CALCULADORA!$C$32,Flujos!$B77/365)) -> 0.6051774177 | I77: 2025-11-15 | J77: 75 | K77: 2282 | L77: 275911.1842 | M77: 12431.25388 | N77: 527.9550041 | O77: 12959.20888 | P77: =M77*IFERROR(VLOOKUP($A77,UVR!$A:$B,2,0),CALCULADORA!$C$23) -> 4807723.004 | Q77: =N77*IFERROR(VLOOKUP($A77,UVR!$A:$B,2,0),CALCULADORA!$C$23) -> 204183.8613 | R77: =O77*IFERROR(VLOOKUP($A77,UVR!$A:$B,2,0),CALCULADORA!$C$23) -> 5011906.865
A78: 2025-12-15 | B78: =IF(DIAS365(CALCULADORA!$C$30,A78)<0,0,DIAS365(CALCULADORA!$C$30,A78)) -> 672 | C78: =+HLOOKUP(CALCULADORA!$C$11,Tablas!$B$1:$B$181,Flujos!J78+1,FALSE) -> 0.00608008 | D78: 13.187558 | E78: 0.608008 | F78: =ROUND(D77*ROUND(((1+CALCULADORA!$C$19)^(1/12)-1),6),6) -> 0.02526 | G78: 0.633268 | H78: =IF($B78=0,0,G78/POWER(1+CALCULADORA!$C$32,Flujos!$B78/365)) -> 0.5895696532 | I78: 2025-12-15 | J78: 76 | K78: 2312 | L78: 263751.0302 | M78: 12160.15401 | N78: 505.1933782 | O78: 12665.34739 | P78: =M78*IFERROR(VLOOKUP($A78,UVR!$A:$B,2,0),CALCULADORA!$C$23) -> 4709301.547 | Q78: =N78*IFERROR(VLOOKUP($A78,UVR!$A:$B,2,0),CALCULADORA!$C$23) -> 195647.8475 | R78: =O78*IFERROR(VLOOKUP($A78,UVR!$A:$B,2,0),CALCULADORA!$C$23) -> 4904949.394
A79: 2026-01-15 | B79: =IF(DIAS365(CALCULADORA!$C$30,A79)<0,0,DIAS365(CALCULADORA!$C$30,A79)) -> 703 | C79: =+HLOOKUP(CALCULADORA!$C$11,Tablas!$B$1:$B$181,Flujos!J79+1,FALSE) -> 0.00595088 | D79: 12.59247 | E79: 0.595088 | F79: =ROUND(D78*ROUND(((1+CALCULADORA!$C$19)^(1/12)-1),6),6) -> 0.024146 | G79: 0.619234 | H79: =IF($B79=0,0,G79/POWER(1+CALCULADORA!$C$32,Flujos!$B79/365)) -> 0.5746056529 | I79: 2026-01-15 | J79: 77 | K79: 2343 | L79: 251849.276 | M79: 11901.75414 | N79: 482.9281362 | O79: 12384.68228 | P79: =M79*IFERROR(VLOOKUP($A79,UVR!$A:$B,2,0),CALCULADORA!$C$23) -> 4270976.608 | Q79: =N79*IFERROR(VLOOKUP($A79,UVR!$A:$B,2,0),CALCULADORA!$C$23) -> 173300.0656 | R79: =O79*IFERROR(VLOOKUP($A79,UVR!$A:$B,2,0),CALCULADORA!$C$23) -> 4444276.674
A80: 2026-02-15 | B80: =IF(DIAS365(CALCULADORA!$C$30,A80)<0,0,DIAS365(CALCULADORA!$C$30,A80)) -> 734 | C80: =+HLOOKUP(CALCULADORA!$C$11,Tablas!$B$1:$B$181,Flujos!J80+1,FALSE) -> 0.00581722 | D80: 12.010748 | E80: 0.581722 | F80: =ROUND(D79*ROUND(((1+CALCULADORA!$C$19)^(1/12)-1),6),6) -> 0.023057 | G80: 0.604779 | H80: =IF($B80=0,0,G80/POWER(1+CALCULADORA!$C$32,Flujos!$B80/365)) -> 0.5593444395 | I80: 2026-02-15 | J80: 78 | K80: 2374 | L80: 240214.8417 | M80: 11634.43427 | N80: 461.1360244 | O80: 12095.5703 | P80: =M80*IFERROR(VLOOKUP($A80,UVR!$A:$B,2,0),CALCULADORA!$C$23) -> 4175048.152 | Q80: =N80*IFERROR(VLOOKUP($A80,UVR!$A:$B,2,0),CALCULADORA!$C$23) -> 165479.9074 | R80: =O80*IFERROR(VLOOKUP($A80,UVR!$A:$B,2,0),CALCULADORA!$C$23) -> 4340528.059
A81: 2026-03-15 | B81: =IF(DIAS365(CALCULADORA!$C$30,A81)<0,0,DIAS365(CALCULADORA!$C$30,A81)) -> 762 | C81: =+HLOOKUP(CALCULADORA!$C$11,Tablas!$B$1:$B$181,Flujos!J81+1,FALSE) -> 0.00568577 | D81: 11.442171 | E81: 0.568577 | F81: =ROUND(D80*ROUND(((1+CALCULADORA!$C$19)^(1/12)-1),6),6) -> 0.021992 | G81: 0.590569 | H81: =IF($B81=0,0,G81/POWER(1+CALCULADORA!$C$32,Flujos!$B81/365)) -> 0.544577154 | I81: 2026-03-15 | J81: 79 | K81: 2402 | L81: 228843.3073 | M81: 11371.5344 | N81: 439.8333752 | O81: 11811.36778 | P81: =M81*IFERROR(VLOOKUP($A81,UVR!$A:$B,2,0),CALCULADORA!$C$23) -> 4080705.823 | Q81: =N81*IFERROR(VLOOKUP($A81,UVR!$A:$B,2,0),CALCULADORA!$C$23) -> 157835.3943 | R81: =O81*IFERROR(VLOOKUP($A81,UVR!$A:$B,2,0),CALCULADORA!$C$23) -> 4238541.218
A82: 2026-04-15 | B82: =IF(DIAS365(CALCULADORA!$C$30,A82)<0,0,DIAS365(CALCULADORA!$C$30,A82)) -> 793 | C82: =+HLOOKUP(CALCULADORA!$C$11,Tablas!$B$1:$B$181,Flujos!J82+1,FALSE) -> 0.00556391 | D82: 10.88578 | E82: 0.556391 | F82: =ROUND(D81*ROUND(((1+CALCULADORA!$C$19)^(1/12)-1),6),6) -> 0.020951 | G82: 0.577342 | H82: =IF($B82=0,0,G82/POWER(1+CALCULADORA!$C$32,Flujos!$B82/365)) -> 0.5306271242 | I82: 2026-04-15 | J82: 80 | K82: 2433 | L82: 217715.4928 | M82: 11127.81452 | N82: 419.0120958 | O82: 11546.82662 | P82: =M82*IFERROR(VLOOKUP($A82,UVR!$A:$B,2,0),CALCULADORA!$C$23) -> 3993246.286 | Q82: =N82*IFERROR(VLOOKUP($A82,UVR!$A:$B,2,0),CALCULADORA!$C$23) -> 150363.6219 | R82: =O82*IFERROR(VLOOKUP($A82,UVR!$A:$B,2,0),CALCULADORA!$C$23) -> 4143609.908
A83: 2026-05-15 | B83: =IF(DIAS365(CALCULADORA!$C$30,A83)<0,0,DIAS365(CALCULADORA!$C$30,A83)) -> 823 | C83: =+HLOOKUP(CALCULADORA!$C$11,Tablas!$B$1:$B$181,Flujos!J83+1,FALSE) -> 0.00544497 | D83: 10.341283 | E83: 0.544497 | F83: =ROUND(D82*ROUND(((1+CALCULADORA!$C$19)^(1/12)-1),6),6) -> 0.019932 | G83: 0.564429 | H83: =IF($B83=0,0,G83/POWER(1+CALCULADORA!$C$32,Flujos!$B83/365)) -> 0.5171057231 | I83: 2026-05-15 | J83: 81 | K83: 2463 | L83: 206825.5582 | M83: 10889.93464 | N83: 398.6370674 | O83: 11288.57171 | P83: =M83*IFERROR(VLOOKUP($A83,UVR!$A:$B,2,0),CALCULADORA!$C$23) -> 3907882.448 | Q83: =N83*IFERROR(VLOOKUP($A83,UVR!$A:$B,2,0),CALCULADORA!$C$23) -> 143051.9879 | R83: =O83*IFERROR(VLOOKUP($A83,UVR!$A:$B,2,0),CALCULADORA!$C$23) -> 4050934.436
A84: 2026-06-15 | B84: =IF(DIAS365(CALCULADORA!$C$30,A84)<0,0,DIAS365(CALCULADORA!$C$30,A84)) -> 854 | C84: =+HLOOKUP(CALCULADORA!$C$11,Tablas!$B$1:$B$181,Flujos!J84+1,FALSE) -> 0.00531863 | D84: 9.80942 | E84: 0.531863 | F84: =ROUND(D83*ROUND(((1+CALCULADORA!$C$19)^(1/12)-1),6),6) -> 0.018935 | G84: 0.550798 | H84: =IF($B84=0,0,G84/POWER(1+CALCULADORA!$C$32,Flujos!$B84/365)) -> 0.5029558939 | I84: 2026-06-15 | J84: 82 | K84: 2494 | L84: 196188.3034 | M84: 10637.25476 | N84: 378.697597 | O84: 11015.95236 | P84: =M84*IFERROR(VLOOKUP($A84,UVR!$A:$B,2,0),CALCULADORA!$C$23) -> 3817207.592 | Q84: =N84*IFERROR(VLOOKUP($A84,UVR!$A:$B,2,0),CALCULADORA!$C$23) -> 135896.6552 | R84: =O84*IFERROR(VLOOKUP($A84,UVR!$A:$B,2,0),CALCULADORA!$C$23) -> 3953104.248
A85: 2026-07-15 | B85: =IF(DIAS365(CALCULADORA!$C$30,A85)<0,0,DIAS365(CALCULADORA!$C$30,A85)) -> 884 | C85: =+HLOOKUP(CALCULADORA!$C$11,Tablas!$B$1:$B$181,Flujos!J85+1,FALSE) -> 0.00519537 | D85: 9.289883 | E85: 0.519537 | F85: =ROUND(D84*ROUND(((1+CALCULADORA!$C$19)^(1/12)-1),6),6) -> 0.017961 | G85: 0.537498 | H85: =IF($B85=0,0,G85/POWER(1+CALCULADORA!$C$32,Flujos!$B85/365)) -> 0.4892469545 | I85: 2026-07-15 | J85: 83 | K85: 2524 | L85: 185797.5685 | M85: 10390.73488 | N85: 359.2207836 | O85: 10749.95567 | P85: =M85*IFERROR(VLOOKUP($A85,UVR!$A:$B,2,0),CALCULADORA!$C$23) -> 3728743.268 | Q85: =N85*IFERROR(VLOOKUP($A85,UVR!$A:$B,2,0),CALCULADORA!$C$23) -> 128907.3481 | R85: =O85*IFERROR(VLOOKUP($A85,UVR!$A:$B,2,0),CALCULADORA!$C$23) -> 3857650.617
A86: 2026-08-15 | B86: =IF(DIAS365(CALCULADORA!$C$30,A86)<0,0,DIAS365(CALCULADORA!$C$30,A86)) -> 915 | C86: =+HLOOKUP(CALCULADORA!$C$11,Tablas!$B$1:$B$181,Flujos!J86+1,FALSE) -> 0.00507743 | D86: 8.78214 | E86: 0.507743 | F86: =ROUND(D85*ROUND(((1+CALCULADORA!$C$19)^(1/12)-1),6),6) -> 0.01701 | G86: 0.524753 | H86: =IF($B86=0,0,G86/POWER(1+CALCULADORA!$C$32,Flujos!$B86/365)) -> 0.4760731963 | I86: 2026-08-15 | J86: 84 | K86: 2555 | L86: 175642.7135 | M86: 10154.855 | N86: 340.195348 | O86: 10495.05035 | P86: =M86*IFERROR(VLOOKUP($A86,UVR!$A:$B,2,0),CALCULADORA!$C$23) -> 3644097.135 | Q86: =N86*IFERROR(VLOOKUP($A86,UVR!$A:$B,2,0),CALCULADORA!$C$23) -> 122080.0192 | R86: =O86*IFERROR(VLOOKUP($A86,UVR!$A:$B,2,0),CALCULADORA!$C$23) -> 3766177.154
A87: 2026-09-15 | B87: =IF(DIAS365(CALCULADORA!$C$30,A87)<0,0,DIAS365(CALCULADORA!$C$30,A87)) -> 946 | C87: =+HLOOKUP(CALCULADORA!$C$11,Tablas!$B$1:$B$181,Flujos!J87+1,FALSE) -> 0.0046691 | D87: 8.31523 | E87: 0.46691 | F87: =ROUND(D86*ROUND(((1+CALCULADORA!$C$19)^(1/12)-1),6),6) -> 0.01608 | G87: 0.48299 | H87: =IF($B87=0,0,G87/POWER(1+CALCULADORA!$C$32,Flujos!$B87/365)) -> 0.4367415004 | I87: 2026-09-15 | J87: 85 | K87: 2586 | L87: 166304.5181 | M87: 9338.195403 | N87: 321.6018085 | O87: 9659.797212 | P87: =M87*IFERROR(VLOOKUP($A87,UVR!$A:$B,2,0),CALCULADORA!$C$23) -> 3351036.634 | Q87: =N87*IFERROR(VLOOKUP($A87,UVR!$A:$B,2,0),CALCULADORA!$C$23) -> 115407.6773 | R87: =O87*IFERROR(VLOOKUP($A87,UVR!$A:$B,2,0),CALCULADORA!$C$23) -> 3466444.311
A88: 2026-10-15 | B88: =IF(DIAS365(CALCULADORA!$C$30,A88)<0,0,DIAS365(CALCULADORA!$C$30,A88)) -> 976 | C88: =+HLOOKUP(CALCULADORA!$C$11,Tablas!$B$1:$B$181,Flujos!J88+1,FALSE) -> 0.00483814 | D88: 7.831416 | E88: 0.483814 | F88: =ROUND(D87*ROUND(((1+CALCULADORA!$C$19)^(1/12)-1),6),6) -> 0.015225 | G88: 0.499039 | H88: =IF($B88=0,0,G88/POWER(1+CALCULADORA!$C$32,Flujos!$B88/365)) -> 0.449815629 | I88: 2026-10-15 | J88: 86 | K88: 2616 | L88: 156628.2429 | M88: 9676.275237 | N88: 304.5035727 | O88: 9980.778809 | P88: =M88*IFERROR(VLOOKUP($A88,UVR!$A:$B,2,0),CALCULADORA!$C$23) -> 3472357.495 | Q88: =N88*IFERROR(VLOOKUP($A88,UVR!$A:$B,2,0),CALCULADORA!$C$23) -> 109271.9292 | R88: =O88*IFERROR(VLOOKUP($A88,UVR!$A:$B,2,0),CALCULADORA!$C$23) -> 3581629.424
A89: 2026-11-15 | B89: =IF(DIAS365(CALCULADORA!$C$30,A89)<0,0,DIAS365(CALCULADORA!$C$30,A89)) -> 1007 | C89: =+HLOOKUP(CALCULADORA!$C$11,Tablas!$B$1:$B$181,Flujos!J89+1,FALSE) -> 0.00472817 | D89: 7.358599 | E89: 0.472817 | F89: =ROUND(D88*ROUND(((1+CALCULADORA!$C$19)^(1/12)-1),6),6) -> 0.014339 | G89: 0.487156 | H89: =IF($B89=0,0,G89/POWER(1+CALCULADORA!$C$32,Flujos!$B89/365)) -> 0.4376587664 | I89: 2026-11-15 | J89: 87 | K89: 2647 | L89: 147171.9076 | M89: 9456.335345 | N89: 286.7863127 | O89: 9743.121658 | P89: =M89*IFERROR(VLOOKUP($A89,UVR!$A:$B,2,0),CALCULADORA!$C$23) -> 3393431.471 | Q89: =N89*IFERROR(VLOOKUP($A89,UVR!$A:$B,2,0),CALCULADORA!$C$23) -> 102914.0427 | R89: =O89*IFERROR(VLOOKUP($A89,UVR!$A:$B,2,0),CALCULADORA!$C$23) -> 3496345.513
A90: 2026-12-15 | B90: =IF(DIAS365(CALCULADORA!$C$30,A90)<0,0,DIAS365(CALCULADORA!$C$30,A90)) -> 1037 | C90: =+HLOOKUP(CALCULADORA!$C$11,Tablas!$B$1:$B$181,Flujos!J90+1,FALSE) -> 0.00461923 | D90: 6.896676 | E90: 0.461923 | F90: =ROUND(D89*ROUND(((1+CALCULADORA!$C$19)^(1/12)-1),6),6) -> 0.013474 | G90: 0.475397 | H90: =IF($B90=0,0,G90/POWER(1+CALCULADORA!$C$32,Flujos!$B90/365)) -> 0.4257334205 | I90: 2026-12-15 | J90: 88 | K90: 2677 | L90: 137933.4521 | M90: 9238.455452 | N90: 269.4717627 | O90: 9507.927215 | P90: =M90*IFERROR(VLOOKUP($A90,UVR!$A:$B,2,0),CALCULADORA!$C$23) -> 3315244.683 | Q90: =N90*IFERROR(VLOOKUP($A90,UVR!$A:$B,2,0),CALCULADORA!$C$23) -> 96700.66963 | R90: =O90*IFERROR(VLOOKUP($A90,UVR!$A:$B,2,0),CALCULADORA!$C$23) -> 3411945.352
A91: 2027-01-15 | B91: =IF(DIAS365(CALCULADORA!$C$30,A91)<0,0,DIAS365(CALCULADORA!$C$30,A91)) -> 1068 | C91: =+HLOOKUP(CALCULADORA!$C$11,Tablas!$B$1:$B$181,Flujos!J91+1,FALSE) -> 0.00451389 | D91: 6.445287 | E91: 0.451389 | F91: =ROUND(D90*ROUND(((1+CALCULADORA!$C$19)^(1/12)-1),6),6) -> 0.012628 | G91: 0.464017 | H91: =IF($B91=0,0,G91/POWER(1+CALCULADORA!$C$32,Flujos!$B91/365)) -> 0.4141738942 | I91: 2027-01-15 | J91: 89 | K91: 2708 | L91: 128905.6765 | M91: 9027.775556 | N91: 252.5561508 | O91: 9280.331707 | P91: =M91*IFERROR(VLOOKUP($A91,UVR!$A:$B,2,0),CALCULADORA!$C$23) -> 3239641.633 | Q91: =N91*IFERROR(VLOOKUP($A91,UVR!$A:$B,2,0),CALCULADORA!$C$23) -> 90630.45661 | R91: =O91*IFERROR(VLOOKUP($A91,UVR!$A:$B,2,0),CALCULADORA!$C$23) -> 3330272.09
A92: 2027-02-15 | B92: =IF(DIAS365(CALCULADORA!$C$30,A92)<0,0,DIAS365(CALCULADORA!$C$30,A92)) -> 1099 | C92: =+HLOOKUP(CALCULADORA!$C$11,Tablas!$B$1:$B$181,Flujos!J92+1,FALSE) -> 0.00440659 | D92: 6.004628 | E92: 0.440659 | F92: =ROUND(D91*ROUND(((1+CALCULADORA!$C$19)^(1/12)-1),6),6) -> 0.011801 | G92: 0.45246 | H92: =IF($B92=0,0,G92/POWER(1+CALCULADORA!$C$32,Flujos!$B92/365)) -> 0.4025284147 | I92: 2027-02-15 | J92: 90 | K92: 2739 | L92: 120092.5009 | M92: 8813.175661 | N92: 236.0262937 | O92: 9049.201955 | P92: =M92*IFERROR(VLOOKUP($A92,UVR!$A:$B,2,0),CALCULADORA!$C$23) -> 3162631.882 | Q92: =N92*IFERROR(VLOOKUP($A92,UVR!$A:$B,2,0),CALCULADORA!$C$23) -> 84698.67278 | R92: =O92*IFERROR(VLOOKUP($A92,UVR!$A:$B,2,0),CALCULADORA!$C$23) -> 3247330.554
A93: 2027-03-15 | B93: =IF(DIAS365(CALCULADORA!$C$30,A93)<0,0,DIAS365(CALCULADORA!$C$30,A93)) -> 1127 | C93: =+HLOOKUP(CALCULADORA!$C$11,Tablas!$B$1:$B$181,Flujos!J93+1,FALSE) -> 0.00430836 | D93: 5.573792 | E93: 0.430836 | F93: =ROUND(D92*ROUND(((1+CALCULADORA!$C$19)^(1/12)-1),6),6) -> 0.010994 | G93: 0.44183 | H93: =IF($B93=0,0,G93/POWER(1+CALCULADORA!$C$32,Flujos!$B93/365)) -> 0.3919022002 | I93: 2027-03-15 | J93: 91 | K93: 2767 | L93: 111475.7851 | M93: 8616.715758 | N93: 219.8893691 | O93: 8836.605127 | P93: =M93*IFERROR(VLOOKUP($A93,UVR!$A:$B,2,0),CALCULADORA!$C$23) -> 3092131.715 | Q93: =N93*IFERROR(VLOOKUP($A93,UVR!$A:$B,2,0),CALCULADORA!$C$23) -> 78907.89381 | R93: =O93*IFERROR(VLOOKUP($A93,UVR!$A:$B,2,0),CALCULADORA!$C$23) -> 3171039.609
A94: 2027-04-15 | B94: =IF(DIAS365(CALCULADORA!$C$30,A94)<0,0,DIAS365(CALCULADORA!$C$30,A94)) -> 1158 | C94: =+HLOOKUP(CALCULADORA!$C$11,Tablas!$B$1:$B$181,Flujos!J94+1,FALSE) -> 0.00421039 | D94: 5.152753 | E94: 0.421039 | F94: =ROUND(D93*ROUND(((1+CALCULADORA!$C$19)^(1/12)-1),6),6) -> 0.010206 | G94: 0.431245 | H94: =IF($B94=0,0,G94/POWER(1+CALCULADORA!$C$32,Flujos!$B94/365)) -> 0.3812537251 | I94: 2027-04-15 | J94: 92 | K94: 2798 | L94: 103055.0093 | M94: 8420.775855 | N94: 204.1121626 | O94: 8624.888017 | P94: =M94*IFERROR(VLOOKUP($A94,UVR!$A:$B,2,0),CALCULADORA!$C$23) -> 3021818.152 | Q94: =N94*IFERROR(VLOOKUP($A94,UVR!$A:$B,2,0),CALCULADORA!$C$23) -> 73246.20064 | R94: =O94*IFERROR(VLOOKUP($A94,UVR!$A:$B,2,0),CALCULADORA!$C$23) -> 3095064.352
A95: 2027-05-15 | B95: =IF(DIAS365(CALCULADORA!$C$30,A95)<0,0,DIAS365(CALCULADORA!$C$30,A95)) -> 1188 | C95: =+HLOOKUP(CALCULADORA!$C$11,Tablas!$B$1:$B$181,Flujos!J95+1,FALSE) -> 0.00411634 | D95: 4.741119 | E95: 0.411634 | F95: =ROUND(D94*ROUND(((1+CALCULADORA!$C$19)^(1/12)-1),6),6) -> 0.009435 | G95: 0.421069 | H95: =IF($B95=0,0,G95/POWER(1+CALCULADORA!$C$32,Flujos!$B95/365)) -> 0.3710710072 | I95: 2027-05-15 | J95: 93 | K95: 2828 | L95: 94822.33332 | M95: 8232.675947 | N95: 188.693722 | O95: 8421.369669 | P95: =M95*IFERROR(VLOOKUP($A95,UVR!$A:$B,2,0),CALCULADORA!$C$23) -> 2954317.992 | Q95: =N95*IFERROR(VLOOKUP($A95,UVR!$A:$B,2,0),CALCULADORA!$C$23) -> 67713.2516 | R95: =O95*IFERROR(VLOOKUP($A95,UVR!$A:$B,2,0),CALCULADORA!$C$23) -> 3022031.243
A96: 2027-06-15 | B96: =IF(DIAS365(CALCULADORA!$C$30,A96)<0,0,DIAS365(CALCULADORA!$C$30,A96)) -> 1219 | C96: =+HLOOKUP(CALCULADORA!$C$11,Tablas!$B$1:$B$181,Flujos!J96+1,FALSE) -> 0.00402093 | D96: 4.339026 | E96: 0.402093 | F96: =ROUND(D95*ROUND(((1+CALCULADORA!$C$19)^(1/12)-1),6),6) -> 0.008681 | G96: 0.410774 | H96: =IF($B96=0,0,G96/POWER(1+CALCULADORA!$C$32,Flujos!$B96/365)) -> 0.3608063925 | I96: 2027-06-15 | J96: 94 | K96: 2859 | L96: 86780.47728 | M96: 8041.856041 | N96: 173.6196923 | O96: 8215.475733 | P96: =M96*IFERROR(VLOOKUP($A96,UVR!$A:$B,2,0),CALCULADORA!$C$23) -> 2885841.753 | Q96: =N96*IFERROR(VLOOKUP($A96,UVR!$A:$B,2,0),CALCULADORA!$C$23) -> 62303.89536 | R96: =O96*IFERROR(VLOOKUP($A96,UVR!$A:$B,2,0),CALCULADORA!$C$23) -> 2948145.649
A97: 2027-07-15 | B97: =IF(DIAS365(CALCULADORA!$C$30,A97)<0,0,DIAS365(CALCULADORA!$C$30,A97)) -> 1249 | C97: =+HLOOKUP(CALCULADORA!$C$11,Tablas!$B$1:$B$181,Flujos!J97+1,FALSE) -> 0.0039283 | D97: 3.946196 | E97: 0.39283 | F97: =ROUND(D96*ROUND(((1+CALCULADORA!$C$19)^(1/12)-1),6),6) -> 0.007945 | G97: 0.400775 | H97: =IF($B97=0,0,G97/POWER(1+CALCULADORA!$C$32,Flujos!$B97/365)) -> 0.3509018277 | I97: 2027-07-15 | J97: 95 | K97: 2889 | L97: 78923.88115 | M97: 7856.596132 | N97: 158.8950539 | O97: 8015.491186 | P97: =M97*IFERROR(VLOOKUP($A97,UVR!$A:$B,2,0),CALCULADORA!$C$23) -> 2819360.735 | Q97: =N97*IFERROR(VLOOKUP($A97,UVR!$A:$B,2,0),CALCULADORA!$C$23) -> 57019.91911 | R97: =O97*IFERROR(VLOOKUP($A97,UVR!$A:$B,2,0),CALCULADORA!$C$23) -> 2876380.654
A98: 2027-08-15 | B98: =IF(DIAS365(CALCULADORA!$C$30,A98)<0,0,DIAS365(CALCULADORA!$C$30,A98)) -> 1280 | C98: =+HLOOKUP(CALCULADORA!$C$11,Tablas!$B$1:$B$181,Flujos!J98+1,FALSE) -> 0.00383195 | D98: 3.563001 | E98: 0.383195 | F98: =ROUND(D97*ROUND(((1+CALCULADORA!$C$19)^(1/12)-1),6),6) -> 0.007225 | G98: 0.39042 | H98: =IF($B98=0,0,G98/POWER(1+CALCULADORA!$C$32,Flujos!$B98/365)) -> 0.3407097696 | I98: 2027-08-15 | J98: 96 | K98: 2920 | L98: 71259.98492 | M98: 7663.896227 | N98: 144.5096264 | O98: 7808.405854 | P98: =M98*IFERROR(VLOOKUP($A98,UVR!$A:$B,2,0),CALCULADORA!$C$23) -> 2750209.854 | Q98: =N98*IFERROR(VLOOKUP($A98,UVR!$A:$B,2,0),CALCULADORA!$C$23) -> 51857.6696 | R98: =O98*IFERROR(VLOOKUP($A98,UVR!$A:$B,2,0),CALCULADORA!$C$23) -> 2802067.523
A99: =EDATE(A98,1) -> 2027-09-15 | B99: =IF(DIAS365(CALCULADORA!$C$30,A99)<0,0,DIAS365(CALCULADORA!$C$30,A99)) -> 1311 | C99: =+HLOOKUP(CALCULADORA!$C$11,Tablas!$B$1:$B$181,Flujos!J99+1,FALSE) -> 0.0034373 | D99: 3.219271 | E99: 0.34373 | F99: =ROUND(D98*ROUND(((1+CALCULADORA!$C$19)^(1/12)-1),6),6) -> 0.006524 | G99: 0.350254 | H99: =IF($B99=0,0,G99/POWER(1+CALCULADORA!$C$32,Flujos!$B99/365)) -> 0.3046513842 | I99: 2027-09-15 | J99: 97 | K99: 2951 | L99: 64385.3883 | M99: 6874.596616 | N99: 130.4770324 | O99: 7005.073648 | P99: =M99*IFERROR(VLOOKUP($A99,UVR!$A:$B,2,0),CALCULADORA!$C$23) -> 2466967.557 | Q99: =N99*IFERROR(VLOOKUP($A99,UVR!$A:$B,2,0),CALCULADORA!$C$23) -> 46822.03536 | R99: =O99*IFERROR(VLOOKUP($A99,UVR!$A:$B,2,0),CALCULADORA!$C$23) -> 2513789.592
A100: 2027-10-15 | B100: =IF(DIAS365(CALCULADORA!$C$30,A100)<0,0,DIAS365(CALCULADORA!$C$30,A100)) -> 1341 | C100: =+HLOOKUP(CALCULADORA!$C$11,Tablas!$B$1:$B$181,Flujos!J100+1,FALSE) -> 0.00365833 | D100: 2.853438 | E100: 0.365833 | F100: =ROUND(D99*ROUND(((1+CALCULADORA!$C$19)^(1/12)-1),6),6) -> 0.005894 | G100: 0.371727 | H100: =IF($B100=0,0,G100/POWER(1+CALCULADORA!$C$32,Flujos!$B100/365)) -> 0.3222982073 | I100: 2027-10-15 | J100: 98 | K100: 2981 | L100: 57068.73191 | M100: 7316.656398 | N100: 117.889646 | O100: 7434.546044 | P100: =M100*IFERROR(VLOOKUP($A100,UVR!$A:$B,2,0),CALCULADORA!$C$23) -> 2625601.903 | Q100: =N100*IFERROR(VLOOKUP($A100,UVR!$A:$B,2,0),CALCULADORA!$C$23) -> 42305.01776 | R100: =O100*IFERROR(VLOOKUP($A100,UVR!$A:$B,2,0),CALCULADORA!$C$23) -> 2667906.921
A101: 2027-11-15 | B101: =IF(DIAS365(CALCULADORA!$C$30,A101)<0,0,DIAS365(CALCULADORA!$C$30,A101)) -> 1372 | C101: =+HLOOKUP(CALCULADORA!$C$11,Tablas!$B$1:$B$181,Flujos!J101+1,FALSE) -> 0.00357457 | D101: 2.495981 | E101: 0.357457 | F101: =ROUND(D100*ROUND(((1+CALCULADORA!$C$19)^(1/12)-1),6),6) -> 0.005225 | G101: 0.362682 | H101: =IF($B101=0,0,G101/POWER(1+CALCULADORA!$C$32,Flujos!$B101/365)) -> 0.3134204337 | I101: 2027-11-15 | J101: 99 | K101: 3012 | L101: 49919.59543 | M101: 7149.136481 | N101: 104.4928481 | O101: 7253.629329 | P101: =M101*IFERROR(VLOOKUP($A101,UVR!$A:$B,2,0),CALCULADORA!$C$23) -> 2565486.929 | Q101: =N101*IFERROR(VLOOKUP($A101,UVR!$A:$B,2,0),CALCULADORA!$C$23) -> 37497.54068 | R101: =O101*IFERROR(VLOOKUP($A101,UVR!$A:$B,2,0),CALCULADORA!$C$23) -> 2602984.469
A102: 2027-12-15 | B102: =IF(DIAS365(CALCULADORA!$C$30,A102)<0,0,DIAS365(CALCULADORA!$C$30,A102)) -> 1402 | C102: =+HLOOKUP(CALCULADORA!$C$11,Tablas!$B$1:$B$181,Flujos!J102+1,FALSE) -> 0.00349805 | D102: 2.146176 | E102: 0.349805 | F102: =ROUND(D101*ROUND(((1+CALCULADORA!$C$19)^(1/12)-1),6),6) -> 0.00457 | G102: 0.354375 | H102: =IF($B102=0,0,G102/POWER(1+CALCULADORA!$C$32,Flujos!$B102/365)) -> 0.3052657727 | I102: 2027-12-15 | J102: 100 | K102: 3042 | L102: 42923.49887 | M102: 6996.096556 | N102: 91.40277922 | O102: 7087.499335 | P102: =M102*IFERROR(VLOOKUP($A102,UVR!$A:$B,2,0),CALCULADORA!$C$23) -> 2510568.139 | Q102: =N102*IFERROR(VLOOKUP($A102,UVR!$A:$B,2,0),CALCULADORA!$C$23) -> 32800.13411 | R102: =O102*IFERROR(VLOOKUP($A102,UVR!$A:$B,2,0),CALCULADORA!$C$23) -> 2543368.273
A103: 2028-01-15 | B103: =IF(DIAS365(CALCULADORA!$C$30,A103)<0,0,DIAS365(CALCULADORA!$C$30,A103)) -> 1433 | C103: =+HLOOKUP(CALCULADORA!$C$11,Tablas!$B$1:$B$181,Flujos!J103+1,FALSE) -> 0.00341882 | D103: 1.804294 | E103: 0.341882 | F103: =ROUND(D102*ROUND(((1+CALCULADORA!$C$19)^(1/12)-1),6),6) -> 0.00393 | G103: 0.345812 | H103: =IF($B103=0,0,G103/POWER(1+CALCULADORA!$C$32,Flujos!$B103/365)) -> 0.2969084914 | I103: 2028-01-15 | J103: 101 | K103: 3073 | L103: 36085.86224 | M103: 6837.636634 | N103: 78.59292643 | O103: 6916.22956 | P103: =M103*IFERROR(VLOOKUP($A103,UVR!$A:$B,2,0),CALCULADORA!$C$23) -> 2453704.368 | Q103: =N103*IFERROR(VLOOKUP($A103,UVR!$A:$B,2,0),CALCULADORA!$C$23) -> 28203.28385 | R103: =O103*IFERROR(VLOOKUP($A103,UVR!$A:$B,2,0),CALCULADORA!$C$23) -> 2481907.652
A104: 2028-02-15 | B104: =IF(DIAS365(CALCULADORA!$C$30,A104)<0,0,DIAS365(CALCULADORA!$C$30,A104)) -> 1464 | C104: =+HLOOKUP(CALCULADORA!$C$11,Tablas!$B$1:$B$181,Flujos!J104+1,FALSE) -> 0.0033451 | D104: 1.469784 | E104: 0.33451 | F104: =ROUND(D103*ROUND(((1+CALCULADORA!$C$19)^(1/12)-1),6),6) -> 0.003304 | G104: 0.337814 | H104: =IF($B104=0,0,G104/POWER(1+CALCULADORA!$C$32,Flujos!$B104/365)) -> 0.2890864426 | I104: 2028-02-15 | J104: 102 | K104: 3104 | L104: 29395.66553 | M104: 6690.196707 | N104: 66.07321375 | O104: 6756.26992 | P104: =M104*IFERROR(VLOOKUP($A104,UVR!$A:$B,2,0),CALCULADORA!$C$23) -> 2400795.152 | Q104: =N104*IFERROR(VLOOKUP($A104,UVR!$A:$B,2,0),CALCULADORA!$C$23) -> 23710.55115 | R104: =O104*IFERROR(VLOOKUP($A104,UVR!$A:$B,2,0),CALCULADORA!$C$23) -> 2424505.703
A105: 2028-03-15 | B105: =IF(DIAS365(CALCULADORA!$C$30,A105)<0,0,DIAS365(CALCULADORA!$C$30,A105)) -> 1492 | C105: =+HLOOKUP(CALCULADORA!$C$11,Tablas!$B$1:$B$181,Flujos!J105+1,FALSE) -> 0.00327351 | D105: 1.142433 | E105: 0.327351 | F105: =ROUND(D104*ROUND(((1+CALCULADORA!$C$19)^(1/12)-1),6),6) -> 0.002691 | G105: 0.330042 | H105: =IF($B105=0,0,G105/POWER(1+CALCULADORA!$C$32,Flujos!$B105/365)) -> 0.2815953248 | I105: 2028-03-15 | J105: 103 | K105: 3132 | L105: 22848.64875 | M105: 6547.016777 | N105: 53.82346358 | O105: 6600.840241 | P105: =M105*IFERROR(VLOOKUP($A105,UVR!$A:$B,2,0),CALCULADORA!$C$23) -> 2349414.647 | Q105: =N105*IFERROR(VLOOKUP($A105,UVR!$A:$B,2,0),CALCULADORA!$C$23) -> 19314.69523 | R105: =O105*IFERROR(VLOOKUP($A105,UVR!$A:$B,2,0),CALCULADORA!$C$23) -> 2368729.343
A106: 2028-04-15 | B106: =IF(DIAS365(CALCULADORA!$C$30,A106)<0,0,DIAS365(CALCULADORA!$C$30,A106)) -> 1523 | C106: =+HLOOKUP(CALCULADORA!$C$11,Tablas!$B$1:$B$181,Flujos!J106+1,FALSE) -> 0.00320267 | D106: 0.822166 | E106: 0.320267 | F106: =ROUND(D105*ROUND(((1+CALCULADORA!$C$19)^(1/12)-1),6),6) -> 0.002092 | G106: 0.322359 | H106: =IF($B106=0,0,G106/POWER(1+CALCULADORA!$C$32,Flujos!$B106/365)) -> 0.2741344096 | I106: 2028-04-15 | J106: 104 | K106: 3163 | L106: 16443.31191 | M106: 6405.336847 | N106: 41.83587587 | O106: 6447.172723 | P106: =M106*IFERROR(VLOOKUP($A106,UVR!$A:$B,2,0),CALCULADORA!$C$23) -> 2298572.422 | Q106: =N106*IFERROR(VLOOKUP($A106,UVR!$A:$B,2,0),CALCULADORA!$C$23) -> 15012.91701 | R106: =O106*IFERROR(VLOOKUP($A106,UVR!$A:$B,2,0),CALCULADORA!$C$23) -> 2313585.339
A107: 2028-05-15 | B107: =IF(DIAS365(CALCULADORA!$C$30,A107)<0,0,DIAS365(CALCULADORA!$C$30,A107)) -> 1553 | C107: =+HLOOKUP(CALCULADORA!$C$11,Tablas!$B$1:$B$181,Flujos!J107+1,FALSE) -> 0.00313292 | D107: 0.508874 | E107: 0.313292 | F107: =ROUND(D106*ROUND(((1+CALCULADORA!$C$19)^(1/12)-1),6),6) -> 0.001505 | G107: 0.314797 | H107: =IF($B107=0,0,G107/POWER(1+CALCULADORA!$C$32,Flujos!$B107/365)) -> 0.2668505291 | I107: 2028-05-15 | J107: 105 | K107: 3193 | L107: 10177.47499 | M107: 6265.836915 | N107: 30.1077041 | O107: 6295.94462 | P107: =M107*IFERROR(VLOOKUP($A107,UVR!$A:$B,2,0),CALCULADORA!$C$23) -> 2248512.495 | Q107: =N107*IFERROR(VLOOKUP($A107,UVR!$A:$B,2,0),CALCULADORA!$C$23) -> 10804.23091 | R107: =O107*IFERROR(VLOOKUP($A107,UVR!$A:$B,2,0),CALCULADORA!$C$23) -> 2259316.726
A108: 2028-06-15 | B108: =IF(DIAS365(CALCULADORA!$C$30,A108)<0,0,DIAS365(CALCULADORA!$C$30,A108)) -> 1584 | C108: =+HLOOKUP(CALCULADORA!$C$11,Tablas!$B$1:$B$181,Flujos!J108+1,FALSE) -> 0.00306289 | D108: 0.202585 | E108: 0.306289 | F108: =ROUND(D107*ROUND(((1+CALCULADORA!$C$19)^(1/12)-1),6),6) -> 0.000932 | G108: 0.307221 | H108: =IF($B108=0,0,G108/POWER(1+CALCULADORA!$C$32,Flujos!$B108/365)) -> 0.2595708408 | I108: 2028-06-15 | J108: 106 | K108: 3224 | L108: 4051.698005 | M108: 6125.776984 | N108: 18.63495671 | O108: 6144.411941 | P108: =M108*IFERROR(VLOOKUP($A108,UVR!$A:$B,2,0),CALCULADORA!$C$23) -> 2198251.61 | Q108: =N108*IFERROR(VLOOKUP($A108,UVR!$A:$B,2,0),CALCULADORA!$C$23) -> 6687.204528 | R108: =O108*IFERROR(VLOOKUP($A108,UVR!$A:$B,2,0),CALCULADORA!$C$23) -> 2204938.815
A109: 2028-07-15 | B109: =IF(DIAS365(CALCULADORA!$C$30,A109)<0,0,DIAS365(CALCULADORA!$C$30,A109)) -> 1614 | C109: =+HLOOKUP(CALCULADORA!$C$11,Tablas!$B$1:$B$181,Flujos!J109+1,FALSE) -> 0.0011565 | D109: 0.086935 | E109: 0.11565 | F109: =ROUND(D108*ROUND(((1+CALCULADORA!$C$19)^(1/12)-1),6),6) -> 0.000371 | G109: 0.116021 | H109: =IF($B109=0,0,G109/POWER(1+CALCULADORA!$C$32,Flujos!$B109/365)) -> 0.09771367358 | I109: 2028-07-15 | J109: 107 | K109: 3254 | L109: 1738.699144 | M109: 2312.998861 | N109: 7.418659048 | O109: 2320.41752 | P109: =M109*IFERROR(VLOOKUP($A109,UVR!$A:$B,2,0),CALCULADORA!$C$23) -> 830025.8865 | Q109: =N109*IFERROR(VLOOKUP($A109,UVR!$A:$B,2,0),CALCULADORA!$C$23) -> 2662.20583 | R109: =O109*IFERROR(VLOOKUP($A109,UVR!$A:$B,2,0),CALCULADORA!$C$23) -> 832688.0923
A110: 2028-08-15 | B110: =IF(DIAS365(CALCULADORA!$C$30,A110)<0,0,DIAS365(CALCULADORA!$C$30,A110)) -> 1645 | C110: =+HLOOKUP(CALCULADORA!$C$11,Tablas!$B$1:$B$181,Flujos!J110+1,FALSE) -> 0.00086935 | D110: 0 | E110: 0.086935 | F110: =ROUND(D109*ROUND(((1+CALCULADORA!$C$19)^(1/12)-1),6),6) -> 0.000159 | G110: 0.087094 | H110: =IF($B110=0,0,G110/POWER(1+CALCULADORA!$C$32,Flujos!$B110/365)) -> 0.07310961483 | I110: 2028-08-15 | J110: 108 | K110: 3285 | L110: 7.139533409e-11 | M110: 1738.699144 | N110: 3.183558133 | O110: 1741.882702 | P110: =M110*IFERROR(VLOOKUP($A110,UVR!$A:$B,2,0),CALCULADORA!$C$23) -> 623936.8823 | Q110: =N110*IFERROR(VLOOKUP($A110,UVR!$A:$B,2,0),CALCULADORA!$C$23) -> 1142.428432 | R110: =O110*IFERROR(VLOOKUP($A110,UVR!$A:$B,2,0),CALCULADORA!$C$23) -> 625079.3108
A111: 2028-09-15 | B111: =IF(DIAS365(CALCULADORA!$C$30,A111)<0,0,DIAS365(CALCULADORA!$C$30,A111)) -> 1676 | C111: =+HLOOKUP(CALCULADORA!$C$11,Tablas!$B$1:$B$181,Flujos!J111+1,FALSE) -> 0 | D111: 0 | E111: 0 | F111: =ROUND(D110*ROUND(((1+CALCULADORA!$C$19)^(1/12)-1),6),6) -> 0 | G111: 0 | H111: =IF($B111=0,0,G111/POWER(1+CALCULADORA!$C$32,Flujos!$B111/365)) -> 0 | I111: 2028-09-15 | J111: 109 | K111: 3316 | L111: 7.139533409e-11 | M111: 0 | N111: 1.307248567e-13 | O111: 1.307248567e-13 | P111: =M111*IFERROR(VLOOKUP($A111,UVR!$A:$B,2,0),CALCULADORA!$C$23) -> 0 | Q111: =N111*IFERROR(VLOOKUP($A111,UVR!$A:$B,2,0),CALCULADORA!$C$23) -> 4.691096779e-11 | R111: =O111*IFERROR(VLOOKUP($A111,UVR!$A:$B,2,0),CALCULADORA!$C$23) -> 4.691096779e-11
A112: 2028-10-15 | B112: =IF(DIAS365(CALCULADORA!$C$30,A112)<0,0,DIAS365(CALCULADORA!$C$30,A112)) -> 1706 | C112: =+HLOOKUP(CALCULADORA!$C$11,Tablas!$B$1:$B$181,Flujos!J112+1,FALSE) -> 0 | D112: 0 | E112: 0 | F112: =ROUND(D111*ROUND(((1+CALCULADORA!$C$19)^(1/12)-1),6),6) -> 0 | G112: 0 | H112: =IF($B112=0,0,G112/POWER(1+CALCULADORA!$C$32,Flujos!$B112/365)) -> 0 | I112: 2028-10-15 | J112: 110 | K112: 3346 | L112: 7.139533409e-11 | M112: 0 | N112: 1.307248567e-13 | O112: 1.307248567e-13 | P112: =M112*IFERROR(VLOOKUP($A112,UVR!$A:$B,2,0),CALCULADORA!$C$23) -> 0 | Q112: =N112*IFERROR(VLOOKUP($A112,UVR!$A:$B,2,0),CALCULADORA!$C$23) -> 4.691096779e-11 | R112: =O112*IFERROR(VLOOKUP($A112,UVR!$A:$B,2,0),CALCULADORA!$C$23) -> 4.691096779e-11
A113: 2028-11-15 | B113: =IF(DIAS365(CALCULADORA!$C$30,A113)<0,0,DIAS365(CALCULADORA!$C$30,A113)) -> 1737 | C113: =+HLOOKUP(CALCULADORA!$C$11,Tablas!$B$1:$B$181,Flujos!J113+1,FALSE) -> 0 | D113: 0 | E113: 0 | F113: =ROUND(D112*ROUND(((1+CALCULADORA!$C$19)^(1/12)-1),6),6) -> 0 | G113: 0 | H113: =IF($B113=0,0,G113/POWER(1+CALCULADORA!$C$32,Flujos!$B113/365)) -> 0 | I113: 2028-11-15 | J113: 111 | K113: 3377 | L113: 7.139533409e-11 | M113: 0 | N113: 1.307248567e-13 | O113: 1.307248567e-13 | P113: =M113*IFERROR(VLOOKUP($A113,UVR!$A:$B,2,0),CALCULADORA!$C$23) -> 0 | Q113: =N113*IFERROR(VLOOKUP($A113,UVR!$A:$B,2,0),CALCULADORA!$C$23) -> 4.691096779e-11 | R113: =O113*IFERROR(VLOOKUP($A113,UVR!$A:$B,2,0),CALCULADORA!$C$23) -> 4.691096779e-11
A114: 2028-12-15 | B114: =IF(DIAS365(CALCULADORA!$C$30,A114)<0,0,DIAS365(CALCULADORA!$C$30,A114)) -> 1767 | C114: =+HLOOKUP(CALCULADORA!$C$11,Tablas!$B$1:$B$181,Flujos!J114+1,FALSE) -> 0 | D114: 0 | E114: 0 | F114: =ROUND(D113*ROUND(((1+CALCULADORA!$C$19)^(1/12)-1),6),6) -> 0 | G114: 0 | H114: =IF($B114=0,0,G114/POWER(1+CALCULADORA!$C$32,Flujos!$B114/365)) -> 0 | I114: 2028-12-15 | J114: 112 | K114: 3407 | L114: 7.139533409e-11 | M114: 0 | N114: 1.307248567e-13 | O114: 1.307248567e-13 | P114: =M114*IFERROR(VLOOKUP($A114,UVR!$A:$B,2,0),CALCULADORA!$C$23) -> 0 | Q114: =N114*IFERROR(VLOOKUP($A114,UVR!$A:$B,2,0),CALCULADORA!$C$23) -> 4.691096779e-11 | R114: =O114*IFERROR(VLOOKUP($A114,UVR!$A:$B,2,0),CALCULADORA!$C$23) -> 4.691096779e-11
A115: 2029-01-15 | B115: =IF(DIAS365(CALCULADORA!$C$30,A115)<0,0,DIAS365(CALCULADORA!$C$30,A115)) -> 1798 | C115: =+HLOOKUP(CALCULADORA!$C$11,Tablas!$B$1:$B$181,Flujos!J115+1,FALSE) -> 0 | D115: 0 | E115: 0 | F115: =ROUND(D114*ROUND(((1+CALCULADORA!$C$19)^(1/12)-1),6),6) -> 0 | G115: 0 | H115: =IF($B115=0,0,G115/POWER(1+CALCULADORA!$C$32,Flujos!$B115/365)) -> 0 | I115: 2029-01-15 | J115: 113 | K115: 3438 | L115: 7.139533409e-11 | M115: 0 | N115: 1.307248567e-13 | O115: 1.307248567e-13 | P115: =M115*IFERROR(VLOOKUP($A115,UVR!$A:$B,2,0),CALCULADORA!$C$23) -> 0 | Q115: =N115*IFERROR(VLOOKUP($A115,UVR!$A:$B,2,0),CALCULADORA!$C$23) -> 4.691096779e-11 | R115: =O115*IFERROR(VLOOKUP($A115,UVR!$A:$B,2,0),CALCULADORA!$C$23) -> 4.691096779e-11
A116: 2029-02-15 | B116: =IF(DIAS365(CALCULADORA!$C$30,A116)<0,0,DIAS365(CALCULADORA!$C$30,A116)) -> 1829 | C116: =+HLOOKUP(CALCULADORA!$C$11,Tablas!$B$1:$B$181,Flujos!J116+1,FALSE) -> 0 | D116: 0 | E116: 0 | F116: =ROUND(D115*ROUND(((1+CALCULADORA!$C$19)^(1/12)-1),6),6) -> 0 | G116: 0 | H116: =IF($B116=0,0,G116/POWER(1+CALCULADORA!$C$32,Flujos!$B116/365)) -> 0 | I116: 2029-02-15 | J116: 114 | K116: 3469 | L116: 7.139533409e-11 | M116: 0 | N116: 1.307248567e-13 | O116: 1.307248567e-13 | P116: =M116*IFERROR(VLOOKUP($A116,UVR!$A:$B,2,0),CALCULADORA!$C$23) -> 0 | Q116: =N116*IFERROR(VLOOKUP($A116,UVR!$A:$B,2,0),CALCULADORA!$C$23) -> 4.691096779e-11 | R116: =O116*IFERROR(VLOOKUP($A116,UVR!$A:$B,2,0),CALCULADORA!$C$23) -> 4.691096779e-11
A117: 2029-03-15 | B117: =IF(DIAS365(CALCULADORA!$C$30,A117)<0,0,DIAS365(CALCULADORA!$C$30,A117)) -> 1857 | C117: =+HLOOKUP(CALCULADORA!$C$11,Tablas!$B$1:$B$181,Flujos!J117+1,FALSE) -> 0 | D117: 0 | E117: 0 | F117: =ROUND(D116*ROUND(((1+CALCULADORA!$C$19)^(1/12)-1),6),6) -> 0 | G117: 0 | H117: =IF($B117=0,0,G117/POWER(1+CALCULADORA!$C$32,Flujos!$B117/365)) -> 0 | I117: 2029-03-15 | J117: 115 | K117: 3497 | L117: 7.139533409e-11 | M117: 0 | N117: 1.307248567e-13 | O117: 1.307248567e-13 | P117: =M117*IFERROR(VLOOKUP($A117,UVR!$A:$B,2,0),CALCULADORA!$C$23) -> 0 | Q117: =N117*IFERROR(VLOOKUP($A117,UVR!$A:$B,2,0),CALCULADORA!$C$23) -> 4.691096779e-11 | R117: =O117*IFERROR(VLOOKUP($A117,UVR!$A:$B,2,0),CALCULADORA!$C$23) -> 4.691096779e-11
A118: 2029-04-15 | B118: =IF(DIAS365(CALCULADORA!$C$30,A118)<0,0,DIAS365(CALCULADORA!$C$30,A118)) -> 1888 | C118: =+HLOOKUP(CALCULADORA!$C$11,Tablas!$B$1:$B$181,Flujos!J118+1,FALSE) -> 0 | D118: 0 | E118: 0 | F118: =ROUND(D117*ROUND(((1+CALCULADORA!$C$19)^(1/12)-1),6),6) -> 0 | G118: 0 | H118: =IF($B118=0,0,G118/POWER(1+CALCULADORA!$C$32,Flujos!$B118/365)) -> 0 | I118: 2029-04-15 | J118: 116 | K118: 3528 | L118: 7.139533409e-11 | M118: 0 | N118: 1.307248567e-13 | O118: 1.307248567e-13 | P118: =M118*IFERROR(VLOOKUP($A118,UVR!$A:$B,2,0),CALCULADORA!$C$23) -> 0 | Q118: =N118*IFERROR(VLOOKUP($A118,UVR!$A:$B,2,0),CALCULADORA!$C$23) -> 4.691096779e-11 | R118: =O118*IFERROR(VLOOKUP($A118,UVR!$A:$B,2,0),CALCULADORA!$C$23) -> 4.691096779e-11
A119: 2029-05-15 | B119: =IF(DIAS365(CALCULADORA!$C$30,A119)<0,0,DIAS365(CALCULADORA!$C$30,A119)) -> 1918 | C119: =+HLOOKUP(CALCULADORA!$C$11,Tablas!$B$1:$B$181,Flujos!J119+1,FALSE) -> 0 | D119: 0 | E119: 0 | F119: =ROUND(D118*ROUND(((1+CALCULADORA!$C$19)^(1/12)-1),6),6) -> 0 | G119: 0 | H119: =IF($B119=0,0,G119/POWER(1+CALCULADORA!$C$32,Flujos!$B119/365)) -> 0 | I119: =+A119 -> 2029-05-15 | J119: 117 | K119: 3558 | L119: 7.139533409e-11 | M119: 0 | N119: 1.307248567e-13 | O119: 1.307248567e-13 | P119: =M119*IFERROR(VLOOKUP($A119,UVR!$A:$B,2,0),CALCULADORA!$C$23) -> 0 | Q119: =N119*IFERROR(VLOOKUP($A119,UVR!$A:$B,2,0),CALCULADORA!$C$23) -> 4.691096779e-11 | R119: =O119*IFERROR(VLOOKUP($A119,UVR!$A:$B,2,0),CALCULADORA!$C$23) -> 4.691096779e-11
A120: 2029-06-15 | B120: =IF(DIAS365(CALCULADORA!$C$30,A120)<0,0,DIAS365(CALCULADORA!$C$30,A120)) -> 1949 | C120: =+HLOOKUP(CALCULADORA!$C$11,Tablas!$B$1:$B$181,Flujos!J120+1,FALSE) -> 0 | D120: 0 | E120: 0 | F120: =ROUND(D119*ROUND(((1+CALCULADORA!$C$19)^(1/12)-1),6),6) -> 0 | G120: 0 | H120: =IF($B120=0,0,G120/POWER(1+CALCULADORA!$C$32,Flujos!$B120/365)) -> 0 | I120: =+A120 -> 2029-06-15 | J120: 118 | K120: 3589 | L120: 7.139533409e-11 | M120: 0 | N120: 1.307248567e-13 | O120: 1.307248567e-13 | P120: =M120*IFERROR(VLOOKUP($A120,UVR!$A:$B,2,0),CALCULADORA!$C$23) -> 0 | Q120: =N120*IFERROR(VLOOKUP($A120,UVR!$A:$B,2,0),CALCULADORA!$C$23) -> 4.691096779e-11 | R120: =O120*IFERROR(VLOOKUP($A120,UVR!$A:$B,2,0),CALCULADORA!$C$23) -> 4.691096779e-11
A121: 2029-07-15 | B121: =IF(DIAS365(CALCULADORA!$C$30,A121)<0,0,DIAS365(CALCULADORA!$C$30,A121)) -> 1979 | C121: =+HLOOKUP(CALCULADORA!$C$11,Tablas!$B$1:$B$181,Flujos!J121+1,FALSE) -> 0 | D121: 0 | E121: 0 | F121: =ROUND(D120*ROUND(((1+CALCULADORA!$C$19)^(1/12)-1),6),6) -> 0 | G121: 0 | H121: =IF($B121=0,0,G121/POWER(1+CALCULADORA!$C$32,Flujos!$B121/365)) -> 0 | I121: 2029-07-15 | J121: 119 | K121: 3619 | L121: 7.139533409e-11 | M121: 0 | N121: 1.307248567e-13 | O121: 1.307248567e-13 | P121: =M121*IFERROR(VLOOKUP($A121,UVR!$A:$B,2,0),CALCULADORA!$C$23) -> 0 | Q121: =N121*IFERROR(VLOOKUP($A121,UVR!$A:$B,2,0),CALCULADORA!$C$23) -> 4.691096779e-11 | R121: =O121*IFERROR(VLOOKUP($A121,UVR!$A:$B,2,0),CALCULADORA!$C$23) -> 4.691096779e-11
A122: 2029-08-15 | B122: =IF(DIAS365(CALCULADORA!$C$30,A122)<0,0,DIAS365(CALCULADORA!$C$30,A122)) -> 2010 | C122: =+HLOOKUP(CALCULADORA!$C$11,Tablas!$B$1:$B$181,Flujos!J122+1,FALSE) -> 0 | D122: 0 | E122: 0 | F122: =ROUND(D121*ROUND(((1+CALCULADORA!$C$19)^(1/12)-1),6),6) -> 0 | G122: 0 | H122: =IF($B122=0,0,G122/POWER(1+CALCULADORA!$C$32,Flujos!$B122/365)) -> 0 | I122: 2029-08-15 | J122: 120 | K122: 3650 | L122: 7.139533409e-11 | M122: 0 | N122: 1.307248567e-13 | O122: 1.307248567e-13 | P122: =M122*IFERROR(VLOOKUP($A122,UVR!$A:$B,2,0),CALCULADORA!$C$23) -> 0 | Q122: =N122*IFERROR(VLOOKUP($A122,UVR!$A:$B,2,0),CALCULADORA!$C$23) -> 4.691096779e-11 | R122: =O122*IFERROR(VLOOKUP($A122,UVR!$A:$B,2,0),CALCULADORA!$C$23) -> 4.691096779e-11
A123: 2029-09-15 | B123: =IF(DIAS365(CALCULADORA!$C$30,A123)<0,0,DIAS365(CALCULADORA!$C$30,A123)) -> 2041 | C123: =+HLOOKUP(CALCULADORA!$C$11,Tablas!$B$1:$B$181,Flujos!J123+1,FALSE) -> 0 | D123: 0 | E123: 0 | F123: =ROUND(D122*ROUND(((1+CALCULADORA!$C$19)^(1/12)-1),6),6) -> 0 | G123: 0 | H123: =IF($B123=0,0,G123/POWER(1+CALCULADORA!$C$32,Flujos!$B123/365)) -> 0 | I123: 2029-09-15 | J123: 121 | K123: 3681 | L123: 7.139533409e-11 | M123: 0 | N123: 1.307248567e-13 | O123: 1.307248567e-13 | P123: =M123*IFERROR(VLOOKUP($A123,UVR!$A:$B,2,0),CALCULADORA!$C$23) -> 0 | Q123: =N123*IFERROR(VLOOKUP($A123,UVR!$A:$B,2,0),CALCULADORA!$C$23) -> 4.691096779e-11 | R123: =O123*IFERROR(VLOOKUP($A123,UVR!$A:$B,2,0),CALCULADORA!$C$23) -> 4.691096779e-11
A124: 2029-10-15 | B124: =IF(DIAS365(CALCULADORA!$C$30,A124)<0,0,DIAS365(CALCULADORA!$C$30,A124)) -> 2071 | C124: =+HLOOKUP(CALCULADORA!$C$11,Tablas!$B$1:$B$181,Flujos!J124+1,FALSE) -> 0 | D124: 0 | E124: 0 | F124: =ROUND(D123*ROUND(((1+CALCULADORA!$C$19)^(1/12)-1),6),6) -> 0 | G124: 0 | H124: =IF($B124=0,0,G124/POWER(1+CALCULADORA!$C$32,Flujos!$B124/365)) -> 0 | I124: 2029-10-15 | J124: 122 | K124: 3711 | L124: 7.139533409e-11 | M124: 0 | N124: 1.307248567e-13 | O124: 1.307248567e-13 | P124: =M124*IFERROR(VLOOKUP($A124,UVR!$A:$B,2,0),CALCULADORA!$C$23) -> 0 | Q124: =N124*IFERROR(VLOOKUP($A124,UVR!$A:$B,2,0),CALCULADORA!$C$23) -> 4.691096779e-11 | R124: =O124*IFERROR(VLOOKUP($A124,UVR!$A:$B,2,0),CALCULADORA!$C$23) -> 4.691096779e-11
A125: 2029-11-15 | B125: =IF(DIAS365(CALCULADORA!$C$30,A125)<0,0,DIAS365(CALCULADORA!$C$30,A125)) -> 2102 | C125: =+HLOOKUP(CALCULADORA!$C$11,Tablas!$B$1:$B$181,Flujos!J125+1,FALSE) -> 0 | D125: 0 | E125: 0 | F125: =ROUND(D124*ROUND(((1+CALCULADORA!$C$19)^(1/12)-1),6),6) -> 0 | G125: 0 | H125: =IF($B125=0,0,G125/POWER(1+CALCULADORA!$C$32,Flujos!$B125/365)) -> 0 | I125: 2029-11-15 | J125: 123 | K125: 3742 | L125: 7.139533409e-11 | M125: 0 | N125: 1.307248567e-13 | O125: 1.307248567e-13 | P125: =M125*IFERROR(VLOOKUP($A125,UVR!$A:$B,2,0),CALCULADORA!$C$23) -> 0 | Q125: =N125*IFERROR(VLOOKUP($A125,UVR!$A:$B,2,0),CALCULADORA!$C$23) -> 4.691096779e-11 | R125: =O125*IFERROR(VLOOKUP($A125,UVR!$A:$B,2,0),CALCULADORA!$C$23) -> 4.691096779e-11
A126: 2029-12-15 | B126: =IF(DIAS365(CALCULADORA!$C$30,A126)<0,0,DIAS365(CALCULADORA!$C$30,A126)) -> 2132 | C126: =+HLOOKUP(CALCULADORA!$C$11,Tablas!$B$1:$B$181,Flujos!J126+1,FALSE) -> 0 | D126: 0 | E126: 0 | F126: =ROUND(D125*ROUND(((1+CALCULADORA!$C$19)^(1/12)-1),6),6) -> 0 | G126: 0 | H126: =IF($B126=0,0,G126/POWER(1+CALCULADORA!$C$32,Flujos!$B126/365)) -> 0 | I126: 2029-12-15 | J126: 124 | K126: 3772 | L126: 7.139533409e-11 | M126: 0 | N126: 1.307248567e-13 | O126: 1.307248567e-13 | P126: =M126*IFERROR(VLOOKUP($A126,UVR!$A:$B,2,0),CALCULADORA!$C$23) -> 0 | Q126: =N126*IFERROR(VLOOKUP($A126,UVR!$A:$B,2,0),CALCULADORA!$C$23) -> 4.691096779e-11 | R126: =O126*IFERROR(VLOOKUP($A126,UVR!$A:$B,2,0),CALCULADORA!$C$23) -> 4.691096779e-11
A127: 2030-01-15 | B127: =IF(DIAS365(CALCULADORA!$C$30,A127)<0,0,DIAS365(CALCULADORA!$C$30,A127)) -> 2163 | C127: =+HLOOKUP(CALCULADORA!$C$11,Tablas!$B$1:$B$181,Flujos!J127+1,FALSE) -> 0 | D127: 0 | E127: 0 | F127: =ROUND(D126*ROUND(((1+CALCULADORA!$C$19)^(1/12)-1),6),6) -> 0 | G127: 0 | H127: =IF($B127=0,0,G127/POWER(1+CALCULADORA!$C$32,Flujos!$B127/365)) -> 0 | I127: 2030-01-15 | J127: 125 | K127: 3803 | L127: 7.139533409e-11 | M127: 0 | N127: 1.307248567e-13 | O127: 1.307248567e-13 | P127: =M127*IFERROR(VLOOKUP($A127,UVR!$A:$B,2,0),CALCULADORA!$C$23) -> 0 | Q127: =N127*IFERROR(VLOOKUP($A127,UVR!$A:$B,2,0),CALCULADORA!$C$23) -> 4.691096779e-11 | R127: =O127*IFERROR(VLOOKUP($A127,UVR!$A:$B,2,0),CALCULADORA!$C$23) -> 4.691096779e-11
A128: 2030-02-15 | B128: =IF(DIAS365(CALCULADORA!$C$30,A128)<0,0,DIAS365(CALCULADORA!$C$30,A128)) -> 2194 | C128: =+HLOOKUP(CALCULADORA!$C$11,Tablas!$B$1:$B$181,Flujos!J128+1,FALSE) -> 0 | D128: 0 | E128: 0 | F128: =ROUND(D127*ROUND(((1+CALCULADORA!$C$19)^(1/12)-1),6),6) -> 0 | G128: 0 | H128: =IF($B128=0,0,G128/POWER(1+CALCULADORA!$C$32,Flujos!$B128/365)) -> 0 | I128: 2030-02-15 | J128: 126 | K128: 3834 | L128: 7.139533409e-11 | M128: 0 | N128: 1.307248567e-13 | O128: 1.307248567e-13 | P128: =M128*IFERROR(VLOOKUP($A128,UVR!$A:$B,2,0),CALCULADORA!$C$23) -> 0 | Q128: =N128*IFERROR(VLOOKUP($A128,UVR!$A:$B,2,0),CALCULADORA!$C$23) -> 4.691096779e-11 | R128: =O128*IFERROR(VLOOKUP($A128,UVR!$A:$B,2,0),CALCULADORA!$C$23) -> 4.691096779e-11
A129: 2030-03-15 | B129: =IF(DIAS365(CALCULADORA!$C$30,A129)<0,0,DIAS365(CALCULADORA!$C$30,A129)) -> 2222 | C129: =+HLOOKUP(CALCULADORA!$C$11,Tablas!$B$1:$B$181,Flujos!J129+1,FALSE) -> 0 | D129: 0 | E129: 0 | F129: =ROUND(D128*ROUND(((1+CALCULADORA!$C$19)^(1/12)-1),6),6) -> 0 | G129: 0 | H129: =IF($B129=0,0,G129/POWER(1+CALCULADORA!$C$32,Flujos!$B129/365)) -> 0 | I129: 2030-03-15 | J129: 127 | K129: 3862 | L129: 7.139533409e-11 | M129: 0 | N129: 1.307248567e-13 | O129: 1.307248567e-13 | P129: =M129*IFERROR(VLOOKUP($A129,UVR!$A:$B,2,0),CALCULADORA!$C$23) -> 0 | Q129: =N129*IFERROR(VLOOKUP($A129,UVR!$A:$B,2,0),CALCULADORA!$C$23) -> 4.691096779e-11 | R129: =O129*IFERROR(VLOOKUP($A129,UVR!$A:$B,2,0),CALCULADORA!$C$23) -> 4.691096779e-11
A130: 2030-04-15 | B130: =IF(DIAS365(CALCULADORA!$C$30,A130)<0,0,DIAS365(CALCULADORA!$C$30,A130)) -> 2253 | C130: =+HLOOKUP(CALCULADORA!$C$11,Tablas!$B$1:$B$181,Flujos!J130+1,FALSE) -> 0 | D130: 0 | E130: 0 | F130: =ROUND(D129*ROUND(((1+CALCULADORA!$C$19)^(1/12)-1),6),6) -> 0 | G130: 0 | H130: =IF($B130=0,0,G130/POWER(1+CALCULADORA!$C$32,Flujos!$B130/365)) -> 0 | I130: 2030-04-15 | J130: 128 | K130: 3893 | L130: 7.139533409e-11 | M130: 0 | N130: 1.307248567e-13 | O130: 1.307248567e-13 | P130: =M130*IFERROR(VLOOKUP($A130,UVR!$A:$B,2,0),CALCULADORA!$C$23) -> 0 | Q130: =N130*IFERROR(VLOOKUP($A130,UVR!$A:$B,2,0),CALCULADORA!$C$23) -> 4.691096779e-11 | R130: =O130*IFERROR(VLOOKUP($A130,UVR!$A:$B,2,0),CALCULADORA!$C$23) -> 4.691096779e-11
A131: =EDATE(A130,1) -> 2030-05-15 | B131: =IF(DIAS365(CALCULADORA!$C$30,A131)<0,0,DIAS365(CALCULADORA!$C$30,A131)) -> 2283 | C131: =+HLOOKUP(CALCULADORA!$C$11,Tablas!$B$1:$B$181,Flujos!J131+1,FALSE) -> 0 | D131: 0 | E131: 0 | F131: =ROUND(D130*ROUND(((1+CALCULADORA!$C$19)^(1/12)-1),6),6) -> 0 | G131: 0 | H131: =IF($B131=0,0,G131/POWER(1+CALCULADORA!$C$32,Flujos!$B131/365)) -> 0 | I131: =+A131 -> 2030-05-15 | J131: 129 | K131: 3923 | L131: 7.139533409e-11 | M131: 0 | N131: 1.307248567e-13 | O131: 1.307248567e-13 | P131: =M131*IFERROR(VLOOKUP($A131,UVR!$A:$B,2,0),CALCULADORA!$C$23) -> 0 | Q131: =N131*IFERROR(VLOOKUP($A131,UVR!$A:$B,2,0),CALCULADORA!$C$23) -> 4.691096779e-11 | R131: =O131*IFERROR(VLOOKUP($A131,UVR!$A:$B,2,0),CALCULADORA!$C$23) -> 4.691096779e-11
A132: 2030-06-15 | B132: =IF(DIAS365(CALCULADORA!$C$30,A132)<0,0,DIAS365(CALCULADORA!$C$30,A132)) -> 2314 | C132: =+HLOOKUP(CALCULADORA!$C$11,Tablas!$B$1:$B$181,Flujos!J132+1,FALSE) -> 0 | D132: =+ROUND(D131-E132,6) -> 0 | E132: =ROUND(C132*$D$2,6) -> 0 | F132: =ROUND(D131*ROUND(((1+CALCULADORA!$C$19)^(1/12)-1),6),6) -> 0 | G132: =F132+E132 -> 0 | H132: =IF($B132=0,0,G132/POWER(1+CALCULADORA!$C$32,Flujos!$B132/365)) -> 0 | I132: 2030-06-15 | J132: 130 | K132: =+DIAS365($A$2,A132) -> 3954 | L132: =+L131-M132 -> 7.139533409e-11 | M132: =+$L$2*C132 -> 0 | N132: =+L131*$F$3% -> 1.307248567e-13 | O132: =+N132+M132 -> 1.307248567e-13 | P132: =M132*IFERROR(VLOOKUP($A132,UVR!$A:$B,2,0),CALCULADORA!$C$23) -> 0 | Q132: =N132*IFERROR(VLOOKUP($A132,UVR!$A:$B,2,0),CALCULADORA!$C$23) -> 4.691096779e-11 | R132: =O132*IFERROR(VLOOKUP($A132,UVR!$A:$B,2,0),CALCULADORA!$C$23) -> 4.691096779e-11
A133: 2030-07-15 | B133: =IF(DIAS365(CALCULADORA!$C$30,A133)<0,0,DIAS365(CALCULADORA!$C$30,A133)) -> 2344 | C133: =+HLOOKUP(CALCULADORA!$C$11,Tablas!$B$1:$B$181,Flujos!J133+1,FALSE) -> 0 | D133: 0 | E133: 0 | F133: =ROUND(D132*ROUND(((1+CALCULADORA!$C$19)^(1/12)-1),6),6) -> 0 | G133: 0 | H133: =IF($B133=0,0,G133/POWER(1+CALCULADORA!$C$32,Flujos!$B133/365)) -> 0 | I133: 2030-07-15 | J133: 131 | K133: 3984 | L133: 7.139533409e-11 | M133: 0 | N133: 1.307248567e-13 | O133: 1.307248567e-13 | P133: =M133*IFERROR(VLOOKUP($A133,UVR!$A:$B,2,0),CALCULADORA!$C$23) -> 0 | Q133: =N133*IFERROR(VLOOKUP($A133,UVR!$A:$B,2,0),CALCULADORA!$C$23) -> 4.691096779e-11 | R133: =O133*IFERROR(VLOOKUP($A133,UVR!$A:$B,2,0),CALCULADORA!$C$23) -> 4.691096779e-11
A134: 2030-08-15 | B134: =IF(DIAS365(CALCULADORA!$C$30,A134)<0,0,DIAS365(CALCULADORA!$C$30,A134)) -> 2375 | C134: =+HLOOKUP(CALCULADORA!$C$11,Tablas!$B$1:$B$181,Flujos!J134+1,FALSE) -> 0 | D134: 0 | E134: 0 | F134: =ROUND(D133*ROUND(((1+CALCULADORA!$C$19)^(1/12)-1),6),6) -> 0 | G134: 0 | H134: =IF($B134=0,0,G134/POWER(1+CALCULADORA!$C$32,Flujos!$B134/365)) -> 0 | I134: 2030-08-15 | J134: 132 | K134: 4015 | L134: 7.139533409e-11 | M134: 0 | N134: 1.307248567e-13 | O134: 1.307248567e-13 | P134: =M134*IFERROR(VLOOKUP($A134,UVR!$A:$B,2,0),CALCULADORA!$C$23) -> 0 | Q134: =N134*IFERROR(VLOOKUP($A134,UVR!$A:$B,2,0),CALCULADORA!$C$23) -> 4.691096779e-11 | R134: =O134*IFERROR(VLOOKUP($A134,UVR!$A:$B,2,0),CALCULADORA!$C$23) -> 4.691096779e-11
A135: 2030-09-15 | B135: =IF(DIAS365(CALCULADORA!$C$30,A135)<0,0,DIAS365(CALCULADORA!$C$30,A135)) -> 2406 | C135: =+HLOOKUP(CALCULADORA!$C$11,Tablas!$B$1:$B$181,Flujos!J135+1,FALSE) -> 0 | D135: 0 | E135: 0 | F135: =ROUND(D134*ROUND(((1+CALCULADORA!$C$19)^(1/12)-1),6),6) -> 0 | G135: 0 | H135: =IF($B135=0,0,G135/POWER(1+CALCULADORA!$C$32,Flujos!$B135/365)) -> 0 | I135: 2030-09-15 | J135: 133 | K135: 4046 | L135: 7.139533409e-11 | M135: 0 | N135: 1.307248567e-13 | O135: 1.307248567e-13 | P135: =M135*IFERROR(VLOOKUP($A135,UVR!$A:$B,2,0),CALCULADORA!$C$23) -> 0 | Q135: =N135*IFERROR(VLOOKUP($A135,UVR!$A:$B,2,0),CALCULADORA!$C$23) -> 4.691096779e-11 | R135: =O135*IFERROR(VLOOKUP($A135,UVR!$A:$B,2,0),CALCULADORA!$C$23) -> 4.691096779e-11
A136: 2030-10-15 | B136: =IF(DIAS365(CALCULADORA!$C$30,A136)<0,0,DIAS365(CALCULADORA!$C$30,A136)) -> 2436 | C136: =+HLOOKUP(CALCULADORA!$C$11,Tablas!$B$1:$B$181,Flujos!J136+1,FALSE) -> 0 | D136: 0 | E136: 0 | F136: =ROUND(D135*ROUND(((1+CALCULADORA!$C$19)^(1/12)-1),6),6) -> 0 | G136: 0 | H136: =IF($B136=0,0,G136/POWER(1+CALCULADORA!$C$32,Flujos!$B136/365)) -> 0 | I136: 2030-10-15 | J136: 134 | K136: 4076 | L136: 7.139533409e-11 | M136: 0 | N136: 1.307248567e-13 | O136: 1.307248567e-13 | P136: =M136*IFERROR(VLOOKUP($A136,UVR!$A:$B,2,0),CALCULADORA!$C$23) -> 0 | Q136: =N136*IFERROR(VLOOKUP($A136,UVR!$A:$B,2,0),CALCULADORA!$C$23) -> 4.691096779e-11 | R136: =O136*IFERROR(VLOOKUP($A136,UVR!$A:$B,2,0),CALCULADORA!$C$23) -> 4.691096779e-11
A137: 2030-11-15 | B137: =IF(DIAS365(CALCULADORA!$C$30,A137)<0,0,DIAS365(CALCULADORA!$C$30,A137)) -> 2467 | C137: =+HLOOKUP(CALCULADORA!$C$11,Tablas!$B$1:$B$181,Flujos!J137+1,FALSE) -> 0 | D137: 0 | E137: 0 | F137: =ROUND(D136*ROUND(((1+CALCULADORA!$C$19)^(1/12)-1),6),6) -> 0 | G137: 0 | H137: =IF($B137=0,0,G137/POWER(1+CALCULADORA!$C$32,Flujos!$B137/365)) -> 0 | I137: 2030-11-15 | J137: 135 | K137: 4107 | L137: 7.139533409e-11 | M137: 0 | N137: 1.307248567e-13 | O137: 1.307248567e-13 | P137: =M137*IFERROR(VLOOKUP($A137,UVR!$A:$B,2,0),CALCULADORA!$C$23) -> 0 | Q137: =N137*IFERROR(VLOOKUP($A137,UVR!$A:$B,2,0),CALCULADORA!$C$23) -> 4.691096779e-11 | R137: =O137*IFERROR(VLOOKUP($A137,UVR!$A:$B,2,0),CALCULADORA!$C$23) -> 4.691096779e-11
A138: 2030-12-15 | B138: =IF(DIAS365(CALCULADORA!$C$30,A138)<0,0,DIAS365(CALCULADORA!$C$30,A138)) -> 2497 | C138: =+HLOOKUP(CALCULADORA!$C$11,Tablas!$B$1:$B$181,Flujos!J138+1,FALSE) -> 0 | D138: 0 | E138: 0 | F138: =ROUND(D137*ROUND(((1+CALCULADORA!$C$19)^(1/12)-1),6),6) -> 0 | G138: 0 | H138: =IF($B138=0,0,G138/POWER(1+CALCULADORA!$C$32,Flujos!$B138/365)) -> 0 | I138: 2030-12-15 | J138: 136 | K138: 4137 | L138: 7.139533409e-11 | M138: 0 | N138: 1.307248567e-13 | O138: 1.307248567e-13 | P138: =M138*IFERROR(VLOOKUP($A138,UVR!$A:$B,2,0),CALCULADORA!$C$23) -> 0 | Q138: =N138*IFERROR(VLOOKUP($A138,UVR!$A:$B,2,0),CALCULADORA!$C$23) -> 4.691096779e-11 | R138: =O138*IFERROR(VLOOKUP($A138,UVR!$A:$B,2,0),CALCULADORA!$C$23) -> 4.691096779e-11
A139: 2031-01-15 | B139: =IF(DIAS365(CALCULADORA!$C$30,A139)<0,0,DIAS365(CALCULADORA!$C$30,A139)) -> 2528 | C139: =+HLOOKUP(CALCULADORA!$C$11,Tablas!$B$1:$B$181,Flujos!J139+1,FALSE) -> 0 | D139: 0 | E139: 0 | F139: =ROUND(D138*ROUND(((1+CALCULADORA!$C$19)^(1/12)-1),6),6) -> 0 | G139: 0 | H139: =IF($B139=0,0,G139/POWER(1+CALCULADORA!$C$32,Flujos!$B139/365)) -> 0 | I139: 2031-01-15 | J139: 137 | K139: 4168 | L139: 7.139533409e-11 | M139: 0 | N139: 1.307248567e-13 | O139: 1.307248567e-13 | P139: =M139*IFERROR(VLOOKUP($A139,UVR!$A:$B,2,0),CALCULADORA!$C$23) -> 0 | Q139: =N139*IFERROR(VLOOKUP($A139,UVR!$A:$B,2,0),CALCULADORA!$C$23) -> 4.691096779e-11 | R139: =O139*IFERROR(VLOOKUP($A139,UVR!$A:$B,2,0),CALCULADORA!$C$23) -> 4.691096779e-11
A140: 2031-02-15 | B140: =IF(DIAS365(CALCULADORA!$C$30,A140)<0,0,DIAS365(CALCULADORA!$C$30,A140)) -> 2559 | C140: =+HLOOKUP(CALCULADORA!$C$11,Tablas!$B$1:$B$181,Flujos!J140+1,FALSE) -> 0 | D140: 0 | E140: 0 | F140: =ROUND(D139*ROUND(((1+CALCULADORA!$C$19)^(1/12)-1),6),6) -> 0 | G140: 0 | H140: =IF($B140=0,0,G140/POWER(1+CALCULADORA!$C$32,Flujos!$B140/365)) -> 0 | I140: 2031-02-15 | J140: 138 | K140: 4199 | L140: 7.139533409e-11 | M140: 0 | N140: 1.307248567e-13 | O140: 1.307248567e-13 | P140: =M140*IFERROR(VLOOKUP($A140,UVR!$A:$B,2,0),CALCULADORA!$C$23) -> 0 | Q140: =N140*IFERROR(VLOOKUP($A140,UVR!$A:$B,2,0),CALCULADORA!$C$23) -> 4.691096779e-11 | R140: =O140*IFERROR(VLOOKUP($A140,UVR!$A:$B,2,0),CALCULADORA!$C$23) -> 4.691096779e-11
A141: 2031-03-15 | B141: =IF(DIAS365(CALCULADORA!$C$30,A141)<0,0,DIAS365(CALCULADORA!$C$30,A141)) -> 2587 | C141: =+HLOOKUP(CALCULADORA!$C$11,Tablas!$B$1:$B$181,Flujos!J141+1,FALSE) -> 0 | D141: 0 | E141: 0 | F141: =ROUND(D140*ROUND(((1+CALCULADORA!$C$19)^(1/12)-1),6),6) -> 0 | G141: 0 | H141: =IF($B141=0,0,G141/POWER(1+CALCULADORA!$C$32,Flujos!$B141/365)) -> 0 | I141: 2031-03-15 | J141: 139 | K141: 4227 | L141: 7.139533409e-11 | M141: 0 | N141: 1.307248567e-13 | O141: 1.307248567e-13 | P141: =M141*IFERROR(VLOOKUP($A141,UVR!$A:$B,2,0),CALCULADORA!$C$23) -> 0 | Q141: =N141*IFERROR(VLOOKUP($A141,UVR!$A:$B,2,0),CALCULADORA!$C$23) -> 4.691096779e-11 | R141: =O141*IFERROR(VLOOKUP($A141,UVR!$A:$B,2,0),CALCULADORA!$C$23) -> 4.691096779e-11
A142: 2031-04-15 | B142: =IF(DIAS365(CALCULADORA!$C$30,A142)<0,0,DIAS365(CALCULADORA!$C$30,A142)) -> 2618 | C142: =+HLOOKUP(CALCULADORA!$C$11,Tablas!$B$1:$B$181,Flujos!J142+1,FALSE) -> 0 | D142: 0 | E142: 0 | F142: =ROUND(D141*ROUND(((1+CALCULADORA!$C$19)^(1/12)-1),6),6) -> 0 | G142: 0 | H142: =IF($B142=0,0,G142/POWER(1+CALCULADORA!$C$32,Flujos!$B142/365)) -> 0 | I142: 2031-04-15 | J142: 140 | K142: 4258 | L142: 7.139533409e-11 | M142: 0 | N142: 1.307248567e-13 | O142: 1.307248567e-13 | P142: =M142*IFERROR(VLOOKUP($A142,UVR!$A:$B,2,0),CALCULADORA!$C$23) -> 0 | Q142: =N142*IFERROR(VLOOKUP($A142,UVR!$A:$B,2,0),CALCULADORA!$C$23) -> 4.691096779e-11 | R142: =O142*IFERROR(VLOOKUP($A142,UVR!$A:$B,2,0),CALCULADORA!$C$23) -> 4.691096779e-11
A143: 2031-05-15 | B143: =IF(DIAS365(CALCULADORA!$C$30,A143)<0,0,DIAS365(CALCULADORA!$C$30,A143)) -> 2648 | C143: =+HLOOKUP(CALCULADORA!$C$11,Tablas!$B$1:$B$181,Flujos!J143+1,FALSE) -> 0 | D143: 0 | E143: 0 | F143: =ROUND(D142*ROUND(((1+CALCULADORA!$C$19)^(1/12)-1),6),6) -> 0 | G143: 0 | H143: =IF($B143=0,0,G143/POWER(1+CALCULADORA!$C$32,Flujos!$B143/365)) -> 0 | I143: 2031-05-15 | J143: 141 | K143: 4288 | L143: 7.139533409e-11 | M143: 0 | N143: 1.307248567e-13 | O143: 1.307248567e-13 | P143: =M143*IFERROR(VLOOKUP($A143,UVR!$A:$B,2,0),CALCULADORA!$C$23) -> 0 | Q143: =N143*IFERROR(VLOOKUP($A143,UVR!$A:$B,2,0),CALCULADORA!$C$23) -> 4.691096779e-11 | R143: =O143*IFERROR(VLOOKUP($A143,UVR!$A:$B,2,0),CALCULADORA!$C$23) -> 4.691096779e-11
A144: 2031-06-15 | B144: =IF(DIAS365(CALCULADORA!$C$30,A144)<0,0,DIAS365(CALCULADORA!$C$30,A144)) -> 2679 | C144: =+HLOOKUP(CALCULADORA!$C$11,Tablas!$B$1:$B$181,Flujos!J144+1,FALSE) -> 0 | D144: 0 | E144: 0 | F144: =ROUND(D143*ROUND(((1+CALCULADORA!$C$19)^(1/12)-1),6),6) -> 0 | G144: 0 | H144: =IF($B144=0,0,G144/POWER(1+CALCULADORA!$C$32,Flujos!$B144/365)) -> 0 | I144: 2031-06-15 | J144: 142 | K144: 4319 | L144: 7.139533409e-11 | M144: 0 | N144: 1.307248567e-13 | O144: 1.307248567e-13 | P144: =M144*IFERROR(VLOOKUP($A144,UVR!$A:$B,2,0),CALCULADORA!$C$23) -> 0 | Q144: =N144*IFERROR(VLOOKUP($A144,UVR!$A:$B,2,0),CALCULADORA!$C$23) -> 4.691096779e-11 | R144: =O144*IFERROR(VLOOKUP($A144,UVR!$A:$B,2,0),CALCULADORA!$C$23) -> 4.691096779e-11
A145: 2031-07-15 | B145: =IF(DIAS365(CALCULADORA!$C$30,A145)<0,0,DIAS365(CALCULADORA!$C$30,A145)) -> 2709 | C145: =+HLOOKUP(CALCULADORA!$C$11,Tablas!$B$1:$B$181,Flujos!J145+1,FALSE) -> 0 | D145: 0 | E145: 0 | F145: =ROUND(D144*ROUND(((1+CALCULADORA!$C$19)^(1/12)-1),6),6) -> 0 | G145: 0 | H145: =IF($B145=0,0,G145/POWER(1+CALCULADORA!$C$32,Flujos!$B145/365)) -> 0 | I145: 2031-07-15 | J145: 143 | K145: 4349 | L145: 7.139533409e-11 | M145: 0 | N145: 1.307248567e-13 | O145: 1.307248567e-13 | P145: =M145*IFERROR(VLOOKUP($A145,UVR!$A:$B,2,0),CALCULADORA!$C$23) -> 0 | Q145: =N145*IFERROR(VLOOKUP($A145,UVR!$A:$B,2,0),CALCULADORA!$C$23) -> 4.691096779e-11 | R145: =O145*IFERROR(VLOOKUP($A145,UVR!$A:$B,2,0),CALCULADORA!$C$23) -> 4.691096779e-11
A146: 2031-08-15 | B146: =IF(DIAS365(CALCULADORA!$C$30,A146)<0,0,DIAS365(CALCULADORA!$C$30,A146)) -> 2740 | C146: =+HLOOKUP(CALCULADORA!$C$11,Tablas!$B$1:$B$181,Flujos!J146+1,FALSE) -> 0 | D146: 0 | E146: 0 | F146: =ROUND(D145*ROUND(((1+CALCULADORA!$C$19)^(1/12)-1),6),6) -> 0 | G146: 0 | H146: =IF($B146=0,0,G146/POWER(1+CALCULADORA!$C$32,Flujos!$B146/365)) -> 0 | I146: 2031-08-15 | J146: 144 | K146: 4380 | L146: 7.139533409e-11 | M146: 0 | N146: 1.307248567e-13 | O146: 1.307248567e-13 | P146: =M146*IFERROR(VLOOKUP($A146,UVR!$A:$B,2,0),CALCULADORA!$C$23) -> 0 | Q146: =N146*IFERROR(VLOOKUP($A146,UVR!$A:$B,2,0),CALCULADORA!$C$23) -> 4.691096779e-11 | R146: =O146*IFERROR(VLOOKUP($A146,UVR!$A:$B,2,0),CALCULADORA!$C$23) -> 4.691096779e-11
A147: 2031-09-15 | B147: =IF(DIAS365(CALCULADORA!$C$30,A147)<0,0,DIAS365(CALCULADORA!$C$30,A147)) -> 2771 | C147: =+HLOOKUP(CALCULADORA!$C$11,Tablas!$B$1:$B$181,Flujos!J147+1,FALSE) -> 0 | D147: 0 | E147: 0 | F147: =ROUND(D146*ROUND(((1+CALCULADORA!$C$19)^(1/12)-1),6),6) -> 0 | G147: 0 | H147: =IF($B147=0,0,G147/POWER(1+CALCULADORA!$C$32,Flujos!$B147/365)) -> 0 | I147: 2031-09-15 | J147: 145 | K147: 4411 | L147: 7.139533409e-11 | M147: 0 | N147: 1.307248567e-13 | O147: 1.307248567e-13 | P147: =M147*IFERROR(VLOOKUP($A147,UVR!$A:$B,2,0),CALCULADORA!$C$23) -> 0 | Q147: =N147*IFERROR(VLOOKUP($A147,UVR!$A:$B,2,0),CALCULADORA!$C$23) -> 4.691096779e-11 | R147: =O147*IFERROR(VLOOKUP($A147,UVR!$A:$B,2,0),CALCULADORA!$C$23) -> 4.691096779e-11
A148: 2031-10-15 | B148: =IF(DIAS365(CALCULADORA!$C$30,A148)<0,0,DIAS365(CALCULADORA!$C$30,A148)) -> 2801 | C148: =+HLOOKUP(CALCULADORA!$C$11,Tablas!$B$1:$B$181,Flujos!J148+1,FALSE) -> 0 | D148: 0 | E148: 0 | F148: =ROUND(D147*ROUND(((1+CALCULADORA!$C$19)^(1/12)-1),6),6) -> 0 | G148: 0 | H148: =IF($B148=0,0,G148/POWER(1+CALCULADORA!$C$32,Flujos!$B148/365)) -> 0 | I148: 2031-10-15 | J148: 146 | K148: 4441 | L148: 7.139533409e-11 | M148: 0 | N148: 1.307248567e-13 | O148: 1.307248567e-13 | P148: =M148*IFERROR(VLOOKUP($A148,UVR!$A:$B,2,0),CALCULADORA!$C$23) -> 0 | Q148: =N148*IFERROR(VLOOKUP($A148,UVR!$A:$B,2,0),CALCULADORA!$C$23) -> 4.691096779e-11 | R148: =O148*IFERROR(VLOOKUP($A148,UVR!$A:$B,2,0),CALCULADORA!$C$23) -> 4.691096779e-11
A149: 2031-11-15 | B149: =IF(DIAS365(CALCULADORA!$C$30,A149)<0,0,DIAS365(CALCULADORA!$C$30,A149)) -> 2832 | C149: =+HLOOKUP(CALCULADORA!$C$11,Tablas!$B$1:$B$181,Flujos!J149+1,FALSE) -> 0 | D149: 0 | E149: 0 | F149: =ROUND(D148*ROUND(((1+CALCULADORA!$C$19)^(1/12)-1),6),6) -> 0 | G149: 0 | H149: =IF($B149=0,0,G149/POWER(1+CALCULADORA!$C$32,Flujos!$B149/365)) -> 0 | I149: 2031-11-15 | J149: 147 | K149: 4472 | L149: 7.139533409e-11 | M149: 0 | N149: 1.307248567e-13 | O149: 1.307248567e-13 | P149: =M149*IFERROR(VLOOKUP($A149,UVR!$A:$B,2,0),CALCULADORA!$C$23) -> 0 | Q149: =N149*IFERROR(VLOOKUP($A149,UVR!$A:$B,2,0),CALCULADORA!$C$23) -> 4.691096779e-11 | R149: =O149*IFERROR(VLOOKUP($A149,UVR!$A:$B,2,0),CALCULADORA!$C$23) -> 4.691096779e-11
A150: 2031-12-15 | B150: =IF(DIAS365(CALCULADORA!$C$30,A150)<0,0,DIAS365(CALCULADORA!$C$30,A150)) -> 2862 | C150: =+HLOOKUP(CALCULADORA!$C$11,Tablas!$B$1:$B$181,Flujos!J150+1,FALSE) -> 0 | D150: 0 | E150: 0 | F150: =ROUND(D149*ROUND(((1+CALCULADORA!$C$19)^(1/12)-1),6),6) -> 0 | G150: 0 | H150: =IF($B150=0,0,G150/POWER(1+CALCULADORA!$C$32,Flujos!$B150/365)) -> 0 | I150: 2031-12-15 | J150: 148 | K150: 4502 | L150: 7.139533409e-11 | M150: 0 | N150: 1.307248567e-13 | O150: 1.307248567e-13 | P150: =M150*IFERROR(VLOOKUP($A150,UVR!$A:$B,2,0),CALCULADORA!$C$23) -> 0 | Q150: =N150*IFERROR(VLOOKUP($A150,UVR!$A:$B,2,0),CALCULADORA!$C$23) -> 4.691096779e-11 | R150: =O150*IFERROR(VLOOKUP($A150,UVR!$A:$B,2,0),CALCULADORA!$C$23) -> 4.691096779e-11
A151: 2032-01-15 | B151: =IF(DIAS365(CALCULADORA!$C$30,A151)<0,0,DIAS365(CALCULADORA!$C$30,A151)) -> 2893 | C151: =+HLOOKUP(CALCULADORA!$C$11,Tablas!$B$1:$B$181,Flujos!J151+1,FALSE) -> 0 | D151: 0 | E151: 0 | F151: =ROUND(D150*ROUND(((1+CALCULADORA!$C$19)^(1/12)-1),6),6) -> 0 | G151: 0 | H151: =IF($B151=0,0,G151/POWER(1+CALCULADORA!$C$32,Flujos!$B151/365)) -> 0 | I151: 2032-01-15 | J151: 149 | K151: 4533 | L151: 7.139533409e-11 | M151: 0 | N151: 1.307248567e-13 | O151: 1.307248567e-13 | P151: =M151*IFERROR(VLOOKUP($A151,UVR!$A:$B,2,0),CALCULADORA!$C$23) -> 0 | Q151: =N151*IFERROR(VLOOKUP($A151,UVR!$A:$B,2,0),CALCULADORA!$C$23) -> 4.691096779e-11 | R151: =O151*IFERROR(VLOOKUP($A151,UVR!$A:$B,2,0),CALCULADORA!$C$23) -> 4.691096779e-11
A152: 2032-02-15 | B152: =IF(DIAS365(CALCULADORA!$C$30,A152)<0,0,DIAS365(CALCULADORA!$C$30,A152)) -> 2924 | C152: =+HLOOKUP(CALCULADORA!$C$11,Tablas!$B$1:$B$181,Flujos!J152+1,FALSE) -> 0 | D152: 0 | E152: 0 | F152: =ROUND(D151*ROUND(((1+CALCULADORA!$C$19)^(1/12)-1),6),6) -> 0 | G152: 0 | H152: =IF($B152=0,0,G152/POWER(1+CALCULADORA!$C$32,Flujos!$B152/365)) -> 0 | I152: 2032-02-15 | J152: 150 | K152: 4564 | L152: 7.139533409e-11 | M152: 0 | N152: 1.307248567e-13 | O152: 1.307248567e-13 | P152: =M152*IFERROR(VLOOKUP($A152,UVR!$A:$B,2,0),CALCULADORA!$C$23) -> 0 | Q152: =N152*IFERROR(VLOOKUP($A152,UVR!$A:$B,2,0),CALCULADORA!$C$23) -> 4.691096779e-11 | R152: =O152*IFERROR(VLOOKUP($A152,UVR!$A:$B,2,0),CALCULADORA!$C$23) -> 4.691096779e-11
A153: 2032-03-15 | B153: =IF(DIAS365(CALCULADORA!$C$30,A153)<0,0,DIAS365(CALCULADORA!$C$30,A153)) -> 2952 | C153: =+HLOOKUP(CALCULADORA!$C$11,Tablas!$B$1:$B$181,Flujos!J153+1,FALSE) -> 0 | D153: 0 | E153: 0 | F153: =ROUND(D152*ROUND(((1+CALCULADORA!$C$19)^(1/12)-1),6),6) -> 0 | G153: 0 | H153: =IF($B153=0,0,G153/POWER(1+CALCULADORA!$C$32,Flujos!$B153/365)) -> 0 | I153: 2032-03-15 | J153: 151 | K153: 4592 | L153: 7.139533409e-11 | M153: 0 | N153: 1.307248567e-13 | O153: 1.307248567e-13 | P153: =M153*IFERROR(VLOOKUP($A153,UVR!$A:$B,2,0),CALCULADORA!$C$23) -> 0 | Q153: =N153*IFERROR(VLOOKUP($A153,UVR!$A:$B,2,0),CALCULADORA!$C$23) -> 4.691096779e-11 | R153: =O153*IFERROR(VLOOKUP($A153,UVR!$A:$B,2,0),CALCULADORA!$C$23) -> 4.691096779e-11
A154: 2032-04-15 | B154: =IF(DIAS365(CALCULADORA!$C$30,A154)<0,0,DIAS365(CALCULADORA!$C$30,A154)) -> 2983 | C154: =+HLOOKUP(CALCULADORA!$C$11,Tablas!$B$1:$B$181,Flujos!J154+1,FALSE) -> 0 | D154: 0 | E154: 0 | F154: =ROUND(D153*ROUND(((1+CALCULADORA!$C$19)^(1/12)-1),6),6) -> 0 | G154: 0 | H154: =IF($B154=0,0,G154/POWER(1+CALCULADORA!$C$32,Flujos!$B154/365)) -> 0 | I154: 2032-04-15 | J154: 152 | K154: 4623 | L154: 7.139533409e-11 | M154: 0 | N154: 1.307248567e-13 | O154: 1.307248567e-13 | P154: =M154*IFERROR(VLOOKUP($A154,UVR!$A:$B,2,0),CALCULADORA!$C$23) -> 0 | Q154: =N154*IFERROR(VLOOKUP($A154,UVR!$A:$B,2,0),CALCULADORA!$C$23) -> 4.691096779e-11 | R154: =O154*IFERROR(VLOOKUP($A154,UVR!$A:$B,2,0),CALCULADORA!$C$23) -> 4.691096779e-11
A155: 2032-05-15 | B155: =IF(DIAS365(CALCULADORA!$C$30,A155)<0,0,DIAS365(CALCULADORA!$C$30,A155)) -> 3013 | C155: =+HLOOKUP(CALCULADORA!$C$11,Tablas!$B$1:$B$181,Flujos!J155+1,FALSE) -> 0 | D155: 0 | E155: 0 | F155: =ROUND(D154*ROUND(((1+CALCULADORA!$C$19)^(1/12)-1),6),6) -> 0 | G155: 0 | H155: =IF($B155=0,0,G155/POWER(1+CALCULADORA!$C$32,Flujos!$B155/365)) -> 0 | I155: 2032-05-15 | J155: 153 | K155: 4653 | L155: 7.139533409e-11 | M155: 0 | N155: 1.307248567e-13 | O155: 1.307248567e-13 | P155: =M155*IFERROR(VLOOKUP($A155,UVR!$A:$B,2,0),CALCULADORA!$C$23) -> 0 | Q155: =N155*IFERROR(VLOOKUP($A155,UVR!$A:$B,2,0),CALCULADORA!$C$23) -> 4.691096779e-11 | R155: =O155*IFERROR(VLOOKUP($A155,UVR!$A:$B,2,0),CALCULADORA!$C$23) -> 4.691096779e-11
A156: 2032-06-15 | B156: =IF(DIAS365(CALCULADORA!$C$30,A156)<0,0,DIAS365(CALCULADORA!$C$30,A156)) -> 3044 | C156: =+HLOOKUP(CALCULADORA!$C$11,Tablas!$B$1:$B$181,Flujos!J156+1,FALSE) -> 0 | D156: 0 | E156: 0 | F156: =ROUND(D155*ROUND(((1+CALCULADORA!$C$19)^(1/12)-1),6),6) -> 0 | G156: 0 | H156: =IF($B156=0,0,G156/POWER(1+CALCULADORA!$C$32,Flujos!$B156/365)) -> 0 | I156: 2032-06-15 | J156: 154 | K156: 4684 | L156: 7.139533409e-11 | M156: 0 | N156: 1.307248567e-13 | O156: 1.307248567e-13 | P156: =M156*IFERROR(VLOOKUP($A156,UVR!$A:$B,2,0),CALCULADORA!$C$23) -> 0 | Q156: =N156*IFERROR(VLOOKUP($A156,UVR!$A:$B,2,0),CALCULADORA!$C$23) -> 4.691096779e-11 | R156: =O156*IFERROR(VLOOKUP($A156,UVR!$A:$B,2,0),CALCULADORA!$C$23) -> 4.691096779e-11
A157: 2032-07-15 | B157: =IF(DIAS365(CALCULADORA!$C$30,A157)<0,0,DIAS365(CALCULADORA!$C$30,A157)) -> 3074 | C157: =+HLOOKUP(CALCULADORA!$C$11,Tablas!$B$1:$B$181,Flujos!J157+1,FALSE) -> 0 | D157: 0 | E157: 0 | F157: =ROUND(D156*ROUND(((1+CALCULADORA!$C$19)^(1/12)-1),6),6) -> 0 | G157: 0 | H157: =IF($B157=0,0,G157/POWER(1+CALCULADORA!$C$32,Flujos!$B157/365)) -> 0 | I157: 2032-07-15 | J157: 155 | K157: 4714 | L157: 7.139533409e-11 | M157: 0 | N157: 1.307248567e-13 | O157: 1.307248567e-13 | P157: =M157*IFERROR(VLOOKUP($A157,UVR!$A:$B,2,0),CALCULADORA!$C$23) -> 0 | Q157: =N157*IFERROR(VLOOKUP($A157,UVR!$A:$B,2,0),CALCULADORA!$C$23) -> 4.691096779e-11 | R157: =O157*IFERROR(VLOOKUP($A157,UVR!$A:$B,2,0),CALCULADORA!$C$23) -> 4.691096779e-11
A158: 2032-08-15 | B158: =IF(DIAS365(CALCULADORA!$C$30,A158)<0,0,DIAS365(CALCULADORA!$C$30,A158)) -> 3105 | C158: =+HLOOKUP(CALCULADORA!$C$11,Tablas!$B$1:$B$181,Flujos!J158+1,FALSE) -> 0 | D158: 0 | E158: 0 | F158: =ROUND(D157*ROUND(((1+CALCULADORA!$C$19)^(1/12)-1),6),6) -> 0 | G158: 0 | H158: =IF($B158=0,0,G158/POWER(1+CALCULADORA!$C$32,Flujos!$B158/365)) -> 0 | I158: 2032-08-15 | J158: 156 | K158: 4745 | L158: 7.139533409e-11 | M158: 0 | N158: 1.307248567e-13 | O158: 1.307248567e-13 | P158: =M158*IFERROR(VLOOKUP($A158,UVR!$A:$B,2,0),CALCULADORA!$C$23) -> 0 | Q158: =N158*IFERROR(VLOOKUP($A158,UVR!$A:$B,2,0),CALCULADORA!$C$23) -> 4.691096779e-11 | R158: =O158*IFERROR(VLOOKUP($A158,UVR!$A:$B,2,0),CALCULADORA!$C$23) -> 4.691096779e-11
A159: 2032-09-15 | B159: =IF(DIAS365(CALCULADORA!$C$30,A159)<0,0,DIAS365(CALCULADORA!$C$30,A159)) -> 3136 | C159: =+HLOOKUP(CALCULADORA!$C$11,Tablas!$B$1:$B$181,Flujos!J159+1,FALSE) -> 0 | D159: 0 | E159: 0 | F159: =ROUND(D158*ROUND(((1+CALCULADORA!$C$19)^(1/12)-1),6),6) -> 0 | G159: 0 | H159: =IF($B159=0,0,G159/POWER(1+CALCULADORA!$C$32,Flujos!$B159/365)) -> 0 | I159: 2032-09-15 | J159: 157 | K159: 4776 | L159: 7.139533409e-11 | M159: 0 | N159: 1.307248567e-13 | O159: 1.307248567e-13 | P159: =M159*IFERROR(VLOOKUP($A159,UVR!$A:$B,2,0),CALCULADORA!$C$23) -> 0 | Q159: =N159*IFERROR(VLOOKUP($A159,UVR!$A:$B,2,0),CALCULADORA!$C$23) -> 4.691096779e-11 | R159: =O159*IFERROR(VLOOKUP($A159,UVR!$A:$B,2,0),CALCULADORA!$C$23) -> 4.691096779e-11
A160: 2032-10-15 | B160: =IF(DIAS365(CALCULADORA!$C$30,A160)<0,0,DIAS365(CALCULADORA!$C$30,A160)) -> 3166 | C160: =+HLOOKUP(CALCULADORA!$C$11,Tablas!$B$1:$B$181,Flujos!J160+1,FALSE) -> 0 | D160: 0 | E160: 0 | F160: =ROUND(D159*ROUND(((1+CALCULADORA!$C$19)^(1/12)-1),6),6) -> 0 | G160: 0 | H160: =IF($B160=0,0,G160/POWER(1+CALCULADORA!$C$32,Flujos!$B160/365)) -> 0 | I160: 2032-10-15 | J160: 158 | K160: 4806 | L160: 7.139533409e-11 | M160: 0 | N160: 1.307248567e-13 | O160: 1.307248567e-13 | P160: =M160*IFERROR(VLOOKUP($A160,UVR!$A:$B,2,0),CALCULADORA!$C$23) -> 0 | Q160: =N160*IFERROR(VLOOKUP($A160,UVR!$A:$B,2,0),CALCULADORA!$C$23) -> 4.691096779e-11 | R160: =O160*IFERROR(VLOOKUP($A160,UVR!$A:$B,2,0),CALCULADORA!$C$23) -> 4.691096779e-11
A161: 2032-11-15 | B161: =IF(DIAS365(CALCULADORA!$C$30,A161)<0,0,DIAS365(CALCULADORA!$C$30,A161)) -> 3197 | C161: =+HLOOKUP(CALCULADORA!$C$11,Tablas!$B$1:$B$181,Flujos!J161+1,FALSE) -> 0 | D161: 0 | E161: 0 | F161: =ROUND(D160*ROUND(((1+CALCULADORA!$C$19)^(1/12)-1),6),6) -> 0 | G161: 0 | H161: =IF($B161=0,0,G161/POWER(1+CALCULADORA!$C$32,Flujos!$B161/365)) -> 0 | I161: 2032-11-15 | J161: 159 | K161: 4837 | L161: 7.139533409e-11 | M161: 0 | N161: 1.307248567e-13 | O161: 1.307248567e-13 | P161: =M161*IFERROR(VLOOKUP($A161,UVR!$A:$B,2,0),CALCULADORA!$C$23) -> 0 | Q161: =N161*IFERROR(VLOOKUP($A161,UVR!$A:$B,2,0),CALCULADORA!$C$23) -> 4.691096779e-11 | R161: =O161*IFERROR(VLOOKUP($A161,UVR!$A:$B,2,0),CALCULADORA!$C$23) -> 4.691096779e-11
A162: 2032-12-15 | B162: =IF(DIAS365(CALCULADORA!$C$30,A162)<0,0,DIAS365(CALCULADORA!$C$30,A162)) -> 3227 | C162: =+HLOOKUP(CALCULADORA!$C$11,Tablas!$B$1:$B$181,Flujos!J162+1,FALSE) -> 0 | D162: 0 | E162: 0 | F162: =ROUND(D161*ROUND(((1+CALCULADORA!$C$19)^(1/12)-1),6),6) -> 0 | G162: 0 | H162: =IF($B162=0,0,G162/POWER(1+CALCULADORA!$C$32,Flujos!$B162/365)) -> 0 | I162: 2032-12-15 | J162: 160 | K162: 4867 | L162: 7.139533409e-11 | M162: 0 | N162: 1.307248567e-13 | O162: 1.307248567e-13 | P162: =M162*IFERROR(VLOOKUP($A162,UVR!$A:$B,2,0),CALCULADORA!$C$23) -> 0 | Q162: =N162*IFERROR(VLOOKUP($A162,UVR!$A:$B,2,0),CALCULADORA!$C$23) -> 4.691096779e-11 | R162: =O162*IFERROR(VLOOKUP($A162,UVR!$A:$B,2,0),CALCULADORA!$C$23) -> 4.691096779e-11
A163: =EDATE(A162,1) -> 2033-01-15 | B163: =IF(DIAS365(CALCULADORA!$C$30,A163)<0,0,DIAS365(CALCULADORA!$C$30,A163)) -> 3258 | C163: =+HLOOKUP(CALCULADORA!$C$11,Tablas!$B$1:$B$181,Flujos!J163+1,FALSE) -> 0 | D163: 0 | E163: 0 | F163: =ROUND(D162*ROUND(((1+CALCULADORA!$C$19)^(1/12)-1),6),6) -> 0 | G163: 0 | H163: =IF($B163=0,0,G163/POWER(1+CALCULADORA!$C$32,Flujos!$B163/365)) -> 0 | I163: 2033-01-15 | J163: 161 | K163: 4898 | L163: 7.139533409e-11 | M163: 0 | N163: 1.307248567e-13 | O163: 1.307248567e-13 | P163: =M163*IFERROR(VLOOKUP($A163,UVR!$A:$B,2,0),CALCULADORA!$C$23) -> 0 | Q163: =N163*IFERROR(VLOOKUP($A163,UVR!$A:$B,2,0),CALCULADORA!$C$23) -> 4.691096779e-11 | R163: =O163*IFERROR(VLOOKUP($A163,UVR!$A:$B,2,0),CALCULADORA!$C$23) -> 4.691096779e-11
A164: 2033-02-15 | B164: =IF(DIAS365(CALCULADORA!$C$30,A164)<0,0,DIAS365(CALCULADORA!$C$30,A164)) -> 3289 | C164: =+HLOOKUP(CALCULADORA!$C$11,Tablas!$B$1:$B$181,Flujos!J164+1,FALSE) -> 0 | D164: 0 | E164: 0 | F164: =ROUND(D163*ROUND(((1+CALCULADORA!$C$19)^(1/12)-1),6),6) -> 0 | G164: 0 | H164: =IF($B164=0,0,G164/POWER(1+CALCULADORA!$C$32,Flujos!$B164/365)) -> 0 | I164: 2033-02-15 | J164: 162 | K164: 4929 | L164: 7.139533409e-11 | M164: 0 | N164: 1.307248567e-13 | O164: 1.307248567e-13 | P164: =M164*IFERROR(VLOOKUP($A164,UVR!$A:$B,2,0),CALCULADORA!$C$23) -> 0 | Q164: =N164*IFERROR(VLOOKUP($A164,UVR!$A:$B,2,0),CALCULADORA!$C$23) -> 4.691096779e-11 | R164: =O164*IFERROR(VLOOKUP($A164,UVR!$A:$B,2,0),CALCULADORA!$C$23) -> 4.691096779e-11
A165: 2033-03-15 | B165: =IF(DIAS365(CALCULADORA!$C$30,A165)<0,0,DIAS365(CALCULADORA!$C$30,A165)) -> 3317 | C165: =+HLOOKUP(CALCULADORA!$C$11,Tablas!$B$1:$B$181,Flujos!J165+1,FALSE) -> 0 | D165: 0 | E165: 0 | F165: =ROUND(D164*ROUND(((1+CALCULADORA!$C$19)^(1/12)-1),6),6) -> 0 | G165: 0 | H165: =IF($B165=0,0,G165/POWER(1+CALCULADORA!$C$32,Flujos!$B165/365)) -> 0 | I165: 2033-03-15 | J165: 163 | K165: 4957 | L165: 7.139533409e-11 | M165: 0 | N165: 1.307248567e-13 | O165: 1.307248567e-13 | P165: =M165*IFERROR(VLOOKUP($A165,UVR!$A:$B,2,0),CALCULADORA!$C$23) -> 0 | Q165: =N165*IFERROR(VLOOKUP($A165,UVR!$A:$B,2,0),CALCULADORA!$C$23) -> 4.691096779e-11 | R165: =O165*IFERROR(VLOOKUP($A165,UVR!$A:$B,2,0),CALCULADORA!$C$23) -> 4.691096779e-11
A166: 2033-04-15 | B166: =IF(DIAS365(CALCULADORA!$C$30,A166)<0,0,DIAS365(CALCULADORA!$C$30,A166)) -> 3348 | C166: =+HLOOKUP(CALCULADORA!$C$11,Tablas!$B$1:$B$181,Flujos!J166+1,FALSE) -> 0 | D166: 0 | E166: 0 | F166: =ROUND(D165*ROUND(((1+CALCULADORA!$C$19)^(1/12)-1),6),6) -> 0 | G166: 0 | H166: =IF($B166=0,0,G166/POWER(1+CALCULADORA!$C$32,Flujos!$B166/365)) -> 0 | I166: 2033-04-15 | J166: 164 | K166: 4988 | L166: 7.139533409e-11 | M166: 0 | N166: 1.307248567e-13 | O166: 1.307248567e-13 | P166: =M166*IFERROR(VLOOKUP($A166,UVR!$A:$B,2,0),CALCULADORA!$C$23) -> 0 | Q166: =N166*IFERROR(VLOOKUP($A166,UVR!$A:$B,2,0),CALCULADORA!$C$23) -> 4.691096779e-11 | R166: =O166*IFERROR(VLOOKUP($A166,UVR!$A:$B,2,0),CALCULADORA!$C$23) -> 4.691096779e-11
A167: 2033-05-15 | B167: =IF(DIAS365(CALCULADORA!$C$30,A167)<0,0,DIAS365(CALCULADORA!$C$30,A167)) -> 3378 | C167: =+HLOOKUP(CALCULADORA!$C$11,Tablas!$B$1:$B$181,Flujos!J167+1,FALSE) -> 0 | D167: 0 | E167: 0 | F167: =ROUND(D166*ROUND(((1+CALCULADORA!$C$19)^(1/12)-1),6),6) -> 0 | G167: 0 | H167: =IF($B167=0,0,G167/POWER(1+CALCULADORA!$C$32,Flujos!$B167/365)) -> 0 | I167: 2033-05-15 | J167: 165 | K167: 5018 | L167: 7.139533409e-11 | M167: 0 | N167: 1.307248567e-13 | O167: 1.307248567e-13 | P167: =M167*IFERROR(VLOOKUP($A167,UVR!$A:$B,2,0),CALCULADORA!$C$23) -> 0 | Q167: =N167*IFERROR(VLOOKUP($A167,UVR!$A:$B,2,0),CALCULADORA!$C$23) -> 4.691096779e-11 | R167: =O167*IFERROR(VLOOKUP($A167,UVR!$A:$B,2,0),CALCULADORA!$C$23) -> 4.691096779e-11
A168: 2033-06-15 | B168: =IF(DIAS365(CALCULADORA!$C$30,A168)<0,0,DIAS365(CALCULADORA!$C$30,A168)) -> 3409 | C168: =+HLOOKUP(CALCULADORA!$C$11,Tablas!$B$1:$B$181,Flujos!J168+1,FALSE) -> 0 | D168: 0 | E168: 0 | F168: =ROUND(D167*ROUND(((1+CALCULADORA!$C$19)^(1/12)-1),6),6) -> 0 | G168: 0 | H168: =IF($B168=0,0,G168/POWER(1+CALCULADORA!$C$32,Flujos!$B168/365)) -> 0 | I168: 2033-06-15 | J168: 166 | K168: 5049 | L168: 7.139533409e-11 | M168: 0 | N168: 1.307248567e-13 | O168: 1.307248567e-13 | P168: =M168*IFERROR(VLOOKUP($A168,UVR!$A:$B,2,0),CALCULADORA!$C$23) -> 0 | Q168: =N168*IFERROR(VLOOKUP($A168,UVR!$A:$B,2,0),CALCULADORA!$C$23) -> 4.691096779e-11 | R168: =O168*IFERROR(VLOOKUP($A168,UVR!$A:$B,2,0),CALCULADORA!$C$23) -> 4.691096779e-11
A169: 2033-07-15 | B169: =IF(DIAS365(CALCULADORA!$C$30,A169)<0,0,DIAS365(CALCULADORA!$C$30,A169)) -> 3439 | C169: =+HLOOKUP(CALCULADORA!$C$11,Tablas!$B$1:$B$181,Flujos!J169+1,FALSE) -> 0 | D169: 0 | E169: 0 | F169: =ROUND(D168*ROUND(((1+CALCULADORA!$C$19)^(1/12)-1),6),6) -> 0 | G169: 0 | H169: =IF($B169=0,0,G169/POWER(1+CALCULADORA!$C$32,Flujos!$B169/365)) -> 0 | I169: 2033-07-15 | J169: 167 | K169: 5079 | L169: 7.139533409e-11 | M169: 0 | N169: 1.307248567e-13 | O169: 1.307248567e-13 | P169: =M169*IFERROR(VLOOKUP($A169,UVR!$A:$B,2,0),CALCULADORA!$C$23) -> 0 | Q169: =N169*IFERROR(VLOOKUP($A169,UVR!$A:$B,2,0),CALCULADORA!$C$23) -> 4.691096779e-11 | R169: =O169*IFERROR(VLOOKUP($A169,UVR!$A:$B,2,0),CALCULADORA!$C$23) -> 4.691096779e-11
A170: 2033-08-15 | B170: =IF(DIAS365(CALCULADORA!$C$30,A170)<0,0,DIAS365(CALCULADORA!$C$30,A170)) -> 3470 | C170: =+HLOOKUP(CALCULADORA!$C$11,Tablas!$B$1:$B$181,Flujos!J170+1,FALSE) -> 0 | D170: 0 | E170: 0 | F170: =ROUND(D169*ROUND(((1+CALCULADORA!$C$19)^(1/12)-1),6),6) -> 0 | G170: 0 | H170: =IF($B170=0,0,G170/POWER(1+CALCULADORA!$C$32,Flujos!$B170/365)) -> 0 | I170: 2033-08-15 | J170: 168 | K170: 5110 | L170: 7.139533409e-11 | M170: 0 | N170: 1.307248567e-13 | O170: 1.307248567e-13 | P170: =M170*IFERROR(VLOOKUP($A170,UVR!$A:$B,2,0),CALCULADORA!$C$23) -> 0 | Q170: =N170*IFERROR(VLOOKUP($A170,UVR!$A:$B,2,0),CALCULADORA!$C$23) -> 4.691096779e-11 | R170: =O170*IFERROR(VLOOKUP($A170,UVR!$A:$B,2,0),CALCULADORA!$C$23) -> 4.691096779e-11
A171: 2033-09-15 | B171: =IF(DIAS365(CALCULADORA!$C$30,A171)<0,0,DIAS365(CALCULADORA!$C$30,A171)) -> 3501 | C171: =+HLOOKUP(CALCULADORA!$C$11,Tablas!$B$1:$B$181,Flujos!J171+1,FALSE) -> 0 | D171: 0 | E171: 0 | F171: =ROUND(D170*ROUND(((1+CALCULADORA!$C$19)^(1/12)-1),6),6) -> 0 | G171: 0 | H171: =IF($B171=0,0,G171/POWER(1+CALCULADORA!$C$32,Flujos!$B171/365)) -> 0 | I171: 2033-09-15 | J171: 169 | K171: 5141 | L171: 7.139533409e-11 | M171: 0 | N171: 1.307248567e-13 | O171: 1.307248567e-13 | P171: =M171*IFERROR(VLOOKUP($A171,UVR!$A:$B,2,0),CALCULADORA!$C$23) -> 0 | Q171: =N171*IFERROR(VLOOKUP($A171,UVR!$A:$B,2,0),CALCULADORA!$C$23) -> 4.691096779e-11 | R171: =O171*IFERROR(VLOOKUP($A171,UVR!$A:$B,2,0),CALCULADORA!$C$23) -> 4.691096779e-11
A172: 2033-10-15 | B172: =IF(DIAS365(CALCULADORA!$C$30,A172)<0,0,DIAS365(CALCULADORA!$C$30,A172)) -> 3531 | C172: =+HLOOKUP(CALCULADORA!$C$11,Tablas!$B$1:$B$181,Flujos!J172+1,FALSE) -> 0 | D172: 0 | E172: 0 | F172: =ROUND(D171*ROUND(((1+CALCULADORA!$C$19)^(1/12)-1),6),6) -> 0 | G172: 0 | H172: =IF($B172=0,0,G172/POWER(1+CALCULADORA!$C$32,Flujos!$B172/365)) -> 0 | I172: 2033-10-15 | J172: 170 | K172: 5171 | L172: 7.139533409e-11 | M172: 0 | N172: 1.307248567e-13 | O172: 1.307248567e-13 | P172: =M172*IFERROR(VLOOKUP($A172,UVR!$A:$B,2,0),CALCULADORA!$C$23) -> 0 | Q172: =N172*IFERROR(VLOOKUP($A172,UVR!$A:$B,2,0),CALCULADORA!$C$23) -> 4.691096779e-11 | R172: =O172*IFERROR(VLOOKUP($A172,UVR!$A:$B,2,0),CALCULADORA!$C$23) -> 4.691096779e-11
A173: 2033-11-15 | B173: =IF(DIAS365(CALCULADORA!$C$30,A173)<0,0,DIAS365(CALCULADORA!$C$30,A173)) -> 3562 | C173: =+HLOOKUP(CALCULADORA!$C$11,Tablas!$B$1:$B$181,Flujos!J173+1,FALSE) -> 0 | D173: 0 | E173: 0 | F173: =ROUND(D172*ROUND(((1+CALCULADORA!$C$19)^(1/12)-1),6),6) -> 0 | G173: 0 | H173: =IF($B173=0,0,G173/POWER(1+CALCULADORA!$C$32,Flujos!$B173/365)) -> 0 | I173: 2033-11-15 | J173: 171 | K173: 5202 | L173: 7.139533409e-11 | M173: 0 | N173: 1.307248567e-13 | O173: 1.307248567e-13 | P173: =M173*IFERROR(VLOOKUP($A173,UVR!$A:$B,2,0),CALCULADORA!$C$23) -> 0 | Q173: =N173*IFERROR(VLOOKUP($A173,UVR!$A:$B,2,0),CALCULADORA!$C$23) -> 4.691096779e-11 | R173: =O173*IFERROR(VLOOKUP($A173,UVR!$A:$B,2,0),CALCULADORA!$C$23) -> 4.691096779e-11
A174: 2033-12-15 | B174: =IF(DIAS365(CALCULADORA!$C$30,A174)<0,0,DIAS365(CALCULADORA!$C$30,A174)) -> 3592 | C174: =+HLOOKUP(CALCULADORA!$C$11,Tablas!$B$1:$B$181,Flujos!J174+1,FALSE) -> 0 | D174: 0 | E174: 0 | F174: =ROUND(D173*ROUND(((1+CALCULADORA!$C$19)^(1/12)-1),6),6) -> 0 | G174: 0 | H174: =IF($B174=0,0,G174/POWER(1+CALCULADORA!$C$32,Flujos!$B174/365)) -> 0 | I174: 2033-12-15 | J174: 172 | K174: 5232 | L174: 7.139533409e-11 | M174: 0 | N174: 1.307248567e-13 | O174: 1.307248567e-13 | P174: =M174*IFERROR(VLOOKUP($A174,UVR!$A:$B,2,0),CALCULADORA!$C$23) -> 0 | Q174: =N174*IFERROR(VLOOKUP($A174,UVR!$A:$B,2,0),CALCULADORA!$C$23) -> 4.691096779e-11 | R174: =O174*IFERROR(VLOOKUP($A174,UVR!$A:$B,2,0),CALCULADORA!$C$23) -> 4.691096779e-11
A175: 2034-01-15 | B175: =IF(DIAS365(CALCULADORA!$C$30,A175)<0,0,DIAS365(CALCULADORA!$C$30,A175)) -> 3623 | C175: =+HLOOKUP(CALCULADORA!$C$11,Tablas!$B$1:$B$181,Flujos!J175+1,FALSE) -> 0 | D175: 0 | E175: 0 | F175: =ROUND(D174*ROUND(((1+CALCULADORA!$C$19)^(1/12)-1),6),6) -> 0 | G175: 0 | H175: =IF($B175=0,0,G175/POWER(1+CALCULADORA!$C$32,Flujos!$B175/365)) -> 0 | I175: 2034-01-15 | J175: 173 | K175: 5263 | L175: 7.139533409e-11 | M175: 0 | N175: 1.307248567e-13 | O175: 1.307248567e-13 | P175: =M175*IFERROR(VLOOKUP($A175,UVR!$A:$B,2,0),CALCULADORA!$C$23) -> 0 | Q175: =N175*IFERROR(VLOOKUP($A175,UVR!$A:$B,2,0),CALCULADORA!$C$23) -> 4.691096779e-11 | R175: =O175*IFERROR(VLOOKUP($A175,UVR!$A:$B,2,0),CALCULADORA!$C$23) -> 4.691096779e-11
A176: 2034-02-15 | B176: =IF(DIAS365(CALCULADORA!$C$30,A176)<0,0,DIAS365(CALCULADORA!$C$30,A176)) -> 3654 | C176: =+HLOOKUP(CALCULADORA!$C$11,Tablas!$B$1:$B$181,Flujos!J176+1,FALSE) -> 0 | D176: 0 | E176: 0 | F176: =ROUND(D175*ROUND(((1+CALCULADORA!$C$19)^(1/12)-1),6),6) -> 0 | G176: 0 | H176: =IF($B176=0,0,G176/POWER(1+CALCULADORA!$C$32,Flujos!$B176/365)) -> 0 | I176: 2034-02-15 | J176: 174 | K176: 5294 | L176: 7.139533409e-11 | M176: 0 | N176: 1.307248567e-13 | O176: 1.307248567e-13 | P176: =M176*IFERROR(VLOOKUP($A176,UVR!$A:$B,2,0),CALCULADORA!$C$23) -> 0 | Q176: =N176*IFERROR(VLOOKUP($A176,UVR!$A:$B,2,0),CALCULADORA!$C$23) -> 4.691096779e-11 | R176: =O176*IFERROR(VLOOKUP($A176,UVR!$A:$B,2,0),CALCULADORA!$C$23) -> 4.691096779e-11
A177: 2034-03-15 | B177: =IF(DIAS365(CALCULADORA!$C$30,A177)<0,0,DIAS365(CALCULADORA!$C$30,A177)) -> 3682 | C177: =+HLOOKUP(CALCULADORA!$C$11,Tablas!$B$1:$B$181,Flujos!J177+1,FALSE) -> 0 | D177: 0 | E177: 0 | F177: =ROUND(D176*ROUND(((1+CALCULADORA!$C$19)^(1/12)-1),6),6) -> 0 | G177: 0 | H177: =IF($B177=0,0,G177/POWER(1+CALCULADORA!$C$32,Flujos!$B177/365)) -> 0 | I177: 2034-03-15 | J177: 175 | K177: 5322 | L177: 7.139533409e-11 | M177: 0 | N177: 1.307248567e-13 | O177: 1.307248567e-13 | P177: =M177*IFERROR(VLOOKUP($A177,UVR!$A:$B,2,0),CALCULADORA!$C$23) -> 0 | Q177: =N177*IFERROR(VLOOKUP($A177,UVR!$A:$B,2,0),CALCULADORA!$C$23) -> 4.691096779e-11 | R177: =O177*IFERROR(VLOOKUP($A177,UVR!$A:$B,2,0),CALCULADORA!$C$23) -> 4.691096779e-11
A178: 2034-04-15 | B178: =IF(DIAS365(CALCULADORA!$C$30,A178)<0,0,DIAS365(CALCULADORA!$C$30,A178)) -> 3713 | C178: =+HLOOKUP(CALCULADORA!$C$11,Tablas!$B$1:$B$181,Flujos!J178+1,FALSE) -> 0 | D178: 0 | E178: 0 | F178: =ROUND(D177*ROUND(((1+CALCULADORA!$C$19)^(1/12)-1),6),6) -> 0 | G178: 0 | H178: =IF($B178=0,0,G178/POWER(1+CALCULADORA!$C$32,Flujos!$B178/365)) -> 0 | I178: 2034-04-15 | J178: 176 | K178: 5353 | L178: 7.139533409e-11 | M178: 0 | N178: 1.307248567e-13 | O178: 1.307248567e-13 | P178: =M178*IFERROR(VLOOKUP($A178,UVR!$A:$B,2,0),CALCULADORA!$C$23) -> 0 | Q178: =N178*IFERROR(VLOOKUP($A178,UVR!$A:$B,2,0),CALCULADORA!$C$23) -> 4.691096779e-11 | R178: =O178*IFERROR(VLOOKUP($A178,UVR!$A:$B,2,0),CALCULADORA!$C$23) -> 4.691096779e-11
A179: 2034-05-15 | B179: =IF(DIAS365(CALCULADORA!$C$30,A179)<0,0,DIAS365(CALCULADORA!$C$30,A179)) -> 3743 | C179: =+HLOOKUP(CALCULADORA!$C$11,Tablas!$B$1:$B$181,Flujos!J179+1,FALSE) -> 0 | D179: 0 | E179: 0 | F179: =ROUND(D178*ROUND(((1+CALCULADORA!$C$19)^(1/12)-1),6),6) -> 0 | G179: 0 | H179: =IF($B179=0,0,G179/POWER(1+CALCULADORA!$C$32,Flujos!$B179/365)) -> 0 | I179: 2034-05-15 | J179: 177 | K179: 5383 | L179: 7.139533409e-11 | M179: 0 | N179: 1.307248567e-13 | O179: 1.307248567e-13 | P179: =M179*IFERROR(VLOOKUP($A179,UVR!$A:$B,2,0),CALCULADORA!$C$23) -> 0 | Q179: =N179*IFERROR(VLOOKUP($A179,UVR!$A:$B,2,0),CALCULADORA!$C$23) -> 4.691096779e-11 | R179: =O179*IFERROR(VLOOKUP($A179,UVR!$A:$B,2,0),CALCULADORA!$C$23) -> 4.691096779e-11
A180: 2034-06-15 | B180: =IF(DIAS365(CALCULADORA!$C$30,A180)<0,0,DIAS365(CALCULADORA!$C$30,A180)) -> 3774 | C180: =+HLOOKUP(CALCULADORA!$C$11,Tablas!$B$1:$B$181,Flujos!J180+1,FALSE) -> 0 | D180: 0 | E180: 0 | F180: =ROUND(D179*ROUND(((1+CALCULADORA!$C$19)^(1/12)-1),6),6) -> 0 | G180: 0 | H180: =IF($B180=0,0,G180/POWER(1+CALCULADORA!$C$32,Flujos!$B180/365)) -> 0 | I180: 2034-06-15 | J180: 178 | K180: 5414 | L180: 7.139533409e-11 | M180: 0 | N180: 1.307248567e-13 | O180: 1.307248567e-13 | P180: =M180*IFERROR(VLOOKUP($A180,UVR!$A:$B,2,0),CALCULADORA!$C$23) -> 0 | Q180: =N180*IFERROR(VLOOKUP($A180,UVR!$A:$B,2,0),CALCULADORA!$C$23) -> 4.691096779e-11 | R180: =O180*IFERROR(VLOOKUP($A180,UVR!$A:$B,2,0),CALCULADORA!$C$23) -> 4.691096779e-11
A181: 2034-07-15 | B181: =IF(DIAS365(CALCULADORA!$C$30,A181)<0,0,DIAS365(CALCULADORA!$C$30,A181)) -> 3804 | C181: =+HLOOKUP(CALCULADORA!$C$11,Tablas!$B$1:$B$181,Flujos!J181+1,FALSE) -> 0 | D181: 0 | E181: 0 | F181: =ROUND(D180*ROUND(((1+CALCULADORA!$C$19)^(1/12)-1),6),6) -> 0 | G181: 0 | H181: =IF($B181=0,0,G181/POWER(1+CALCULADORA!$C$32,Flujos!$B181/365)) -> 0 | I181: 2034-07-15 | J181: 179 | K181: 5444 | L181: 7.139533409e-11 | M181: 0 | N181: 1.307248567e-13 | O181: 1.307248567e-13 | P181: =M181*IFERROR(VLOOKUP($A181,UVR!$A:$B,2,0),CALCULADORA!$C$23) -> 0 | Q181: =N181*IFERROR(VLOOKUP($A181,UVR!$A:$B,2,0),CALCULADORA!$C$23) -> 4.691096779e-11 | R181: =O181*IFERROR(VLOOKUP($A181,UVR!$A:$B,2,0),CALCULADORA!$C$23) -> 4.691096779e-11
A182: 2034-08-15 | B182: =IF(DIAS365(CALCULADORA!$C$30,A182)<0,0,DIAS365(CALCULADORA!$C$30,A182)) -> 3835 | C182: =+HLOOKUP(CALCULADORA!$C$11,Tablas!$B$1:$B$181,Flujos!J182+1,FALSE) -> 0 | D182: 0 | E182: 0 | F182: =ROUND(D181*ROUND(((1+CALCULADORA!$C$19)^(1/12)-1),6),6) -> 0 | G182: 0 | H182: =IF($B182=0,0,G182/POWER(1+CALCULADORA!$C$32,Flujos!$B182/365)) -> 0 | I182: 2034-08-15 | J182: 180 | K182: 5475 | L182: 7.139533409e-11 | M182: 0 | N182: 1.307248567e-13 | O182: 1.307248567e-13 | P182: =M182*IFERROR(VLOOKUP($A182,UVR!$A:$B,2,0),CALCULADORA!$C$23) -> 0 | Q182: =N182*IFERROR(VLOOKUP($A182,UVR!$A:$B,2,0),CALCULADORA!$C$23) -> 4.691096779e-11 | R182: =O182*IFERROR(VLOOKUP($A182,UVR!$A:$B,2,0),CALCULADORA!$C$23) -> 4.691096779e-11
C183: =+SUMIF(B2:B182,">0",C2:C182) -> 0.2945499 | E183: =SUM(E2:E182) -> 100 | F183: =SUM(F2:F182) -> 7.43066 | G183: =SUM(G2:G182) -> 107.43066 | H183: =SUM(H2:H182) -> 28.62624015 | L183: Totales | M183: =SUM(M2:M182) -> 1999999.015 | N183: 148613.0561 | O183: 2148612.072 | P183: 636092454 | Q183: 45248692 | R183: 681341146

Sheet TIR de Tenencia (hidden)
A1: =+Flujos!A1 -> Fecha | B1: =+Flujos!L1 -> Saldo / Balance | C1: =+Flujos!M1 -> Pago de Capital en UVR | D1: =+Flujos!N1 -> Pago de Intereses en UVR | E1: =+Flujos!O1 -> Pago Total UVR | F1: =+Flujos!P1 -> Pago de Capital en COP | G1: =+Flujos!Q1 -> Pago de Intereses en COP | H1: =+Flujos!R1 -> Pago Total COP | I1: =+CALCULADORA!C30 -> 2024-02-11 | J1: Fecha | K1: Flujo | L1: Fecha | M1: Flujo 1 | N1: TIR | O1: =+DAY(A2) -> 15 | P1: =+MONTH(J2) -> 3 | Q1: =+YEAR(J2) -> 2021 | S1: =MATCH(MAX('TIR de Tenencia'!L:L),'TIR de Tenencia'!L:L,0) -> 37
A2: =+Flujos!A2 -> 2019-08-15 | B2: =+Flujos!L2 -> 1999999.015 | C2: =+Flujos!M2 -> 0 | D2: =+Flujos!N2 -> 0 | E2: =+Flujos!O2 -> 0 | F2: =+Flujos!P2 -> 0 | G2: =+Flujos!Q2 -> 0 | H2: =+Flujos!R2 -> 0 | J2: =+CALCULADORA!C26 -> 2021-03-14 | K2: =-CALCULADORA!C27 -> -432103915 | L2: =+J2 -> 2021-03-14 | M2: =+K2 -> -432103915 | N2: =+XIRR(M2:M37,L2:L37) -> -0.2147170804 | O2: =+O1 -> 15 | P2: =+IF(P1=12,1,P1+1) -> 4 | Q2: =+IF(P2=1,Q1+1,Q1) -> 2021 | S2: 1 | T2: Enero
A3: =+Flujos!A3 -> 2019-09-15 | B3: =+Flujos!L3 -> 1967872.671 | C3: =+Flujos!M3 -> 32126.34418 | D3: =+Flujos!N3 -> 3661.998197 | E3: =+Flujos!O3 -> 35788.34238 | F3: =+Flujos!P3 -> 8650953.048 | G3: =+Flujos!Q3 -> 986099.5788 | H3: =+Flujos!R3 -> 9637052.627 | J3: =+DATE(Q2,P2,O2) -> 2021-04-15 | K3: =IF(J3<CALCULADORA!$C$26,0,IF(CALCULADORA!$C$30>'TIR de Tenencia'!J3,VLOOKUP(J3,A:H,7),CALCULADORA!$C$36)) -> 758104.6703 | L3: =+IF(K3=K2," ",J3) -> 2021-04-15 | M3: =+IF(K3=K2," ",K3) -> 758104.6703 | O3: =+O2 -> 15 | P3: =+IF(P2=12,1,P2+1) -> 5 | Q3: =+IF(P3=1,Q2+1,Q2) -> 2021 | S3: 2 | T3: Febrero
A4: =+Flujos!A4 -> 2019-10-15 | B4: =+Flujos!L4 -> 1933958.228 | C4: =+Flujos!M4 -> 33914.4433 | D4: =+Flujos!N4 -> 3603.174861 | E4: =+Flujos!O4 -> 37517.61817 | F4: =+Flujos!P4 -> 9130276.854 | G4: =+Flujos!Q4 -> 970028.7202 | H4: =+Flujos!R4 -> 10100305.57 | J4: =+DATE(Q3,P3,O3) -> 2021-05-15 | K4: =IF(J4<CALCULADORA!$C$26,0,IF(CALCULADORA!$C$30>'TIR de Tenencia'!J4,VLOOKUP(J4,A:H,7),CALCULADORA!$C$36)) -> 742971.1403 | L4: =+IF(K4=K3," ",J4) -> 2021-05-15 | M4: =+IF(K4=K3," ",K4) -> 742971.1403 | O4: 15 | P4: =+IF(P3=12,1,P3+1) -> 6 | Q4: =+IF(P4=1,Q3+1,Q3) -> 2021 | S4: 3 | T4: Marzo
A5: =+Flujos!A5 -> 2019-11-15 | B5: =+Flujos!L5 -> 1901455.604 | C5: =+Flujos!M5 -> 32502.624 | D5: =+Flujos!N5 -> 3541.077515 | E5: =+Flujos!O5 -> 36043.70152 | F5: =+Flujos!P5 -> 8780304.351 | G5: =+Flujos!Q5 -> 956591.6375 | H5: =+Flujos!R5 -> 9736895.988 | J5: 2021-06-15 | K5: =IF(J5<CALCULADORA!$C$26,0,IF(CALCULADORA!$C$30>'TIR de Tenencia'!J5,VLOOKUP(J5,A:H,7),CALCULADORA!$C$36)) -> 729620.8275 | L5: 2021-06-15 | M5: 729620.8275 | O5: 15 | P5: 7 | Q5: 2021 | S5: 4 | T5: Abril
A6: =+Flujos!A6 -> 2019-12-15 | B6: =+Flujos!L6 -> 1869393.32 | C6: =+Flujos!M6 -> 32062.28422 | D6: =+Flujos!N6 -> 3481.565211 | E6: =+Flujos!O6 -> 35543.84943 | F6: =+Flujos!P6 -> 8675207.665 | G6: =+Flujos!Q6 -> 942019.6327 | H6: =+Flujos!R6 -> 9617227.297 | J6: 2021-07-15 | K6: =IF(J6<CALCULADORA!$C$26,0,IF(CALCULADORA!$C$30>'TIR de Tenencia'!J6,VLOOKUP(J6,A:H,7),CALCULADORA!$C$36)) -> 723766.8598 | L6: 2021-07-15 | M6: 723766.8598 | O6: 15 | P6: =+IF(P5=12,1,P5+1) -> 8 | Q6: 2021 | S6: 5 | T6: Mayo
A7: =+Flujos!A7 -> 2020-01-15 | B7: =+Flujos!L7 -> 1846399.711 | C7: =+Flujos!M7 -> 22993.60868 | D7: =+Flujos!N7 -> 3422.859168 | E7: =+Flujos!O7 -> 26416.46785 | F7: =+Flujos!P7 -> 6227685.548 | G7: =+Flujos!Q7 -> 927061.5532 | H7: =+Flujos!R7 -> 7154747.101 | J7: 2021-08-15 | K7: =IF(J7<CALCULADORA!$C$26,0,IF(CALCULADORA!$C$30>'TIR de Tenencia'!J7,VLOOKUP(J7,A:H,7),CALCULADORA!$C$36)) -> 706628.2206 | L7: 2021-08-15 | M7: 706628.2206 | O7: 15 | P7: 9 | Q7: 2021 | S7: 6 | T7: Junio
A8: =+Flujos!A8 -> 2020-02-15 | B8: =+Flujos!L8 -> 1801770.013 | C8: =+Flujos!M8 -> 44629.69803 | D8: =+Flujos!N8 -> 3380.757871 | E8: =+Flujos!O8 -> 48010.4559 | F8: =+Flujos!P8 -> 12119123.09 | G8: =+Flujos!Q8 -> 918039.3906 | H8: =+Flujos!R8 -> 13037162.48 | J8: 2021-09-15 | K8: =IF(J8<CALCULADORA!$C$26,0,IF(CALCULADORA!$C$30>'TIR de Tenencia'!J8,VLOOKUP(J8,A:H,7),CALCULADORA!$C$36)) -> 689531.1596 | L8: 2021-09-15 | M8: 689531.1596 | O8: =+O7 -> 15 | P8: 10 | Q8: 2021 | S8: 7 | T8: Julio
A9: =+Flujos!A9 -> 2020-03-15 | B9: =+Flujos!L9 -> 1768509.049 | C9: =+Flujos!M9 -> 33260.96363 | D9: =+Flujos!N9 -> 3299.040894 | E9: =+Flujos!O9 -> 36560.00452 | F9: =+Flujos!P9 -> 9069895.584 | G9: =+Flujos!Q9 -> 899611.8324 | H9: =+Flujos!R9 -> 9969507.417 | J9: 2021-10-15 | K9: =IF(J9<CALCULADORA!$C$26,0,IF(CALCULADORA!$C$30>'TIR de Tenencia'!J9,VLOOKUP(J9,A:H,7),CALCULADORA!$C$36)) -> 678475.9951 | L9: 2021-10-15 | M9: 678475.9951 | O9: =+O8 -> 15 | P9: =+IF(P8=12,1,P8+1) -> 11 | Q9: 2021 | S9: 8 | T9: Agosto
A10: =+Flujos!A10 -> 2020-04-15 | B10: =+Flujos!L10 -> 1754664.776 | C10: =+Flujos!M10 -> 13844.27318 | D10: =+Flujos!N10 -> 3238.140069 | E10: =+Flujos!O10 -> 17082.41325 | F10: =+Flujos!P10 -> 3800473.113 | G10: =+Flujos!Q10 -> 888920.9355 | H10: =+Flujos!R10 -> 4689394.049 | J10: 2021-11-15 | K10: =IF(J10<CALCULADORA!$C$26,0,IF(CALCULADORA!$C$30>'TIR de Tenencia'!J10,VLOOKUP(J10,A:H,7),CALCULADORA!$C$36)) -> 661873.8421 | L10: 2021-11-15 | M10: =+IF(K10=K9," ",K10) -> 661873.8421 | O10: 15 | P10: =+IF(P9=12,1,P9+1) -> 12 | Q10: 2021 | S10: 9 | T10: Septiembre
A11: =+Flujos!A11 -> 2020-05-15 | B11: =+Flujos!L11 -> 1748957.079 | C11: =+Flujos!M11 -> 5707.69719 | D11: =+Flujos!N11 -> 3212.791205 | E11: =+Flujos!O11 -> 8920.488395 | F11: =+Flujos!P11 -> 1575784.465 | G11: =+Flujos!Q11 -> 886989.3236 | H11: =+Flujos!R11 -> 2462773.789 | J11: 2021-12-15 | K11: =IF(J11<CALCULADORA!$C$26,0,IF(CALCULADORA!$C$30>'TIR de Tenencia'!J11,VLOOKUP(J11,A:H,7),CALCULADORA!$C$36)) -> 651052.3889 | L11: 2021-12-15 | M11: 651052.3889 | O11: 15 | P11: =+IF(P10=12,1,P10+1) -> 1 | Q11: 2022 | S11: 10 | T11: Octubre
A12: =+Flujos!A12 -> 2020-06-15 | B12: =+Flujos!L12 -> 1737232.325 | C12: =+Flujos!M12 -> 11724.75423 | D12: =+Flujos!N12 -> 3202.340412 | E12: =+Flujos!O12 -> 14927.09464 | F12: =+Flujos!P12 -> 3242156.006 | G12: =+Flujos!Q12 -> 885518.536 | H12: =+Flujos!R12 -> 4127674.542 | J12: 2022-01-15 | K12: =IF(J12<CALCULADORA!$C$26,0,IF(CALCULADORA!$C$30>'TIR de Tenencia'!J12,VLOOKUP(J12,A:H,7),CALCULADORA!$C$36)) -> 637916.342 | L12: 2022-01-15 | M12: 637916.342 | O12: 15 | P12: 2 | Q12: =+IF(P12=1,Q11+1,Q11) -> 2022 | S12: 11 | T12: Noviembre
A13: =+Flujos!A13 -> 2020-07-15 | B13: =+Flujos!L13 -> 1724497.531 | C13: =+Flujos!M13 -> 12734.79373 | D13: =+Flujos!N13 -> 3180.872387 | E13: =+Flujos!O13 -> 15915.66612 | F13: =+Flujos!P13 -> 3510185.434 | G13: =+Flujos!Q13 -> 876767.3944 | H13: =+Flujos!R13 -> 4386952.828 | J13: 2022-02-15 | K13: =IF(J13<CALCULADORA!$C$26,0,IF(CALCULADORA!$C$30>'TIR de Tenencia'!J13,VLOOKUP(J13,A:H,7),CALCULADORA!$C$36)) -> 626791.2619 | L13: 2022-02-15 | M13: 626791.2619 | O13: 15 | P13: 3 | Q13: 2022 | S13: 12 | T13: Diciembre
A14: =+Flujos!A14 -> 2020-08-15 | B14: =+Flujos!L14 -> 1707148.96 | C14: =+Flujos!M14 -> 17348.57146 | D14: =+Flujos!N14 -> 3157.554979 | E14: =+Flujos!O14 -> 20506.12644 | F14: =+Flujos!P14 -> 4763744.237 | G14: =+Flujos!Q14 -> 867033.0218 | H14: =+Flujos!R14 -> 5630777.259 | J14: 2022-03-15 | K14: =IF(J14<CALCULADORA!$C$26,0,IF(CALCULADORA!$C$30>'TIR de Tenencia'!J14,VLOOKUP(J14,A:H,7),CALCULADORA!$C$36)) -> 624406.7475 | L14: 2022-03-15 | M14: 624406.7475 | O14: 15 | P14: 4 | Q14: 2022
A15: =+Flujos!A15 -> 2020-09-15 | B15: =+Flujos!L15 -> 1679949.053 | C15: =+Flujos!M15 -> 27199.90661 | D15: =+Flujos!N15 -> 3125.789745 | E15: =+Flujos!O15 -> 30325.69636 | F15: =+Flujos!P15 -> 7468822.356 | G15: =+Flujos!Q15 -> 858310.6061 | H15: =+Flujos!R15 -> 8327132.962 | J15: 2022-04-15 | K15: =IF(J15<CALCULADORA!$C$26,0,IF(CALCULADORA!$C$30>'TIR de Tenencia'!J15,VLOOKUP(J15,A:H,7),CALCULADORA!$C$36)) -> 614977.7793 | L15: 2022-04-15 | M15: 614977.7793 | O15: 15 | P15: =+IF(P14=12,1,P14+1) -> 5 | Q15: 2022
A16: =+Flujos!A16 -> 2020-10-15 | B16: =+Flujos!L16 -> 1651605.767 | C16: =+Flujos!M16 -> 28343.28605 | D16: =+Flujos!N16 -> 3075.986716 | E16: =+Flujos!O16 -> 31419.27276 | F16: =+Flujos!P16 -> 7781989.304 | G16: =+Flujos!Q16 -> 844549.0647 | H16: =+Flujos!R16 -> 8626538.368 | J16: 2022-05-15 | K16: =IF(J16<CALCULADORA!$C$26,0,IF(CALCULADORA!$C$30>'TIR de Tenencia'!J16,VLOOKUP(J16,A:H,7),CALCULADORA!$C$36)) -> 602442.2326 | L16: 2022-05-15 | M16: 602442.2326 | O16: 15 | P16: 6 | Q16: 2022
A17: =+Flujos!A17 -> 2020-11-15 | B17: =+Flujos!L17 -> 1620067.722 | C17: =+Flujos!M17 -> 31538.04447 | D17: =+Flujos!N17 -> 3024.090159 | E17: =+Flujos!O17 -> 34562.13463 | F17: =+Flujos!P17 -> 8686870.508 | G17: =+Flujos!Q17 -> 832958.4176 | H17: =+Flujos!R17 -> 9519828.926 | J17: 2022-06-15 | K17: =IF(J17<CALCULADORA!$C$26,0,IF(CALCULADORA!$C$30>'TIR de Tenencia'!J17,VLOOKUP(J17,A:H,7),CALCULADORA!$C$36)) -> 595297.8516 | L17: 2022-06-15 | M17: 595297.8516 | O17: 15 | P17: 7 | Q17: 2022
A18: =+Flujos!A18 -> 2020-12-15 | B18: =+Flujos!L18 -> 1591863.976 | C18: =+Flujos!M18 -> 28203.74612 | D18: =+Flujos!N18 -> 2966.344 | E18: =+Flujos!O18 -> 31170.09012 | F18: =+Flujos!P18 -> 7763808.775 | G18: =+Flujos!Q18 -> 816562.7176 | H18: =+Flujos!R18 -> 8580371.493 | J18: 2022-07-15 | K18: =IF(J18<CALCULADORA!$C$26,0,IF(CALCULADORA!$C$30>'TIR de Tenencia'!J18,VLOOKUP(J18,A:H,7),CALCULADORA!$C$36)) -> 584473.8274 | L18: 2022-07-15 | M18: 584473.8274 | O18: 15 | P18: 8 | Q18: 2022
A19: =+Flujos!A19 -> 2021-01-15 | B19: =+Flujos!L19 -> 1560220.452 | C19: =+Flujos!M19 -> 31643.52442 | D19: =+Flujos!N19 -> 2914.702941 | E19: =+Flujos!O19 -> 34558.22736 | F19: =+Flujos!P19 -> 8697630.889 | G19: =+Flujos!Q19 -> 801143.7029 | H19: =+Flujos!R19 -> 9498774.592 | J19: 2022-08-15 | K19: =IF(J19<CALCULADORA!$C$26,0,IF(CALCULADORA!$C$30>'TIR de Tenencia'!J19,VLOOKUP(J19,A:H,7),CALCULADORA!$C$36)) -> 570684.0275 | L19: 2022-08-15 | M19: 570684.0275 | O19: 15 | P19: 9 | Q19: 2022
A20: =+Flujos!A20 -> 2021-02-15 | B20: =+Flujos!L20 -> 1530746.106 | C20: =+Flujos!M20 -> 29474.34549 | D20: =+Flujos!N20 -> 2856.763648 | E20: =+Flujos!O20 -> 32331.10914 | F20: =+Flujos!P20 -> 8132190.031 | G20: =+Flujos!Q20 -> 788202.2304 | H20: =+Flujos!R20 -> 8920392.261 | J20: 2022-09-15 | K20: =IF(J20<CALCULADORA!$C$26,0,IF(CALCULADORA!$C$30>'TIR de Tenencia'!J20,VLOOKUP(J20,A:H,7),CALCULADORA!$C$36)) -> 559027.141 | L20: 2022-09-15 | M20: 559027.141 | O20: 15 | P20: =+IF(P19=12,1,P19+1) -> 10 | Q20: 2022
A21: =+Flujos!A21 -> 2021-03-15 | B21: =+Flujos!L21 -> 1485012.089 | C21: =+Flujos!M21 -> 45734.01749 | D21: =+Flujos!N21 -> 2802.796121 | E21: =+Flujos!O21 -> 48536.81361 | F21: =+Flujos!P21 -> 12670088.18 | G21: =+Flujos!Q21 -> 776482.7134 | H21: =+Flujos!R21 -> 13446570.89 | J21: 2022-10-15 | K21: =IF(J21<CALCULADORA!$C$26,0,IF(CALCULADORA!$C$30>'TIR de Tenencia'!J21,VLOOKUP(J21,A:H,7),CALCULADORA!$C$36)) -> 547483.532 | L21: 2022-10-15 | M21: 547483.532 | O21: 15 | P21: 11 | Q21: 2022
A22: =+Flujos!A22 -> 2021-04-15 | B22: =+Flujos!L22 -> 1447983.287 | C22: =+Flujos!M22 -> 37028.80177 | D22: =+Flujos!N22 -> 2719.057135 | E22: =+Flujos!O22 -> 39747.85891 | F22: =+Flujos!P22 -> 10324059.47 | G22: =+Flujos!Q22 -> 758104.6703 | H22: =+Flujos!R22 -> 11082164.14 | J22: 2022-11-15 | K22: =IF(J22<CALCULADORA!$C$26,0,IF(CALCULADORA!$C$30>'TIR de Tenencia'!J22,VLOOKUP(J22,A:H,7),CALCULADORA!$C$36)) -> 536448.7607 | L22: 2022-11-15 | M22: 536448.7607 | O22: 15 | P22: 12 | Q22: 2022
A23: =+Flujos!A23 -> 2021-05-15 | B23: =+Flujos!L23 -> 1413624.244 | C23: =+Flujos!M23 -> 34359.04309 | D23: =+Flujos!N23 -> 2651.257399 | E23: =+Flujos!O23 -> 37010.30048 | F23: =+Flujos!P23 -> 9628554.901 | G23: =+Flujos!Q23 -> 742971.1403 | H23: =+Flujos!R23 -> 10371526.04 | J23: 2022-12-15 | K23: =IF(J23<CALCULADORA!$C$26,0,IF(CALCULADORA!$C$30>'TIR de Tenencia'!J23,VLOOKUP(J23,A:H,7),CALCULADORA!$C$36)) -> 524578.8145 | L23: 2022-12-15 | M23: 524578.8145 | O23: 15 | P23: 1 | Q23: 2023
A24: =+Flujos!A24 -> 2021-06-15 | B24: =+Flujos!L24 -> 1388398.177 | C24: =+Flujos!M24 -> 25226.06758 | D24: =+Flujos!N24 -> 2588.345991 | E24: =+Flujos!O24 -> 27814.41357 | F24: =+Flujos!P24 -> 7110897.99 | G24: =+Flujos!Q24 -> 729620.8275 | H24: =+Flujos!R24 -> 7840518.817 | J24: 2023-01-15 | K24: =IF(J24<CALCULADORA!$C$26,0,IF(CALCULADORA!$C$30>'TIR de Tenencia'!J24,VLOOKUP(J24,A:H,7),CALCULADORA!$C$36)) -> 511585.8566 | L24: 2023-01-15 | M24: 511585.8566 | O24: 15 | P24: 2 | Q24: 2023
A25: =+Flujos!A25 -> 2021-07-15 | B25: =+Flujos!L25 -> 1356059.912 | C25: =+Flujos!M25 -> 32338.26408 | D25: =+Flujos!N25 -> 2542.157061 | E25: =+Flujos!O25 -> 34880.42114 | F25: =+Flujos!P25 -> 9206891.346 | G25: =+Flujos!Q25 -> 723766.8598 | H25: =+Flujos!R25 -> 9930658.206 | J25: 2023-02-15 | K25: =IF(J25<CALCULADORA!$C$26,0,IF(CALCULADORA!$C$30>'TIR de Tenencia'!J25,VLOOKUP(J25,A:H,7),CALCULADORA!$C$36)) -> 502280.1524 | L25: 2023-02-15 | M25: 502280.1524 | O25: 15 | P25: 3 | Q25: 2023
A26: =+Flujos!A26 -> 2021-08-15 | B26: =+Flujos!L26 -> 1319164.611 | C26: =+Flujos!M26 -> 36895.30184 | D26: =+Flujos!N26 -> 2482.9457 | E26: =+Flujos!O26 -> 39378.24754 | F26: =+Flujos!P26 -> 10500133.57 | G26: =+Flujos!Q26 -> 706628.2206 | H26: =+Flujos!R26 -> 11206761.79 | J26: 2023-03-15 | K26: =IF(J26<CALCULADORA!$C$26,0,IF(CALCULADORA!$C$30>'TIR de Tenencia'!J26,VLOOKUP(J26,A:H,7),CALCULADORA!$C$36)) -> 498539.3104 | L26: 2023-03-15 | M26: =+IF(K26=K25," ",K26) -> 498539.3104 | O26: 15 | P26: 4 | Q26: 2023
A27: =+Flujos!A27 -> 2021-09-15 | B27: =+Flujos!L27 -> 1292199.864 | C27: =+Flujos!M27 -> 26964.74673 | D27: =+Flujos!N27 -> 2415.390402 | E27: =+Flujos!O27 -> 29380.13713 | F27: =+Flujos!P27 -> 7697734.107 | G27: =+Flujos!Q27 -> 689531.1596 | H27: =+Flujos!R27 -> 8387265.266 | J27: 2023-04-15 | K27: =IF(J27<CALCULADORA!$C$26,0,IF(CALCULADORA!$C$30>'TIR de Tenencia'!J27,VLOOKUP(J27,A:H,7),CALCULADORA!$C$36)) -> 488767.6618 | L27: 2023-04-15 | M27: 488767.6618 | O27: 15 | P27: 5 | Q27: 2023
A28: =+Flujos!A28 -> 2021-10-15 | B28: =+Flujos!L28 -> 1255807.882 | C28: =+Flujos!M28 -> 36391.98209 | D28: =+Flujos!N28 -> 2366.017951 | E28: =+Flujos!O28 -> 38758.00004 | F28: =+Flujos!P28 -> 10435713.83 | G28: =+Flujos!Q28 -> 678475.9951 | H28: =+Flujos!R28 -> 11114189.83 | J28: 2023-05-15 | K28: =IF(J28<CALCULADORA!$C$26,0,IF(CALCULADORA!$C$30>'TIR de Tenencia'!J28,VLOOKUP(J28,A:H,7),CALCULADORA!$C$36)) -> 479748.9205 | L28: 2023-05-15 | M28: 479748.9205 | O28: 15 | P28: 6 | Q28: 2023
A29: =+Flujos!A29 -> 2021-11-15 | B29: =+Flujos!L29 -> 1235152.192 | C29: =+Flujos!M29 -> 20655.68983 | D29: =+Flujos!N29 -> 2299.384232 | E29: =+Flujos!O29 -> 22955.07406 | F29: =+Flujos!P29 -> 5945705.203 | G29: =+Flujos!Q29 -> 661873.8421 | H29: =+Flujos!R29 -> 6607579.045 | J29: 2023-06-15 | K29: =IF(J29<CALCULADORA!$C$26,0,IF(CALCULADORA!$C$30>'TIR de Tenencia'!J29,VLOOKUP(J29,A:H,7),CALCULADORA!$C$36)) -> 469652.8459 | L29: 2023-06-15 | M29: 469652.8459 | O29: 15 | P29: 7 | Q29: 2023
A30: =+Flujos!A30 -> 2021-12-15 | B30: =+Flujos!L30 -> 1204211.947 | C30: =+Flujos!M30 -> 30940.24477 | D30: =+Flujos!N30 -> 2261.563663 | E30: =+Flujos!O30 -> 33201.80843 | F30: =+Flujos!P30 -> 8906987.937 | G30: =+Flujos!Q30 -> 651052.3889 | H30: =+Flujos!R30 -> 9558040.326 | J30: 2023-07-15 | K30: =IF(J30<CALCULADORA!$C$26,0,IF(CALCULADORA!$C$30>'TIR de Tenencia'!J30,VLOOKUP(J30,A:H,7),CALCULADORA!$C$36)) -> 457557.9785 | L30: 2023-07-15 | M30: 457557.9785 | O30: 15 | P30: 8 | Q30: 2023
A31: =+Flujos!A31 -> 2022-01-15 | B31: =+Flujos!L31 -> 1174634.002 | C31: =+Flujos!M31 -> 29577.94544 | D31: =+Flujos!N31 -> 2204.912075 | E31: =+Flujos!O31 -> 31782.85751 | F31: =+Flujos!P31 -> 8557372.863 | G31: =+Flujos!Q31 -> 637916.342 | H31: =+Flujos!R31 -> 9195289.205 | J31: 2023-08-15 | K31: =IF(J31<CALCULADORA!$C$26,0,IF(CALCULADORA!$C$30>'TIR de Tenencia'!J31,VLOOKUP(J31,A:H,7),CALCULADORA!$C$36)) -> 445740.145 | L31: 2023-08-15 | M31: 445740.145 | O31: 15 | P31: 9 | Q31: 2023
A32: =+Flujos!A32 -> 2022-02-15 | B32: =+Flujos!L32 -> 1150944.373 | C32: =+Flujos!M32 -> 23689.62834 | D32: =+Flujos!N32 -> 2150.754857 | E32: =+Flujos!O32 -> 25840.3832 | F32: =+Flujos!P32 -> 6903832.852 | G32: =+Flujos!Q32 -> 626791.2619 | H32: =+Flujos!R32 -> 7530624.114 | J32: 2023-09-15 | K32: =IF(J32<CALCULADORA!$C$26,0,IF(CALCULADORA!$C$30>'TIR de Tenencia'!J32,VLOOKUP(J32,A:H,7),CALCULADORA!$C$36)) -> 435636.0837 | L32: 2023-09-15 | M32: 435636.0837 | O32: 15 | P32: 10 | Q32: 2023
A33: =+Flujos!A33 -> 2022-03-15 | B33: =+Flujos!L33 -> 1115383.631 | C33: =+Flujos!M33 -> 35560.74249 | D33: =+Flujos!N33 -> 2107.379148 | E33: =+Flujos!O33 -> 37668.12164 | F33: =+Flujos!P33 -> 10536484.42 | G33: =+Flujos!Q33 -> 624406.7475 | H33: =+Flujos!R33 -> 11160891.17 | J33: 2023-10-15 | K33: =IF(J33<CALCULADORA!$C$26,0,IF(CALCULADORA!$C$30>'TIR de Tenencia'!J33,VLOOKUP(J33,A:H,7),CALCULADORA!$C$36)) -> 426526.6486 | L33: 2023-10-15 | M33: 426526.6486 | O33: 15 | P33: 11 | Q33: 2023
A34: =+Flujos!A34 -> 2022-04-15 | B34: =+Flujos!L34 -> 1081829.467 | C34: =+Flujos!M34 -> 33554.16348 | D34: =+Flujos!N34 -> 2042.267428 | E34: =+Flujos!O34 -> 35596.43091 | F34: =+Flujos!P34 -> 10103997.48 | G34: =+Flujos!Q34 -> 614977.7793 | H34: =+Flujos!R34 -> 10718975.26 | J34: 2023-11-15 | K34: =IF(J34<CALCULADORA!$C$26,0,IF(CALCULADORA!$C$30>'TIR de Tenencia'!J34,VLOOKUP(J34,A:H,7),CALCULADORA!$C$36)) -> 416958.4286 | L34: 2023-11-15 | M34: 416958.4286 | O34: 15 | P34: 12 | Q34: 2023
A35: =+Flujos!A35 -> 2022-05-15 | B35: =+Flujos!L35 -> 1055802.5 | C35: =+Flujos!M35 -> 26026.96719 | D35: =+Flujos!N35 -> 1980.829755 | E35: =+Flujos!O35 -> 28007.79694 | F35: =+Flujos!P35 -> 7915745.501 | G35: =+Flujos!Q35 -> 602442.2326 | H35: =+Flujos!R35 -> 8518187.733 | J35: =+DATE(Q34,P34,O34) -> 2023-12-15 | K35: =IF(J35<CALCULADORA!$C$26,0,IF(CALCULADORA!$C$30>'TIR de Tenencia'!J35,VLOOKUP(J35,A:H,7),CALCULADORA!$C$36)) -> 407784.3868 | L35: 2023-12-15 | M35: 407784.3868 | O35: 15 | P35: 1 | Q35: 2024
A36: =+Flujos!A36 -> 2022-06-15 | B36: =+Flujos!L36 -> 1027970.314 | C36: =+Flujos!M36 -> 27832.1863 | D36: =+Flujos!N36 -> 1933.174378 | E36: =+Flujos!O36 -> 29765.36068 | F36: =+Flujos!P36 -> 8570587.784 | G36: =+Flujos!Q36 -> 595297.8516 | H36: =+Flujos!R36 -> 9165885.636 | J36: 2024-01-15 | K36: =IF(J36<CALCULADORA!$C$26,0,IF(CALCULADORA!$C$30>'TIR de Tenencia'!J36,VLOOKUP(J36,A:H,7),CALCULADORA!$C$36)) -> 398807.8276 | L36: 2024-01-15 | M36: 398807.8276 | O36: 15 | P36: 2 | Q36: 2024
A37: =+Flujos!A37 -> 2022-07-15 | B37: =+Flujos!L37 -> 998623.8084 | C37: =+Flujos!M37 -> 29346.50555 | D37: =+Flujos!N37 -> 1882.213645 | E37: =+Flujos!O37 -> 31228.7192 | F37: =+Flujos!P37 -> 9112814.833 | G37: =+Flujos!Q37 -> 584473.8274 | H37: =+Flujos!R37 -> 9697288.66 | J37: 2024-02-15 | K37: =IF(J37<CALCULADORA!$C$26,0,IF(CALCULADORA!$C$30>'TIR de Tenencia'!J37,VLOOKUP(J37,A:H,7),CALCULADORA!$C$36)) -> 199700442 | L37: 2024-02-15 | M37: 199700442 | O37: 15 | P37: 3 | Q37: 2024
A38: =+Flujos!A38 -> 2022-08-15 | B38: =+Flujos!L38 -> 970365.7223 | C38: =+Flujos!M38 -> 28258.08609 | D38: =+Flujos!N38 -> 1828.480193 | E38: =+Flujos!O38 -> 30086.56628 | F38: =+Flujos!P38 -> 8819586.036 | G38: =+Flujos!Q38 -> 570684.0275 | H38: =+Flujos!R38 -> 9390270.064 | J38: 2024-03-15 | K38: =IF(J38<CALCULADORA!$C$26,0,IF(CALCULADORA!$C$30>'TIR de Tenencia'!J38,VLOOKUP(J38,A:H,7),CALCULADORA!$C$36)) -> 199700442 | O38: 15 | P38: 4 | Q38: 2024
A39: =+Flujos!A39 -> 2022-09-15 | B39: =+Flujos!L39 -> 940732.6969 | C39: =+Flujos!M39 -> 29633.02541 | D39: =+Flujos!N39 -> 1776.739638 | E39: =+Flujos!O39 -> 31409.76505 | F39: =+Flujos!P39 -> 9323631.4 | G39: =+Flujos!Q39 -> 559027.141 | H39: =+Flujos!R39 -> 9882658.541 | J39: 2024-04-15 | K39: =IF(J39<CALCULADORA!$C$26,0,IF(CALCULADORA!$C$30>'TIR de Tenencia'!J39,VLOOKUP(J39,A:H,7),CALCULADORA!$C$36)) -> 199700442 | O39: 15 | P39: 5 | Q39: 2024
A40: =+Flujos!A40 -> 2022-10-15 | B40: =+Flujos!L40 -> 913278.2304 | C40: =+Flujos!M40 -> 27454.46648 | D40: =+Flujos!N40 -> 1722.481568 | E40: =+Flujos!O40 -> 29176.94805 | F40: =+Flujos!P40 -> 8726286.863 | G40: =+Flujos!Q40 -> 547483.532 | H40: =+Flujos!R40 -> 9273770.395 | J40: 2024-05-15 | K40: =IF(J40<CALCULADORA!$C$26,0,IF(CALCULADORA!$C$30>'TIR de Tenencia'!J40,VLOOKUP(J40,A:H,7),CALCULADORA!$C$36)) -> 199700442 | O40: 15 | P40: 6 | Q40: 2024
A41: =+Flujos!A41 -> 2022-11-15 | B41: =+Flujos!L41 -> 886686.0035 | C41: =+Flujos!M41 -> 26592.22691 | D41: =+Flujos!N41 -> 1672.21244 | E41: =+Flujos!O41 -> 28264.43935 | F41: =+Flujos!P41 -> 8530834.259 | G41: =+Flujos!Q41 -> 536448.7607 | H41: =+Flujos!R41 -> 9067283.019 | J41: 2024-06-15 | K41: =IF(J41<CALCULADORA!$C$26,0,IF(CALCULADORA!$C$30>'TIR de Tenencia'!J41,VLOOKUP(J41,A:H,7),CALCULADORA!$C$36)) -> 199700442 | O41: 15 | P41: 7 | Q41: 2024
A42: =+Flujos!A42 -> 2022-12-15 | B42: =+Flujos!L42 -> 858116.6376 | C42: =+Flujos!M42 -> 28569.36594 | D42: =+Flujos!N42 -> 1623.522072 | E42: =+Flujos!O42 -> 30192.88801 | F42: =+Flujos!P42 -> 9231093.539 | G42: =+Flujos!Q42 -> 524578.8145 | H42: =+Flujos!R42 -> 9755672.353 | J42: 2024-07-15 | K42: =IF(J42<CALCULADORA!$C$26,0,IF(CALCULADORA!$C$30>'TIR de Tenencia'!J42,VLOOKUP(J42,A:H,7),CALCULADORA!$C$36)) -> 199700442 | O42: 15 | P42: 8 | Q42: 2024
A43: =+Flujos!A43 -> 2023-01-15 | B43: =+Flujos!L43 -> 832023.9504 | C43: =+Flujos!M43 -> 26092.68716 | D43: =+Flujos!N43 -> 1571.211563 | E43: =+Flujos!O43 -> 27663.89872 | F43: =+Flujos!P43 -> 8495768.501 | G43: =+Flujos!Q43 -> 511585.8566 | H43: =+Flujos!R43 -> 9007354.357 | J43: 2024-08-15 | K43: =IF(J43<CALCULADORA!$C$26,0,IF(CALCULADORA!$C$30>'TIR de Tenencia'!J43,VLOOKUP(J43,A:H,7),CALCULADORA!$C$36)) -> 199700442 | O43: 15 | P43: 9 | Q43: 2024
A44: =+Flujos!A44 -> 2023-02-15 | B44: =+Flujos!L44 -> 811384.6206 | C44: =+Flujos!M44 -> 20639.32984 | D44: =+Flujos!N44 -> 1523.435853 | E44: =+Flujos!O44 -> 22162.76569 | F44: =+Flujos!P44 -> 6804832.455 | G44: =+Flujos!Q44 -> 502280.1524 | H44: =+Flujos!R44 -> 7307112.607 | J44: 2024-09-15 | K44: =IF(J44<CALCULADORA!$C$26,0,IF(CALCULADORA!$C$30>'TIR de Tenencia'!J44,VLOOKUP(J44,A:H,7),CALCULADORA!$C$36)) -> 199700442 | O44: 15 | P44: 10 | Q44: 2024
A45: =+Flujos!A45 -> 2023-03-15 | B45: =+Flujos!L45 -> 782491.6148 | C45: =+Flujos!M45 -> 28893.00578 | D45: =+Flujos!N45 -> 1485.64524 | E45: =+Flujos!O45 -> 30378.65102 | F45: =+Flujos!P45 -> 9695651.952 | G45: =+Flujos!Q45 -> 498539.3104 | H45: =+Flujos!R45 -> 10194191.26 | J45: 2024-10-15 | K45: =IF(J45<CALCULADORA!$C$26,0,IF(CALCULADORA!$C$30>'TIR de Tenencia'!J45,VLOOKUP(J45,A:H,7),CALCULADORA!$C$36)) -> 199700442 | O45: 15 | P45: 11 | Q45: 2024
A46: =+Flujos!A46 -> 2023-04-15 | B46: =+Flujos!L46 -> 760072.2858 | C46: =+Flujos!M46 -> 22419.32896 | D46: =+Flujos!N46 -> 1432.742147 | E46: =+Flujos!O46 -> 23852.07111 | F46: =+Flujos!P46 -> 7648161.27 | G46: =+Flujos!Q46 -> 488767.6618 | H46: =+Flujos!R46 -> 8136928.931 | J46: 2024-11-15 | K46: =IF(J46<CALCULADORA!$C$26,0,IF(CALCULADORA!$C$30>'TIR de Tenencia'!J46,VLOOKUP(J46,A:H,7),CALCULADORA!$C$36)) -> 199700442 | O46: 15 | P46: 12 | Q46: 2024
A47: =+Flujos!A47 -> 2023-05-15 | B47: =+Flujos!L47 -> 738318.1565 | C47: =+Flujos!M47 -> 21754.12929 | D47: =+Flujos!N47 -> 1391.692355 | E47: =+Flujos!O47 -> 23145.82165 | F47: =+Flujos!P47 -> 7499157.413 | G47: =+Flujos!Q47 -> 479748.9205 | H47: =+Flujos!R47 -> 7978906.334 | J47: 2024-12-15 | K47: =IF(J47<CALCULADORA!$C$26,0,IF(CALCULADORA!$C$30>'TIR de Tenencia'!J47,VLOOKUP(J47,A:H,7),CALCULADORA!$C$36)) -> 199700442 | O47: 15 | P47: 1 | Q47: 2025
A48: =+Flujos!A48 -> 2023-06-15 | B48: =+Flujos!L48 -> 716224.5874 | C48: =+Flujos!M48 -> 22093.56912 | D48: =+Flujos!N48 -> 1351.860545 | E48: =+Flujos!O48 -> 23445.42967 | F48: =+Flujos!P48 -> 7675575.455 | G48: =+Flujos!Q48 -> 469652.8459 | H48: =+Flujos!R48 -> 8145228.301 | J48: 2025-01-15 | K48: =IF(J48<CALCULADORA!$C$26,0,IF(CALCULADORA!$C$30>'TIR de Tenencia'!J48,VLOOKUP(J48,A:H,7),CALCULADORA!$C$36)) -> 199700442 | O48: 15 | P48: 2 | Q48: 2025
A49: =+Flujos!A49 -> 2023-07-15 | B49: =+Flujos!L49 -> 695639.0176 | C49: =+Flujos!M49 -> 20585.56987 | D49: =+Flujos!N49 -> 1311.40722 | E49: =+Flujos!O49 -> 21896.97709 | F49: =+Flujos!P49 -> 7182430.898 | G49: =+Flujos!Q49 -> 457557.9785 | H49: =+Flujos!R49 -> 7639988.877 | J49: 2025-02-15 | K49: =IF(J49<CALCULADORA!$C$26,0,IF(CALCULADORA!$C$30>'TIR de Tenencia'!J49,VLOOKUP(J49,A:H,7),CALCULADORA!$C$36)) -> 199700442 | O49: 15 | P49: 3 | Q49: 2025
A50: =+Flujos!A50 -> 2023-08-15 | B50: =+Flujos!L50 -> 676487.727 | C50: =+Flujos!M50 -> 19151.29057 | D50: =+Flujos!N50 -> 1273.715041 | E50: =+Flujos!O50 -> 20425.00561 | F50: =+Flujos!P50 -> 6702047.759 | G50: =+Flujos!Q50 -> 445740.145 | H50: =+Flujos!R50 -> 7147787.904 | J50: 2025-03-15 | K50: =IF(J50<CALCULADORA!$C$26,0,IF(CALCULADORA!$C$30>'TIR de Tenencia'!J50,VLOOKUP(J50,A:H,7),CALCULADORA!$C$36)) -> 199700442 | O50: 15 | P50: 4 | Q50: 2025
A51: =+Flujos!A51 -> 2023-09-15 | B51: =+Flujos!L51 -> 657737.7962 | C51: =+Flujos!M51 -> 18749.93077 | D51: =+Flujos!N51 -> 1238.649028 | E51: =+Flujos!O51 -> 19988.5798 | F51: =+Flujos!P51 -> 6594399.402 | G51: =+Flujos!Q51 -> 435636.0837 | H51: =+Flujos!R51 -> 7030035.485 | J51: 2025-04-15 | K51: =IF(J51<CALCULADORA!$C$26,0,IF(CALCULADORA!$C$30>'TIR de Tenencia'!J51,VLOOKUP(J51,A:H,7),CALCULADORA!$C$36)) -> 199700442 | O51: 15 | P51: 5 | Q51: 2025
A52: =+Flujos!A52 -> 2023-10-15 | B52: =+Flujos!L52 -> 639529.3652 | C52: =+Flujos!M52 -> 18208.43104 | D52: =+Flujos!N52 -> 1204.317905 | E52: =+Flujos!O52 -> 19412.74894 | F52: =+Flujos!P52 -> 6448779.874 | G52: =+Flujos!Q52 -> 426526.6486 | H52: =+Flujos!R52 -> 6875306.522 | J52: 2025-05-15 | K52: =IF(J52<CALCULADORA!$C$26,0,IF(CALCULADORA!$C$30>'TIR de Tenencia'!J52,VLOOKUP(J52,A:H,7),CALCULADORA!$C$36)) -> 199700442 | O52: 15 | P52: 6 | Q52: 2025
A53: =+Flujos!A53 -> 2023-11-15 | B53: =+Flujos!L53 -> 623898.4929 | C53: =+Flujos!M53 -> 15630.87231 | D53: =+Flujos!N53 -> 1170.978268 | E53: =+Flujos!O53 -> 16801.85057 | F53: =+Flujos!P53 -> 5565794.118 | G53: =+Flujos!Q53 -> 416958.4286 | H53: =+Flujos!R53 -> 5982752.546 | J53: 2025-06-15 | K53: =IF(J53<CALCULADORA!$C$26,0,IF(CALCULADORA!$C$30>'TIR de Tenencia'!J53,VLOOKUP(J53,A:H,7),CALCULADORA!$C$36)) -> 199700442 | O53: 15 | P53: 7 | Q53: 2025
A54: =+Flujos!A54 -> 2023-12-15 | B54: =+Flujos!L54 -> 604589.6824 | C54: =+Flujos!M54 -> 19308.81049 | D54: =+Flujos!N54 -> 1142.35814 | E54: =+Flujos!O54 -> 20451.16864 | F54: =+Flujos!P54 -> 6892612.018 | G54: =+Flujos!Q54 -> 407784.3868 | H54: =+Flujos!R54 -> 7300396.404 | J54: 2025-07-15 | K54: =IF(J54<CALCULADORA!$C$26,0,IF(CALCULADORA!$C$30>'TIR de Tenencia'!J54,VLOOKUP(J54,A:H,7),CALCULADORA!$C$36)) -> 199700442 | O54: 15 | P54: 8 | Q54: 2025
A55: =+Flujos!A55 -> 2024-01-15 | B55: =+Flujos!L55 -> 589099.51 | C55: =+Flujos!M55 -> 15490.17237 | D55: =+Flujos!N55 -> 1107.003708 | E55: =+Flujos!O55 -> 16597.17608 | F55: =+Flujos!P55 -> 5580470.911 | G55: =+Flujos!Q55 -> 398807.8276 | H55: =+Flujos!R55 -> 5979278.739 | J55: 2025-08-15 | K55: =IF(J55<CALCULADORA!$C$26,0,IF(CALCULADORA!$C$30>'TIR de Tenencia'!J55,VLOOKUP(J55,A:H,7),CALCULADORA!$C$36)) -> 199700442 | O55: 15 | P55: 9 | Q55: 2025
A56: =+Flujos!A56 -> 2024-02-15 | B56: =+Flujos!L56 -> 586378.7313 | C56: =+Flujos!M56 -> 2720.778661 | D56: =+Flujos!N56 -> 1078.641203 | E56: =+Flujos!O56 -> 3799.419863 | F56: =+Flujos!P56 -> 975793.3907 | G56: =+Flujos!Q56 -> 386849.1663 | H56: =+Flujos!R56 -> 1362642.557 | J56: 2025-09-15 | K56: =IF(J56<CALCULADORA!$C$26,0,IF(CALCULADORA!$C$30>'TIR de Tenencia'!J56,VLOOKUP(J56,A:H,7),CALCULADORA!$C$36)) -> 199700442 | O56: 15 | P56: 10 | Q56: 2025
A57: =+Flujos!A57 -> 2024-03-15 | B57: =+Flujos!L57 -> 571873.9785 | C57: =+Flujos!M57 -> 14504.75286 | D57: =+Flujos!N57 -> 1073.659457 | E57: =+Flujos!O57 -> 15578.41232 | F57: =+Flujos!P57 -> 5172514.486 | G57: =+Flujos!Q57 -> 382875.8165 | H57: =+Flujos!R57 -> 5555390.303 | J57: 2025-10-15 | K57: =IF(J57<CALCULADORA!$C$26,0,IF(CALCULADORA!$C$30>'TIR de Tenencia'!J57,VLOOKUP(J57,A:H,7),CALCULADORA!$C$36)) -> 199700442 | O57: 15 | P57: 11 | Q57: 2025
A58: =+Flujos!A58 -> 2024-04-15 | B58: =+Flujos!L58 -> 557688.0055 | C58: =+Flujos!M58 -> 14185.97302 | D58: =+Flujos!N58 -> 1047.101255 | E58: =+Flujos!O58 -> 15233.07427 | F58: =+Flujos!P58 -> 5083279.446 | G58: =+Flujos!Q58 -> 375209.2492 | H58: =+Flujos!R58 -> 5458488.695 | J58: 2025-11-15 | K58: =IF(J58<CALCULADORA!$C$26,0,IF(CALCULADORA!$C$30>'TIR de Tenencia'!J58,VLOOKUP(J58,A:H,7),CALCULADORA!$C$36)) -> 199700442 | O58: 15 | P58: 12 | Q58: 2025
A59: =+Flujos!A59 -> 2024-05-15 | B59: =+Flujos!L59 -> 543806.7123 | C59: =+Flujos!M59 -> 13881.29317 | D59: =+Flujos!N59 -> 1021.126738 | E59: =+Flujos!O59 -> 14902.4199 | F59: =+Flujos!P59 -> 5024268.016 | G59: =+Flujos!Q59 -> 369591.9644 | H59: =+Flujos!R59 -> 5393859.98 | J59: 2025-12-15 | K59: =IF(J59<CALCULADORA!$C$26,0,IF(CALCULADORA!$C$30>'TIR de Tenencia'!J59,VLOOKUP(J59,A:H,7),CALCULADORA!$C$36)) -> 199700442 | O59: 15 | P59: 1 | Q59: 2026
A60: =+Flujos!A60 -> 2024-06-15 | B60: =+Flujos!L60 -> 526666.1407 | C60: =+Flujos!M60 -> 17140.57156 | D60: =+Flujos!N60 -> 995.7100902 | E60: =+Flujos!O60 -> 18136.28165 | F60: =+Flujos!P60 -> 6267372.288 | G60: =+Flujos!Q60 -> 364076.8806 | H60: =+Flujos!R60 -> 6631449.168 | J60: 2026-01-15 | K60: =IF(J60<CALCULADORA!$C$26,0,IF(CALCULADORA!$C$30>'TIR de Tenencia'!J60,VLOOKUP(J60,A:H,7),CALCULADORA!$C$36)) -> 199700442 | O60: 15 | P60: 2 | Q60: 2026
A61: =+Flujos!A61 -> 2024-07-15 | B61: =+Flujos!L61 -> 509772.0291 | C61: =+Flujos!M61 -> 16894.11168 | D61: =+Flujos!N61 -> 964.3257037 | E61: =+Flujos!O61 -> 17858.43739 | F61: =+Flujos!P61 -> 6237960.42 | G61: =+Flujos!Q61 -> 356066.4026 | H61: =+Flujos!R61 -> 6594026.823 | J61: 2026-02-15 | K61: =IF(J61<CALCULADORA!$C$26,0,IF(CALCULADORA!$C$30>'TIR de Tenencia'!J61,VLOOKUP(J61,A:H,7),CALCULADORA!$C$36)) -> 199700442 | O61: 15 | P61: 3 | Q61: 2026
A62: =+Flujos!A62 -> 2024-08-15 | B62: =+Flujos!L62 -> 493587.477 | C62: =+Flujos!M62 -> 16184.55203 | D62: =+Flujos!N62 -> 933.3925852 | E62: =+Flujos!O62 -> 17117.94462 | F62: =+Flujos!P62 -> 6019279.194 | G62: =+Flujos!Q62 -> 347142.7913 | H62: =+Flujos!R62 -> 6366421.986 | J62: 2026-03-15 | K62: =IF(J62<CALCULADORA!$C$26,0,IF(CALCULADORA!$C$30>'TIR de Tenencia'!J62,VLOOKUP(J62,A:H,7),CALCULADORA!$C$36)) -> 199700442 | O62: 15 | P62: 4 | Q62: 2026
A63: =+Flujos!A63 -> 2024-09-15 | B63: =+Flujos!L63 -> 477167.9851 | C63: =+Flujos!M63 -> 16419.49192 | D63: =+Flujos!N63 -> 903.7586704 | E63: =+Flujos!O63 -> 17323.25059 | F63: =+Flujos!P63 -> 6124779.667 | G63: =+Flujos!Q63 -> 337119.002 | H63: =+Flujos!R63 -> 6461898.669 | J63: 2026-04-15 | K63: =IF(J63<CALCULADORA!$C$26,0,IF(CALCULADORA!$C$30>'TIR de Tenencia'!J63,VLOOKUP(J63,A:H,7),CALCULADORA!$C$36)) -> 199700442 | O63: 15 | P63: 5 | Q63: 2026
A64: =+Flujos!A64 -> 2024-10-15 | B64: =+Flujos!L64 -> 460958.0931 | C64: =+Flujos!M64 -> 16209.89202 | D64: =+Flujos!N64 -> 873.6945807 | E64: =+Flujos!O64 -> 17083.5866 | F64: =+Flujos!P64 -> 6053057.97 | G64: =+Flujos!Q64 -> 326252.8793 | H64: =+Flujos!R64 -> 6379310.849 | J64: 2026-05-15 | K64: =IF(J64<CALCULADORA!$C$26,0,IF(CALCULADORA!$C$30>'TIR de Tenencia'!J64,VLOOKUP(J64,A:H,7),CALCULADORA!$C$36)) -> 199700442 | O64: 15 | P64: 6 | Q64: 2026
A65: =+Flujos!A65 -> 2024-11-15 | B65: =+Flujos!L65 -> 444901.861 | C65: =+Flujos!M65 -> 16056.2321 | D65: =+Flujos!N65 -> 844.0142684 | E65: =+Flujos!O65 -> 16900.24636 | F65: =+Flujos!P65 -> 6002815.446 | G65: =+Flujos!Q65 -> 315544.8836 | H65: =+Flujos!R65 -> 6318360.33 | J65: 2026-06-15 | K65: =IF(J65<CALCULADORA!$C$26,0,IF(CALCULADORA!$C$30>'TIR de Tenencia'!J65,VLOOKUP(J65,A:H,7),CALCULADORA!$C$36)) -> 199700442 | O65: 15 | P65: 7 | Q65: 2026
A66: =+Flujos!A66 -> 2024-12-15 | B66: =+Flujos!L66 -> 429051.2888 | C66: =+Flujos!M66 -> 15850.5722 | D66: =+Flujos!N66 -> 814.6153075 | E66: =+Flujos!O66 -> 16665.1875 | F66: =+Flujos!P66 -> 5933299.373 | G66: =+Flujos!Q66 -> 304932.619 | H66: =+Flujos!R66 -> 6238231.992 | J66: 2026-07-15 | K66: =IF(J66<CALCULADORA!$C$26,0,IF(CALCULADORA!$C$30>'TIR de Tenencia'!J66,VLOOKUP(J66,A:H,7),CALCULADORA!$C$36)) -> 199700442 | O66: 15 | P66: 8 | Q66: 2026
A67: =+Flujos!A67 -> 2025-01-15 | B67: =+Flujos!L67 -> 413306.8365 | C67: =+Flujos!M67 -> 15744.45225 | D67: =+Flujos!N67 -> 785.5929098 | E67: =+Flujos!O67 -> 16530.04516 | F67: =+Flujos!P67 -> 5901785.619 | G67: =+Flujos!Q67 -> 294478.3892 | H67: =+Flujos!R67 -> 6196264.008 | J67: =+DATE(Q66,P66,O66) -> 2026-08-15 | K67: =IF(J67<CALCULADORA!$C$26,0,IF(CALCULADORA!$C$30>'TIR de Tenencia'!J67,VLOOKUP(J67,A:H,7),CALCULADORA!$C$36)) -> 199700442 | O67: =+O66 -> 15 | P67: =+IF(P66=12,1,P66+1) -> 9 | Q67: 2026
A68: =+Flujos!A68 -> 2025-02-15 | B68: =+Flujos!L68 -> 397728.1442 | C68: =+Flujos!M68 -> 15578.69233 | D68: =+Flujos!N68 -> 756.7648177 | E68: =+Flujos!O68 -> 16335.45715 | F68: =+Flujos!P68 -> 5840460.131 | G68: =+Flujos!Q68 -> 283711.537 | H68: =+Flujos!R68 -> 6124171.668 | J68: 2026-09-15 | K68: =IF(J68<CALCULADORA!$C$26,0,IF(CALCULADORA!$C$30>'TIR de Tenencia'!J68,VLOOKUP(J68,A:H,7),CALCULADORA!$C$36)) -> 199700442 | L68: =+IF(K68=K67," ",J68) ->  | M68: =+IF(K68=K67," ",K68) ->  | O68: 15 | P68: 10 | Q68: 2026
A69: =+Flujos!A69 -> 2025-03-15 | B69: =+Flujos!L69 -> 382762.3316 | C69: =+Flujos!M69 -> 14965.81263 | D69: =+Flujos!N69 -> 728.240232 | E69: =+Flujos!O69 -> 15694.05286 | F69: =+Flujos!P69 -> 5606057.866 | G69: =+Flujos!Q69 -> 272792.1952 | H69: =+Flujos!R69 -> 5878850.061 | J69: 2026-10-15 | K69: =IF(J69<CALCULADORA!$C$26,0,IF(CALCULADORA!$C$30>'TIR de Tenencia'!J69,VLOOKUP(J69,A:H,7),CALCULADORA!$C$36)) -> 199700442 | O69: 15 | P69: 11 | Q69: 2026
A70: =+Flujos!A70 -> 2025-04-15 | B70: =+Flujos!L70 -> 368309.0187 | C70: =+Flujos!M70 -> 14453.31288 | D70: =+Flujos!N70 -> 700.8378291 | E70: =+Flujos!O70 -> 15154.15071 | F70: =+Flujos!P70 -> 5421666.329 | G70: =+Flujos!Q70 -> 262895.3577 | H70: =+Flujos!R70 -> 5684561.687 | J70: 2026-11-15 | K70: =IF(J70<CALCULADORA!$C$26,0,IF(CALCULADORA!$C$30>'TIR de Tenencia'!J70,VLOOKUP(J70,A:H,7),CALCULADORA!$C$36)) -> 199700442 | O70: 15 | P70: 12 | Q70: 2026
A71: =+Flujos!A71 -> 2025-05-15 | B71: =+Flujos!L71 -> 354158.9857 | C71: =+Flujos!M71 -> 14150.03303 | D71: =+Flujos!N71 -> 674.3738132 | E71: =+Flujos!O71 -> 14824.40685 | F71: =+Flujos!P71 -> 5340396.544 | G71: =+Flujos!Q71 -> 254516.9734 | H71: =+Flujos!R71 -> 5594913.518 | J71: 2026-12-15 | K71: =IF(J71<CALCULADORA!$C$26,0,IF(CALCULADORA!$C$30>'TIR de Tenencia'!J71,VLOOKUP(J71,A:H,7),CALCULADORA!$C$36)) -> 199700442 | O71: 15 | P71: 1 | Q71: 2027
A72: =+Flujos!A72 -> 2025-06-15 | B72: =+Flujos!L72 -> 340307.4325 | C72: =+Flujos!M72 -> 13851.55318 | D72: =+Flujos!N72 -> 648.4651027 | E72: =+Flujos!O72 -> 14500.01828 | F72: =+Flujos!P72 -> 5270720.068 | G72: =+Flujos!Q72 -> 246750.5258 | H72: =+Flujos!R72 -> 5517470.594 | J72: 2027-01-15 | K72: =IF(J72<CALCULADORA!$C$26,0,IF(CALCULADORA!$C$30>'TIR de Tenencia'!J72,VLOOKUP(J72,A:H,7),CALCULADORA!$C$36)) -> 199700442 | O72: 15 | P72: 2 | Q72: 2027
A73: =+Flujos!A73 -> 2025-07-15 | B73: =+Flujos!L73 -> 326747.6991 | C73: =+Flujos!M73 -> 13559.73332 | D73: =+Flujos!N73 -> 623.1029089 | E73: =+Flujos!O73 -> 14182.83623 | F73: =+Flujos!P73 -> 5196245.257 | G73: =+Flujos!Q73 -> 238780.1779 | H73: =+Flujos!R73 -> 5435025.435 | J73: 2027-02-15 | K73: =IF(J73<CALCULADORA!$C$26,0,IF(CALCULADORA!$C$30>'TIR de Tenencia'!J73,VLOOKUP(J73,A:H,7),CALCULADORA!$C$36)) -> 199700442 | O73: 15 | P73: 3 | Q73: 2027
A74: =+Flujos!A74 -> 2025-08-15 | B74: =+Flujos!L74 -> 313484.5657 | C74: =+Flujos!M74 -> 13263.13347 | D74: =+Flujos!N74 -> 598.2750371 | E74: =+Flujos!O74 -> 13861.40851 | F74: =+Flujos!P74 -> 5112754.581 | G74: =+Flujos!Q74 -> 230626.7553 | H74: =+Flujos!R74 -> 5343381.336 | J74: 2027-03-15 | K74: =IF(J74<CALCULADORA!$C$26,0,IF(CALCULADORA!$C$30>'TIR de Tenencia'!J74,VLOOKUP(J74,A:H,7),CALCULADORA!$C$36)) -> 199700442 | O74: 15 | P74: 4 | Q74: 2027
A75: =+Flujos!A75 -> 2025-09-15 | B75: =+Flujos!L75 -> 301046.6918 | C75: =+Flujos!M75 -> 12437.87388 | D75: =+Flujos!N75 -> 573.9902398 | E75: =+Flujos!O75 -> 13011.86412 | F75: =+Flujos!P75 -> 4808951.197 | G75: =+Flujos!Q75 -> 221926.2776 | H75: =+Flujos!R75 -> 5030877.475 | J75: 2027-04-15 | K75: =IF(J75<CALCULADORA!$C$26,0,IF(CALCULADORA!$C$30>'TIR de Tenencia'!J75,VLOOKUP(J75,A:H,7),CALCULADORA!$C$36)) -> 199700442 | O75: 15 | P75: 5 | Q75: 2027
A76: =+Flujos!A76 -> 2025-10-15 | B76: =+Flujos!L76 -> 288342.4381 | C76: =+Flujos!M76 -> 12704.25375 | D76: =+Flujos!N76 -> 551.2164927 | E76: =+Flujos!O76 -> 13255.47024 | F76: =+Flujos!P76 -> 4912385.202 | G76: =+Flujos!Q76 -> 213140.2439 | H76: =+Flujos!R76 -> 5125525.446 | J76: 2027-05-15 | K76: =IF(J76<CALCULADORA!$C$26,0,IF(CALCULADORA!$C$30>'TIR de Tenencia'!J76,VLOOKUP(J76,A:H,7),CALCULADORA!$C$36)) -> 199700442 | O76: 15 | P76: 6 | Q76: =+IF(P76=1,Q75+1,Q75) -> 2027
A77: =+Flujos!A77 -> 2025-11-15 | B77: =+Flujos!L77 -> 275911.1842 | C77: =+Flujos!M77 -> 12431.25388 | D77: =+Flujos!N77 -> 527.9550041 | E77: =+Flujos!O77 -> 12959.20888 | F77: =+Flujos!P77 -> 4807723.004 | G77: =+Flujos!Q77 -> 204183.8613 | H77: =+Flujos!R77 -> 5011906.865 | J77: 2027-06-15 | K77: =IF(J77<CALCULADORA!$C$26,0,IF(CALCULADORA!$C$30>'TIR de Tenencia'!J77,VLOOKUP(J77,A:H,7),CALCULADORA!$C$36)) -> 199700442 | O77: 15 | P77: 7 | Q77: 2027
A78: =+Flujos!A78 -> 2025-12-15 | B78: =+Flujos!L78 -> 263751.0302 | C78: =+Flujos!M78 -> 12160.15401 | D78: =+Flujos!N78 -> 505.1933782 | E78: =+Flujos!O78 -> 12665.34739 | F78: =+Flujos!P78 -> 4709301.547 | G78: =+Flujos!Q78 -> 195647.8475 | H78: =+Flujos!R78 -> 4904949.394 | J78: 2027-07-15 | K78: =IF(J78<CALCULADORA!$C$26,0,IF(CALCULADORA!$C$30>'TIR de Tenencia'!J78,VLOOKUP(J78,A:H,7),CALCULADORA!$C$36)) -> 199700442 | O78: 15 | P78: 8 | Q78: 2027
A79: =+Flujos!A79 -> 2026-01-15 | B79: =+Flujos!L79 -> 251849.276 | C79: =+Flujos!M79 -> 11901.75414 | D79: =+Flujos!N79 -> 482.9281362 | E79: =+Flujos!O79 -> 12384.68228 | F79: =+Flujos!P79 -> 4270976.608 | G79: =+Flujos!Q79 -> 173300.0656 | H79: =+Flujos!R79 -> 4444276.674 | J79: 2027-08-15 | K79: =IF(J79<CALCULADORA!$C$26,0,IF(CALCULADORA!$C$30>'TIR de Tenencia'!J79,VLOOKUP(J79,A:H,7),CALCULADORA!$C$36)) -> 199700442 | O79: 15 | P79: 9 | Q79: 2027
A80: =+Flujos!A80 -> 2026-02-15 | B80: =+Flujos!L80 -> 240214.8417 | C80: =+Flujos!M80 -> 11634.43427 | D80: =+Flujos!N80 -> 461.1360244 | E80: =+Flujos!O80 -> 12095.5703 | F80: =+Flujos!P80 -> 4175048.152 | G80: =+Flujos!Q80 -> 165479.9074 | H80: =+Flujos!R80 -> 4340528.059 | J80: 2027-09-15 | K80: =IF(J80<CALCULADORA!$C$26,0,IF(CALCULADORA!$C$30>'TIR de Tenencia'!J80,VLOOKUP(J80,A:H,7),CALCULADORA!$C$36)) -> 199700442 | O80: 15 | P80: 10 | Q80: 2027
A81: =+Flujos!A81 -> 2026-03-15 | B81: =+Flujos!L81 -> 228843.3073 | C81: =+Flujos!M81 -> 11371.5344 | D81: =+Flujos!N81 -> 439.8333752 | E81: =+Flujos!O81 -> 11811.36778 | F81: =+Flujos!P81 -> 4080705.823 | G81: =+Flujos!Q81 -> 157835.3943 | H81: =+Flujos!R81 -> 4238541.218 | J81: 2027-10-15 | K81: =IF(J81<CALCULADORA!$C$26,0,IF(CALCULADORA!$C$30>'TIR de Tenencia'!J81,VLOOKUP(J81,A:H,7),CALCULADORA!$C$36)) -> 199700442 | O81: 15 | P81: 11 | Q81: 2027
A82: =+Flujos!A82 -> 2026-04-15 | B82: =+Flujos!L82 -> 217715.4928 | C82: =+Flujos!M82 -> 11127.81452 | D82: =+Flujos!N82 -> 419.0120958 | E82: =+Flujos!O82 -> 11546.82662 | F82: =+Flujos!P82 -> 3993246.286 | G82: =+Flujos!Q82 -> 150363.6219 | H82: =+Flujos!R82 -> 4143609.908 | J82: 2027-11-15 | K82: =IF(J82<CALCULADORA!$C$26,0,IF(CALCULADORA!$C$30>'TIR de Tenencia'!J82,VLOOKUP(J82,A:H,7),CALCULADORA!$C$36)) -> 199700442 | O82: 15 | P82: 12 | Q82: 2027
A83: =+Flujos!A83 -> 2026-05-15 | B83: =+Flujos!L83 -> 206825.5582 | C83: =+Flujos!M83 -> 10889.93464 | D83: =+Flujos!N83 -> 398.6370674 | E83: =+Flujos!O83 -> 11288.57171 | F83: =+Flujos!P83 -> 3907882.448 | G83: =+Flujos!Q83 -> 143051.9879 | H83: =+Flujos!R83 -> 4050934.436 | J83: 2027-12-15 | K83: =IF(J83<CALCULADORA!$C$26,0,IF(CALCULADORA!$C$30>'TIR de Tenencia'!J83,VLOOKUP(J83,A:H,7),CALCULADORA!$C$36)) -> 199700442 | O83: 15 | P83: 1 | Q83: 2028
A84: =+Flujos!A84 -> 2026-06-15 | B84: =+Flujos!L84 -> 196188.3034 | C84: =+Flujos!M84 -> 10637.25476 | D84: =+Flujos!N84 -> 378.697597 | E84: =+Flujos!O84 -> 11015.95236 | F84: =+Flujos!P84 -> 3817207.592 | G84: =+Flujos!Q84 -> 135896.6552 | H84: =+Flujos!R84 -> 3953104.248 | J84: 2028-01-15 | K84: =IF(J84<CALCULADORA!$C$26,0,IF(CALCULADORA!$C$30>'TIR de Tenencia'!J84,VLOOKUP(J84,A:H,7),CALCULADORA!$C$36)) -> 199700442 | O84: 15 | P84: 2 | Q84: 2028
A85: =+Flujos!A85 -> 2026-07-15 | B85: =+Flujos!L85 -> 185797.5685 | C85: =+Flujos!M85 -> 10390.73488 | D85: =+Flujos!N85 -> 359.2207836 | E85: =+Flujos!O85 -> 10749.95567 | F85: =+Flujos!P85 -> 3728743.268 | G85: =+Flujos!Q85 -> 128907.3481 | H85: =+Flujos!R85 -> 3857650.617 | J85: 2028-02-15 | K85: =IF(J85<CALCULADORA!$C$26,0,IF(CALCULADORA!$C$30>'TIR de Tenencia'!J85,VLOOKUP(J85,A:H,7),CALCULADORA!$C$36)) -> 199700442 | O85: 15 | P85: 3 | Q85: 2028
A86: =+Flujos!A86 -> 2026-08-15 | B86: =+Flujos!L86 -> 175642.7135 | C86: =+Flujos!M86 -> 10154.855 | D86: =+Flujos!N86 -> 340.195348 | E86: =+Flujos!O86 -> 10495.05035 | F86: =+Flujos!P86 -> 3644097.135 | G86: =+Flujos!Q86 -> 122080.0192 | H86: =+Flujos!R86 -> 3766177.154 | J86: 2028-03-15 | K86: =IF(J86<CALCULADORA!$C$26,0,IF(CALCULADORA!$C$30>'TIR de Tenencia'!J86,VLOOKUP(J86,A:H,7),CALCULADORA!$C$36)) -> 199700442 | O86: 15 | P86: 4 | Q86: 2028
A87: =+Flujos!A87 -> 2026-09-15 | B87: =+Flujos!L87 -> 166304.5181 | C87: =+Flujos!M87 -> 9338.195403 | D87: =+Flujos!N87 -> 321.6018085 | E87: =+Flujos!O87 -> 9659.797212 | F87: =+Flujos!P87 -> 3351036.634 | G87: =+Flujos!Q87 -> 115407.6773 | H87: =+Flujos!R87 -> 3466444.311 | J87: 2028-04-15 | K87: =IF(J87<CALCULADORA!$C$26,0,IF(CALCULADORA!$C$30>'TIR de Tenencia'!J87,VLOOKUP(J87,A:H,7),CALCULADORA!$C$36)) -> 199700442 | O87: 15 | P87: 5 | Q87: 2028
A88: =+Flujos!A88 -> 2026-10-15 | B88: =+Flujos!L88 -> 156628.2429 | C88: =+Flujos!M88 -> 9676.275237 | D88: =+Flujos!N88 -> 304.5035727 | E88: =+Flujos!O88 -> 9980.778809 | F88: =+Flujos!P88 -> 3472357.495 | G88: =+Flujos!Q88 -> 109271.9292 | H88: =+Flujos!R88 -> 3581629.424 | J88: 2028-05-15 | K88: =IF(J88<CALCULADORA!$C$26,0,IF(CALCULADORA!$C$30>'TIR de Tenencia'!J88,VLOOKUP(J88,A:H,7),CALCULADORA!$C$36)) -> 199700442 | O88: 15 | P88: 6 | Q88: 2028
A89: =+Flujos!A89 -> 2026-11-15 | B89: =+Flujos!L89 -> 147171.9076 | C89: =+Flujos!M89 -> 9456.335345 | D89: =+Flujos!N89 -> 286.7863127 | E89: =+Flujos!O89 -> 9743.121658 | F89: =+Flujos!P89 -> 3393431.471 | G89: =+Flujos!Q89 -> 102914.0427 | H89: =+Flujos!R89 -> 3496345.513 | J89: 2028-06-15 | K89: =IF(J89<CALCULADORA!$C$26,0,IF(CALCULADORA!$C$30>'TIR de Tenencia'!J89,VLOOKUP(J89,A:H,7),CALCULADORA!$C$36)) -> 199700442 | O89: 15 | P89: 7 | Q89: 2028
A90: =+Flujos!A90 -> 2026-12-15 | B90: =+Flujos!L90 -> 137933.4521 | C90: =+Flujos!M90 -> 9238.455452 | D90: =+Flujos!N90 -> 269.4717627 | E90: =+Flujos!O90 -> 9507.927215 | F90: =+Flujos!P90 -> 3315244.683 | G90: =+Flujos!Q90 -> 96700.66963 | H90: =+Flujos!R90 -> 3411945.352 | J90: 2028-07-15 | K90: =IF(J90<CALCULADORA!$C$26,0,IF(CALCULADORA!$C$30>'TIR de Tenencia'!J90,VLOOKUP(J90,A:H,7),CALCULADORA!$C$36)) -> 199700442 | O90: 15 | P90: 8 | Q90: 2028
A91: =+Flujos!A91 -> 2027-01-15 | B91: =+Flujos!L91 -> 128905.6765 | C91: =+Flujos!M91 -> 9027.775556 | D91: =+Flujos!N91 -> 252.5561508 | E91: =+Flujos!O91 -> 9280.331707 | F91: =+Flujos!P91 -> 3239641.633 | G91: =+Flujos!Q91 -> 90630.45661 | H91: =+Flujos!R91 -> 3330272.09 | J91: 2028-08-15 | K91: =IF(J91<CALCULADORA!$C$26,0,IF(CALCULADORA!$C$30>'TIR de Tenencia'!J91,VLOOKUP(J91,A:H,7),CALCULADORA!$C$36)) -> 199700442 | O91: 15 | P91: 9 | Q91: 2028
A92: =+Flujos!A92 -> 2027-02-15 | B92: =+Flujos!L92 -> 120092.5009 | C92: =+Flujos!M92 -> 8813.175661 | D92: =+Flujos!N92 -> 236.0262937 | E92: =+Flujos!O92 -> 9049.201955 | F92: =+Flujos!P92 -> 3162631.882 | G92: =+Flujos!Q92 -> 84698.67278 | H92: =+Flujos!R92 -> 3247330.554 | J92: 2028-09-15 | K92: =IF(J92<CALCULADORA!$C$26,0,IF(CALCULADORA!$C$30>'TIR de Tenencia'!J92,VLOOKUP(J92,A:H,7),CALCULADORA!$C$36)) -> 199700442 | O92: 15 | P92: 10 | Q92: 2028
A93: =+Flujos!A93 -> 2027-03-15 | B93: =+Flujos!L93 -> 111475.7851 | C93: =+Flujos!M93 -> 8616.715758 | D93: =+Flujos!N93 -> 219.8893691 | E93: =+Flujos!O93 -> 8836.605127 | F93: =+Flujos!P93 -> 3092131.715 | G93: =+Flujos!Q93 -> 78907.89381 | H93: =+Flujos!R93 -> 3171039.609 | J93: 2028-10-15 | K93: =IF(J93<CALCULADORA!$C$26,0,IF(CALCULADORA!$C$30>'TIR de Tenencia'!J93,VLOOKUP(J93,A:H,7),CALCULADORA!$C$36)) -> 199700442 | O93: 15 | P93: 11 | Q93: 2028
A94: =+Flujos!A94 -> 2027-04-15 | B94: =+Flujos!L94 -> 103055.0093 | C94: =+Flujos!M94 -> 8420.775855 | D94: =+Flujos!N94 -> 204.1121626 | E94: =+Flujos!O94 -> 8624.888017 | F94: =+Flujos!P94 -> 3021818.152 | G94: =+Flujos!Q94 -> 73246.20064 | H94: =+Flujos!R94 -> 3095064.352 | J94: 2028-11-15 | K94: =IF(J94<CALCULADORA!$C$26,0,IF(CALCULADORA!$C$30>'TIR de Tenencia'!J94,VLOOKUP(J94,A:H,7),CALCULADORA!$C$36)) -> 199700442 | O94: 15 | P94: 12 | Q94: 2028
A95: =+Flujos!A95 -> 2027-05-15 | B95: =+Flujos!L95 -> 94822.33332 | C95: =+Flujos!M95 -> 8232.675947 | D95: =+Flujos!N95 -> 188.693722 | E95: =+Flujos!O95 -> 8421.369669 | F95: =+Flujos!P95 -> 2954317.992 | G95: =+Flujos!Q95 -> 67713.2516 | H95: =+Flujos!R95 -> 3022031.243 | J95: 2028-12-15 | K95: =IF(J95<CALCULADORA!$C$26,0,IF(CALCULADORA!$C$30>'TIR de Tenencia'!J95,VLOOKUP(J95,A:H,7),CALCULADORA!$C$36)) -> 199700442 | O95: 15 | P95: 1 | Q95: 2029
A96: =+Flujos!A96 -> 2027-06-15 | B96: =+Flujos!L96 -> 86780.47728 | C96: =+Flujos!M96 -> 8041.856041 | D96: =+Flujos!N96 -> 173.6196923 | E96: =+Flujos!O96 -> 8215.475733 | F96: =+Flujos!P96 -> 2885841.753 | G96: =+Flujos!Q96 -> 62303.89536 | H96: =+Flujos!R96 -> 2948145.649 | J96: 2029-01-15 | K96: =IF(J96<CALCULADORA!$C$26,0,IF(CALCULADORA!$C$30>'TIR de Tenencia'!J96,VLOOKUP(J96,A:H,7),CALCULADORA!$C$36)) -> 199700442 | O96: 15 | P96: 2 | Q96: 2029
A97: =+Flujos!A97 -> 2027-07-15 | B97: =+Flujos!L97 -> 78923.88115 | C97: =+Flujos!M97 -> 7856.596132 | D97: =+Flujos!N97 -> 158.8950539 | E97: =+Flujos!O97 -> 8015.491186 | F97: =+Flujos!P97 -> 2819360.735 | G97: =+Flujos!Q97 -> 57019.91911 | H97: =+Flujos!R97 -> 2876380.654 | J97: 2029-02-15 | K97: =IF(J97<CALCULADORA!$C$26,0,IF(CALCULADORA!$C$30>'TIR de Tenencia'!J97,VLOOKUP(J97,A:H,7),CALCULADORA!$C$36)) -> 199700442 | O97: 15 | P97: 3 | Q97: 2029
A98: =+Flujos!A98 -> 2027-08-15 | B98: =+Flujos!L98 -> 71259.98492 | C98: =+Flujos!M98 -> 7663.896227 | D98: =+Flujos!N98 -> 144.5096264 | E98: =+Flujos!O98 -> 7808.405854 | F98: =+Flujos!P98 -> 2750209.854 | G98: =+Flujos!Q98 -> 51857.6696 | H98: =+Flujos!R98 -> 2802067.523 | J98: 2029-03-15 | K98: =IF(J98<CALCULADORA!$C$26,0,IF(CALCULADORA!$C$30>'TIR de Tenencia'!J98,VLOOKUP(J98,A:H,7),CALCULADORA!$C$36)) -> 199700442 | O98: 15 | P98: 4 | Q98: 2029
A99: =+Flujos!A99 -> 2027-09-15 | B99: =+Flujos!L99 -> 64385.3883 | C99: =+Flujos!M99 -> 6874.596616 | D99: =+Flujos!N99 -> 130.4770324 | E99: =+Flujos!O99 -> 7005.073648 | F99: =+Flujos!P99 -> 2466967.557 | G99: =+Flujos!Q99 -> 46822.03536 | H99: =+Flujos!R99 -> 2513789.592 | J99: =+DATE(Q98,P98,O98) -> 2029-04-15 | K99: =IF(J99<CALCULADORA!$C$26,0,IF(CALCULADORA!$C$30>'TIR de Tenencia'!J99,VLOOKUP(J99,A:H,7),CALCULADORA!$C$36)) -> 199700442 | O99: 15 | P99: 5 | Q99: 2029
A100: =+Flujos!A100 -> 2027-10-15 | B100: =+Flujos!L100 -> 57068.73191 | C100: =+Flujos!M100 -> 7316.656398 | D100: =+Flujos!N100 -> 117.889646 | E100: =+Flujos!O100 -> 7434.546044 | F100: =+Flujos!P100 -> 2625601.903 | G100: =+Flujos!Q100 -> 42305.01776 | H100: =+Flujos!R100 -> 2667906.921 | J100: 2029-05-15 | K100: =IF(J100<CALCULADORA!$C$26,0,IF(CALCULADORA!$C$30>'TIR de Tenencia'!J100,VLOOKUP(J100,A:H,7),CALCULADORA!$C$36)) -> 199700442 | O100: 15 | P100: 6 | Q100: 2029
A101: =+Flujos!A101 -> 2027-11-15 | B101: =+Flujos!L101 -> 49919.59543 | C101: =+Flujos!M101 -> 7149.136481 | D101: =+Flujos!N101 -> 104.4928481 | E101: =+Flujos!O101 -> 7253.629329 | F101: =+Flujos!P101 -> 2565486.929 | G101: =+Flujos!Q101 -> 37497.54068 | H101: =+Flujos!R101 -> 2602984.469 | J101: 2029-06-15 | K101: =IF(J101<CALCULADORA!$C$26,0,IF(CALCULADORA!$C$30>'TIR de Tenencia'!J101,VLOOKUP(J101,A:H,7),CALCULADORA!$C$36)) -> 199700442 | O101: 15 | P101: 7 | Q101: 2029
A102: =+Flujos!A102 -> 2027-12-15 | B102: =+Flujos!L102 -> 42923.49887 | C102: =+Flujos!M102 -> 6996.096556 | D102: =+Flujos!N102 -> 91.40277922 | E102: =+Flujos!O102 -> 7087.499335 | F102: =+Flujos!P102 -> 2510568.139 | G102: =+Flujos!Q102 -> 32800.13411 | H102: =+Flujos!R102 -> 2543368.273 | J102: 2029-07-15 | K102: =IF(J102<CALCULADORA!$C$26,0,IF(CALCULADORA!$C$30>'TIR de Tenencia'!J102,VLOOKUP(J102,A:H,7),CALCULADORA!$C$36)) -> 199700442 | O102: 15 | P102: 8 | Q102: 2029
A103: =+Flujos!A103 -> 2028-01-15 | B103: =+Flujos!L103 -> 36085.86224 | C103: =+Flujos!M103 -> 6837.636634 | D103: =+Flujos!N103 -> 78.59292643 | E103: =+Flujos!O103 -> 6916.22956 | F103: =+Flujos!P103 -> 2453704.368 | G103: =+Flujos!Q103 -> 28203.28385 | H103: =+Flujos!R103 -> 2481907.652 | J103: 2029-08-15 | K103: =IF(J103<CALCULADORA!$C$26,0,IF(CALCULADORA!$C$30>'TIR de Tenencia'!J103,VLOOKUP(J103,A:H,7),CALCULADORA!$C$36)) -> 199700442 | O103: 15 | P103: 9 | Q103: 2029
A104: =+Flujos!A104 -> 2028-02-15 | B104: =+Flujos!L104 -> 29395.66553 | C104: =+Flujos!M104 -> 6690.196707 | D104: =+Flujos!N104 -> 66.07321375 | E104: =+Flujos!O104 -> 6756.26992 | F104: =+Flujos!P104 -> 2400795.152 | G104: =+Flujos!Q104 -> 23710.55115 | H104: =+Flujos!R104 -> 2424505.703 | J104: 2029-09-15 | K104: =IF(J104<CALCULADORA!$C$26,0,IF(CALCULADORA!$C$30>'TIR de Tenencia'!J104,VLOOKUP(J104,A:H,7),CALCULADORA!$C$36)) -> 199700442 | O104: 15 | P104: 10 | Q104: 2029
A105: =+Flujos!A105 -> 2028-03-15 | B105: =+Flujos!L105 -> 22848.64875 | C105: =+Flujos!M105 -> 6547.016777 | D105: =+Flujos!N105 -> 53.82346358 | E105: =+Flujos!O105 -> 6600.840241 | F105: =+Flujos!P105 -> 2349414.647 | G105: =+Flujos!Q105 -> 19314.69523 | H105: =+Flujos!R105 -> 2368729.343 | J105: 2029-10-15 | K105: =IF(J105<CALCULADORA!$C$26,0,IF(CALCULADORA!$C$30>'TIR de Tenencia'!J105,VLOOKUP(J105,A:H,7),CALCULADORA!$C$36)) -> 199700442 | O105: 15 | P105: 11 | Q105: 2029
A106: =+Flujos!A106 -> 2028-04-15 | B106: =+Flujos!L106 -> 16443.31191 | C106: =+Flujos!M106 -> 6405.336847 | D106: =+Flujos!N106 -> 41.83587587 | E106: =+Flujos!O106 -> 6447.172723 | F106: =+Flujos!P106 -> 2298572.422 | G106: =+Flujos!Q106 -> 15012.91701 | H106: =+Flujos!R106 -> 2313585.339 | J106: 2029-11-15 | K106: =IF(J106<CALCULADORA!$C$26,0,IF(CALCULADORA!$C$30>'TIR de Tenencia'!J106,VLOOKUP(J106,A:H,7),CALCULADORA!$C$36)) -> 199700442 | O106: 15 | P106: 12 | Q106: 2029
A107: =+Flujos!A107 -> 2028-05-15 | B107: =+Flujos!L107 -> 10177.47499 | C107: =+Flujos!M107 -> 6265.836915 | D107: =+Flujos!N107 -> 30.1077041 | E107: =+Flujos!O107 -> 6295.94462 | F107: =+Flujos!P107 -> 2248512.495 | G107: =+Flujos!Q107 -> 10804.23091 | H107: =+Flujos!R107 -> 2259316.726 | J107: 2029-12-15 | K107: =IF(J107<CALCULADORA!$C$26,0,IF(CALCULADORA!$C$30>'TIR de Tenencia'!J107,VLOOKUP(J107,A:H,7),CALCULADORA!$C$36)) -> 199700442 | O107: 15 | P107: 1 | Q107: 2030
A108: =+Flujos!A108 -> 2028-06-15 | B108: =+Flujos!L108 -> 4051.698005 | C108: =+Flujos!M108 -> 6125.776984 | D108: =+Flujos!N108 -> 18.63495671 | E108: =+Flujos!O108 -> 6144.411941 | F108: =+Flujos!P108 -> 2198251.61 | G108: =+Flujos!Q108 -> 6687.204528 | H108: =+Flujos!R108 -> 2204938.815 | J108: 2030-01-15 | K108: =IF(J108<CALCULADORA!$C$26,0,IF(CALCULADORA!$C$30>'TIR de Tenencia'!J108,VLOOKUP(J108,A:H,7),CALCULADORA!$C$36)) -> 199700442 | O108: 15 | P108: 2 | Q108: 2030
A109: =+Flujos!A109 -> 2028-07-15 | B109: =+Flujos!L109 -> 1738.699144 | C109: =+Flujos!M109 -> 2312.998861 | D109: =+Flujos!N109 -> 7.418659048 | E109: =+Flujos!O109 -> 2320.41752 | F109: =+Flujos!P109 -> 830025.8865 | G109: =+Flujos!Q109 -> 2662.20583 | H109: =+Flujos!R109 -> 832688.0923 | J109: 2030-02-15 | K109: =IF(J109<CALCULADORA!$C$26,0,IF(CALCULADORA!$C$30>'TIR de Tenencia'!J109,VLOOKUP(J109,A:H,7),CALCULADORA!$C$36)) -> 199700442 | O109: 15 | P109: 3 | Q109: 2030
A110: =+Flujos!A110 -> 2028-08-15 | B110: =+Flujos!L110 -> 7.139533409e-11 | C110: =+Flujos!M110 -> 1738.699144 | D110: =+Flujos!N110 -> 3.183558133 | E110: =+Flujos!O110 -> 1741.882702 | F110: =+Flujos!P110 -> 623936.8823 | G110: =+Flujos!Q110 -> 1142.428432 | H110: =+Flujos!R110 -> 625079.3108 | J110: 2030-03-15 | K110: =IF(J110<CALCULADORA!$C$26,0,IF(CALCULADORA!$C$30>'TIR de Tenencia'!J110,VLOOKUP(J110,A:H,7),CALCULADORA!$C$36)) -> 199700442 | O110: 15 | P110: 4 | Q110: 2030
A111: =+Flujos!A111 -> 2028-09-15 | B111: =+Flujos!L111 -> 7.139533409e-11 | C111: =+Flujos!M111 -> 0 | D111: =+Flujos!N111 -> 1.307248567e-13 | E111: =+Flujos!O111 -> 1.307248567e-13 | F111: =+Flujos!P111 -> 0 | G111: =+Flujos!Q111 -> 4.691096779e-11 | H111: =+Flujos!R111 -> 4.691096779e-11 | J111: 2030-04-15 | K111: =IF(J111<CALCULADORA!$C$26,0,IF(CALCULADORA!$C$30>'TIR de Tenencia'!J111,VLOOKUP(J111,A:H,7),CALCULADORA!$C$36)) -> 199700442 | O111: 15 | P111: 5 | Q111: 2030
A112: =+Flujos!A112 -> 2028-10-15 | B112: =+Flujos!L112 -> 7.139533409e-11 | C112: =+Flujos!M112 -> 0 | D112: =+Flujos!N112 -> 1.307248567e-13 | E112: =+Flujos!O112 -> 1.307248567e-13 | F112: =+Flujos!P112 -> 0 | G112: =+Flujos!Q112 -> 4.691096779e-11 | H112: =+Flujos!R112 -> 4.691096779e-11 | J112: 2030-05-15 | K112: =IF(J112<CALCULADORA!$C$26,0,IF(CALCULADORA!$C$30>'TIR de Tenencia'!J112,VLOOKUP(J112,A:H,7),CALCULADORA!$C$36)) -> 199700442 | O112: 15 | P112: 6 | Q112: 2030
A113: =+Flujos!A113 -> 2028-11-15 | B113: =+Flujos!L113 -> 7.139533409e-11 | C113: =+Flujos!M113 -> 0 | D113: =+Flujos!N113 -> 1.307248567e-13 | E113: =+Flujos!O113 -> 1.307248567e-13 | F113: =+Flujos!P113 -> 0 | G113: =+Flujos!Q113 -> 4.691096779e-11 | H113: =+Flujos!R113 -> 4.691096779e-11 | J113: 2030-06-15 | K113: =IF(J113<CALCULADORA!$C$26,0,IF(CALCULADORA!$C$30>'TIR de Tenencia'!J113,VLOOKUP(J113,A:H,7),CALCULADORA!$C$36)) -> 199700442 | O113: 15 | P113: 7 | Q113: 2030
A114: =+Flujos!A114 -> 2028-12-15 | B114: =+Flujos!L114 -> 7.139533409e-11 | C114: =+Flujos!M114 -> 0 | D114: =+Flujos!N114 -> 1.307248567e-13 | E114: =+Flujos!O114 -> 1.307248567e-13 | F114: =+Flujos!P114 -> 0 | G114: =+Flujos!Q114 -> 4.691096779e-11 | H114: =+Flujos!R114 -> 4.691096779e-11 | J114: 2030-07-15 | K114: =IF(J114<CALCULADORA!$C$26,0,IF(CALCULADORA!$C$30>'TIR de Tenencia'!J114,VLOOKUP(J114,A:H,7),CALCULADORA!$C$36)) -> 199700442 | O114: 15 | P114: 8 | Q114: 2030
A115: =+Flujos!A115 -> 2029-01-15 | B115: =+Flujos!L115 -> 7.139533409e-11 | C115: =+Flujos!M115 -> 0 | D115: =+Flujos!N115 -> 1.307248567e-13 | E115: =+Flujos!O115 -> 1.307248567e-13 | F115: =+Flujos!P115 -> 0 | G115: =+Flujos!Q115 -> 4.691096779e-11 | H115: =+Flujos!R115 -> 4.691096779e-11 | J115: 2030-08-15 | K115: =IF(J115<CALCULADORA!$C$26,0,IF(CALCULADORA!$C$30>'TIR de Tenencia'!J115,VLOOKUP(J115,A:H,7),CALCULADORA!$C$36)) -> 199700442 | O115: 15 | P115: 9 | Q115: 2030
A116: =+Flujos!A116 -> 2029-02-15 | B116: =+Flujos!L116 -> 7.139533409e-11 | C116: =+Flujos!M116 -> 0 | D116: =+Flujos!N116 -> 1.307248567e-13 | E116: =+Flujos!O116 -> 1.307248567e-13 | F116: =+Flujos!P116 -> 0 | G116: =+Flujos!Q116 -> 4.691096779e-11 | H116: =+Flujos!R116 -> 4.691096779e-11 | J116: 2030-09-15 | K116: =IF(J116<CALCULADORA!$C$26,0,IF(CALCULADORA!$C$30>'TIR de Tenencia'!J116,VLOOKUP(J116,A:H,7),CALCULADORA!$C$36)) -> 199700442 | O116: 15 | P116: 10 | Q116: 2030
A117: =+Flujos!A117 -> 2029-03-15 | B117: =+Flujos!L117 -> 7.139533409e-11 | C117: =+Flujos!M117 -> 0 | D117: =+Flujos!N117 -> 1.307248567e-13 | E117: =+Flujos!O117 -> 1.307248567e-13 | F117: =+Flujos!P117 -> 0 | G117: =+Flujos!Q117 -> 4.691096779e-11 | H117: =+Flujos!R117 -> 4.691096779e-11 | J117: 2030-10-15 | K117: =IF(J117<CALCULADORA!$C$26,0,IF(CALCULADORA!$C$30>'TIR de Tenencia'!J117,VLOOKUP(J117,A:H,7),CALCULADORA!$C$36)) -> 199700442 | O117: 15 | P117: 11 | Q117: 2030
A118: =+Flujos!A118 -> 2029-04-15 | B118: =+Flujos!L118 -> 7.139533409e-11 | C118: =+Flujos!M118 -> 0 | D118: =+Flujos!N118 -> 1.307248567e-13 | E118: =+Flujos!O118 -> 1.307248567e-13 | F118: =+Flujos!P118 -> 0 | G118: =+Flujos!Q118 -> 4.691096779e-11 | H118: =+Flujos!R118 -> 4.691096779e-11 | J118: 2030-11-15 | K118: =IF(J118<CALCULADORA!$C$26,0,IF(CALCULADORA!$C$30>'TIR de Tenencia'!J118,VLOOKUP(J118,A:H,7),CALCULADORA!$C$36)) -> 199700442 | O118: 15 | P118: 12 | Q118: 2030
A119: =+Flujos!A119 -> 2029-05-15 | B119: =+Flujos!L119 -> 7.139533409e-11 | C119: =+Flujos!M119 -> 0 | D119: =+Flujos!N119 -> 1.307248567e-13 | E119: =+Flujos!O119 -> 1.307248567e-13 | F119: =+Flujos!P119 -> 0 | G119: =+Flujos!Q119 -> 4.691096779e-11 | H119: =+Flujos!R119 -> 4.691096779e-11 | J119: 2030-12-15 | K119: =IF(J119<CALCULADORA!$C$26,0,IF(CALCULADORA!$C$30>'TIR de Tenencia'!J119,VLOOKUP(J119,A:H,7),CALCULADORA!$C$36)) -> 199700442 | O119: 15 | P119: 1 | Q119: 2031
A120: =+Flujos!A120 -> 2029-06-15 | B120: =+Flujos!L120 -> 7.139533409e-11 | C120: =+Flujos!M120 -> 0 | D120: =+Flujos!N120 -> 1.307248567e-13 | E120: =+Flujos!O120 -> 1.307248567e-13 | F120: =+Flujos!P120 -> 0 | G120: =+Flujos!Q120 -> 4.691096779e-11 | H120: =+Flujos!R120 -> 4.691096779e-11 | J120: 2031-01-15 | K120: =IF(J120<CALCULADORA!$C$26,0,IF(CALCULADORA!$C$30>'TIR de Tenencia'!J120,VLOOKUP(J120,A:H,7),CALCULADORA!$C$36)) -> 199700442 | O120: 15 | P120: 2 | Q120: 2031
A121: =+Flujos!A121 -> 2029-07-15 | B121: =+Flujos!L121 -> 7.139533409e-11 | C121: =+Flujos!M121 -> 0 | D121: =+Flujos!N121 -> 1.307248567e-13 | E121: =+Flujos!O121 -> 1.307248567e-13 | F121: =+Flujos!P121 -> 0 | G121: =+Flujos!Q121 -> 4.691096779e-11 | H121: =+Flujos!R121 -> 4.691096779e-11 | J121: 2031-02-15 | K121: =IF(J121<CALCULADORA!$C$26,0,IF(CALCULADORA!$C$30>'TIR de Tenencia'!J121,VLOOKUP(J121,A:H,7),CALCULADORA!$C$36)) -> 199700442 | O121: 15 | P121: 3 | Q121: 2031
A122: =+Flujos!A122 -> 2029-08-15 | B122: =+Flujos!L122 -> 7.139533409e-11 | C122: =+Flujos!M122 -> 0 | D122: =+Flujos!N122 -> 1.307248567e-13 | E122: =+Flujos!O122 -> 1.307248567e-13 | F122: =+Flujos!P122 -> 0 | G122: =+Flujos!Q122 -> 4.691096779e-11 | H122: =+Flujos!R122 -> 4.691096779e-11 | J122: 2031-03-15 | K122: =IF(J122<CALCULADORA!$C$26,0,IF(CALCULADORA!$C$30>'TIR de Tenencia'!J122,VLOOKUP(J122,A:H,7),CALCULADORA!$C$36)) -> 199700442 | O122: 15 | P122: 4 | Q122: 2031
A123: =+Flujos!A123 -> 2029-09-15 | B123: =+Flujos!L123 -> 7.139533409e-11 | C123: =+Flujos!M123 -> 0 | D123: =+Flujos!N123 -> 1.307248567e-13 | E123: =+Flujos!O123 -> 1.307248567e-13 | F123: =+Flujos!P123 -> 0 | G123: =+Flujos!Q123 -> 4.691096779e-11 | H123: =+Flujos!R123 -> 4.691096779e-11 | J123: 2031-04-15 | K123: =IF(J123<CALCULADORA!$C$26,0,IF(CALCULADORA!$C$30>'TIR de Tenencia'!J123,VLOOKUP(J123,A:H,7),CALCULADORA!$C$36)) -> 199700442 | O123: 15 | P123: 5 | Q123: 2031
A124: =+Flujos!A124 -> 2029-10-15 | B124: =+Flujos!L124 -> 7.139533409e-11 | C124: =+Flujos!M124 -> 0 | D124: =+Flujos!N124 -> 1.307248567e-13 | E124: =+Flujos!O124 -> 1.307248567e-13 | F124: =+Flujos!P124 -> 0 | G124: =+Flujos!Q124 -> 4.691096779e-11 | H124: =+Flujos!R124 -> 4.691096779e-11 | J124: 2031-05-15 | K124: =IF(J124<CALCULADORA!$C$26,0,IF(CALCULADORA!$C$30>'TIR de Tenencia'!J124,VLOOKUP(J124,A:H,7),CALCULADORA!$C$36)) -> 199700442 | O124: 15 | P124: 6 | Q124: 2031
A125: =+Flujos!A125 -> 2029-11-15 | B125: =+Flujos!L125 -> 7.139533409e-11 | C125: =+Flujos!M125 -> 0 | D125: =+Flujos!N125 -> 1.307248567e-13 | E125: =+Flujos!O125 -> 1.307248567e-13 | F125: =+Flujos!P125 -> 0 | G125: =+Flujos!Q125 -> 4.691096779e-11 | H125: =+Flujos!R125 -> 4.691096779e-11 | J125: 2031-06-15 | K125: =IF(J125<CALCULADORA!$C$26,0,IF(CALCULADORA!$C$30>'TIR de Tenencia'!J125,VLOOKUP(J125,A:H,7),CALCULADORA!$C$36)) -> 199700442 | O125: 15 | P125: 7 | Q125: 2031
A126: =+Flujos!A126 -> 2029-12-15 | B126: =+Flujos!L126 -> 7.139533409e-11 | C126: =+Flujos!M126 -> 0 | D126: =+Flujos!N126 -> 1.307248567e-13 | E126: =+Flujos!O126 -> 1.307248567e-13 | F126: =+Flujos!P126 -> 0 | G126: =+Flujos!Q126 -> 4.691096779e-11 | H126: =+Flujos!R126 -> 4.691096779e-11 | J126: 2031-07-15 | K126: =IF(J126<CALCULADORA!$C$26,0,IF(CALCULADORA!$C$30>'TIR de Tenencia'!J126,VLOOKUP(J126,A:H,7),CALCULADORA!$C$36)) -> 199700442 | O126: 15 | P126: 8 | Q126: 2031
A127: =+Flujos!A127 -> 2030-01-15 | B127: =+Flujos!L127 -> 7.139533409e-11 | C127: =+Flujos!M127 -> 0 | D127: =+Flujos!N127 -> 1.307248567e-13 | E127: =+Flujos!O127 -> 1.307248567e-13 | F127: =+Flujos!P127 -> 0 | G127: =+Flujos!Q127 -> 4.691096779e-11 | H127: =+Flujos!R127 -> 4.691096779e-11 | J127: 2031-08-15 | K127: =IF(J127<CALCULADORA!$C$26,0,IF(CALCULADORA!$C$30>'TIR de Tenencia'!J127,VLOOKUP(J127,A:H,7),CALCULADORA!$C$36)) -> 199700442 | O127: 15 | P127: 9 | Q127: 2031
A128: =+Flujos!A128 -> 2030-02-15 | B128: =+Flujos!L128 -> 7.139533409e-11 | C128: =+Flujos!M128 -> 0 | D128: =+Flujos!N128 -> 1.307248567e-13 | E128: =+Flujos!O128 -> 1.307248567e-13 | F128: =+Flujos!P128 -> 0 | G128: =+Flujos!Q128 -> 4.691096779e-11 | H128: =+Flujos!R128 -> 4.691096779e-11 | J128: 2031-09-15 | K128: =IF(J128<CALCULADORA!$C$26,0,IF(CALCULADORA!$C$30>'TIR de Tenencia'!J128,VLOOKUP(J128,A:H,7),CALCULADORA!$C$36)) -> 199700442 | O128: 15 | P128: 10 | Q128: 2031
A129: =+Flujos!A129 -> 2030-03-15 | B129: =+Flujos!L129 -> 7.139533409e-11 | C129: =+Flujos!M129 -> 0 | D129: =+Flujos!N129 -> 1.307248567e-13 | E129: =+Flujos!O129 -> 1.307248567e-13 | F129: =+Flujos!P129 -> 0 | G129: =+Flujos!Q129 -> 4.691096779e-11 | H129: =+Flujos!R129 -> 4.691096779e-11 | J129: 2031-10-15 | K129: =IF(J129<CALCULADORA!$C$26,0,IF(CALCULADORA!$C$30>'TIR de Tenencia'!J129,VLOOKUP(J129,A:H,7),CALCULADORA!$C$36)) -> 199700442 | O129: 15 | P129: 11 | Q129: 2031
A130: =+Flujos!A130 -> 2030-04-15 | B130: =+Flujos!L130 -> 7.139533409e-11 | C130: =+Flujos!M130 -> 0 | D130: =+Flujos!N130 -> 1.307248567e-13 | E130: =+Flujos!O130 -> 1.307248567e-13 | F130: =+Flujos!P130 -> 0 | G130: =+Flujos!Q130 -> 4.691096779e-11 | H130: =+Flujos!R130 -> 4.691096779e-11 | J130: 2031-11-15 | K130: =IF(J130<CALCULADORA!$C$26,0,IF(CALCULADORA!$C$30>'TIR de Tenencia'!J130,VLOOKUP(J130,A:H,7),CALCULADORA!$C$36)) -> 199700442 | O130: 15 | P130: 12 | Q130: 2031
A131: =+Flujos!A131 -> 2030-05-15 | B131: =+Flujos!L131 -> 7.139533409e-11 | C131: =+Flujos!M131 -> 0 | D131: =+Flujos!N131 -> 1.307248567e-13 | E131: =+Flujos!O131 -> 1.307248567e-13 | F131: =+Flujos!P131 -> 0 | G131: =+Flujos!Q131 -> 4.691096779e-11 | H131: =+Flujos!R131 -> 4.691096779e-11 | J131: =+DATE(Q130,P130,O130) -> 2031-12-15 | K131: =IF(J131<CALCULADORA!$C$26,0,IF(CALCULADORA!$C$30>'TIR de Tenencia'!J131,VLOOKUP(J131,A:H,7),CALCULADORA!$C$36)) -> 199700442 | O131: =+O130 -> 15 | P131: =+IF(P130=12,1,P130+1) -> 1 | Q131: 2032
A132: =+Flujos!A132 -> 2030-06-15 | B132: =+Flujos!L132 -> 7.139533409e-11 | C132: =+Flujos!M132 -> 0 | D132: =+Flujos!N132 -> 1.307248567e-13 | E132: =+Flujos!O132 -> 1.307248567e-13 | F132: =+Flujos!P132 -> 0 | G132: =+Flujos!Q132 -> 4.691096779e-11 | H132: =+Flujos!R132 -> 4.691096779e-11 | J132: 2032-01-15 | K132: =IF(J132<CALCULADORA!$C$26,0,IF(CALCULADORA!$C$30>'TIR de Tenencia'!J132,VLOOKUP(J132,A:H,7),CALCULADORA!$C$36)) -> 199700442 | L132: =+IF(K132=K131," ",J132) ->  | M132: =+IF(K132=K131," ",K132) ->  | O132: 15 | P132: 2 | Q132: 2032
A133: =+Flujos!A133 -> 2030-07-15 | B133: =+Flujos!L133 -> 7.139533409e-11 | C133: =+Flujos!M133 -> 0 | D133: =+Flujos!N133 -> 1.307248567e-13 | E133: =+Flujos!O133 -> 1.307248567e-13 | F133: =+Flujos!P133 -> 0 | G133: =+Flujos!Q133 -> 4.691096779e-11 | H133: =+Flujos!R133 -> 4.691096779e-11 | J133: 2032-02-15 | K133: =IF(J133<CALCULADORA!$C$26,0,IF(CALCULADORA!$C$30>'TIR de Tenencia'!J133,VLOOKUP(J133,A:H,7),CALCULADORA!$C$36)) -> 199700442 | O133: 15 | P133: 3 | Q133: 2032
A134: =+Flujos!A134 -> 2030-08-15 | B134: =+Flujos!L134 -> 7.139533409e-11 | C134: =+Flujos!M134 -> 0 | D134: =+Flujos!N134 -> 1.307248567e-13 | E134: =+Flujos!O134 -> 1.307248567e-13 | F134: =+Flujos!P134 -> 0 | G134: =+Flujos!Q134 -> 4.691096779e-11 | H134: =+Flujos!R134 -> 4.691096779e-11 | J134: 2032-03-15 | K134: =IF(J134<CALCULADORA!$C$26,0,IF(CALCULADORA!$C$30>'TIR de Tenencia'!J134,VLOOKUP(J134,A:H,7),CALCULADORA!$C$36)) -> 199700442 | O134: 15 | P134: 4 | Q134: 2032
A135: =+Flujos!A135 -> 2030-09-15 | B135: =+Flujos!L135 -> 7.139533409e-11 | C135: =+Flujos!M135 -> 0 | D135: =+Flujos!N135 -> 1.307248567e-13 | E135: =+Flujos!O135 -> 1.307248567e-13 | F135: =+Flujos!P135 -> 0 | G135: =+Flujos!Q135 -> 4.691096779e-11 | H135: =+Flujos!R135 -> 4.691096779e-11 | J135: 2032-04-15 | K135: =IF(J135<CALCULADORA!$C$26,0,IF(CALCULADORA!$C$30>'TIR de Tenencia'!J135,VLOOKUP(J135,A:H,7),CALCULADORA!$C$36)) -> 199700442 | O135: 15 | P135: 5 | Q135: 2032
A136: =+Flujos!A136 -> 2030-10-15 | B136: =+Flujos!L136 -> 7.139533409e-11 | C136: =+Flujos!M136 -> 0 | D136: =+Flujos!N136 -> 1.307248567e-13 | E136: =+Flujos!O136 -> 1.307248567e-13 | F136: =+Flujos!P136 -> 0 | G136: =+Flujos!Q136 -> 4.691096779e-11 | H136: =+Flujos!R136 -> 4.691096779e-11 | J136: 2032-05-15 | K136: =IF(J136<CALCULADORA!$C$26,0,IF(CALCULADORA!$C$30>'TIR de Tenencia'!J136,VLOOKUP(J136,A:H,7),CALCULADORA!$C$36)) -> 199700442 | O136: 15 | P136: 6 | Q136: 2032
A137: =+Flujos!A137 -> 2030-11-15 | B137: =+Flujos!L137 -> 7.139533409e-11 | C137: =+Flujos!M137 -> 0 | D137: =+Flujos!N137 -> 1.307248567e-13 | E137: =+Flujos!O137 -> 1.307248567e-13 | F137: =+Flujos!P137 -> 0 | G137: =+Flujos!Q137 -> 4.691096779e-11 | H137: =+Flujos!R137 -> 4.691096779e-11 | J137: 2032-06-15 | K137: =IF(J137<CALCULADORA!$C$26,0,IF(CALCULADORA!$C$30>'TIR de Tenencia'!J137,VLOOKUP(J137,A:H,7),CALCULADORA!$C$36)) -> 199700442 | O137: 15 | P137: 7 | Q137: 2032
A138: =+Flujos!A138 -> 2030-12-15 | B138: =+Flujos!L138 -> 7.139533409e-11 | C138: =+Flujos!M138 -> 0 | D138: =+Flujos!N138 -> 1.307248567e-13 | E138: =+Flujos!O138 -> 1.307248567e-13 | F138: =+Flujos!P138 -> 0 | G138: =+Flujos!Q138 -> 4.691096779e-11 | H138: =+Flujos!R138 -> 4.691096779e-11 | J138: 2032-07-15 | K138: =IF(J138<CALCULADORA!$C$26,0,IF(CALCULADORA!$C$30>'TIR de Tenencia'!J138,VLOOKUP(J138,A:H,7),CALCULADORA!$C$36)) -> 199700442 | O138: 15 | P138: 8 | Q138: 2032
A139: =+Flujos!A139 -> 2031-01-15 | B139: =+Flujos!L139 -> 7.139533409e-11 | C139: =+Flujos!M139 -> 0 | D139: =+Flujos!N139 -> 1.307248567e-13 | E139: =+Flujos!O139 -> 1.307248567e-13 | F139: =+Flujos!P139 -> 0 | G139: =+Flujos!Q139 -> 4.691096779e-11 | H139: =+Flujos!R139 -> 4.691096779e-11 | J139: 2032-08-15 | K139: =IF(J139<CALCULADORA!$C$26,0,IF(CALCULADORA!$C$30>'TIR de Tenencia'!J139,VLOOKUP(J139,A:H,7),CALCULADORA!$C$36)) -> 199700442 | O139: 15 | P139: 9 | Q139: 2032
A140: =+Flujos!A140 -> 2031-02-15 | B140: =+Flujos!L140 -> 7.139533409e-11 | C140: =+Flujos!M140 -> 0 | D140: =+Flujos!N140 -> 1.307248567e-13 | E140: =+Flujos!O140 -> 1.307248567e-13 | F140: =+Flujos!P140 -> 0 | G140: =+Flujos!Q140 -> 4.691096779e-11 | H140: =+Flujos!R140 -> 4.691096779e-11 | J140: 2032-09-15 | K140: =IF(J140<CALCULADORA!$C$26,0,IF(CALCULADORA!$C$30>'TIR de Tenencia'!J140,VLOOKUP(J140,A:H,7),CALCULADORA!$C$36)) -> 199700442 | O140: 15 | P140: 10 | Q140: =+IF(P140=1,Q139+1,Q139) -> 2032
A141: =+Flujos!A141 -> 2031-03-15 | B141: =+Flujos!L141 -> 7.139533409e-11 | C141: =+Flujos!M141 -> 0 | D141: =+Flujos!N141 -> 1.307248567e-13 | E141: =+Flujos!O141 -> 1.307248567e-13 | F141: =+Flujos!P141 -> 0 | G141: =+Flujos!Q141 -> 4.691096779e-11 | H141: =+Flujos!R141 -> 4.691096779e-11 | J141: 2032-10-15 | K141: =IF(J141<CALCULADORA!$C$26,0,IF(CALCULADORA!$C$30>'TIR de Tenencia'!J141,VLOOKUP(J141,A:H,7),CALCULADORA!$C$36)) -> 199700442 | O141: 15 | P141: 11 | Q141: 2032
A142: =+Flujos!A142 -> 2031-04-15 | B142: =+Flujos!L142 -> 7.139533409e-11 | C142: =+Flujos!M142 -> 0 | D142: =+Flujos!N142 -> 1.307248567e-13 | E142: =+Flujos!O142 -> 1.307248567e-13 | F142: =+Flujos!P142 -> 0 | G142: =+Flujos!Q142 -> 4.691096779e-11 | H142: =+Flujos!R142 -> 4.691096779e-11 | J142: 2032-11-15 | K142: =IF(J142<CALCULADORA!$C$26,0,IF(CALCULADORA!$C$30>'TIR de Tenencia'!J142,VLOOKUP(J142,A:H,7),CALCULADORA!$C$36)) -> 199700442 | O142: 15 | P142: 12 | Q142: 2032
A143: =+Flujos!A143 -> 2031-05-15 | B143: =+Flujos!L143 -> 7.139533409e-11 | C143: =+Flujos!M143 -> 0 | D143: =+Flujos!N143 -> 1.307248567e-13 | E143: =+Flujos!O143 -> 1.307248567e-13 | F143: =+Flujos!P143 -> 0 | G143: =+Flujos!Q143 -> 4.691096779e-11 | H143: =+Flujos!R143 -> 4.691096779e-11 | J143: 2032-12-15 | K143: =IF(J143<CALCULADORA!$C$26,0,IF(CALCULADORA!$C$30>'TIR de Tenencia'!J143,VLOOKUP(J143,A:H,7),CALCULADORA!$C$36)) -> 199700442 | O143: 15 | P143: 1 | Q143: 2033
A144: =+Flujos!A144 -> 2031-06-15 | B144: =+Flujos!L144 -> 7.139533409e-11 | C144: =+Flujos!M144 -> 0 | D144: =+Flujos!N144 -> 1.307248567e-13 | E144: =+Flujos!O144 -> 1.307248567e-13 | F144: =+Flujos!P144 -> 0 | G144: =+Flujos!Q144 -> 4.691096779e-11 | H144: =+Flujos!R144 -> 4.691096779e-11 | J144: 2033-01-15 | K144: =IF(J144<CALCULADORA!$C$26,0,IF(CALCULADORA!$C$30>'TIR de Tenencia'!J144,VLOOKUP(J144,A:H,7),CALCULADORA!$C$36)) -> 199700442 | O144: 15 | P144: 2 | Q144: 2033
A145: =+Flujos!A145 -> 2031-07-15 | B145: =+Flujos!L145 -> 7.139533409e-11 | C145: =+Flujos!M145 -> 0 | D145: =+Flujos!N145 -> 1.307248567e-13 | E145: =+Flujos!O145 -> 1.307248567e-13 | F145: =+Flujos!P145 -> 0 | G145: =+Flujos!Q145 -> 4.691096779e-11 | H145: =+Flujos!R145 -> 4.691096779e-11 | J145: 2033-02-15 | K145: =IF(J145<CALCULADORA!$C$26,0,IF(CALCULADORA!$C$30>'TIR de Tenencia'!J145,VLOOKUP(J145,A:H,7),CALCULADORA!$C$36)) -> 199700442 | O145: 15 | P145: 3 | Q145: 2033
A146: =+Flujos!A146 -> 2031-08-15 | B146: =+Flujos!L146 -> 7.139533409e-11 | C146: =+Flujos!M146 -> 0 | D146: =+Flujos!N146 -> 1.307248567e-13 | E146: =+Flujos!O146 -> 1.307248567e-13 | F146: =+Flujos!P146 -> 0 | G146: =+Flujos!Q146 -> 4.691096779e-11 | H146: =+Flujos!R146 -> 4.691096779e-11 | J146: 2033-03-15 | K146: =IF(J146<CALCULADORA!$C$26,0,IF(CALCULADORA!$C$30>'TIR de Tenencia'!J146,VLOOKUP(J146,A:H,7),CALCULADORA!$C$36)) -> 199700442 | O146: 15 | P146: 4 | Q146: 2033
A147: =+Flujos!A147 -> 2031-09-15 | B147: =+Flujos!L147 -> 7.139533409e-11 | C147: =+Flujos!M147 -> 0 | D147: =+Flujos!N147 -> 1.307248567e-13 | E147: =+Flujos!O147 -> 1.307248567e-13 | F147: =+Flujos!P147 -> 0 | G147: =+Flujos!Q147 -> 4.691096779e-11 | H147: =+Flujos!R147 -> 4.691096779e-11 | J147: 2033-04-15 | K147: =IF(J147<CALCULADORA!$C$26,0,IF(CALCULADORA!$C$30>'TIR de Tenencia'!J147,VLOOKUP(J147,A:H,7),CALCULADORA!$C$36)) -> 199700442 | O147: 15 | P147: 5 | Q147: 2033
A148: =+Flujos!A148 -> 2031-10-15 | B148: =+Flujos!L148 -> 7.139533409e-11 | C148: =+Flujos!M148 -> 0 | D148: =+Flujos!N148 -> 1.307248567e-13 | E148: =+Flujos!O148 -> 1.307248567e-13 | F148: =+Flujos!P148 -> 0 | G148: =+Flujos!Q148 -> 4.691096779e-11 | H148: =+Flujos!R148 -> 4.691096779e-11 | J148: 2033-05-15 | K148: =IF(J148<CALCULADORA!$C$26,0,IF(CALCULADORA!$C$30>'TIR de Tenencia'!J148,VLOOKUP(J148,A:H,7),CALCULADORA!$C$36)) -> 199700442 | O148: 15 | P148: 6 | Q148: 2033
A149: =+Flujos!A149 -> 2031-11-15 | B149: =+Flujos!L149 -> 7.139533409e-11 | C149: =+Flujos!M149 -> 0 | D149: =+Flujos!N149 -> 1.307248567e-13 | E149: =+Flujos!O149 -> 1.307248567e-13 | F149: =+Flujos!P149 -> 0 | G149: =+Flujos!Q149 -> 4.691096779e-11 | H149: =+Flujos!R149 -> 4.691096779e-11 | J149: 2033-06-15 | K149: =IF(J149<CALCULADORA!$C$26,0,IF(CALCULADORA!$C$30>'TIR de Tenencia'!J149,VLOOKUP(J149,A:H,7),CALCULADORA!$C$36)) -> 199700442 | O149: 15 | P149: 7 | Q149: 2033
A150: =+Flujos!A150 -> 2031-12-15 | B150: =+Flujos!L150 -> 7.139533409e-11 | C150: =+Flujos!M150 -> 0 | D150: =+Flujos!N150 -> 1.307248567e-13 | E150: =+Flujos!O150 -> 1.307248567e-13 | F150: =+Flujos!P150 -> 0 | G150: =+Flujos!Q150 -> 4.691096779e-11 | H150: =+Flujos!R150 -> 4.691096779e-11 | J150: 2033-07-15 | K150: =IF(J150<CALCULADORA!$C$26,0,IF(CALCULADORA!$C$30>'TIR de Tenencia'!J150,VLOOKUP(J150,A:H,7),CALCULADORA!$C$36)) -> 199700442 | O150: 15 | P150: 8 | Q150: 2033
A151: =+Flujos!A151 -> 2032-01-15 | B151: =+Flujos!L151 -> 7.139533409e-11 | C151: =+Flujos!M151 -> 0 | D151: =+Flujos!N151 -> 1.307248567e-13 | E151: =+Flujos!O151 -> 1.307248567e-13 | F151: =+Flujos!P151 -> 0 | G151: =+Flujos!Q151 -> 4.691096779e-11 | H151: =+Flujos!R151 -> 4.691096779e-11 | J151: 2033-08-15 | K151: =IF(J151<CALCULADORA!$C$26,0,IF(CALCULADORA!$C$30>'TIR de Tenencia'!J151,VLOOKUP(J151,A:H,7),CALCULADORA!$C$36)) -> 199700442 | O151: 15 | P151: 9 | Q151: 2033
A152: =+Flujos!A152 -> 2032-02-15 | B152: =+Flujos!L152 -> 7.139533409e-11 | C152: =+Flujos!M152 -> 0 | D152: =+Flujos!N152 -> 1.307248567e-13 | E152: =+Flujos!O152 -> 1.307248567e-13 | F152: =+Flujos!P152 -> 0 | G152: =+Flujos!Q152 -> 4.691096779e-11 | H152: =+Flujos!R152 -> 4.691096779e-11 | J152: 2033-09-15 | K152: =IF(J152<CALCULADORA!$C$26,0,IF(CALCULADORA!$C$30>'TIR de Tenencia'!J152,VLOOKUP(J152,A:H,7),CALCULADORA!$C$36)) -> 199700442 | O152: 15 | P152: 10 | Q152: 2033
A153: =+Flujos!A153 -> 2032-03-15 | B153: =+Flujos!L153 -> 7.139533409e-11 | C153: =+Flujos!M153 -> 0 | D153: =+Flujos!N153 -> 1.307248567e-13 | E153: =+Flujos!O153 -> 1.307248567e-13 | F153: =+Flujos!P153 -> 0 | G153: =+Flujos!Q153 -> 4.691096779e-11 | H153: =+Flujos!R153 -> 4.691096779e-11 | J153: 2033-10-15 | K153: =IF(J153<CALCULADORA!$C$26,0,IF(CALCULADORA!$C$30>'TIR de Tenencia'!J153,VLOOKUP(J153,A:H,7),CALCULADORA!$C$36)) -> 199700442 | O153: 15 | P153: 11 | Q153: 2033
A154: =+Flujos!A154 -> 2032-04-15 | B154: =+Flujos!L154 -> 7.139533409e-11 | C154: =+Flujos!M154 -> 0 | D154: =+Flujos!N154 -> 1.307248567e-13 | E154: =+Flujos!O154 -> 1.307248567e-13 | F154: =+Flujos!P154 -> 0 | G154: =+Flujos!Q154 -> 4.691096779e-11 | H154: =+Flujos!R154 -> 4.691096779e-11 | J154: 2033-11-15 | K154: =IF(J154<CALCULADORA!$C$26,0,IF(CALCULADORA!$C$30>'TIR de Tenencia'!J154,VLOOKUP(J154,A:H,7),CALCULADORA!$C$36)) -> 199700442 | O154: 15 | P154: 12 | Q154: 2033
A155: =+Flujos!A155 -> 2032-05-15 | B155: =+Flujos!L155 -> 7.139533409e-11 | C155: =+Flujos!M155 -> 0 | D155: =+Flujos!N155 -> 1.307248567e-13 | E155: =+Flujos!O155 -> 1.307248567e-13 | F155: =+Flujos!P155 -> 0 | G155: =+Flujos!Q155 -> 4.691096779e-11 | H155: =+Flujos!R155 -> 4.691096779e-11 | J155: 2033-12-15 | K155: =IF(J155<CALCULADORA!$C$26,0,IF(CALCULADORA!$C$30>'TIR de Tenencia'!J155,VLOOKUP(J155,A:H,7),CALCULADORA!$C$36)) -> 199700442 | O155: 15 | P155: 1 | Q155: 2034
A156: =+Flujos!A156 -> 2032-06-15 | B156: =+Flujos!L156 -> 7.139533409e-11 | C156: =+Flujos!M156 -> 0 | D156: =+Flujos!N156 -> 1.307248567e-13 | E156: =+Flujos!O156 -> 1.307248567e-13 | F156: =+Flujos!P156 -> 0 | G156: =+Flujos!Q156 -> 4.691096779e-11 | H156: =+Flujos!R156 -> 4.691096779e-11 | J156: 2034-01-15 | K156: =IF(J156<CALCULADORA!$C$26,0,IF(CALCULADORA!$C$30>'TIR de Tenencia'!J156,VLOOKUP(J156,A:H,7),CALCULADORA!$C$36)) -> 199700442 | O156: 15 | P156: 2 | Q156: 2034
A157: =+Flujos!A157 -> 2032-07-15 | B157: =+Flujos!L157 -> 7.139533409e-11 | C157: =+Flujos!M157 -> 0 | D157: =+Flujos!N157 -> 1.307248567e-13 | E157: =+Flujos!O157 -> 1.307248567e-13 | F157: =+Flujos!P157 -> 0 | G157: =+Flujos!Q157 -> 4.691096779e-11 | H157: =+Flujos!R157 -> 4.691096779e-11 | J157: 2034-02-15 | K157: =IF(J157<CALCULADORA!$C$26,0,IF(CALCULADORA!$C$30>'TIR de Tenencia'!J157,VLOOKUP(J157,A:H,7),CALCULADORA!$C$36)) -> 199700442 | O157: 15 | P157: 3 | Q157: 2034
A158: =+Flujos!A158 -> 2032-08-15 | B158: =+Flujos!L158 -> 7.139533409e-11 | C158: =+Flujos!M158 -> 0 | D158: =+Flujos!N158 -> 1.307248567e-13 | E158: =+Flujos!O158 -> 1.307248567e-13 | F158: =+Flujos!P158 -> 0 | G158: =+Flujos!Q158 -> 4.691096779e-11 | H158: =+Flujos!R158 -> 4.691096779e-11 | J158: 2034-03-15 | K158: =IF(J158<CALCULADORA!$C$26,0,IF(CALCULADORA!$C$30>'TIR de Tenencia'!J158,VLOOKUP(J158,A:H,7),CALCULADORA!$C$36)) -> 199700442 | O158: 15 | P158: 4 | Q158: 2034
A159: =+Flujos!A159 -> 2032-09-15 | B159: =+Flujos!L159 -> 7.139533409e-11 | C159: =+Flujos!M159 -> 0 | D159: =+Flujos!N159 -> 1.307248567e-13 | E159: =+Flujos!O159 -> 1.307248567e-13 | F159: =+Flujos!P159 -> 0 | G159: =+Flujos!Q159 -> 4.691096779e-11 | H159: =+Flujos!R159 -> 4.691096779e-11 | J159: 2034-04-15 | K159: =IF(J159<CALCULADORA!$C$26,0,IF(CALCULADORA!$C$30>'TIR de Tenencia'!J159,VLOOKUP(J159,A:H,7),CALCULADORA!$C$36)) -> 199700442 | O159: 15 | P159: 5 | Q159: 2034
A160: =+Flujos!A160 -> 2032-10-15 | B160: =+Flujos!L160 -> 7.139533409e-11 | C160: =+Flujos!M160 -> 0 | D160: =+Flujos!N160 -> 1.307248567e-13 | E160: =+Flujos!O160 -> 1.307248567e-13 | F160: =+Flujos!P160 -> 0 | G160: =+Flujos!Q160 -> 4.691096779e-11 | H160: =+Flujos!R160 -> 4.691096779e-11 | J160: 2034-05-15 | K160: =IF(J160<CALCULADORA!$C$26,0,IF(CALCULADORA!$C$30>'TIR de Tenencia'!J160,VLOOKUP(J160,A:H,7),CALCULADORA!$C$36)) -> 199700442 | O160: 15 | P160: 6 | Q160: 2034
A161: =+Flujos!A161 -> 2032-11-15 | B161: =+Flujos!L161 -> 7.139533409e-11 | C161: =+Flujos!M161 -> 0 | D161: =+Flujos!N161 -> 1.307248567e-13 | E161: =+Flujos!O161 -> 1.307248567e-13 | F161: =+Flujos!P161 -> 0 | G161: =+Flujos!Q161 -> 4.691096779e-11 | H161: =+Flujos!R161 -> 4.691096779e-11 | J161: 2034-06-15 | K161: =IF(J161<CALCULADORA!$C$26,0,IF(CALCULADORA!$C$30>'TIR de Tenencia'!J161,VLOOKUP(J161,A:H,7),CALCULADORA!$C$36)) -> 199700442 | O161: 15 | P161: 7 | Q161: 2034
A162: =+Flujos!A162 -> 2032-12-15 | B162: =+Flujos!L162 -> 7.139533409e-11 | C162: =+Flujos!M162 -> 0 | D162: =+Flujos!N162 -> 1.307248567e-13 | E162: =+Flujos!O162 -> 1.307248567e-13 | F162: =+Flujos!P162 -> 0 | G162: =+Flujos!Q162 -> 4.691096779e-11 | H162: =+Flujos!R162 -> 4.691096779e-11 | J162: 2034-07-15 | K162: =IF(J162<CALCULADORA!$C$26,0,IF(CALCULADORA!$C$30>'TIR de Tenencia'!J162,VLOOKUP(J162,A:H,7),CALCULADORA!$C$36)) -> 199700442 | O162: 15 | P162: 8 | Q162: 2034
A163: =+Flujos!A163 -> 2033-01-15 | B163: =+Flujos!L163 -> 7.139533409e-11 | C163: =+Flujos!M163 -> 0 | D163: =+Flujos!N163 -> 1.307248567e-13 | E163: =+Flujos!O163 -> 1.307248567e-13 | F163: =+Flujos!P163 -> 0 | G163: =+Flujos!Q163 -> 4.691096779e-11 | H163: =+Flujos!R163 -> 4.691096779e-11 | J163: =+DATE(Q162,P162,O162) -> 2034-08-15 | K163: =IF(J163<CALCULADORA!$C$26,0,IF(CALCULADORA!$C$30>'TIR de Tenencia'!J163,VLOOKUP(J163,A:H,7),CALCULADORA!$C$36)) -> 199700442 | O163: 15 | P163: 9 | Q163: 2034
A164: =+Flujos!A164 -> 2033-02-15 | B164: =+Flujos!L164 -> 7.139533409e-11 | C164: =+Flujos!M164 -> 0 | D164: =+Flujos!N164 -> 1.307248567e-13 | E164: =+Flujos!O164 -> 1.307248567e-13 | F164: =+Flujos!P164 -> 0 | G164: =+Flujos!Q164 -> 4.691096779e-11 | H164: =+Flujos!R164 -> 4.691096779e-11 | J164: 2034-09-15 | K164: =IF(J164<CALCULADORA!$C$26,0,IF(CALCULADORA!$C$30>'TIR de Tenencia'!J164,VLOOKUP(J164,A:H,7),CALCULADORA!$C$36)) -> 199700442 | O164: 15 | P164: 10 | Q164: 2034
A165: =+Flujos!A165 -> 2033-03-15 | B165: =+Flujos!L165 -> 7.139533409e-11 | C165: =+Flujos!M165 -> 0 | D165: =+Flujos!N165 -> 1.307248567e-13 | E165: =+Flujos!O165 -> 1.307248567e-13 | F165: =+Flujos!P165 -> 0 | G165: =+Flujos!Q165 -> 4.691096779e-11 | H165: =+Flujos!R165 -> 4.691096779e-11 | J165: 2034-10-15 | K165: =IF(J165<CALCULADORA!$C$26,0,IF(CALCULADORA!$C$30>'TIR de Tenencia'!J165,VLOOKUP(J165,A:H,7),CALCULADORA!$C$36)) -> 199700442 | O165: 15 | P165: 11 | Q165: 2034
A166: =+Flujos!A166 -> 2033-04-15 | B166: =+Flujos!L166 -> 7.139533409e-11 | C166: =+Flujos!M166 -> 0 | D166: =+Flujos!N166 -> 1.307248567e-13 | E166: =+Flujos!O166 -> 1.307248567e-13 | F166: =+Flujos!P166 -> 0 | G166: =+Flujos!Q166 -> 4.691096779e-11 | H166: =+Flujos!R166 -> 4.691096779e-11 | J166: 2034-11-15 | K166: =IF(J166<CALCULADORA!$C$26,0,IF(CALCULADORA!$C$30>'TIR de Tenencia'!J166,VLOOKUP(J166,A:H,7),CALCULADORA!$C$36)) -> 199700442 | O166: 15 | P166: 12 | Q166: 2034
A167: =+Flujos!A167 -> 2033-05-15 | B167: =+Flujos!L167 -> 7.139533409e-11 | C167: =+Flujos!M167 -> 0 | D167: =+Flujos!N167 -> 1.307248567e-13 | E167: =+Flujos!O167 -> 1.307248567e-13 | F167: =+Flujos!P167 -> 0 | G167: =+Flujos!Q167 -> 4.691096779e-11 | H167: =+Flujos!R167 -> 4.691096779e-11 | J167: 2034-12-15 | K167: =IF(J167<CALCULADORA!$C$26,0,IF(CALCULADORA!$C$30>'TIR de Tenencia'!J167,VLOOKUP(J167,A:H,7),CALCULADORA!$C$36)) -> 199700442 | O167: 15 | P167: 1 | Q167: 2035
A168: =+Flujos!A168 -> 2033-06-15 | B168: =+Flujos!L168 -> 7.139533409e-11 | C168: =+Flujos!M168 -> 0 | D168: =+Flujos!N168 -> 1.307248567e-13 | E168: =+Flujos!O168 -> 1.307248567e-13 | F168: =+Flujos!P168 -> 0 | G168: =+Flujos!Q168 -> 4.691096779e-11 | H168: =+Flujos!R168 -> 4.691096779e-11 | J168: 2035-01-15 | K168: =IF(J168<CALCULADORA!$C$26,0,IF(CALCULADORA!$C$30>'TIR de Tenencia'!J168,VLOOKUP(J168,A:H,7),CALCULADORA!$C$36)) -> 199700442 | O168: 15 | P168: 2 | Q168: 2035
A169: =+Flujos!A169 -> 2033-07-15 | B169: =+Flujos!L169 -> 7.139533409e-11 | C169: =+Flujos!M169 -> 0 | D169: =+Flujos!N169 -> 1.307248567e-13 | E169: =+Flujos!O169 -> 1.307248567e-13 | F169: =+Flujos!P169 -> 0 | G169: =+Flujos!Q169 -> 4.691096779e-11 | H169: =+Flujos!R169 -> 4.691096779e-11 | J169: 2035-02-15 | K169: =IF(J169<CALCULADORA!$C$26,0,IF(CALCULADORA!$C$30>'TIR de Tenencia'!J169,VLOOKUP(J169,A:H,7),CALCULADORA!$C$36)) -> 199700442 | O169: 15 | P169: 3 | Q169: 2035
A170: =+Flujos!A170 -> 2033-08-15 | B170: =+Flujos!L170 -> 7.139533409e-11 | C170: =+Flujos!M170 -> 0 | D170: =+Flujos!N170 -> 1.307248567e-13 | E170: =+Flujos!O170 -> 1.307248567e-13 | F170: =+Flujos!P170 -> 0 | G170: =+Flujos!Q170 -> 4.691096779e-11 | H170: =+Flujos!R170 -> 4.691096779e-11 | J170: 2035-03-15 | K170: =IF(J170<CALCULADORA!$C$26,0,IF(CALCULADORA!$C$30>'TIR de Tenencia'!J170,VLOOKUP(J170,A:H,7),CALCULADORA!$C$36)) -> 199700442 | O170: 15 | P170: 4 | Q170: 2035
A171: =+Flujos!A171 -> 2033-09-15 | B171: =+Flujos!L171 -> 7.139533409e-11 | C171: =+Flujos!M171 -> 0 | D171: =+Flujos!N171 -> 1.307248567e-13 | E171: =+Flujos!O171 -> 1.307248567e-13 | F171: =+Flujos!P171 -> 0 | G171: =+Flujos!Q171 -> 4.691096779e-11 | H171: =+Flujos!R171 -> 4.691096779e-11 | J171: 2035-04-15 | K171: =IF(J171<CALCULADORA!$C$26,0,IF(CALCULADORA!$C$30>'TIR de Tenencia'!J171,VLOOKUP(J171,A:H,7),CALCULADORA!$C$36)) -> 199700442 | O171: 15 | P171: 5 | Q171: 2035
A172: =+Flujos!A172 -> 2033-10-15 | B172: =+Flujos!L172 -> 7.139533409e-11 | C172: =+Flujos!M172 -> 0 | D172: =+Flujos!N172 -> 1.307248567e-13 | E172: =+Flujos!O172 -> 1.307248567e-13 | F172: =+Flujos!P172 -> 0 | G172: =+Flujos!Q172 -> 4.691096779e-11 | H172: =+Flujos!R172 -> 4.691096779e-11 | J172: 2035-05-15 | K172: =IF(J172<CALCULADORA!$C$26,0,IF(CALCULADORA!$C$30>'TIR de Tenencia'!J172,VLOOKUP(J172,A:H,7),CALCULADORA!$C$36)) -> 199700442 | O172: 15 | P172: 6 | Q172: 2035
A173: =+Flujos!A173 -> 2033-11-15 | B173: =+Flujos!L173 -> 7.139533409e-11 | C173: =+Flujos!M173 -> 0 | D173: =+Flujos!N173 -> 1.307248567e-13 | E173: =+Flujos!O173 -> 1.307248567e-13 | F173: =+Flujos!P173 -> 0 | G173: =+Flujos!Q173 -> 4.691096779e-11 | H173: =+Flujos!R173 -> 4.691096779e-11 | J173: 2035-06-15 | K173: =IF(J173<CALCULADORA!$C$26,0,IF(CALCULADORA!$C$30>'TIR de Tenencia'!J173,VLOOKUP(J173,A:H,7),CALCULADORA!$C$36)) -> 199700442 | O173: 15 | P173: 7 | Q173: 2035
A174: =+Flujos!A174 -> 2033-12-15 | B174: =+Flujos!L174 -> 7.139533409e-11 | C174: =+Flujos!M174 -> 0 | D174: =+Flujos!N174 -> 1.307248567e-13 | E174: =+Flujos!O174 -> 1.307248567e-13 | F174: =+Flujos!P174 -> 0 | G174: =+Flujos!Q174 -> 4.691096779e-11 | H174: =+Flujos!R174 -> 4.691096779e-11 | J174: 2035-07-15 | K174: =IF(J174<CALCULADORA!$C$26,0,IF(CALCULADORA!$C$30>'TIR de Tenencia'!J174,VLOOKUP(J174,A:H,7),CALCULADORA!$C$36)) -> 199700442 | O174: 15 | P174: 8 | Q174: 2035
A175: =+Flujos!A175 -> 2034-01-15 | B175: =+Flujos!L175 -> 7.139533409e-11 | C175: =+Flujos!M175 -> 0 | D175: =+Flujos!N175 -> 1.307248567e-13 | E175: =+Flujos!O175 -> 1.307248567e-13 | F175: =+Flujos!P175 -> 0 | G175: =+Flujos!Q175 -> 4.691096779e-11 | H175: =+Flujos!R175 -> 4.691096779e-11 | J175: 2035-08-15 | K175: =IF(J175<CALCULADORA!$C$26,0,IF(CALCULADORA!$C$30>'TIR de Tenencia'!J175,VLOOKUP(J175,A:H,7),CALCULADORA!$C$36)) -> 199700442 | O175: 15 | P175: 9 | Q175: 2035
A176: =+Flujos!A176 -> 2034-02-15 | B176: =+Flujos!L176 -> 7.139533409e-11 | C176: =+Flujos!M176 -> 0 | D176: =+Flujos!N176 -> 1.307248567e-13 | E176: =+Flujos!O176 -> 1.307248567e-13 | F176: =+Flujos!P176 -> 0 | G176: =+Flujos!Q176 -> 4.691096779e-11 | H176: =+Flujos!R176 -> 4.691096779e-11 | J176: 2035-09-15 | K176: =IF(J176<CALCULADORA!$C$26,0,IF(CALCULADORA!$C$30>'TIR de Tenencia'!J176,VLOOKUP(J176,A:H,7),CALCULADORA!$C$36)) -> 199700442 | O176: 15 | P176: 10 | Q176: 2035
A177: =+Flujos!A177 -> 2034-03-15 | B177: =+Flujos!L177 -> 7.139533409e-11 | C177: =+Flujos!M177 -> 0 | D177: =+Flujos!N177 -> 1.307248567e-13 | E177: =+Flujos!O177 -> 1.307248567e-13 | F177: =+Flujos!P177 -> 0 | G177: =+Flujos!Q177 -> 4.691096779e-11 | H177: =+Flujos!R177 -> 4.691096779e-11 | J177: 2035-10-15 | K177: =IF(J177<CALCULADORA!$C$26,0,IF(CALCULADORA!$C$30>'TIR de Tenencia'!J177,VLOOKUP(J177,A:H,7),CALCULADORA!$C$36)) -> 199700442 | O177: 15 | P177: 11 | Q177: 2035
A178: =+Flujos!A178 -> 2034-04-15 | B178: =+Flujos!L178 -> 7.139533409e-11 | C178: =+Flujos!M178 -> 0 | D178: =+Flujos!N178 -> 1.307248567e-13 | E178: =+Flujos!O178 -> 1.307248567e-13 | F178: =+Flujos!P178 -> 0 | G178: =+Flujos!Q178 -> 4.691096779e-11 | H178: =+Flujos!R178 -> 4.691096779e-11 | J178: 2035-11-15 | K178: =IF(J178<CALCULADORA!$C$26,0,IF(CALCULADORA!$C$30>'TIR de Tenencia'!J178,VLOOKUP(J178,A:H,7),CALCULADORA!$C$36)) -> 199700442 | O178: 15 | P178: 12 | Q178: 2035
A179: =+Flujos!A179 -> 2034-05-15 | B179: =+Flujos!L179 -> 7.139533409e-11 | C179: =+Flujos!M179 -> 0 | D179: =+Flujos!N179 -> 1.307248567e-13 | E179: =+Flujos!O179 -> 1.307248567e-13 | F179: =+Flujos!P179 -> 0 | G179: =+Flujos!Q179 -> 4.691096779e-11 | H179: =+Flujos!R179 -> 4.691096779e-11 | J179: 2035-12-15 | K179: =IF(J179<CALCULADORA!$C$26,0,IF(CALCULADORA!$C$30>'TIR de Tenencia'!J179,VLOOKUP(J179,A:H,7),CALCULADORA!$C$36)) -> 199700442 | O179: 15 | P179: 1 | Q179: 2036
A180: =+Flujos!A180 -> 2034-06-15 | B180: =+Flujos!L180 -> 7.139533409e-11 | C180: =+Flujos!M180 -> 0 | D180: =+Flujos!N180 -> 1.307248567e-13 | E180: =+Flujos!O180 -> 1.307248567e-13 | F180: =+Flujos!P180 -> 0 | G180: =+Flujos!Q180 -> 4.691096779e-11 | H180: =+Flujos!R180 -> 4.691096779e-11 | J180: 2036-01-15 | K180: =IF(J180<CALCULADORA!$C$26,0,IF(CALCULADORA!$C$30>'TIR de Tenencia'!J180,VLOOKUP(J180,A:H,7),CALCULADORA!$C$36)) -> 199700442 | O180: 15 | P180: 2 | Q180: 2036
A181: =+Flujos!A181 -> 2034-07-15 | B181: =+Flujos!L181 -> 7.139533409e-11 | C181: =+Flujos!M181 -> 0 | D181: =+Flujos!N181 -> 1.307248567e-13 | E181: =+Flujos!O181 -> 1.307248567e-13 | F181: =+Flujos!P181 -> 0 | G181: =+Flujos!Q181 -> 4.691096779e-11 | H181: =+Flujos!R181 -> 4.691096779e-11 | J181: 2036-02-15 | K181: =IF(J181<CALCULADORA!$C$26,0,IF(CALCULADORA!$C$30>'TIR de Tenencia'!J181,VLOOKUP(J181,A:H,7),CALCULADORA!$C$36)) -> 199700442 | O181: 15 | P181: 3 | Q181: 2036
A182: =+Flujos!A182 -> 2034-08-15 | B182: =+Flujos!L182 -> 7.139533409e-11 | C182: =+Flujos!M182 -> 0 | D182: =+Flujos!N182 -> 1.307248567e-13 | E182: =+Flujos!O182 -> 1.307248567e-13 | F182: =+Flujos!P182 -> 0 | G182: =+Flujos!Q182 -> 4.691096779e-11 | H182: =+Flujos!R182 -> 4.691096779e-11 | J182: 2036-03-15 | K182: =IF(J182<CALCULADORA!$C$26,0,IF(CALCULADORA!$C$30>'TIR de Tenencia'!J182,VLOOKUP(J182,A:H,7),CALCULADORA!$C$36)) -> 199700442 | O182: 15 | P182: 4 | Q182: 2036
B183: Totales | C183: =SUM(C2:C182) -> 1999999.015 | D183: 148613.0561 | E183: 2148612.072 | F183: 636092454 | G183: 45248692 | H183: 681341146
L184: =+IF(K184=K183," ",K184) ->  | N184: =+MONTH(A184) -> 1 | O184: =+YEAR(A184) -> 1900
N185: 1 | O185: 1900
N186: 1 | O186: 1900
N187: 1 | O187: 1900
N188: 1 | O188: 1900
N189: 1 | O189: 1900
N190: 1 | O190: 1900
N191: 1 | O191: 1900
N192: 1 | O192: 1900
N193: 1 | O193: 1900
N194: 1 | O194: 1900
N195: 1 | O195: 1900
N196: 1 | O196: 1900
N197: 1 | O197: 1900
N198: 1 | O198: 1900
N199: 1 | O199: 1900
N200: 1 | O200: 1900
... 4300 more rows

Sheet Exclusión
A1: “Titularizadora Colombiana S.A publica el presente documento con un carácter estrictamente informativo para los inversionistas. Aunque la información aquí contenida ha sido obtenida de fuentes que la compañía considera confiables, Titularizadora Colombiana S.A no garantiza su exactitud. En ningún caso su contenido se puede considerar como una opinión financiera o legal ni como una recomendación de negocios o de inversión por parte de nuestra compañía. Tampoco puede ser considerado como una invitación a realizar negocios ni como una oferta para comprar o vender ningún tipo de valor. En ningún caso Titularizadora Colombiana S.A asume responsabilidad por las decisiones de inversión que se tomen, o el resultado de cualquier operación que se efectúe por parte de los destinatarios o de terceras personas, sobre la información aquí contenida. Tal responsabilidad es exclusiva de los inversionistas que hagan uso de ella. Dicha información puede tener variaciones posteriores a la fecha de su publicación razón por la cual Titularizadora Colombiana S.A se reserva el derecho de modificarla o actualizarla en cualquier tiempo y sin previo aviso.”

Sheet UVR (hidden)
A1: Fecha | B1: UVR
A2: 2017-09-14 | B2: 251.6432
A3: 2017-09-15 | B3: 251.6391
A4: 2017-09-16 | B4: 251.6508
A5: 2017-09-17 | B5: 251.6626
A6: 2017-09-18 | B6: 251.6743
A7: 2017-09-19 | B7: 251.686
A8: 2017-09-20 | B8: 251.6978
A9: 2017-09-21 | B9: 251.7095
A10: 2017-09-22 | B10: 251.7213
A11: 2017-09-23 | B11: 251.733
A12: 2017-09-24 | B12: 251.7447
A13: 2017-09-25 | B13: 251.7565
A14: 2017-09-26 | B14: 251.7682
A15: 2017-09-27 | B15: 251.78
A16: 2017-09-28 | B16: 251.7917
A17: 2017-09-29 | B17: 251.8034
A18: 2017-09-30 | B18: 251.8152
A19: 2017-10-01 | B19: 251.8269
A20: 2017-10-02 | B20: 251.8387
A21: 2017-10-03 | B21: 251.8504
A22: 2017-10-04 | B22: 251.8622
A23: 2017-10-05 | B23: 251.8739
A24: 2017-10-06 | B24: 251.8857
A25: 2017-10-07 | B25: 251.8974
A26: 2017-10-08 | B26: 251.9091
A27: 2017-10-09 | B27: 251.9209
A28: 2017-10-10 | B28: 251.9326
A29: 2017-10-11 | B29: 251.9444
A30: 2017-10-12 | B30: 251.9561
A31: 2017-10-13 | B31: 251.9679
A32: 2017-10-14 | B32: 251.9796
A33: 2017-10-15 | B33: 251.9914
A34: 2017-10-16 | B34: 251.9947
A35: 2017-10-17 | B35: 251.9979
A36: 2017-10-18 | B36: 252.0012
A37: 2017-10-19 | B37: 252.0044
A38: 2017-10-20 | B38: 252.0077
A39: 2017-10-21 | B39: 252.0109
A40: 2017-10-22 | B40: 252.0142
A41: 2017-10-23 | B41: 252.0174
A42: 2017-10-24 | B42: 252.0207
A43: 2017-10-25 | B43: 252.0239
A44: 2017-10-26 | B44: 252.0272
A45: 2017-10-27 | B45: 252.0304
A46: 2017-10-28 | B46: 252.0337
A47: 2017-10-29 | B47: 252.0369
A48: 2017-10-30 | B48: 252.0402
A49: 2017-10-31 | B49: 252.0434
A50: 2017-11-01 | B50: 252.0467
A51: 2017-11-02 | B51: 252.0499
A52: 2017-11-03 | B52: 252.0532
A53: 2017-11-04 | B53: 252.0564
A54: 2017-11-05 | B54: 252.0597
A55: 2017-11-06 | B55: 252.0629
A56: 2017-11-07 | B56: 252.0662
A57: 2017-11-08 | B57: 252.0694
A58: 2017-11-09 | B58: 252.0727
A59: 2017-11-10 | B59: 252.0759
A60: 2017-11-11 | B60: 252.0792
A61: 2017-11-12 | B61: 252.0824
A62: 2017-11-13 | B62: 252.0857
A63: 2017-11-14 | B63: 252.0889
A64: 2017-11-15 | B64: 252.0922
A65: 2017-11-16 | B65: 252.0939
A66: 2017-11-17 | B66: 252.0956
A67: 2017-11-18 | B67: 252.0972
A68: 2017-11-19 | B68: 252.0989
A69: 2017-11-20 | B69: 252.1006
A70: 2017-11-21 | B70: 252.1023
A71: 2017-11-22 | B71: 252.104
A72: 2017-11-23 | B72: 252.1056
A73: 2017-11-24 | B73: 252.1073
A74: 2017-11-25 | B74: 252.109
A75: 2017-11-26 | B75: 252.1107
A76: 2017-11-27 | B76: 252.1124
A77: 2017-11-28 | B77: 252.114
A78: 2017-11-29 | B78: 252.1157
A79: 2017-11-30 | B79: 252.1174
A80: 2017-12-01 | B80: 252.1191
A81: 2017-12-02 | B81: 252.1208
A82: 2017-12-03 | B82: 252.1224
A83: 2017-12-04 | B83: 252.1241
A84: 2017-12-05 | B84: 252.1258
A85: 2017-12-06 | B85: 252.1275
A86: 2017-12-07 | B86: 252.1292
A87: 2017-12-08 | B87: 252.1309
A88: 2017-12-09 | B88: 252.1325
A89: 2017-12-10 | B89: 252.1342
A90: 2017-12-11 | B90: 252.1359
A91: 2017-12-12 | B91: 252.1376
A92: 2017-12-13 | B92: 252.1393
A93: 2017-12-14 | B93: 252.1409
A94: 2017-12-15 | B94: 252.1426
A95: 2017-12-16 | B95: 252.1572
A96: 2017-12-17 | B96: 252.1719
A97: 2017-12-18 | B97: 252.1865
A98: 2017-12-19 | B98: 252.2011
A99: 2017-12-20 | B99: 252.2157
A100: 2017-12-21 | B100: 252.2304
A101: 2017-12-22 | B101: 252.245
A102: 2017-12-23 | B102: 252.2596
A103: 2017-12-24 | B103: 252.2743
A104: 2017-12-25 | B104: 252.2889
A105: 2017-12-26 | B105: 252.3036
A106: 2017-12-27 | B106: 252.3182
A107: 2017-12-28 | B107: 252.3328
A108: 2017-12-29 | B108: 252.3475
A109: 2017-12-30 | B109: 252.3621
A110: 2017-12-31 | B110: 252.3767
A111: 2018-01-01 | B111: 252.3914
A112: 2018-01-02 | B112: 252.406
A113: 2018-01-03 | B113: 252.4207
A114: 2018-01-04 | B114: 252.4353
A115: 2018-01-05 | B115: 252.45
A116: 2018-01-06 | B116: 252.4646
A117: 2018-01-07 | B117: 252.4793
A118: 2018-01-08 | B118: 252.4939
A119: 2018-01-09 | B119: 252.5085
A120: 2018-01-10 | B120: 252.5232
A121: 2018-01-11 | B121: 252.5378
A122: 2018-01-12 | B122: 252.5525
A123: 2018-01-13 | B123: 252.5672
A124: 2018-01-14 | B124: 252.5818
A125: 2018-01-15 | B125: 252.5965
A126: 2018-01-16 | B126: 252.6274
A127: 2018-01-17 | B127: 252.6583
A128: 2018-01-18 | B128: 252.6892
A129: 2018-01-19 | B129: 252.7201
A130: 2018-01-20 | B130: 252.7511
A131: 2018-01-21 | B131: 252.782
A132: 2018-01-22 | B132: 252.8129
A133: 2018-01-23 | B133: 252.8439
A134: 2018-01-24 | B134: 252.8748
A135: 2018-01-25 | B135: 252.9057
A136: 2018-01-26 | B136: 252.9367
A137: 2018-01-27 | B137: 252.9676
A138: 2018-01-28 | B138: 252.9986
A139: 2018-01-29 | B139: 253.0295
A140: 2018-01-30 | B140: 253.0605
A141: 2018-01-31 | B141: 253.0915
A142: 2018-02-01 | B142: 253.1224
A143: 2018-02-02 | B143: 253.1534
A144: 2018-02-03 | B144: 253.1844
A145: 2018-02-04 | B145: 253.2154
A146: 2018-02-05 | B146: 253.2463
A147: 2018-02-06 | B147: 253.2773
A148: 2018-02-07 | B148: 253.3083
A149: 2018-02-08 | B149: 253.3393
A150: 2018-02-09 | B150: 253.3703
A151: 2018-02-10 | B151: 253.4013
A152: 2018-02-11 | B152: 253.4323
A153: 2018-02-12 | B153: 253.4633
A154: 2018-02-13 | B154: 253.4943
A155: 2018-02-14 | B155: 253.5253
A156: 2018-02-15 | B156: 253.5564
A157: 2018-02-16 | B157: 253.6133
A158: 2018-02-17 | B158: 253.6702
A159: 2018-02-18 | B159: 253.7271
A160: 2018-02-19 | B160: 253.784
A161: 2018-02-20 | B161: 253.8409
A162: 2018-02-21 | B162: 253.8979
A163: 2018-02-22 | B163: 253.9548
A164: 2018-02-23 | B164: 254.0118
A165: 2018-02-24 | B165: 254.0688
A166: 2018-02-25 | B166: 254.1258
A167: 2018-02-26 | B167: 254.1828
A168: 2018-02-27 | B168: 254.2398
A169: 2018-02-28 | B169: 254.2968
A170: 2018-03-01 | B170: 254.3538
A171: 2018-03-02 | B171: 254.4109
A172: 2018-03-03 | B172: 254.468
A173: 2018-03-04 | B173: 254.5251
A174: 2018-03-05 | B174: 254.5822
A175: 2018-03-06 | B175: 254.6393
A176: 2018-03-07 | B176: 254.6964
A177: 2018-03-08 | B177: 254.7535
A178: 2018-03-09 | B178: 254.8107
A179: 2018-03-10 | B179: 254.8678
A180: 2018-03-11 | B180: 254.925
A181: 2018-03-12 | B181: 254.9822
A182: 2018-03-13 | B182: 255.0394
A183: 2018-03-14 | B183: 255.0966
A184: 2018-03-15 | B184: 255.1538
A185: 2018-03-16 | B185: 255.212
A186: 2018-03-17 | B186: 255.2703
A187: 2018-03-18 | B187: 255.3286
A188: 2018-03-19 | B188: 255.3868
A189: 2018-03-20 | B189: 255.4451
A190: 2018-03-21 | B190: 255.5034
A191: 2018-03-22 | B191: 255.5617
A192: 2018-03-23 | B192: 255.6201
A193: 2018-03-24 | B193: 255.6784
A194: 2018-03-25 | B194: 255.7368
A195: 2018-03-26 | B195: 255.7952
A196: 2018-03-27 | B196: 255.8535
A197: 2018-03-28 | B197: 255.9119
A198: 2018-03-29 | B198: 255.9704
A199: 2018-03-30 | B199: 256.0288
A200: 2018-03-31 | B200: 256.0872
... 2833 more rows

Sheet Tabla de Amortizacion (hidden)
A1: FECHA | B1: Tabla de Amortización Valoración | E1: Tabla de Amortización Valoración | F1: Tabla de Amortización Valoración | G1: Tabla de Amortización Valoración | H1: Tabla de Amortización Valoración | I1: Tabla de Amortización Valoración
B2: =+CALCULADORA!C11 -> TIPS UVR U-4 A 2029 | E2: =+Características!$B$1 -> TIPS UVR U-2 A 2027 | F2: =+Características!$C$1 -> TIPS UVR U-3 A 2028 | G2: =+Características!$D$1 -> TIPS UVR U-4 A 2029 | H2: =+Características!$E$1 -> TIPS UVR U-5 A 2036 | I2: =+Características!$F$1 -> TIPS UVR U-6 A 2037
A3: =+Flujos!A3 -> 2019-09-15 | B3: =+VLOOKUP(A3,$D$2:$I$182,MATCH($B$2,$D$2:$I$2,0),FALSE) -> 0.01606318 | D3: =+A3 -> 2019-09-15 | E3: 0.01955465 | F3: 0.01716742 | G3: 0.01606318 | H3: 0.00926779 | I3: 0.01013202
A4: =+Flujos!A4 -> 2019-10-15 | B4: 0.01695723 | D4: =+A4 -> 2019-10-15 | E4: 0.02205094 | F4: 0.02016353 | G4: 0.01695723 | H4: 0.01652331 | I4: 0.00673869 | J4: TIPS UVR U-2 A 2027
A5: =+Flujos!A5 -> 2019-11-15 | B5: 0.01625132 | D5: 2019-11-15 | E5: 0.02293148 | F5: 0.01867077 | G5: 0.01625132 | H5: 0.01656473 | I5: 0.01048377 | J5: TIPS UVR U-3 A 2028
A6: =+Flujos!A6 -> 2019-12-15 | B6: 0.01603115 | D6: 2019-12-15 | E6: 0.01492861 | F6: 0.01694859 | G6: 0.01603115 | H6: 0.0143114 | I6: 0.00595883 | J6: TIPS UVR U-4 A 2029
A7: =+Flujos!A7 -> 2020-01-15 | B7: 0.01149681 | D7: 2020-01-15 | E7: 0.01587976 | F7: 0.01476169 | G7: 0.01149681 | H7: 0.01907043 | I7: 0.0086504 | J7: TIPS UVR U-5 A 2036
A8: =+Flujos!A8 -> 2020-02-15 | B8: 0.02231486 | D8: 2020-02-15 | E8: 0.0174304 | F8: 0.01857773 | G8: 0.02231486 | H8: 0.01528383 | I8: 0.01126498 | J8: TIPS UVR U-6 A 2037
A9: =+Flujos!A9 -> 2020-03-15 | B9: 0.01663049 | D9: 2020-03-15 | E9: 0.01956052 | F9: 0.01902617 | G9: 0.01663049 | H9: 0.01583161 | I9: 0.00895723
A10: =+Flujos!A10 -> 2020-04-15 | B10: 0.00692214 | D10: 2020-04-15 | E10: 0.01736589 | F10: 0.01714969 | G10: 0.00692214 | H10: 0.01564788 | I10: 0.00714902
A11: =+Flujos!A11 -> 2020-05-15 | B11: 0.00285385 | D11: 2020-05-15 | E11: 0.02055801 | F11: 0.01733715 | G11: 0.00285385 | H11: 0.01547286 | I11: 0.00869482
A12: =+Flujos!A12 -> 2020-06-15 | B12: 0.00586238 | D12: 2020-06-15 | E12: 0.01939255 | F12: 0.01489395 | G12: 0.00586238 | H12: 0.01531398 | I12: 0.00425685
A13: =+Flujos!A13 -> 2020-07-15 | B13: 0.0063674 | D13: 2020-07-15 | E13: 0.01719963 | F13: 0.0115293 | G13: 0.0063674 | H13: 0.01513597 | I13: 0.01052075
A14: =+Flujos!A14 -> 2020-08-15 | B14: 0.00867429 | D14: 2020-08-15 | E14: 0.01696541 | F14: 0.01159448 | G14: 0.00867429 | H14: 0.01481588 | I14: 0.0077276
A15: =+Flujos!A15 -> 2020-09-15 | B15: 0.01359996 | D15: 2020-09-15 | E15: 0.01458126 | F15: 0.01522406 | G15: 0.01359996 | H15: 0.01571008 | I15: 0.01009764
A16: =+Flujos!A16 -> 2020-10-15 | B16: 0.01417165 | D16: 2020-10-15 | E16: 0.01517826 | F16: 0.01666796 | G16: 0.01417165 | H16: 0.0153462 | I16: 0.00930952
A17: =+Flujos!A17 -> 2020-11-15 | B17: 0.01576903 | D17: 2020-11-15 | E17: 0.01765757 | F17: 0.0118286 | G17: 0.01576903 | H17: 0.01555523 | I17: 0.00927497
A18: =+Flujos!A18 -> 2020-12-15 | B18: 0.01410188 | D18: 2020-12-15 | E18: 0.01273097 | F18: 0.01487251 | G18: 0.01410188 | H18: 0.01472922 | I18: 0.00923921
A19: =+Flujos!A19 -> 2021-01-15 | B19: 0.01582177 | D19: 2021-01-15 | E19: 0.01407281 | F19: 0.01490574 | G19: 0.01582177 | H19: 0.0154965 | I19: 0.00920496
A20: =+Flujos!A20 -> 2021-02-15 | B20: 0.01473718 | D20: 2021-02-15 | E20: 0.01251554 | F20: 0.01434307 | G20: 0.01473718 | H20: 0.01353915 | I20: 0.00917259
A21: =+Flujos!A21 -> 2021-03-15 | B21: 0.02286702 | D21: 2021-03-15 | E21: 0.01444464 | F21: 0.01626458 | G21: 0.02286702 | H21: 0.01604877 | I21: 0.00914115
A22: =+Flujos!A22 -> 2021-04-15 | B22: 0.01851441 | D22: 2021-04-15 | E22: 0.01341147 | F22: 0.01442109 | G22: 0.01851441 | H22: 0.01183874 | I22: 0.0091129
A23: =+Flujos!A23 -> 2021-05-15 | B23: 0.01717953 | D23: 2021-05-15 | E23: 0.01571063 | F23: 0.00441756 | G23: 0.01717953 | H23: 0.01653879 | I23: 0.00908567
A24: =+Flujos!A24 -> 2021-06-15 | B24: 0.01261304 | D24: 2021-06-15 | E24: 0.01087367 | F24: 0.00210302 | G24: 0.01261304 | H24: 0.01269621 | I24: 0.00904822
A25: =+Flujos!A25 -> 2021-07-15 | B25: 0.01616914 | D25: 2021-07-15 | E25: 0.0149029 | F25: 0.00584713 | G25: 0.01616914 | H25: 0.01106084 | I25: 0.00903051
A26: =+Flujos!A26 -> 2021-08-15 | B26: 0.01844766 | D26: 2021-08-15 | E26: 0.0173849 | F26: 0.00952647 | G26: 0.01844766 | H26: 0.01130622 | I26: 0.00808006
A27: =+Flujos!A27 -> 2021-09-15 | B27: 0.01348238 | D27: 2021-09-15 | E27: 0.00825389 | F27: 0.00789777 | G27: 0.01348238 | H27: 0.01165173 | I27: 0.00916023
A28: =+Flujos!A28 -> 2021-10-15 | B28: 0.018196 | D28: 2021-10-15 | E28: 0.01634889 | F28: 0.01101237 | G28: 0.018196 | H28: 0.00913032 | I28: 0.00914141
A29: =+Flujos!A29 -> 2021-11-15 | B29: 0.01032785 | D29: 2021-11-15 | E29: 0.01157202 | F29: 0.01176142 | G29: 0.01032785 | H29: 0.01050728 | I29: 0.0091268
A30: =+Flujos!A30 -> 2021-12-15 | B30: 0.01547013 | D30: 2021-12-15 | E30: 0.00988241 | F30: 0.01055873 | G30: 0.01547013 | H30: 0.01279877 | I30: 0.00912087
A31: =+Flujos!A31 -> 2022-01-15 | B31: 0.01478898 | D31: 2022-01-15 | E31: 0.01061327 | F31: 0.01201472 | G31: 0.01478898 | H31: 0.01262854 | I31: 0.00911229
A32: =+Flujos!A32 -> 2022-02-15 | B32: 0.01184482 | D32: 2022-02-15 | E32: 0.00133135 | F32: 0.00757768 | G32: 0.01184482 | H32: 0.01252267 | I32: 0.00911028
A33: =+Flujos!A33 -> 2022-03-15 | B33: 0.01778038 | D33: 2022-03-15 | E33: 0.00518695 | F33: 0.01065728 | G33: 0.01778038 | H33: 0.01240219 | I33: 0.00910714
A34: =+Flujos!A34 -> 2022-04-15 | B34: 0.01677709 | D34: 2022-04-15 | E34: 0.00365936 | F34: 0.00933261 | G34: 0.01677709 | H34: 0.01233259 | I34: 0.00910753
A35: =+Flujos!A35 -> 2022-05-15 | B35: =+VLOOKUP(A35,$D$2:$I$182,MATCH($B$2,$D$2:$I$2,0),FALSE) -> 0.01301349 | D35: 2022-05-15 | E35: 0.00769325 | F35: 0.01034278 | G35: 0.01301349 | H35: 0.01215061 | I35: 0.0091067
A36: =+Flujos!A36 -> 2022-06-15 | B36: 0.0139161 | D36: 2022-06-15 | E36: 0.00868416 | F36: 0.00866347 | G36: 0.0139161 | H36: 0.01196497 | I36: 0.00910053
A37: =+Flujos!A37 -> 2022-07-15 | B37: 0.01467326 | D37: 2022-07-15 | E37: 0.01303261 | F37: 0.01100951 | G37: 0.01467326 | H37: 0.01180186 | I37: 0.00910126
A38: =+Flujos!A38 -> 2022-08-15 | B38: 0.01412905 | D38: 2022-08-15 | E38: 0.00826387 | F38: 0.01025268 | G38: 0.01412905 | H38: 0.01132296 | I38: 0.00813694
A39: =+Flujos!A39 -> 2022-09-15 | B39: 0.01481652 | D39: 2022-09-15 | E39: 0.00928112 | F39: 0.00985156 | G39: 0.01481652 | H39: 0.0115251 | I39: 0.00908512
A40: =+Flujos!A40 -> 2022-10-15 | B40: 0.01372724 | D40: 2022-10-15 | E40: 0.0112696 | F40: 0.01209493 | G40: 0.01372724 | H40: 0.01144234 | I40: 0.00908084
A41: =+Flujos!A41 -> 2022-11-15 | B41: 0.01329612 | D41: 2022-11-15 | E41: 0.01344306 | F41: 0.01126654 | G41: 0.01329612 | H41: 0.01130055 | I41: 0.00907612
A42: =+Flujos!A42 -> 2022-12-15 | B42: 0.01428469 | D42: 2022-12-15 | E42: 0.01299155 | F42: 0.01089121 | G42: 0.01428469 | H42: 0.01122942 | I42: 0.0090597
A43: =+Flujos!A43 -> 2023-01-15 | B43: 0.01304635 | D43: 2023-01-15 | E43: 0.00922161 | F43: 0.01069003 | G43: 0.01304635 | H43: 0.01101047 | I43: 0.00906564
A44: =+Flujos!A44 -> 2023-02-15 | B44: 0.01031967 | D44: 2023-02-15 | E44: 0.01468247 | F44: 0.0068846 | G44: 0.01031967 | H44: 0.01095282 | I44: 0.00906071
A45: =+Flujos!A45 -> 2023-03-15 | B45: 0.01444651 | D45: 2023-03-15 | E45: 0.01414592 | F45: 0.01091433 | G45: 0.01444651 | H45: 0.01080828 | I45: 0.00905804
A46: =+Flujos!A46 -> 2023-04-15 | B46: 0.01120967 | D46: 2023-04-15 | E46: 0.01623661 | F46: 0.0254256 | G46: 0.01120967 | H46: 0.01075088 | I46: 0.00906767
A47: =+Flujos!A47 -> 2023-05-15 | B47: 0.01087707 | D47: 2023-05-15 | E47: 0.01433757 | F47: 0.00673735 | G47: 0.01087707 | H47: 0.0106097 | I47: 0.00906537
A48: =+Flujos!A48 -> 2023-06-15 | B48: 0.01104679 | D48: 2023-06-15 | E48: 0.0112582 | F48: 0.01008328 | G48: 0.01104679 | H48: 0.01051667 | I48: 0.00907394
A49: =+Flujos!A49 -> 2023-07-15 | B49: 0.01029279 | D49: 2023-07-15 | E49: 0.01274187 | F49: 0.00855316 | G49: 0.01029279 | H49: 0.01040154 | I49: 0.00905759
A50: =+Flujos!A50 -> 2023-08-15 | B50: 0.00957565 | D50: 2023-08-15 | E50: 0.00950058 | F50: 0.01016698 | G50: 0.00957565 | H50: 0.00990552 | I50: 0.00800825
A51: =+Flujos!A51 -> 2023-09-15 | B51: 0.00937497 | D51: 2023-09-15 | E51: 0.01020446 | F51: 0.011539 | G51: 0.00937497 | H51: 0.01019384 | I51: 0.00897322
A52: =+Flujos!A52 -> 2023-10-15 | B52: 0.00910422 | D52: 2023-10-15 | E52: 0.01067342 | F52: 0.0094127 | G52: 0.00910422 | H52: 0.01003745 | I52: 0.00895118
A53: =+Flujos!A53 -> 2023-11-15 | B53: 0.00781544 | D53: 2023-11-15 | E53: 0.01239962 | F53: 0.00957524 | G53: 0.00781544 | H53: 0.00943464 | I53: 0.00886053
A54: =+Flujos!A54 -> 2023-12-15 | B54: 0.00965441 | D54: 2023-12-15 | E54: 0.01305624 | F54: 0.01178779 | G54: 0.00965441 | H54: 0.00857443 | I54: 0.00882617
A55: =+Flujos!A55 -> 2024-01-15 | B55: 0.00774509 | D55: 2024-01-15 | E55: 0.0110621 | F55: 0.00844411 | G55: 0.00774509 | H55: 0.00842612 | I55: 0.00880969
A56: =+Flujos!A56 -> 2024-02-15 | B56: 0.00136039 | D56: 2024-02-15 | E56: 0.00952452 | F56: 0.00836058 | G56: 0.00136039 | H56: 0.00829598 | I56: 0.00880425
A57: =+Flujos!A57 -> 2024-03-15 | B57: 0.00725238 | D57: 2024-03-15 | E57: 0.01143723 | F57: 0.01069069 | G57: 0.00725238 | H57: 0.00815238 | I57: 0.00873697
A58: =+Flujos!A58 -> 2024-04-15 | B58: 0.00709299 | D58: 2024-04-15 | E58: 0.00725139 | F58: 0.00824436 | G58: 0.00709299 | H58: 0.00802529 | I58: 0.00872312
A59: =+Flujos!A59 -> 2024-05-15 | B59: 0.00694065 | D59: 2024-05-15 | E59: 0.01206636 | F59: 0.00916496 | G59: 0.00694065 | H59: 0.00790046 | I59: 0.00862286
A60: =+Flujos!A60 -> 2024-06-15 | B60: 0.00857029 | D60: 2024-06-15 | E60: 0.01094583 | F60: 0.0092905 | G60: 0.00857029 | H60: 0.00778314 | I60: 0.00858011
A61: =+Flujos!A61 -> 2024-07-15 | B61: 0.00844706 | D61: 2024-07-15 | E61: 0.01003393 | F61: 0.00730677 | G61: 0.00844706 | H61: 0.0076619 | I61: 0.00851097
A62: =+Flujos!A62 -> 2024-08-15 | B62: 0.00809228 | D62: 2024-08-15 | E62: 0.00870339 | F62: 0.00734971 | G62: 0.00809228 | H62: 0.00753944 | I62: 0.00735502
A63: =+Flujos!A63 -> 2024-09-15 | B63: 0.00820975 | D63: 2024-09-15 | E63: 0.00747647 | F63: 0.00755376 | G63: 0.00820975 | H63: 0.00741757 | I63: 0.0082734
A64: =+Flujos!A64 -> 2024-10-15 | B64: 0.00810495 | D64: 2024-10-15 | E64: 0.00715488 | F64: 0.00544062 | G64: 0.00810495 | H64: 0.00729674 | I64: 0.00814921
A65: =+Flujos!A65 -> 2024-11-15 | B65: 0.00802812 | D65: 2024-11-15 | E65: 0.00897706 | F65: 0.00609057 | G65: 0.00802812 | H65: 0.00718259 | I65: 0.00808871
A66: =+Flujos!A66 -> 2024-12-15 | B66: 0.00792529 | D66: 2024-12-15 | E66: 0.00736175 | F66: 0.00625724 | G66: 0.00792529 | H66: 0.00705631 | I66: 0.00804242
A67: =+Flujos!A67 -> 2025-01-15 | B67: =+VLOOKUP(A67,$D$2:$I$182,MATCH($B$2,$D$2:$I$2,0),FALSE) -> 0.00787223 | D67: 2025-01-15 | E67: 0.00797695 | F67: 0.00628603 | G67: 0.00787223 | H67: 0.00694214 | I67: 0.00794003
A68: =+Flujos!A68 -> 2025-02-15 | B68: 0.00778935 | D68: =+A68 -> 2025-02-15 | E68: 0.00565683 | F68: 0.00789429 | G68: 0.00778935 | H68: 0.00682394 | I68: 0.00781301
A69: =+Flujos!A69 -> 2025-03-15 | B69: 0.00748291 | D69: 2025-03-15 | E69: 0.00745846 | F69: 0.00663641 | G69: 0.00748291 | H69: 0.00671215 | I69: 0.00772095
A70: =+Flujos!A70 -> 2025-04-15 | B70: 0.00722666 | D70: 2025-04-15 | E70: 0.00701479 | F70: 0.00652792 | G70: 0.00722666 | H70: 0.00660187 | I70: 0.00765784
A71: =+Flujos!A71 -> 2025-05-15 | B71: 0.00707502 | D71: 2025-05-15 | E71: 0.00659776 | F71: 0.00648265 | G71: 0.00707502 | H71: 0.0064864 | I71: 0.00759125
A72: =+Flujos!A72 -> 2025-06-15 | B72: 0.00692578 | D72: 2025-06-15 | E72: 0.00697805 | F72: 0.00640468 | G72: 0.00692578 | H72: 0.00637943 | I72: 0.00751506
A73: =+Flujos!A73 -> 2025-07-15 | B73: 0.00677987 | D73: 2025-07-15 | E73: 0.00635069 | F73: 0.00639279 | G73: 0.00677987 | H73: 0.00627224 | I73: 0.00743635
A74: =+Flujos!A74 -> 2025-08-15 | B74: 0.00663157 | D74: 2025-08-15 | E74: 0.00581072 | F74: 0.00615939 | G74: 0.00663157 | H74: 0.00615841 | I74: 0.00626111
A75: =+Flujos!A75 -> 2025-09-15 | B75: 0.00621894 | D75: 2025-09-15 | E75: 0.00637756 | F75: 0.00618935 | G75: 0.00621894 | H75: 0.00605791 | I75: 0.007218
A76: =+Flujos!A76 -> 2025-10-15 | B76: 0.00635213 | D76: 2025-10-15 | E76: 0.00474215 | F76: 0.00612318 | G76: 0.00635213 | H76: 0.00595342 | I76: 0.00714757
A77: =+Flujos!A77 -> 2025-11-15 | B77: 0.00621563 | D77: 2025-11-15 | E77: 0.00604045 | F77: 0.00602355 | G77: 0.00621563 | H77: 0.00584552 | I77: 0.00706244
A78: =+Flujos!A78 -> 2025-12-15 | B78: 0.00608008 | D78: 2025-12-15 | E78: 0.00590784 | F78: 0.00595504 | G78: 0.00608008 | H78: 0.00573114 | I78: 0.00701704
A79: =+Flujos!A79 -> 2026-01-15 | B79: 0.00595088 | D79: 2026-01-15 | E79: 0.00590144 | F79: 0.0058845 | G79: 0.00595088 | H79: 0.00562011 | I79: 0.00696538
A80: =+Flujos!A80 -> 2026-02-15 | B80: 0.00581722 | D80: 2026-02-15 | E80: 0.00590562 | F80: 0.0058353 | G80: 0.00581722 | H80: 0.00550306 | I80: 0.00691706
A81: =+Flujos!A81 -> 2026-03-15 | B81: 0.00568577 | D81: 2026-03-15 | E81: 0.0058476 | F81: 0.00576527 | G81: 0.00568577 | H81: 0.00539099 | I81: 0.00686301
A82: =+Flujos!A82 -> 2026-04-15 | B82: 0.00556391 | D82: 2026-04-15 | E82: 0.00576648 | F82: 0.00565535 | G82: 0.00556391 | H82: 0.00527622 | I82: 0.00684273
A83: =+Flujos!A83 -> 2026-05-15 | B83: 0.00544497 | D83: 2026-05-15 | E83: 0.00566044 | F83: 0.00559415 | G83: 0.00544497 | H83: 0.00517019 | I83: 0.00680825
A84: =+Flujos!A84 -> 2026-06-15 | B84: 0.00531863 | D84: 2026-06-15 | E84: 0.00561928 | F84: 0.00551228 | G84: 0.00531863 | H84: 0.00504783 | I84: 0.00680046
A85: =+Flujos!A85 -> 2026-07-15 | B85: 0.00519537 | D85: 2026-07-15 | E85: 0.00556131 | F85: 0.00548372 | G85: 0.00519537 | H85: 0.00494644 | I85: 0.0067927
A86: =+Flujos!A86 -> 2026-08-15 | B86: 0.00507743 | D86: 2026-08-15 | E86: 0.00527163 | F86: 0.00523495 | G86: 0.00507743 | H86: 0.00484606 | I86: 0.0057
A87: =+Flujos!A87 -> 2026-09-15 | B87: 0.0046691 | D87: 2026-09-15 | E87: 0.0054594 | F87: 0.00530619 | G87: 0.0046691 | H87: 0.00475816 | I87: 0.0067561
A88: =+Flujos!A88 -> 2026-10-15 | B88: 0.00483814 | D88: 2026-10-15 | E88: 0.00541687 | F88: 0.00521405 | G88: 0.00483814 | H88: 0.00466664 | I88: 0.00672187
A89: =+Flujos!A89 -> 2026-11-15 | B89: 0.00472817 | D89: 2026-11-15 | E89: 0.00534161 | F89: 0.00513952 | G89: 0.00472817 | H89: 0.00457125 | I89: 0.00669282
A90: =+Flujos!A90 -> 2026-12-15 | B90: 0.00461923 | D90: 2026-12-15 | E90: 0.00523983 | F90: 0.00507616 | G90: 0.00461923 | H90: 0.00447914 | I90: 0.00662041
A91: =+Flujos!A91 -> 2027-01-15 | B91: 0.00451389 | D91: 2027-01-15 | E91: 0.00520883 | F91: 0.00496079 | G91: 0.00451389 | H91: 0.00437889 | I91: 0.00658855
A92: =+Flujos!A92 -> 2027-02-15 | B92: 0.00440659 | D92: 2027-02-15 | E92: 0.00512073 | F92: 0.00489432 | G92: 0.00440659 | H92: 0.00428546 | I92: 0.00656025
A93: =+Flujos!A93 -> 2027-03-15 | B93: 0.00430836 | D93: 2027-03-15 | E93: 0.00507053 | F93: 0.00478939 | G93: 0.00430836 | H93: 0.00421403 | I93: 0.00654164
A94: =+Flujos!A94 -> 2027-04-15 | B94: 0.00421039 | D94: 2027-04-15 | E94: 0.0050063 | F94: 0.00471789 | G94: 0.00421039 | H94: 0.00413271 | I94: 0.00651624
A95: =+Flujos!A95 -> 2027-05-15 | B95: 0.00411634 | D95: 2027-05-15 | E95: 0.00494971 | F95: 0.00465103 | G95: 0.00411634 | H95: 0.00404883 | I95: 0.00646347
A96: =+Flujos!A96 -> 2027-06-15 | B96: 0.00402093 | D96: 2027-06-15 | E96: 0.00488922 | F96: 0.0045431 | G96: 0.00402093 | H96: 0.00396711 | I96: 0.00637672
A97: =+Flujos!A97 -> 2027-07-15 | B97: 0.0039283 | D97: 2027-07-15 | E97: 0.00479096 | F97: 0.00446271 | G97: 0.0039283 | H97: 0.00389478 | I97: 0.00633916
A98: =+Flujos!A98 -> 2027-08-15 | B98: 0.00383195 | D98: 2027-08-15 | E98: 0.00452807 | F98: 0.00424158 | G98: 0.00383195 | H98: 0.00382259 | I98: 0.005178
A99: =+Flujos!A99 -> 2027-09-15 | B99: =+VLOOKUP(A99,$D$2:$I$182,MATCH($B$2,$D$2:$I$2,0),FALSE) -> 0.0034373 | D99: 2027-09-15 | E99: 0.00465855 | F99: 0.00432025 | G99: 0.0034373 | H99: 0.00375546 | I99: 0.0061504
A100: =+Flujos!A100 -> 2027-10-15 | B100: 0.00365833 | D100: 2027-10-15 | E100: 0.00263003 | F100: 0.00423416 | G100: 0.00365833 | H100: 0.0036894 | I100: 0.00607426
A101: =+Flujos!A101 -> 2027-11-15 | B101: 0.00357457 | D101: 2027-11-15 | E101: 0 | F101: 0.00416831 | G101: 0.00357457 | H101: 0.00362818 | I101: 0.00604335
A102: =+Flujos!A102 -> 2027-12-15 | B102: 0.00349805 | D102: 2027-12-15 | E102: 0 | F102: 0.00409236 | G102: 0.00349805 | H102: 0.00356571 | I102: 0.00600953
A103: =+Flujos!A103 -> 2028-01-15 | B103: 0.00341882 | D103: 2028-01-15 | E103: 0 | F103: 0.00403749 | G103: 0.00341882 | H103: 0.00350584 | I103: 0.00597953
A104: =+Flujos!A104 -> 2028-02-15 | B104: 0.0033451 | D104: 2028-02-15 | E104: 0 | F104: 0.00393977 | G104: 0.0033451 | H104: 0.00344508 | I104: 0.00596252
A105: =+Flujos!A105 -> 2028-03-15 | B105: 0.00327351 | D105: 2028-03-15 | E105: 0 | F105: 0.00385919 | G105: 0.00327351 | H105: 0.00338327 | I105: 0.00594898
A106: =+Flujos!A106 -> 2028-04-15 | B106: 0.00320267 | D106: 2028-04-15 | E106: 0 | F106: 0.00379192 | G106: 0.00320267 | H106: 0.00331201 | I106: 0.0059336
A107: =+Flujos!A107 -> 2028-05-15 | B107: 0.00313292 | D107: 2028-05-15 | E107: 0 | F107: 0.00370815 | G107: 0.00313292 | H107: 0.00323576 | I107: 0.0059162
A108: =+Flujos!A108 -> 2028-06-15 | B108: 0.00306289 | D108: 2028-06-15 | E108: 0 | F108: 0.00363586 | G108: 0.00306289 | H108: 0.00316414 | I108: 0.00590156
A109: =+Flujos!A109 -> 2028-07-15 | B109: 0.0011565 | D109: 2028-07-15 | E109: 0 | F109: 0.00356278 | G109: 0.0011565 | H109: 0.00308993 | I109: 0.00589651
A110: =+Flujos!A110 -> 2028-08-15 | B110: 0.00086935 | D110: 2028-08-15 | E110: 0 | F110: 0.00334623 | G110: 0.00086935 | H110: 0.00302422 | I110: 0.00472612
A111: =+Flujos!A111 -> 2028-09-15 | B111: 0 | D111: 2028-09-15 | E111: 0 | F111: 0.00342223 | G111: 0 | H111: 0.00296194 | I111: 0.0058391
A112: =+Flujos!A112 -> 2028-10-15 | B112: 0 | D112: 2028-10-15 | E112: 0 | F112: 0.00333533 | G112: 0 | H112: 0.00288984 | I112: 0.00578286
A113: =+Flujos!A113 -> 2028-11-15 | B113: 0 | D113: 2028-11-15 | E113: 0 | F113: 0.00323165 | G113: 0 | H113: 0.00282856 | I113: 0.00572738
A114: =+Flujos!A114 -> 2028-12-15 | B114: 0 | D114: 2028-12-15 | E114: 0 | F114: 0.00314381 | G114: 0 | H114: 0.00315261 | I114: 0.00570972
A115: =+Flujos!A115 -> 2029-01-15 | B115: 0 | D115: 2029-01-15 | E115: 0 | F115: 0.00304758 | G115: 0 | H115: 0.00296354 | I115: 0.00569874
A116: =+Flujos!A116 -> 2029-02-15 | B116: 0 | D116: 2029-02-15 | E116: 0 | F116: 0.00297155 | G116: 0 | H116: 0.00285197 | I116: 0.0056843
A117: =+Flujos!A117 -> 2029-03-15 | B117: 0 | D117: 2029-03-15 | E117: 0 | F117: 0.00287266 | G117: 0 | H117: 0.00275732 | I117: 0.00566334
A118: =+Flujos!A118 -> 2029-04-15 | B118: 0 | D118: 2029-04-15 | E118: 0 | F118: 0.00278546 | G118: 0 | H118: 0.00264542 | I118: 0.00562337
A119: =+Flujos!A119 -> 2029-05-15 | B119: 0 | D119: 2029-05-15 | E119: 0 | F119: 0.00271047 | G119: 0 | H119: 0.00256146 | I119: 0.00561195
A120: =+Flujos!A120 -> 2029-06-15 | B120: 0 | D120: 2029-06-15 | E120: 0 | F120: 0.00264178 | G120: 0 | H120: 0.00251647 | I120: 0.00558046
A121: =+Flujos!A121 -> 2029-07-15 | B121: 0 | D121: 2029-07-15 | E121: 0 | F121: 0.00258555 | G121: 0 | H121: 0.00247672 | I121: 0.00554978
A122: =+Flujos!A122 -> 2029-08-15 | B122: 0 | D122: 2029-08-15 | E122: 0 | F122: 0.01112648 | G122: 0 | H122: 0.00197314 | I122: 0.00392739
A123: =+Flujos!A123 -> 2029-09-15 | B123: 0 | D123: 2029-09-15 | E123: 0 | F123: 0 | G123: 0 | H123: 0.00188527 | I123: 0.00507205
A124: =+Flujos!A124 -> 2029-10-15 | B124: 0 | D124: 2029-10-15 | E124: 0 | F124: 0 | G124: 0 | H124: 0 | I124: 0.00508392
A125: =+Flujos!A125 -> 2029-11-15 | B125: 0 | D125: 2029-11-15 | E125: 0 | F125: 0 | G125: 0 | H125: 0 | I125: 0.00509614
A126: =+Flujos!A126 -> 2029-12-15 | B126: 0 | D126: 2029-12-15 | E126: 0 | F126: 0 | G126: 0 | H126: 0 | I126: 0.00510919
A127: =+Flujos!A127 -> 2030-01-15 | B127: 0 | D127: 2030-01-15 | E127: 0 | F127: 0 | G127: 0 | H127: 0 | I127: 0.00512203
A128: =+Flujos!A128 -> 2030-02-15 | B128: 0 | D128: 2030-02-15 | E128: 0 | F128: 0 | G128: 0 | H128: 0 | I128: 0.00514217
A129: =+Flujos!A129 -> 2030-03-15 | B129: 0 | D129: 2030-03-15 | E129: 0 | F129: 0 | G129: 0 | H129: 0 | I129: 0.00514854
A130: =+Flujos!A130 -> 2030-04-15 | B130: 0 | D130: 2030-04-15 | E130: 0 | F130: 0 | G130: 0 | H130: 0 | I130: 0.00516931
A131: =+Flujos!A131 -> 2030-05-15 | B131: =+VLOOKUP(A131,$D$2:$I$182,MATCH($B$2,$D$2:$I$2,0),FALSE) -> 0 | D131: 2030-05-15 | E131: 0 | F131: 0 | G131: 0 | H131: 0 | I131: 0.00518462
A132: =+Flujos!A132 -> 2030-06-15 | B132: 0 | D132: =+A132 -> 2030-06-15 | E132: 0 | F132: 0 | G132: 0 | H132: 0 | I132: 0.00518551
A133: =+Flujos!A133 -> 2030-07-15 | B133: 0 | D133: 2030-07-15 | E133: 0 | F133: 0 | G133: 0 | H133: 0 | I133: 0.0051925
A134: =+Flujos!A134 -> 2030-08-15 | B134: 0 | D134: 2030-08-15 | E134: 0 | F134: 0 | G134: 0 | H134: 0 | I134: 0.00398051
A135: =+Flujos!A135 -> 2030-09-15 | B135: 0 | D135: 2030-09-15 | E135: 0 | F135: 0 | G135: 0 | H135: 0 | I135: 0.00519438
A136: =+Flujos!A136 -> 2030-10-15 | B136: 0 | D136: 2030-10-15 | E136: 0 | F136: 0 | G136: 0 | H136: 0 | I136: 0.00521221
A137: =+Flujos!A137 -> 2030-11-15 | B137: 0 | D137: 2030-11-15 | E137: 0 | F137: 0 | G137: 0 | H137: 0 | I137: 0.00523493
A138: =+Flujos!A138 -> 2030-12-15 | B138: 0 | D138: 2030-12-15 | E138: 0 | F138: 0 | G138: 0 | H138: 0 | I138: 0.00467441
A139: =+Flujos!A139 -> 2031-01-15 | B139: 0 | D139: 2031-01-15 | E139: 0 | F139: 0 | G139: 0 | H139: 0 | I139: 0
A140: =+Flujos!A140 -> 2031-02-15 | B140: 0 | D140: 2031-02-15 | E140: 0 | F140: 0 | G140: 0 | H140: 0 | I140: 0
A141: =+Flujos!A141 -> 2031-03-15 | B141: 0 | D141: 2031-03-15 | E141: 0 | F141: 0 | G141: 0 | H141: 0 | I141: 0
A142: =+Flujos!A142 -> 2031-04-15 | B142: 0 | D142: 2031-04-15 | E142: 0 | F142: 0 | G142: 0 | H142: 0 | I142: 0
A143: =+Flujos!A143 -> 2031-05-15 | B143: 0 | D143: 2031-05-15 | E143: 0 | F143: 0 | G143: 0 | H143: 0 | I143: 0
A144: =+Flujos!A144 -> 2031-06-15 | B144: 0 | D144: 2031-06-15 | E144: 0 | F144: 0 | G144: 0 | H144: 0 | I144: 0
A145: =+Flujos!A145 -> 2031-07-15 | B145: 0 | D145: 2031-07-15 | E145: 0 | F145: 0 | G145: 0 | H145: 0 | I145: 0
A146: =+Flujos!A146 -> 2031-08-15 | B146: 0 | D146: 2031-08-15 | E146: 0 | F146: 0 | G146: 0 | H146: 0 | I146: 0
A147: =+Flujos!A147 -> 2031-09-15 | B147: 0 | D147: 2031-09-15 | E147: 0 | F147: 0 | G147: 0 | H147: 0 | I147: 0
A148: =+Flujos!A148 -> 2031-10-15 | B148: 0 | D148: 2031-10-15 | E148: 0 | F148: 0 | G148: 0 | H148: 0 | I148: 0
A149: =+Flujos!A149 -> 2031-11-15 | B149: 0 | D149: 2031-11-15 | E149: 0 | F149: 0 | G149: 0 | H149: 0 | I149: 0
A150: =+Flujos!A150 -> 2031-12-15 | B150: 0 | D150: 2031-12-15 | E150: 0 | F150: 0 | G150: 0 | H150: 0 | I150: 0
A151: =+Flujos!A151 -> 2032-01-15 | B151: 0 | D151: 2032-01-15 | E151: 0 | F151: 0 | G151: 0 | H151: 0 | I151: 0
A152: =+Flujos!A152 -> 2032-02-15 | B152: 0 | D152: 2032-02-15 | E152: 0 | F152: 0 | G152: 0 | H152: 0 | I152: 0
A153: =+Flujos!A153 -> 2032-03-15 | B153: 0 | D153: 2032-03-15 | E153: 0 | F153: 0 | G153: 0 | H153: 0 | I153: 0
A154: =+Flujos!A154 -> 2032-04-15 | B154: 0 | D154: 2032-04-15 | E154: 0 | F154: 0 | G154: 0 | H154: 0 | I154: 0
A155: =+Flujos!A155 -> 2032-05-15 | B155: 0 | D155: 2032-05-15 | E155: 0 | F155: 0 | G155: 0 | H155: 0 | I155: 0
A156: =+Flujos!A156 -> 2032-06-15 | B156: 0 | D156: 2032-06-15 | E156: 0 | F156: 0 | G156: 0 | H156: 0 | I156: 0
A157: =+Flujos!A157 -> 2032-07-15 | B157: 0 | D157: 2032-07-15 | E157: 0 | F157: 0 | G157: 0 | H157: 0 | I157: 0
A158: =+Flujos!A158 -> 2032-08-15 | B158: 0 | D158: 2032-08-15 | E158: 0 | F158: 0 | G158: 0 | H158: 0 | I158: 0
A159: =+Flujos!A159 -> 2032-09-15 | B159: 0 | D159: 2032-09-15 | E159: 0 | F159: 0 | G159: 0 | H159: 0 | I159: 0
A160: =+Flujos!A160 -> 2032-10-15 | B160: 0 | D160: 2032-10-15 | E160: 0 | F160: 0 | G160: 0 | H160: 0 | I160: 0
A161: =+Flujos!A161 -> 2032-11-15 | B161: 0 | D161: 2032-11-15 | E161: 0 | F161: 0 | G161: 0 | H161: 0 | I161: 0
A162: =+Flujos!A162 -> 2032-12-15 | B162: 0 | D162: 2032-12-15 | E162: 0 | F162: 0 | G162: 0 | H162: 0 | I162: 0
A163: =+Flujos!A163 -> 2033-01-15 | B163: =+VLOOKUP(A163,$D$2:$I$182,MATCH($B$2,$D$2:$I$2,0),FALSE) -> 0 | D163: 2033-01-15 | E163: 0 | F163: 0 | G163: 0 | H163: 0 | I163: 0
A164: =+Flujos!A164 -> 2033-02-15 | B164: 0 | D164: 2033-02-15 | E164: 0 | F164: 0 | G164: 0 | H164: 0 | I164: 0
A165: =+Flujos!A165 -> 2033-03-15 | B165: 0 | D165: 2033-03-15 | E165: 0 | F165: 0 | G165: 0 | H165: 0 | I165: 0
A166: =+Flujos!A166 -> 2033-04-15 | B166: 0 | D166: 2033-04-15 | E166: 0 | F166: 0 | G166: 0 | H166: 0 | I166: 0
A167: =+Flujos!A167 -> 2033-05-15 | B167: 0 | D167: 2033-05-15 | E167: 0 | F167: 0 | G167: 0 | H167: 0 | I167: 0
A168: =+Flujos!A168 -> 2033-06-15 | B168: 0 | D168: 2033-06-15 | E168: 0 | F168: 0 | G168: 0 | H168: 0 | I168: 0
A169: =+Flujos!A169 -> 2033-07-15 | B169: 0 | D169: 2033-07-15 | E169: 0 | F169: 0 | G169: 0 | H169: 0 | I169: 0
A170: =+Flujos!A170 -> 2033-08-15 | B170: 0 | D170: 2033-08-15 | E170: 0 | F170: 0 | G170: 0 | H170: 0 | I170: 0
A171: =+Flujos!A171 -> 2033-09-15 | B171: 0 | D171: 2033-09-15 | E171: 0 | F171: 0 | G171: 0 | H171: 0 | I171: 0
A172: =+Flujos!A172 -> 2033-10-15 | B172: 0 | D172: 2033-10-15 | E172: 0 | F172: 0 | G172: 0 | H172: 0 | I172: 0
A173: =+Flujos!A173 -> 2033-11-15 | B173: 0 | D173: 2033-11-15 | E173: 0 | F173: 0 | G173: 0 | H173: 0 | I173: 0
A174: =+Flujos!A174 -> 2033-12-15 | B174: 0 | D174: 2033-12-15 | E174: 0 | F174: 0 | G174: 0 | H174: 0 | I174: 0
A175: =+Flujos!A175 -> 2034-01-15 | B175: 0 | D175: 2034-01-15 | E175: 0 | F175: 0 | G175: 0 | H175: 0 | I175: 0
A176: =+Flujos!A176 -> 2034-02-15 | B176: 0 | D176: 2034-02-15 | E176: 0 | F176: 0 | G176: 0 | H176: 0 | I176: 0
A177: =+Flujos!A177 -> 2034-03-15 | B177: 0 | D177: 2034-03-15 | E177: 0 | F177: 0 | G177: 0 | H177: 0 | I177: 0
A178: =+Flujos!A178 -> 2034-04-15 | B178: 0 | D178: 2034-04-15 | E178: 0 | F178: 0 | G178: 0 | H178: 0 | I178: 0
A179: =+Flujos!A179 -> 2034-05-15 | B179: 0 | D179: 2034-05-15 | E179: 0 | F179: 0 | G179: 0 | H179: 0 | I179: 0
A180: =+Flujos!A180 -> 2034-06-15 | B180: 0 | D180: 2034-06-15 | E180: 0 | F180: 0 | G180: 0 | H180: 0 | I180: 0
A181: =+Flujos!A181 -> 2034-07-15 | B181: 0 | D181: 2034-07-15 | E181: 0 | F181: 0 | G181: 0 | H181: 0 | I181: 0
A182: =+Flujos!A182 -> 2034-08-15 | B182: 0 | D182: 2034-08-15 | E182: 0 | F182: 0 | G182: 0 | H182: 0 | I182: 0
B183: =SUM(B3:B182) -> 1 | E183: =SUM(E3:E182) -> 1 | F183: =SUM(F3:F182) -> 1 | G183: =SUM(G3:G182) -> 1 | H183: =SUM(H3:H182) -> 1 | I183: =SUM(I3:I182) -> 1
B184: =1-B183 -> 0 | E184: =1-E183 -> 0 | F184: =1-F183 -> 0 | G184: =1-G183 -> 0 | H184: =1-H183 -> 0 | I184: =1-I183 -> 0

Sheet Tablas (hidden)
A1: FECHA | B1: =+CALCULADORA!C11 -> TIPS UVR U-4 A 2029 | C1: Valoración
A2: =+'Tabla de Amortizacion'!A3 -> 2019-09-15 | B2: =+ROUND(C2,8) -> 0.01606318 | C2: =+VLOOKUP(A2,'Tabla de Amortizacion'!$D$2:$I$182,MATCH(Tablas!$B$1,'Tabla de Amortizacion'!$D$2:$I$2,0)) -> 0.01606318 | E2: =IF(CALCULADORA!#REF!="Contractual",ROUND('Tabla de Amortizacion'!C3,8),IF(CALCULADORA!#REF!="6% (Medio)",ROUND('Tabla de Amortizacion'!F3,8),IF(CALCULADORA!#REF!="10% (Medio Alto)",ROUND('Tabla de Amortizacion'!H3,8),IF(CALCULADORA!#REF!="14% (Alto)",ROUND('Tabla de Amortizacion'!#REF!,8),IF(CALCULADORA!#REF!=20%,ROUND('Tabla de Amortizacion'!#REF!,8),ROUND('Tabla de Amortizacion'!K3,8)))))) -> 
A3: =EDATE(A2,1) -> 2019-10-15 | B3: =+ROUND(C3,8) -> 0.01695723 | C3: =+VLOOKUP(A3,'Tabla de Amortizacion'!$D$2:$I$182,MATCH(Tablas!$B$1,'Tabla de Amortizacion'!$D$2:$I$2,0)) -> 0.01695723 | E3: =IF(CALCULADORA!#REF!="Contractual",ROUND('Tabla de Amortizacion'!C4,8),IF(CALCULADORA!#REF!="6% (Medio)",ROUND('Tabla de Amortizacion'!F4,8),IF(CALCULADORA!#REF!="10% (Medio Alto)",ROUND('Tabla de Amortizacion'!H4,8),IF(CALCULADORA!#REF!="14% (Alto)",ROUND('Tabla de Amortizacion'!#REF!,8),IF(CALCULADORA!#REF!=20%,ROUND('Tabla de Amortizacion'!#REF!,8),ROUND('Tabla de Amortizacion'!K4,8)))))) -> 
A4: 2019-11-15 | B4: 0.01625132 | C4: =+VLOOKUP(A4,'Tabla de Amortizacion'!$D$2:$I$182,MATCH(Tablas!$B$1,'Tabla de Amortizacion'!$D$2:$I$2,0)) -> 0.01625132 | E4: =IF(CALCULADORA!#REF!="Contractual",ROUND('Tabla de Amortizacion'!C5,8),IF(CALCULADORA!#REF!="6% (Medio)",ROUND('Tabla de Amortizacion'!F5,8),IF(CALCULADORA!#REF!="10% (Medio Alto)",ROUND('Tabla de Amortizacion'!H5,8),IF(CALCULADORA!#REF!="14% (Alto)",ROUND('Tabla de Amortizacion'!#REF!,8),IF(CALCULADORA!#REF!=20%,ROUND('Tabla de Amortizacion'!#REF!,8),ROUND('Tabla de Amortizacion'!K5,8)))))) -> 
A5: 2019-12-15 | B5: 0.01603115 | C5: =+VLOOKUP(A5,'Tabla de Amortizacion'!$D$2:$I$182,MATCH(Tablas!$B$1,'Tabla de Amortizacion'!$D$2:$I$2,0)) -> 0.01603115 | E5: =IF(CALCULADORA!#REF!="Contractual",ROUND('Tabla de Amortizacion'!C6,8),IF(CALCULADORA!#REF!="6% (Medio)",ROUND('Tabla de Amortizacion'!F6,8),IF(CALCULADORA!#REF!="10% (Medio Alto)",ROUND('Tabla de Amortizacion'!H6,8),IF(CALCULADORA!#REF!="14% (Alto)",ROUND('Tabla de Amortizacion'!#REF!,8),IF(CALCULADORA!#REF!=20%,ROUND('Tabla de Amortizacion'!#REF!,8),ROUND('Tabla de Amortizacion'!K6,8)))))) -> 
A6: 2020-01-15 | B6: 0.01149681 | C6: =+VLOOKUP(A6,'Tabla de Amortizacion'!$D$2:$I$182,MATCH(Tablas!$B$1,'Tabla de Amortizacion'!$D$2:$I$2,0)) -> 0.01149681 | E6: =IF(CALCULADORA!#REF!="Contractual",ROUND('Tabla de Amortizacion'!C7,8),IF(CALCULADORA!#REF!="6% (Medio)",ROUND('Tabla de Amortizacion'!F7,8),IF(CALCULADORA!#REF!="10% (Medio Alto)",ROUND('Tabla de Amortizacion'!H7,8),IF(CALCULADORA!#REF!="14% (Alto)",ROUND('Tabla de Amortizacion'!#REF!,8),IF(CALCULADORA!#REF!=20%,ROUND('Tabla de Amortizacion'!#REF!,8),ROUND('Tabla de Amortizacion'!K7,8)))))) -> 
A7: 2020-02-15 | B7: 0.02231486 | C7: =+VLOOKUP(A7,'Tabla de Amortizacion'!$D$2:$I$182,MATCH(Tablas!$B$1,'Tabla de Amortizacion'!$D$2:$I$2,0)) -> 0.02231486 | E7: =IF(CALCULADORA!#REF!="Contractual",ROUND('Tabla de Amortizacion'!C8,8),IF(CALCULADORA!#REF!="6% (Medio)",ROUND('Tabla de Amortizacion'!F8,8),IF(CALCULADORA!#REF!="10% (Medio Alto)",ROUND('Tabla de Amortizacion'!H8,8),IF(CALCULADORA!#REF!="14% (Alto)",ROUND('Tabla de Amortizacion'!#REF!,8),IF(CALCULADORA!#REF!=20%,ROUND('Tabla de Amortizacion'!#REF!,8),ROUND('Tabla de Amortizacion'!K8,8)))))) -> 
A8: 2020-03-15 | B8: 0.01663049 | C8: =+VLOOKUP(A8,'Tabla de Amortizacion'!$D$2:$I$182,MATCH(Tablas!$B$1,'Tabla de Amortizacion'!$D$2:$I$2,0)) -> 0.01663049 | E8: =IF(CALCULADORA!#REF!="Contractual",ROUND('Tabla de Amortizacion'!C9,8),IF(CALCULADORA!#REF!="6% (Medio)",ROUND('Tabla de Amortizacion'!F9,8),IF(CALCULADORA!#REF!="10% (Medio Alto)",ROUND('Tabla de Amortizacion'!H9,8),IF(CALCULADORA!#REF!="14% (Alto)",ROUND('Tabla de Amortizacion'!#REF!,8),IF(CALCULADORA!#REF!=20%,ROUND('Tabla de Amortizacion'!#REF!,8),ROUND('Tabla de Amortizacion'!K9,8)))))) -> 
A9: 2020-04-15 | B9: 0.00692214 | C9: =+VLOOKUP(A9,'Tabla de Amortizacion'!$D$2:$I$182,MATCH(Tablas!$B$1,'Tabla de Amortizacion'!$D$2:$I$2,0)) -> 0.00692214 | E9: =IF(CALCULADORA!#REF!="Contractual",ROUND('Tabla de Amortizacion'!C10,8),IF(CALCULADORA!#REF!="6% (Medio)",ROUND('Tabla de Amortizacion'!F10,8),IF(CALCULADORA!#REF!="10% (Medio Alto)",ROUND('Tabla de Amortizacion'!H10,8),IF(CALCULADORA!#REF!="14% (Alto)",ROUND('Tabla de Amortizacion'!#REF!,8),IF(CALCULADORA!#REF!=20%,ROUND('Tabla de Amortizacion'!#REF!,8),ROUND('Tabla de Amortizacion'!K10,8)))))) -> 
A10: 2020-05-15 | B10: 0.00285385 | C10: =+VLOOKUP(A10,'Tabla de Amortizacion'!$D$2:$I$182,MATCH(Tablas!$B$1,'Tabla de Amortizacion'!$D$2:$I$2,0)) -> 0.00285385 | E10: =IF(CALCULADORA!#REF!="Contractual",ROUND('Tabla de Amortizacion'!C11,8),IF(CALCULADORA!#REF!="6% (Medio)",ROUND('Tabla de Amortizacion'!F11,8),IF(CALCULADORA!#REF!="10% (Medio Alto)",ROUND('Tabla de Amortizacion'!H11,8),IF(CALCULADORA!#REF!="14% (Alto)",ROUND('Tabla de Amortizacion'!#REF!,8),IF(CALCULADORA!#REF!=20%,ROUND('Tabla de Amortizacion'!#REF!,8),ROUND('Tabla de Amortizacion'!K11,8)))))) -> 
A11: 2020-06-15 | B11: 0.00586238 | C11: =+VLOOKUP(A11,'Tabla de Amortizacion'!$D$2:$I$182,MATCH(Tablas!$B$1,'Tabla de Amortizacion'!$D$2:$I$2,0)) -> 0.00586238 | E11: =IF(CALCULADORA!#REF!="Contractual",ROUND('Tabla de Amortizacion'!C12,8),IF(CALCULADORA!#REF!="6% (Medio)",ROUND('Tabla de Amortizacion'!F12,8),IF(CALCULADORA!#REF!="10% (Medio Alto)",ROUND('Tabla de Amortizacion'!H12,8),IF(CALCULADORA!#REF!="14% (Alto)",ROUND('Tabla de Amortizacion'!#REF!,8),IF(CALCULADORA!#REF!=20%,ROUND('Tabla de Amortizacion'!#REF!,8),ROUND('Tabla de Amortizacion'!K12,8)))))) -> 
A12: 2020-07-15 | B12: 0.0063674 | C12: =+VLOOKUP(A12,'Tabla de Amortizacion'!$D$2:$I$182,MATCH(Tablas!$B$1,'Tabla de Amortizacion'!$D$2:$I$2,0)) -> 0.0063674 | E12: =IF(CALCULADORA!#REF!="Contractual",ROUND('Tabla de Amortizacion'!C13,8),IF(CALCULADORA!#REF!="6% (Medio)",ROUND('Tabla de Amortizacion'!F13,8),IF(CALCULADORA!#REF!="10% (Medio Alto)",ROUND('Tabla de Amortizacion'!H13,8),IF(CALCULADORA!#REF!="14% (Alto)",ROUND('Tabla de Amortizacion'!#REF!,8),IF(CALCULADORA!#REF!=20%,ROUND('Tabla de Amortizacion'!#REF!,8),ROUND('Tabla de Amortizacion'!K13,8)))))) -> 
A13: 2020-08-15 | B13: 0.00867429 | C13: =+VLOOKUP(A13,'Tabla de Amortizacion'!$D$2:$I$182,MATCH(Tablas!$B$1,'Tabla de Amortizacion'!$D$2:$I$2,0)) -> 0.00867429 | E13: =IF(CALCULADORA!#REF!="Contractual",ROUND('Tabla de Amortizacion'!C14,8),IF(CALCULADORA!#REF!="6% (Medio)",ROUND('Tabla de Amortizacion'!F14,8),IF(CALCULADORA!#REF!="10% (Medio Alto)",ROUND('Tabla de Amortizacion'!H14,8),IF(CALCULADORA!#REF!="14% (Alto)",ROUND('Tabla de Amortizacion'!#REF!,8),IF(CALCULADORA!#REF!=20%,ROUND('Tabla de Amortizacion'!#REF!,8),ROUND('Tabla de Amortizacion'!K14,8)))))) -> 
A14: 2020-09-15 | B14: 0.01359996 | C14: =+VLOOKUP(A14,'Tabla de Amortizacion'!$D$2:$I$182,MATCH(Tablas!$B$1,'Tabla de Amortizacion'!$D$2:$I$2,0)) -> 0.01359996 | E14: =IF(CALCULADORA!#REF!="Contractual",ROUND('Tabla de Amortizacion'!C15,8),IF(CALCULADORA!#REF!="6% (Medio)",ROUND('Tabla de Amortizacion'!F15,8),IF(CALCULADORA!#REF!="10% (Medio Alto)",ROUND('Tabla de Amortizacion'!H15,8),IF(CALCULADORA!#REF!="14% (Alto)",ROUND('Tabla de Amortizacion'!#REF!,8),IF(CALCULADORA!#REF!=20%,ROUND('Tabla de Amortizacion'!#REF!,8),ROUND('Tabla de Amortizacion'!K15,8)))))) -> 
A15: 2020-10-15 | B15: 0.01417165 | C15: =+VLOOKUP(A15,'Tabla de Amortizacion'!$D$2:$I$182,MATCH(Tablas!$B$1,'Tabla de Amortizacion'!$D$2:$I$2,0)) -> 0.01417165 | E15: =IF(CALCULADORA!#REF!="Contractual",ROUND('Tabla de Amortizacion'!C16,8),IF(CALCULADORA!#REF!="6% (Medio)",ROUND('Tabla de Amortizacion'!F16,8),IF(CALCULADORA!#REF!="10% (Medio Alto)",ROUND('Tabla de Amortizacion'!H16,8),IF(CALCULADORA!#REF!="14% (Alto)",ROUND('Tabla de Amortizacion'!#REF!,8),IF(CALCULADORA!#REF!=20%,ROUND('Tabla de Amortizacion'!#REF!,8),ROUND('Tabla de Amortizacion'!K16,8)))))) -> 
A16: 2020-11-15 | B16: 0.01576903 | C16: =+VLOOKUP(A16,'Tabla de Amortizacion'!$D$2:$I$182,MATCH(Tablas!$B$1,'Tabla de Amortizacion'!$D$2:$I$2,0)) -> 0.01576903 | E16: =IF(CALCULADORA!#REF!="Contractual",ROUND('Tabla de Amortizacion'!C17,8),IF(CALCULADORA!#REF!="6% (Medio)",ROUND('Tabla de Amortizacion'!F17,8),IF(CALCULADORA!#REF!="10% (Medio Alto)",ROUND('Tabla de Amortizacion'!H17,8),IF(CALCULADORA!#REF!="14% (Alto)",ROUND('Tabla de Amortizacion'!#REF!,8),IF(CALCULADORA!#REF!=20%,ROUND('Tabla de Amortizacion'!#REF!,8),ROUND('Tabla de Amortizacion'!K17,8)))))) -> 
A17: 2020-12-15 | B17: 0.01410188 | C17: =+VLOOKUP(A17,'Tabla de Amortizacion'!$D$2:$I$182,MATCH(Tablas!$B$1,'Tabla de Amortizacion'!$D$2:$I$2,0)) -> 0.01410188 | E17: =IF(CALCULADORA!#REF!="Contractual",ROUND('Tabla de Amortizacion'!C18,8),IF(CALCULADORA!#REF!="6% (Medio)",ROUND('Tabla de Amortizacion'!F18,8),IF(CALCULADORA!#REF!="10% (Medio Alto)",ROUND('Tabla de Amortizacion'!H18,8),IF(CALCULADORA!#REF!="14% (Alto)",ROUND('Tabla de Amortizacion'!#REF!,8),IF(CALCULADORA!#REF!=20%,ROUND('Tabla de Amortizacion'!#REF!,8),ROUND('Tabla de Amortizacion'!K18,8)))))) -> 
A18: 2021-01-15 | B18: 0.01582177 | C18: =+VLOOKUP(A18,'Tabla de Amortizacion'!$D$2:$I$182,MATCH(Tablas!$B$1,'Tabla de Amortizacion'!$D$2:$I$2,0)) -> 0.01582177 | E18: =IF(CALCULADORA!#REF!="Contractual",ROUND('Tabla de Amortizacion'!C19,8),IF(CALCULADORA!#REF!="6% (Medio)",ROUND('Tabla de Amortizacion'!F19,8),IF(CALCULADORA!#REF!="10% (Medio Alto)",ROUND('Tabla de Amortizacion'!H19,8),IF(CALCULADORA!#REF!="14% (Alto)",ROUND('Tabla de Amortizacion'!#REF!,8),IF(CALCULADORA!#REF!=20%,ROUND('Tabla de Amortizacion'!#REF!,8),ROUND('Tabla de Amortizacion'!K19,8)))))) -> 
A19: 2021-02-15 | B19: 0.01473718 | C19: =+VLOOKUP(A19,'Tabla de Amortizacion'!$D$2:$I$182,MATCH(Tablas!$B$1,'Tabla de Amortizacion'!$D$2:$I$2,0)) -> 0.01473718 | E19: =IF(CALCULADORA!#REF!="Contractual",ROUND('Tabla de Amortizacion'!C20,8),IF(CALCULADORA!#REF!="6% (Medio)",ROUND('Tabla de Amortizacion'!F20,8),IF(CALCULADORA!#REF!="10% (Medio Alto)",ROUND('Tabla de Amortizacion'!H20,8),IF(CALCULADORA!#REF!="14% (Alto)",ROUND('Tabla de Amortizacion'!#REF!,8),IF(CALCULADORA!#REF!=20%,ROUND('Tabla de Amortizacion'!#REF!,8),ROUND('Tabla de Amortizacion'!K20,8)))))) -> 
A20: 2021-03-15 | B20: 0.02286702 | C20: =+VLOOKUP(A20,'Tabla de Amortizacion'!$D$2:$I$182,MATCH(Tablas!$B$1,'Tabla de Amortizacion'!$D$2:$I$2,0)) -> 0.02286702 | E20: =IF(CALCULADORA!#REF!="Contractual",ROUND('Tabla de Amortizacion'!C21,8),IF(CALCULADORA!#REF!="6% (Medio)",ROUND('Tabla de Amortizacion'!F21,8),IF(CALCULADORA!#REF!="10% (Medio Alto)",ROUND('Tabla de Amortizacion'!H21,8),IF(CALCULADORA!#REF!="14% (Alto)",ROUND('Tabla de Amortizacion'!#REF!,8),IF(CALCULADORA!#REF!=20%,ROUND('Tabla de Amortizacion'!#REF!,8),ROUND('Tabla de Amortizacion'!K21,8)))))) -> 
A21: 2021-04-15 | B21: 0.01851441 | C21: =+VLOOKUP(A21,'Tabla de Amortizacion'!$D$2:$I$182,MATCH(Tablas!$B$1,'Tabla de Amortizacion'!$D$2:$I$2,0)) -> 0.01851441 | E21: =IF(CALCULADORA!#REF!="Contractual",ROUND('Tabla de Amortizacion'!C22,8),IF(CALCULADORA!#REF!="6% (Medio)",ROUND('Tabla de Amortizacion'!F22,8),IF(CALCULADORA!#REF!="10% (Medio Alto)",ROUND('Tabla de Amortizacion'!H22,8),IF(CALCULADORA!#REF!="14% (Alto)",ROUND('Tabla de Amortizacion'!#REF!,8),IF(CALCULADORA!#REF!=20%,ROUND('Tabla de Amortizacion'!#REF!,8),ROUND('Tabla de Amortizacion'!K22,8)))))) -> 
A22: 2021-05-15 | B22: 0.01717953 | C22: =+VLOOKUP(A22,'Tabla de Amortizacion'!$D$2:$I$182,MATCH(Tablas!$B$1,'Tabla de Amortizacion'!$D$2:$I$2,0)) -> 0.01717953 | E22: =IF(CALCULADORA!#REF!="Contractual",ROUND('Tabla de Amortizacion'!C23,8),IF(CALCULADORA!#REF!="6% (Medio)",ROUND('Tabla de Amortizacion'!F23,8),IF(CALCULADORA!#REF!="10% (Medio Alto)",ROUND('Tabla de Amortizacion'!H23,8),IF(CALCULADORA!#REF!="14% (Alto)",ROUND('Tabla de Amortizacion'!#REF!,8),IF(CALCULADORA!#REF!=20%,ROUND('Tabla de Amortizacion'!#REF!,8),ROUND('Tabla de Amortizacion'!K23,8)))))) -> 
A23: 2021-06-15 | B23: 0.01261304 | C23: =+VLOOKUP(A23,'Tabla de Amortizacion'!$D$2:$I$182,MATCH(Tablas!$B$1,'Tabla de Amortizacion'!$D$2:$I$2,0)) -> 0.01261304 | E23: =IF(CALCULADORA!#REF!="Contractual",ROUND('Tabla de Amortizacion'!C24,8),IF(CALCULADORA!#REF!="6% (Medio)",ROUND('Tabla de Amortizacion'!F24,8),IF(CALCULADORA!#REF!="10% (Medio Alto)",ROUND('Tabla de Amortizacion'!H24,8),IF(CALCULADORA!#REF!="14% (Alto)",ROUND('Tabla de Amortizacion'!#REF!,8),IF(CALCULADORA!#REF!=20%,ROUND('Tabla de Amortizacion'!#REF!,8),ROUND('Tabla de Amortizacion'!K24,8)))))) -> 
A24: 2021-07-15 | B24: 0.01616914 | C24: =+VLOOKUP(A24,'Tabla de Amortizacion'!$D$2:$I$182,MATCH(Tablas!$B$1,'Tabla de Amortizacion'!$D$2:$I$2,0)) -> 0.01616914 | E24: =IF(CALCULADORA!#REF!="Contractual",ROUND('Tabla de Amortizacion'!C25,8),IF(CALCULADORA!#REF!="6% (Medio)",ROUND('Tabla de Amortizacion'!F25,8),IF(CALCULADORA!#REF!="10% (Medio Alto)",ROUND('Tabla de Amortizacion'!H25,8),IF(CALCULADORA!#REF!="14% (Alto)",ROUND('Tabla de Amortizacion'!#REF!,8),IF(CALCULADORA!#REF!=20%,ROUND('Tabla de Amortizacion'!#REF!,8),ROUND('Tabla de Amortizacion'!K25,8)))))) -> 
A25: 2021-08-15 | B25: 0.01844766 | C25: =+VLOOKUP(A25,'Tabla de Amortizacion'!$D$2:$I$182,MATCH(Tablas!$B$1,'Tabla de Amortizacion'!$D$2:$I$2,0)) -> 0.01844766 | E25: =IF(CALCULADORA!#REF!="Contractual",ROUND('Tabla de Amortizacion'!C26,8),IF(CALCULADORA!#REF!="6% (Medio)",ROUND('Tabla de Amortizacion'!F26,8),IF(CALCULADORA!#REF!="10% (Medio Alto)",ROUND('Tabla de Amortizacion'!H26,8),IF(CALCULADORA!#REF!="14% (Alto)",ROUND('Tabla de Amortizacion'!#REF!,8),IF(CALCULADORA!#REF!=20%,ROUND('Tabla de Amortizacion'!#REF!,8),ROUND('Tabla de Amortizacion'!K26,8)))))) -> 
A26: 2021-09-15 | B26: 0.01348238 | C26: =+VLOOKUP(A26,'Tabla de Amortizacion'!$D$2:$I$182,MATCH(Tablas!$B$1,'Tabla de Amortizacion'!$D$2:$I$2,0)) -> 0.01348238 | E26: =IF(CALCULADORA!#REF!="Contractual",ROUND('Tabla de Amortizacion'!C27,8),IF(CALCULADORA!#REF!="6% (Medio)",ROUND('Tabla de Amortizacion'!F27,8),IF(CALCULADORA!#REF!="10% (Medio Alto)",ROUND('Tabla de Amortizacion'!H27,8),IF(CALCULADORA!#REF!="14% (Alto)",ROUND('Tabla de Amortizacion'!#REF!,8),IF(CALCULADORA!#REF!=20%,ROUND('Tabla de Amortizacion'!#REF!,8),ROUND('Tabla de Amortizacion'!K27,8)))))) -> 
A27: 2021-10-15 | B27: 0.018196 | C27: =+VLOOKUP(A27,'Tabla de Amortizacion'!$D$2:$I$182,MATCH(Tablas!$B$1,'Tabla de Amortizacion'!$D$2:$I$2,0)) -> 0.018196 | E27: =IF(CALCULADORA!#REF!="Contractual",ROUND('Tabla de Amortizacion'!C28,8),IF(CALCULADORA!#REF!="6% (Medio)",ROUND('Tabla de Amortizacion'!F28,8),IF(CALCULADORA!#REF!="10% (Medio Alto)",ROUND('Tabla de Amortizacion'!H28,8),IF(CALCULADORA!#REF!="14% (Alto)",ROUND('Tabla de Amortizacion'!#REF!,8),IF(CALCULADORA!#REF!=20%,ROUND('Tabla de Amortizacion'!#REF!,8),ROUND('Tabla de Amortizacion'!K28,8)))))) -> 
A28: 2021-11-15 | B28: 0.01032785 | C28: =+VLOOKUP(A28,'Tabla de Amortizacion'!$D$2:$I$182,MATCH(Tablas!$B$1,'Tabla de Amortizacion'!$D$2:$I$2,0)) -> 0.01032785 | E28: =IF(CALCULADORA!#REF!="Contractual",ROUND('Tabla de Amortizacion'!C29,8),IF(CALCULADORA!#REF!="6% (Medio)",ROUND('Tabla de Amortizacion'!F29,8),IF(CALCULADORA!#REF!="10% (Medio Alto)",ROUND('Tabla de Amortizacion'!H29,8),IF(CALCULADORA!#REF!="14% (Alto)",ROUND('Tabla de Amortizacion'!#REF!,8),IF(CALCULADORA!#REF!=20%,ROUND('Tabla de Amortizacion'!#REF!,8),ROUND('Tabla de Amortizacion'!K29,8)))))) -> 
A29: 2021-12-15 | B29: 0.01547013 | C29: =+VLOOKUP(A29,'Tabla de Amortizacion'!$D$2:$I$182,MATCH(Tablas!$B$1,'Tabla de Amortizacion'!$D$2:$I$2,0)) -> 0.01547013 | E29: =IF(CALCULADORA!#REF!="Contractual",ROUND('Tabla de Amortizacion'!C30,8),IF(CALCULADORA!#REF!="6% (Medio)",ROUND('Tabla de Amortizacion'!F30,8),IF(CALCULADORA!#REF!="10% (Medio Alto)",ROUND('Tabla de Amortizacion'!H30,8),IF(CALCULADORA!#REF!="14% (Alto)",ROUND('Tabla de Amortizacion'!#REF!,8),IF(CALCULADORA!#REF!=20%,ROUND('Tabla de Amortizacion'!#REF!,8),ROUND('Tabla de Amortizacion'!K30,8)))))) -> 
A30: 2022-01-15 | B30: 0.01478898 | C30: =+VLOOKUP(A30,'Tabla de Amortizacion'!$D$2:$I$182,MATCH(Tablas!$B$1,'Tabla de Amortizacion'!$D$2:$I$2,0)) -> 0.01478898 | E30: =IF(CALCULADORA!#REF!="Contractual",ROUND('Tabla de Amortizacion'!C31,8),IF(CALCULADORA!#REF!="6% (Medio)",ROUND('Tabla de Amortizacion'!F31,8),IF(CALCULADORA!#REF!="10% (Medio Alto)",ROUND('Tabla de Amortizacion'!H31,8),IF(CALCULADORA!#REF!="14% (Alto)",ROUND('Tabla de Amortizacion'!#REF!,8),IF(CALCULADORA!#REF!=20%,ROUND('Tabla de Amortizacion'!#REF!,8),ROUND('Tabla de Amortizacion'!K31,8)))))) -> 
A31: 2022-02-15 | B31: 0.01184482 | C31: =+VLOOKUP(A31,'Tabla de Amortizacion'!$D$2:$I$182,MATCH(Tablas!$B$1,'Tabla de Amortizacion'!$D$2:$I$2,0)) -> 0.01184482 | E31: =IF(CALCULADORA!#REF!="Contractual",ROUND('Tabla de Amortizacion'!C32,8),IF(CALCULADORA!#REF!="6% (Medio)",ROUND('Tabla de Amortizacion'!F32,8),IF(CALCULADORA!#REF!="10% (Medio Alto)",ROUND('Tabla de Amortizacion'!H32,8),IF(CALCULADORA!#REF!="14% (Alto)",ROUND('Tabla de Amortizacion'!#REF!,8),IF(CALCULADORA!#REF!=20%,ROUND('Tabla de Amortizacion'!#REF!,8),ROUND('Tabla de Amortizacion'!K32,8)))))) -> 
A32: 2022-03-15 | B32: 0.01778038 | C32: =+VLOOKUP(A32,'Tabla de Amortizacion'!$D$2:$I$182,MATCH(Tablas!$B$1,'Tabla de Amortizacion'!$D$2:$I$2,0)) -> 0.01778038 | E32: =IF(CALCULADORA!#REF!="Contractual",ROUND('Tabla de Amortizacion'!C33,8),IF(CALCULADORA!#REF!="6% (Medio)",ROUND('Tabla de Amortizacion'!F33,8),IF(CALCULADORA!#REF!="10% (Medio Alto)",ROUND('Tabla de Amortizacion'!H33,8),IF(CALCULADORA!#REF!="14% (Alto)",ROUND('Tabla de Amortizacion'!#REF!,8),IF(CALCULADORA!#REF!=20%,ROUND('Tabla de Amortizacion'!#REF!,8),ROUND('Tabla de Amortizacion'!K33,8)))))) -> 
A33: 2022-04-15 | B33: 0.01677709 | C33: =+VLOOKUP(A33,'Tabla de Amortizacion'!$D$2:$I$182,MATCH(Tablas!$B$1,'Tabla de Amortizacion'!$D$2:$I$2,0)) -> 0.01677709 | E33: =IF(CALCULADORA!#REF!="Contractual",ROUND('Tabla de Amortizacion'!C34,8),IF(CALCULADORA!#REF!="6% (Medio)",ROUND('Tabla de Amortizacion'!F34,8),IF(CALCULADORA!#REF!="10% (Medio Alto)",ROUND('Tabla de Amortizacion'!H34,8),IF(CALCULADORA!#REF!="14% (Alto)",ROUND('Tabla de Amortizacion'!#REF!,8),IF(CALCULADORA!#REF!=20%,ROUND('Tabla de Amortizacion'!#REF!,8),ROUND('Tabla de Amortizacion'!K34,8)))))) -> 
A34: 2022-05-15 | B34: 0.01301349 | C34: =+VLOOKUP(A34,'Tabla de Amortizacion'!$D$2:$I$182,MATCH(Tablas!$B$1,'Tabla de Amortizacion'!$D$2:$I$2,0)) -> 0.01301349 | E34: =IF(CALCULADORA!#REF!="Contractual",ROUND('Tabla de Amortizacion'!C35,8),IF(CALCULADORA!#REF!="6% (Medio)",ROUND('Tabla de Amortizacion'!F35,8),IF(CALCULADORA!#REF!="10% (Medio Alto)",ROUND('Tabla de Amortizacion'!H35,8),IF(CALCULADORA!#REF!="14% (Alto)",ROUND('Tabla de Amortizacion'!#REF!,8),IF(CALCULADORA!#REF!=20%,ROUND('Tabla de Amortizacion'!#REF!,8),ROUND('Tabla de Amortizacion'!K35,8)))))) -> 
A35: =EDATE(A34,1) -> 2022-06-15 | B35: 0.0139161 | C35: =+VLOOKUP(A35,'Tabla de Amortizacion'!$D$2:$I$182,MATCH(Tablas!$B$1,'Tabla de Amortizacion'!$D$2:$I$2,0)) -> 0.0139161 | E35: =IF(CALCULADORA!#REF!="Contractual",ROUND('Tabla de Amortizacion'!C36,8),IF(CALCULADORA!#REF!="6% (Medio)",ROUND('Tabla de Amortizacion'!F36,8),IF(CALCULADORA!#REF!="10% (Medio Alto)",ROUND('Tabla de Amortizacion'!H36,8),IF(CALCULADORA!#REF!="14% (Alto)",ROUND('Tabla de Amortizacion'!#REF!,8),IF(CALCULADORA!#REF!=20%,ROUND('Tabla de Amortizacion'!#REF!,8),ROUND('Tabla de Amortizacion'!K36,8)))))) -> 
A36: 2022-07-15 | B36: 0.01467326 | C36: =+VLOOKUP(A36,'Tabla de Amortizacion'!$D$2:$I$182,MATCH(Tablas!$B$1,'Tabla de Amortizacion'!$D$2:$I$2,0)) -> 0.01467326 | E36: =IF(CALCULADORA!#REF!="Contractual",ROUND('Tabla de Amortizacion'!C37,8),IF(CALCULADORA!#REF!="6% (Medio)",ROUND('Tabla de Amortizacion'!F37,8),IF(CALCULADORA!#REF!="10% (Medio Alto)",ROUND('Tabla de Amortizacion'!H37,8),IF(CALCULADORA!#REF!="14% (Alto)",ROUND('Tabla de Amortizacion'!#REF!,8),IF(CALCULADORA!#REF!=20%,ROUND('Tabla de Amortizacion'!#REF!,8),ROUND('Tabla de Amortizacion'!K37,8)))))) -> 
A37: 2022-08-15 | B37: 0.01412905 | C37: =+VLOOKUP(A37,'Tabla de Amortizacion'!$D$2:$I$182,MATCH(Tablas!$B$1,'Tabla de Amortizacion'!$D$2:$I$2,0)) -> 0.01412905 | E37: =IF(CALCULADORA!#REF!="Contractual",ROUND('Tabla de Amortizacion'!C38,8),IF(CALCULADORA!#REF!="6% (Medio)",ROUND('Tabla de Amortizacion'!F38,8),IF(CALCULADORA!#REF!="10% (Medio Alto)",ROUND('Tabla de Amortizacion'!H38,8),IF(CALCULADORA!#REF!="14% (Alto)",ROUND('Tabla de Amortizacion'!#REF!,8),IF(CALCULADORA!#REF!=20%,ROUND('Tabla de Amortizacion'!#REF!,8),ROUND('Tabla de Amortizacion'!K38,8)))))) -> 
A38: 2022-09-15 | B38: 0.01481652 | C38: =+VLOOKUP(A38,'Tabla de Amortizacion'!$D$2:$I$182,MATCH(Tablas!$B$1,'Tabla de Amortizacion'!$D$2:$I$2,0)) -> 0.01481652 | E38: =IF(CALCULADORA!#REF!="Contractual",ROUND('Tabla de Amortizacion'!C39,8),IF(CALCULADORA!#REF!="6% (Medio)",ROUND('Tabla de Amortizacion'!F39,8),IF(CALCULADORA!#REF!="10% (Medio Alto)",ROUND('Tabla de Amortizacion'!H39,8),IF(CALCULADORA!#REF!="14% (Alto)",ROUND('Tabla de Amortizacion'!#REF!,8),IF(CALCULADORA!#REF!=20%,ROUND('Tabla de Amortizacion'!#REF!,8),ROUND('Tabla de Amortizacion'!K39,8)))))) -> 
A39: 2022-10-15 | B39: 0.01372724 | C39: =+VLOOKUP(A39,'Tabla de Amortizacion'!$D$2:$I$182,MATCH(Tablas!$B$1,'Tabla de Amortizacion'!$D$2:$I$2,0)) -> 0.01372724 | E39: =IF(CALCULADORA!#REF!="Contractual",ROUND('Tabla de Amortizacion'!C40,8),IF(CALCULADORA!#REF!="6% (Medio)",ROUND('Tabla de Amortizacion'!F40,8),IF(CALCULADORA!#REF!="10% (Medio Alto)",ROUND('Tabla de Amortizacion'!H40,8),IF(CALCULADORA!#REF!="14% (Alto)",ROUND('Tabla de Amortizacion'!#REF!,8),IF(CALCULADORA!#REF!=20%,ROUND('Tabla de Amortizacion'!#REF!,8),ROUND('Tabla de Amortizacion'!K40,8)))))) -> 
A40: 2022-11-15 | B40: 0.01329612 | C40: =+VLOOKUP(A40,'Tabla de Amortizacion'!$D$2:$I$182,MATCH(Tablas!$B$1,'Tabla de Amortizacion'!$D$2:$I$2,0)) -> 0.01329612 | E40: =IF(CALCULADORA!#REF!="Contractual",ROUND('Tabla de Amortizacion'!C41,8),IF(CALCULADORA!#REF!="6% (Medio)",ROUND('Tabla de Amortizacion'!F41,8),IF(CALCULADORA!#REF!="10% (Medio Alto)",ROUND('Tabla de Amortizacion'!H41,8),IF(CALCULADORA!#REF!="14% (Alto)",ROUND('Tabla de Amortizacion'!#REF!,8),IF(CALCULADORA!#REF!=20%,ROUND('Tabla de Amortizacion'!#REF!,8),ROUND('Tabla de Amortizacion'!K41,8)))))) -> 
A41: 2022-12-15 | B41: 0.01428469 | C41: =+VLOOKUP(A41,'Tabla de Amortizacion'!$D$2:$I$182,MATCH(Tablas!$B$1,'Tabla de Amortizacion'!$D$2:$I$2,0)) -> 0.01428469 | E41: =IF(CALCULADORA!#REF!="Contractual",ROUND('Tabla de Amortizacion'!C42,8),IF(CALCULADORA!#REF!="6% (Medio)",ROUND('Tabla de Amortizacion'!F42,8),IF(CALCULADORA!#REF!="10% (Medio Alto)",ROUND('Tabla de Amortizacion'!H42,8),IF(CALCULADORA!#REF!="14% (Alto)",ROUND('Tabla de Amortizacion'!#REF!,8),IF(CALCULADORA!#REF!=20%,ROUND('Tabla de Amortizacion'!#REF!,8),ROUND('Tabla de Amortizacion'!K42,8)))))) -> 
A42: 2023-01-15 | B42: 0.01304635 | C42: =+VLOOKUP(A42,'Tabla de Amortizacion'!$D$2:$I$182,MATCH(Tablas!$B$1,'Tabla de Amortizacion'!$D$2:$I$2,0)) -> 0.01304635 | E42: =IF(CALCULADORA!#REF!="Contractual",ROUND('Tabla de Amortizacion'!C43,8),IF(CALCULADORA!#REF!="6% (Medio)",ROUND('Tabla de Amortizacion'!F43,8),IF(CALCULADORA!#REF!="10% (Medio Alto)",ROUND('Tabla de Amortizacion'!H43,8),IF(CALCULADORA!#REF!="14% (Alto)",ROUND('Tabla de Amortizacion'!#REF!,8),IF(CALCULADORA!#REF!=20%,ROUND('Tabla de Amortizacion'!#REF!,8),ROUND('Tabla de Amortizacion'!K43,8)))))) -> 
A43: 2023-02-15 | B43: 0.01031967 | C43: =+VLOOKUP(A43,'Tabla de Amortizacion'!$D$2:$I$182,MATCH(Tablas!$B$1,'Tabla de Amortizacion'!$D$2:$I$2,0)) -> 0.01031967 | E43: =IF(CALCULADORA!#REF!="Contractual",ROUND('Tabla de Amortizacion'!C44,8),IF(CALCULADORA!#REF!="6% (Medio)",ROUND('Tabla de Amortizacion'!F44,8),IF(CALCULADORA!#REF!="10% (Medio Alto)",ROUND('Tabla de Amortizacion'!H44,8),IF(CALCULADORA!#REF!="14% (Alto)",ROUND('Tabla de Amortizacion'!#REF!,8),IF(CALCULADORA!#REF!=20%,ROUND('Tabla de Amortizacion'!#REF!,8),ROUND('Tabla de Amortizacion'!K44,8)))))) -> 
A44: 2023-03-15 | B44: 0.01444651 | C44: =+VLOOKUP(A44,'Tabla de Amortizacion'!$D$2:$I$182,MATCH(Tablas!$B$1,'Tabla de Amortizacion'!$D$2:$I$2,0)) -> 0.01444651 | E44: =IF(CALCULADORA!#REF!="Contractual",ROUND('Tabla de Amortizacion'!C45,8),IF(CALCULADORA!#REF!="6% (Medio)",ROUND('Tabla de Amortizacion'!F45,8),IF(CALCULADORA!#REF!="10% (Medio Alto)",ROUND('Tabla de Amortizacion'!H45,8),IF(CALCULADORA!#REF!="14% (Alto)",ROUND('Tabla de Amortizacion'!#REF!,8),IF(CALCULADORA!#REF!=20%,ROUND('Tabla de Amortizacion'!#REF!,8),ROUND('Tabla de Amortizacion'!K45,8)))))) -> 
A45: 2023-04-15 | B45: 0.01120967 | C45: =+VLOOKUP(A45,'Tabla de Amortizacion'!$D$2:$I$182,MATCH(Tablas!$B$1,'Tabla de Amortizacion'!$D$2:$I$2,0)) -> 0.01120967 | E45: =IF(CALCULADORA!#REF!="Contractual",ROUND('Tabla de Amortizacion'!C46,8),IF(CALCULADORA!#REF!="6% (Medio)",ROUND('Tabla de Amortizacion'!F46,8),IF(CALCULADORA!#REF!="10% (Medio Alto)",ROUND('Tabla de Amortizacion'!H46,8),IF(CALCULADORA!#REF!="14% (Alto)",ROUND('Tabla de Amortizacion'!#REF!,8),IF(CALCULADORA!#REF!=20%,ROUND('Tabla de Amortizacion'!#REF!,8),ROUND('Tabla de Amortizacion'!K46,8)))))) -> 
A46: 2023-05-15 | B46: 0.01087707 | C46: =+VLOOKUP(A46,'Tabla de Amortizacion'!$D$2:$I$182,MATCH(Tablas!$B$1,'Tabla de Amortizacion'!$D$2:$I$2,0)) -> 0.01087707 | E46: =IF(CALCULADORA!#REF!="Contractual",ROUND('Tabla de Amortizacion'!C47,8),IF(CALCULADORA!#REF!="6% (Medio)",ROUND('Tabla de Amortizacion'!F47,8),IF(CALCULADORA!#REF!="10% (Medio Alto)",ROUND('Tabla de Amortizacion'!H47,8),IF(CALCULADORA!#REF!="14% (Alto)",ROUND('Tabla de Amortizacion'!#REF!,8),IF(CALCULADORA!#REF!=20%,ROUND('Tabla de Amortizacion'!#REF!,8),ROUND('Tabla de Amortizacion'!K47,8)))))) -> 
A47: 2023-06-15 | B47: 0.01104679 | C47: =+VLOOKUP(A47,'Tabla de Amortizacion'!$D$2:$I$182,MATCH(Tablas!$B$1,'Tabla de Amortizacion'!$D$2:$I$2,0)) -> 0.01104679 | E47: =IF(CALCULADORA!#REF!="Contractual",ROUND('Tabla de Amortizacion'!C48,8),IF(CALCULADORA!#REF!="6% (Medio)",ROUND('Tabla de Amortizacion'!F48,8),IF(CALCULADORA!#REF!="10% (Medio Alto)",ROUND('Tabla de Amortizacion'!H48,8),IF(CALCULADORA!#REF!="14% (Alto)",ROUND('Tabla de Amortizacion'!#REF!,8),IF(CALCULADORA!#REF!=20%,ROUND('Tabla de Amortizacion'!#REF!,8),ROUND('Tabla de Amortizacion'!K48,8)))))) -> 
A48: 2023-07-15 | B48: 0.01029279 | C48: =+VLOOKUP(A48,'Tabla de Amortizacion'!$D$2:$I$182,MATCH(Tablas!$B$1,'Tabla de Amortizacion'!$D$2:$I$2,0)) -> 0.01029279 | E48: =IF(CALCULADORA!#REF!="Contractual",ROUND('Tabla de Amortizacion'!C49,8),IF(CALCULADORA!#REF!="6% (Medio)",ROUND('Tabla de Amortizacion'!F49,8),IF(CALCULADORA!#REF!="10% (Medio Alto)",ROUND('Tabla de Amortizacion'!H49,8),IF(CALCULADORA!#REF!="14% (Alto)",ROUND('Tabla de Amortizacion'!#REF!,8),IF(CALCULADORA!#REF!=20%,ROUND('Tabla de Amortizacion'!#REF!,8),ROUND('Tabla de Amortizacion'!K49,8)))))) -> 
A49: 2023-08-15 | B49: 0.00957565 | C49: =+VLOOKUP(A49,'Tabla de Amortizacion'!$D$2:$I$182,MATCH(Tablas!$B$1,'Tabla de Amortizacion'!$D$2:$I$2,0)) -> 0.00957565 | E49: =IF(CALCULADORA!#REF!="Contractual",ROUND('Tabla de Amortizacion'!C50,8),IF(CALCULADORA!#REF!="6% (Medio)",ROUND('Tabla de Amortizacion'!F50,8),IF(CALCULADORA!#REF!="10% (Medio Alto)",ROUND('Tabla de Amortizacion'!H50,8),IF(CALCULADORA!#REF!="14% (Alto)",ROUND('Tabla de Amortizacion'!#REF!,8),IF(CALCULADORA!#REF!=20%,ROUND('Tabla de Amortizacion'!#REF!,8),ROUND('Tabla de Amortizacion'!K50,8)))))) -> 
A50: 2023-09-15 | B50: 0.00937497 | C50: =+VLOOKUP(A50,'Tabla de Amortizacion'!$D$2:$I$182,MATCH(Tablas!$B$1,'Tabla de Amortizacion'!$D$2:$I$2,0)) -> 0.00937497 | E50: =IF(CALCULADORA!#REF!="Contractual",ROUND('Tabla de Amortizacion'!C51,8),IF(CALCULADORA!#REF!="6% (Medio)",ROUND('Tabla de Amortizacion'!F51,8),IF(CALCULADORA!#REF!="10% (Medio Alto)",ROUND('Tabla de Amortizacion'!H51,8),IF(CALCULADORA!#REF!="14% (Alto)",ROUND('Tabla de Amortizacion'!#REF!,8),IF(CALCULADORA!#REF!=20%,ROUND('Tabla de Amortizacion'!#REF!,8),ROUND('Tabla de Amortizacion'!K51,8)))))) -> 
A51: 2023-10-15 | B51: 0.00910422 | C51: =+VLOOKUP(A51,'Tabla de Amortizacion'!$D$2:$I$182,MATCH(Tablas!$B$1,'Tabla de Amortizacion'!$D$2:$I$2,0)) -> 0.00910422 | E51: =IF(CALCULADORA!#REF!="Contractual",ROUND('Tabla de Amortizacion'!C52,8),IF(CALCULADORA!#REF!="6% (Medio)",ROUND('Tabla de Amortizacion'!F52,8),IF(CALCULADORA!#REF!="10% (Medio Alto)",ROUND('Tabla de Amortizacion'!H52,8),IF(CALCULADORA!#REF!="14% (Alto)",ROUND('Tabla de Amortizacion'!#REF!,8),IF(CALCULADORA!#REF!=20%,ROUND('Tabla de Amortizacion'!#REF!,8),ROUND('Tabla de Amortizacion'!K52,8)))))) -> 
A52: 2023-11-15 | B52: 0.00781544 | C52: =+VLOOKUP(A52,'Tabla de Amortizacion'!$D$2:$I$182,MATCH(Tablas!$B$1,'Tabla de Amortizacion'!$D$2:$I$2,0)) -> 0.00781544 | E52: =IF(CALCULADORA!#REF!="Contractual",ROUND('Tabla de Amortizacion'!C53,8),IF(CALCULADORA!#REF!="6% (Medio)",ROUND('Tabla de Amortizacion'!F53,8),IF(CALCULADORA!#REF!="10% (Medio Alto)",ROUND('Tabla de Amortizacion'!H53,8),IF(CALCULADORA!#REF!="14% (Alto)",ROUND('Tabla de Amortizacion'!#REF!,8),IF(CALCULADORA!#REF!=20%,ROUND('Tabla de Amortizacion'!#REF!,8),ROUND('Tabla de Amortizacion'!K53,8)))))) -> 
A53: 2023-12-15 | B53: 0.00965441 | C53: =+VLOOKUP(A53,'Tabla de Amortizacion'!$D$2:$I$182,MATCH(Tablas!$B$1,'Tabla de Amortizacion'!$D$2:$I$2,0)) -> 0.00965441 | E53: =IF(CALCULADORA!#REF!="Contractual",ROUND('Tabla de Amortizacion'!C54,8),IF(CALCULADORA!#REF!="6% (Medio)",ROUND('Tabla de Amortizacion'!F54,8),IF(CALCULADORA!#REF!="10% (Medio Alto)",ROUND('Tabla de Amortizacion'!H54,8),IF(CALCULADORA!#REF!="14% (Alto)",ROUND('Tabla de Amortizacion'!#REF!,8),IF(CALCULADORA!#REF!=20%,ROUND('Tabla de Amortizacion'!#REF!,8),ROUND('Tabla de Amortizacion'!K54,8)))))) -> 
A54: 2024-01-15 | B54: 0.00774509 | C54: =+VLOOKUP(A54,'Tabla de Amortizacion'!$D$2:$I$182,MATCH(Tablas!$B$1,'Tabla de Amortizacion'!$D$2:$I$2,0)) -> 0.00774509 | E54: =IF(CALCULADORA!#REF!="Contractual",ROUND('Tabla de Amortizacion'!C55,8),IF(CALCULADORA!#REF!="6% (Medio)",ROUND('Tabla de Amortizacion'!F55,8),IF(CALCULADORA!#REF!="10% (Medio Alto)",ROUND('Tabla de Amortizacion'!H55,8),IF(CALCULADORA!#REF!="14% (Alto)",ROUND('Tabla de Amortizacion'!#REF!,8),IF(CALCULADORA!#REF!=20%,ROUND('Tabla de Amortizacion'!#REF!,8),ROUND('Tabla de Amortizacion'!K55,8)))))) -> 
A55: 2024-02-15 | B55: 0.00136039 | C55: =+VLOOKUP(A55,'Tabla de Amortizacion'!$D$2:$I$182,MATCH(Tablas!$B$1,'Tabla de Amortizacion'!$D$2:$I$2,0)) -> 0.00136039 | E55: =IF(CALCULADORA!#REF!="Contractual",ROUND('Tabla de Amortizacion'!C56,8),IF(CALCULADORA!#REF!="6% (Medio)",ROUND('Tabla de Amortizacion'!F56,8),IF(CALCULADORA!#REF!="10% (Medio Alto)",ROUND('Tabla de Amortizacion'!H56,8),IF(CALCULADORA!#REF!="14% (Alto)",ROUND('Tabla de Amortizacion'!#REF!,8),IF(CALCULADORA!#REF!=20%,ROUND('Tabla de Amortizacion'!#REF!,8),ROUND('Tabla de Amortizacion'!K56,8)))))) -> 
A56: 2024-03-15 | B56: 0.00725238 | C56: =+VLOOKUP(A56,'Tabla de Amortizacion'!$D$2:$I$182,MATCH(Tablas!$B$1,'Tabla de Amortizacion'!$D$2:$I$2,0)) -> 0.00725238 | E56: =IF(CALCULADORA!#REF!="Contractual",ROUND('Tabla de Amortizacion'!C57,8),IF(CALCULADORA!#REF!="6% (Medio)",ROUND('Tabla de Amortizacion'!F57,8),IF(CALCULADORA!#REF!="10% (Medio Alto)",ROUND('Tabla de Amortizacion'!H57,8),IF(CALCULADORA!#REF!="14% (Alto)",ROUND('Tabla de Amortizacion'!#REF!,8),IF(CALCULADORA!#REF!=20%,ROUND('Tabla de Amortizacion'!#REF!,8),ROUND('Tabla de Amortizacion'!K57,8)))))) -> 
A57: 2024-04-15 | B57: 0.00709299 | C57: =+VLOOKUP(A57,'Tabla de Amortizacion'!$D$2:$I$182,MATCH(Tablas!$B$1,'Tabla de Amortizacion'!$D$2:$I$2,0)) -> 0.00709299 | E57: =IF(CALCULADORA!#REF!="Contractual",ROUND('Tabla de Amortizacion'!C58,8),IF(CALCULADORA!#REF!="6% (Medio)",ROUND('Tabla de Amortizacion'!F58,8),IF(CALCULADORA!#REF!="10% (Medio Alto)",ROUND('Tabla de Amortizacion'!H58,8),IF(CALCULADORA!#REF!="14% (Alto)",ROUND('Tabla de Amortizacion'!#REF!,8),IF(CALCULADORA!#REF!=20%,ROUND('Tabla de Amortizacion'!#REF!,8),ROUND('Tabla de Amortizacion'!K58,8)))))) -> 
A58: 2024-05-15 | B58: 0.00694065 | C58: =+VLOOKUP(A58,'Tabla de Amortizacion'!$D$2:$I$182,MATCH(Tablas!$B$1,'Tabla de Amortizacion'!$D$2:$I$2,0)) -> 0.00694065 | E58: =IF(CALCULADORA!#REF!="Contractual",ROUND('Tabla de Amortizacion'!C59,8),IF(CALCULADORA!#REF!="6% (Medio)",ROUND('Tabla de Amortizacion'!F59,8),IF(CALCULADORA!#REF!="10% (Medio Alto)",ROUND('Tabla de Amortizacion'!H59,8),IF(CALCULADORA!#REF!="14% (Alto)",ROUND('Tabla de Amortizacion'!#REF!,8),IF(CALCULADORA!#REF!=20%,ROUND('Tabla de Amortizacion'!#REF!,8),ROUND('Tabla de Amortizacion'!K59,8)))))) -> 
A59: 2024-06-15 | B59: 0.00857029 | C59: =+VLOOKUP(A59,'Tabla de Amortizacion'!$D$2:$I$182,MATCH(Tablas!$B$1,'Tabla de Amortizacion'!$D$2:$I$2,0)) -> 0.00857029 | E59: =IF(CALCULADORA!#REF!="Contractual",ROUND('Tabla de Amortizacion'!C60,8),IF(CALCULADORA!#REF!="6% (Medio)",ROUND('Tabla de Amortizacion'!F60,8),IF(CALCULADORA!#REF!="10% (Medio Alto)",ROUND('Tabla de Amortizacion'!H60,8),IF(CALCULADORA!#REF!="14% (Alto)",ROUND('Tabla de Amortizacion'!#REF!,8),IF(CALCULADORA!#REF!=20%,ROUND('Tabla de Amortizacion'!#REF!,8),ROUND('Tabla de Amortizacion'!K60,8)))))) -> 
A60: 2024-07-15 | B60: 0.00844706 | C60: =+VLOOKUP(A60,'Tabla de Amortizacion'!$D$2:$I$182,MATCH(Tablas!$B$1,'Tabla de Amortizacion'!$D$2:$I$2,0)) -> 0.00844706 | E60: =IF(CALCULADORA!#REF!="Contractual",ROUND('Tabla de Amortizacion'!C61,8),IF(CALCULADORA!#REF!="6% (Medio)",ROUND('Tabla de Amortizacion'!F61,8),IF(CALCULADORA!#REF!="10% (Medio Alto)",ROUND('Tabla de Amortizacion'!H61,8),IF(CALCULADORA!#REF!="14% (Alto)",ROUND('Tabla de Amortizacion'!#REF!,8),IF(CALCULADORA!#REF!=20%,ROUND('Tabla de Amortizacion'!#REF!,8),ROUND('Tabla de Amortizacion'!K61,8)))))) -> 
A61: 2024-08-15 | B61: 0.00809228 | C61: =+VLOOKUP(A61,'Tabla de Amortizacion'!$D$2:$I$182,MATCH(Tablas!$B$1,'Tabla de Amortizacion'!$D$2:$I$2,0)) -> 0.00809228 | E61: =IF(CALCULADORA!#REF!="Contractual",ROUND('Tabla de Amortizacion'!C62,8),IF(CALCULADORA!#REF!="6% (Medio)",ROUND('Tabla de Amortizacion'!F62,8),IF(CALCULADORA!#REF!="10% (Medio Alto)",ROUND('Tabla de Amortizacion'!H62,8),IF(CALCULADORA!#REF!="14% (Alto)",ROUND('Tabla de Amortizacion'!#REF!,8),IF(CALCULADORA!#REF!=20%,ROUND('Tabla de Amortizacion'!#REF!,8),ROUND('Tabla de Amortizacion'!K62,8)))))) -> 
A62: 2024-09-15 | B62: 0.00820975 | C62: =+VLOOKUP(A62,'Tabla de Amortizacion'!$D$2:$I$182,MATCH(Tablas!$B$1,'Tabla de Amortizacion'!$D$2:$I$2,0)) -> 0.00820975 | E62: =IF(CALCULADORA!#REF!="Contractual",ROUND('Tabla de Amortizacion'!C63,8),IF(CALCULADORA!#REF!="6% (Medio)",ROUND('Tabla de Amortizacion'!F63,8),IF(CALCULADORA!#REF!="10% (Medio Alto)",ROUND('Tabla de Amortizacion'!H63,8),IF(CALCULADORA!#REF!="14% (Alto)",ROUND('Tabla de Amortizacion'!#REF!,8),IF(CALCULADORA!#REF!=20%,ROUND('Tabla de Amortizacion'!#REF!,8),ROUND('Tabla de Amortizacion'!K63,8)))))) -> 
